{"text_format":"1","workbook":"xlsx","n_sheets":8,"sheets":["A - PdS2023_Nuovi interventi","B - PdS23 Interv. P. Pre","Foglio1","C-Benefici Attesi PdS23","D-Merchant line","E- PdS 2023 - opere princip","Altri interventi","L-Legenda"],"not_rendered":{"charts":0,"images":0,"macros":1,"external_links":0,"defined_names":6,"comments":2,"pivot_tables":0},"unopened":[],"bounds":{"document_bytes":16777216,"sheet_cells":100000,"rows_first":2000,"rows_last":500,"rows_between":2000,"halvings":0,"cell_chars":16384,"cell_head_chars":4096},"cells_cut":0,"cells_raw":0,"read":"whole","date_system":"1900"}

{"sheet":"A - PdS2023_Nuovi interventi","index":0,"n_rows":452,"n_cols":53,"rows_kept":452,"cut":false,"hidden":false,"merged":[[5,45,6,45],[5,46,6,46],[5,47,6,47],[5,39,6,39],[5,40,6,40],[5,41,6,41],[5,42,6,42],[5,43,6,43],[5,44,6,44]]}
[null,null,"Distretto Territoriale",null,null,null,null,null,null,null,null,null,"Finalità intervento",null,null,null,"Obiettivi intervento",null,null,null,null,null,null,null,null,null,null,null,"Stato avanzamento opere principali ",null,null,null,null,null,null,null,null,null,null,"Impatti in termini di km di territorio occupati"]
["Categoria","Area Territoriale","DTNO","DTNE","DTCS","Regioni interessate","Identificativo PdS","Nome Intervento","Identificativo PCI","Identificativo ENTSO-E TYNDP","Identificativo ENTSO-E Regional Plan ","Priorità PdS (con motivazione)","Decarbonizzazione","Sicurezza e Resilienza","Market efficiency","Sostenibilità","Congestioni INTRA","Congestioni INTER"," Connessione RTN","Integrazione FER"," Integrazione RFI","Interconnessioni"," Transizione energetica","Resilienza","Qualità del servizio","Tipo di Intervento","Numero opere incluse nell'intervento","Numero Totale Opere Principali","Fase 1 [%]","Fase 2 [%]","Fase 3 [%]","Fase 4 [%]","Fase 5 [%]","Completato [%]","Avvio attività","Avvio cantieri","Completamento","Anno di pianificazione","Impatto in termini di aumento della capacità di interconnessione","Realizzazione I22 [km]","Realizzazione I23 [km]","Realizzazione I24 [km]","Dismissione I22 [km]","Dismissione I23 [km]","Dismissione I24 [km]","Dismissione e Realizzazione I22 [km]","Dismissione e Realizzazione I23 [km]","Dismissione e Realizzazione I24 [km]","ACB 2.0 (Sì/No)","Identificazione delle principali categorie di beneficio ","Investimento sostenuto [M€] ","Investimento stimato* [M€]","Rapporti di complementarietà con altri interventi"]
["Nuovo intervento","Area Centro/Centro-Nord/Nord",1,1,1,"Lazio/Toscana/Emilia-Romagna/Lombardia ","355-N","HVDC Milano-Montalto",null,null,null,null,1,null,1,null,null,1,null,1,null,null,1,null,null,"Gruppo di opere",8,8,100,0,0,0,0,0,2024,2027,"2030/2032",2023,"2000/800",276,249,0,11,0,0,219,19,7,"Sì","rif. Tab. C",0,2675,"436-P, 432-P, 351-P, 302-P"]
["Nuovo intervento","Area Centro/Centro-Nord",null,1,1,"Toscana/Umbria","356-N","Central Link",null,null,null,null,1,null,1,null,null,1,null,1,null,null,1,null,null,"Gruppo di opere",6,6,100,0,0,0,0,0,2024,2026,2030,2023,600,0,0,0,0,0,0,174,15,5,"Sì","rif. Tab. C",0,280]
["Nuovo intervento","Area Centro/Sardegna",1,null,1,"Sardegna/Lazio","732-N","Dorsale Sarda: HVDC Fiumesanto – Montalto (SAPEI 2) e Sardinian Link",null,null,null,null,1,null,1,null,null,1,null,1,null,null,1,null,null,"Gruppo di opere",4,4,100,0,0,0,0,0,2024,2035,2040,2023,1000,343,140,0,0,0,0,253,45,1,"Sì","rif. Tab. C",0,1422]
["Nuovo intervento","Area Centro Sud",null,null,1,"Calabria/Basilicata/Campania/\nLazio","563/1-N","Dorsale Ionica - Tirrenica: HVDC Rossano-Montecorvino-Latina",null,null,null,null,1,null,1,null,null,1,null,1,null,null,1,null,null,"Gruppo di opere",9,9,100,0,0,0,0,0,2026,2031,2035,2023,"2000/1000",627,6,2,0,0,0,205,57,78,"Sì","rif. Tab. C",0,2724,"563/2-N,723-P"]
["Nuovo intervento","Area Centro Sud",null,null,1,"Sicilia/Calabria","563/2-N","Dorsale Ionica - Tirrenica: HVDC Ionian",null,null,null,null,1,null,1,null,null,1,null,1,null,null,1,null,null,"Gruppo di opere",4,4,100,0,0,0,0,0,2026,2031,2035,2023,"2000/1000",null,null,null,null,null,null,null,null,null,"Sì","rif. Tab. C",0,1410,"563/1-N"]
["Nuovo intervento","Area Centro Sud/Centro Nord",null,1,1,"Puglia/Molise/Abruzzo/\nMarche/Emilia- Romagna","447-N","Dorsale Adriatica: HVDC Foggia-Villanova-Fano-Forlì",null,null,null,null,1,null,1,null,null,1,null,1,null,null,1,null,null,"Gruppo di opere",10,10,100,0,0,0,0,0,2024,2028,"2032/2036",2023,"600/500\n600/1000/2000",257,2,7,11,0,0,257,24,1,"Sì","rif. Tab. C",0,2355,"436-P,402-P"]
["Nuovo intervento","Area Nord",1,null,null,"Lombardia","172-N","Nuovo elettrodotto 132 kV Cornegliano Laudense-Pieve Fissiraga",null,null,null,null,null,1,null,null,null,null,null,null,1,null,null,null,1,"Linea",3,3,100,0,0,0,0,0,2025,2028,2030,2023,null,3,0,2,0,0,0,0,0,0,"No",null,0,5.5]
["Nuovo intervento","Area Nord-Est",null,1,null,"Veneto","263-N","Incremento della trasformazione SE Villabona",null,null,null,null,null,1,null,null,null,null,null,null,null,null,null,null,1,"Stazione",1,1,100,0,0,0,0,0,2023,2026,2028,2023,null,0,0,0,0,0,0,0,0,0,"No",null,0,4]
["Nuovo intervento","Area Centro-Nord",null,1,null,"Emilia - Romagna","357-N","Incremento magliatura area di Ravenna",null,null,null,null,null,1,null,1,null,null,null,null,null,null,null,null,1,"Gruppo di opere",3,3,100,0,0,0,0,0,2025,2028,2030,2023,null,6,0,1,1,0,0,5,0,0,"No",null,0,23]
["Nuovo intervento","Area Centro-Nord",null,1,null,"Emilia Romagna","358-N","Nuovo elettrodotto 132 kV “Rimini Condotti-Rimini Nord”",null,null,null,null,null,1,null,null,null,null,null,null,null,null,null,1,1,"Linea",1,1,100,0,0,0,0,0,2024,2028,2032,2023,null,4,0,1,0,0,0,0,0,0,"No",null,0,10]
["Nuovo intervento","Area Centro-Nord",null,1,null,"Toscana","359-N","Nuovo elettrodotto “Follonica-Follonica RT”",null,null,null,null,null,1,null,null,null,null,null,null,null,null,null,1,1,"Linea",1,1,100,0,0,0,0,0,2024,2028,2032,2023,null,1,0,1,0,0,0,0,0,0,"No",null,0,3]
["Nuovo intervento","Area Sicilia",null,null,1,"Sicilia","633-N","Incremento magliatura 150 kV tra Enna e Catania",null,null,null,null,1,1,null,null,1,null,null,1,null,null,null,null,1,"Gruppo di opere",3,3,100,0,0,0,0,0,2026,2029,2030,2023,null,1,0,0,0,0,0,0,0,0,"No",null,0,3,"609-P"]
["Nuovo intervento","Area Sicilia",null,null,1,"Sicilia","634-N","Incremento magliatura CP Giardini",null,null,null,null,null,1,null,null,null,null,null,null,1,null,null,null,1,"Gruppo di opere",2,2,100,0,0,0,0,0,2026,2030,2032,2023,null,2,0,0,0,0,0,0,0,0,"No",null,0,4]
[]
[]
[]
[]
[]
[]
[]
[]
[]
[]
[]
[]
[]
[]
[]
[]
[]
[]
[]
[]
[]
[]
[]
[]
[]
[]
[]
[]
[]
[]
[]
[]
[]
[]
[]
[]
[]
[]
[]
[]
[]
[]
[]
[]
[]
[]
[]
[]
[]
[]
[]
[]
[]
[]
[]
[]
[]
[]
[]
[]
[]
[]
[]
[]
[]
[]
[]
[]
[]
[]
[]
[]
[]
[]
[]
[]
[]
[]
[]
[]
[]
[]
[]
[]
[]
[]
[]
[]
[]
[]
[]
[]
[]
[]
[]
[]
[]
[]
[]
[]
[]
[]
[]
[]
[]
[]
[]
[]
[]
[]
[]
[]
[]
[]
[]
[]
[]
[]
[]
[]
[]
[]
[]
[]
[]
[]
[]
[]
[]
[]
[]
[]
[]
[]
[]
[]
[]
[]
[]
[]
[]
[]
[]
[]
[]
[]
[]
[]
[]
[]
[]
[]
[]
[]
[]
[]
[]
[]
[]
[]
[]
[]
[]
[]
[]
[]
[]
[]
[]
[]
[]
[]
[]
[]
[]
[]
[]
[]
[]
[]
[]
[]
[]
[]
[]
[]
[]
[]
[]
[]
[]
[]
[]
[]
[]
[]
[]
[]
[]
[]
[]
[]
[]
[]
[]
[]
[]
[]
[]
[]
[]
[]
[]
[]
[]
[]
[]
[]
[]
[]
[]
[]
[]
[]
[]
[]
[]
[]
[]
[]
[]
[]
[]
[]
[]
[]
[]
[]
[]
[]
[]
[]
[]
[]
[]
[]
[]
[]
[]
[]
[]
[]
[]
[]
[]
[]
[]
[]
[]
[]
[]
[]
[]
[]
[]
[]
[]
[]
[]
[]
[]
[]
[]
[]
[]
[]
[]
[]
[]
[]
[]
[]
[]
[]
[]
[]
[]
[]
[]
[]
[]
[]
[]
[]
[]
[]
[]
[]
[]
[]
[]
[]
[]
[]
[]
[]
[]
[]
[]
[]
[]
[]
[]
[]
[]
[]
[]
[]
[]
[]
[]
[]
[]
[]
[]
[]
[]
[]
[]
[]
[]
[]
[]
[]
[]
[]
[]
[]
[]
[]
[]
[]
[]
[]
[]
[]
[]
[]
[]
[]
[]
[]
[]
[]
[]
[]
[]
[]
[]
[]
[]
[]
[]
[]
[]
[]
[]
[]
[]
[]
[]
[]
[]
[]
[]
[]
[]
[]
[]
[]
[]
[]
[]
[]
[]
[]
[]
[]
[]
[]
[]
[]
[]
[]
[]
[]
[]
[]
[]
[]
[]
[]
[]
[]
[]
[]
[]
[]
[]
[]
[]
[]
[]
[]
[]
[]
[]
[]
[]
[]
[]
[]
[]
[]
[]
[]
[]
[]
[]
[]
[]
[]
[]
[]
[]
[]
[null,null,null,null,null,null,null,null,null,null,null,null,null,null,null,null,null,null,null,null,null,null,null,null,null,null,null,null,null,null,null,null,null,null,null,null,null,null,null,null,null,null,null,null,null,null,null,null,null,null,null,"* stima del valore a vita intera comprensivo degli oneri finanziari"]

{"sheet":"B - PdS23 Interv. P. Pre","index":1,"n_rows":233,"n_cols":53,"rows_kept":233,"cut":false,"hidden":false,"merged":[[1,11,1,14],[1,26,1,32],[1,15,1,23],[1,38,1,46],[1,2,1,4]]}
[]
[null,null,"Distretto Territoriale",null,null,null,null,null,null,null,null,"Finalità intervento",null,null,null,"Obiettivi intervento",null,null,null,null,null,null,null,null,null,null,"Stato avanzamento opere principali (PdS 2023) ",null,null,null,null,null,null,null,null,null,null,null,"Impatti in termini di km di territorio occupati"]
["Categoria","Area Territoriale","DTCS","DTNO","DTNE","Regioni interessate","Identificativo PdS","Nome Intervento","Identificativo PCI","Identificativo TYNDP","Identificativo RIP","Decarbonizzazione","Sicurezza e Resilienza","Market efficiency","Sostenibilità","Congestioni INTRA","Congestioni INTER"," Connessione RTN","Integrazione FER"," Integrazione RFI","Interconnessioni"," Transizione energetica","Resilienza","Qualità del servizio","Tipo di Intervento","Numero opere incluse nell'intervento","Numero Totale Opere Principali","Fase 1 [%]","Fase 2 [%]","Fase 3 [%]","Fase 4 [%]","Fase 5 [%]","Completato [%]","Avvio attività","Avvio cantieri","Completamento","Anno di pianificazione","Impatto in termini di aumento della capacità di interconnessione [MW]","Realizzazione [km] I22","Realizzazione [km] I23","Realizzazione [km] I24","Dismissione [km] I22","Dismissione [km] I23","Dismissione [km] I24","Dismissione e Realizzazione [km] I22","Dismissione e Realizzazione [km] I23","Dismissione e Realizzazione [km] I24","ACB 2.0 (Sì/No)","Identificazione delle principali categorie di beneficio ","Investimento sostenuto [M€] ","Investimento stimato* [M€]","Rapporti di complementarietà con altri interventi","Note"]
["Intervento Piano precedente","Area Sud",1,null,null,"Abruzzo/Molise/Puglia","402-P","Elettrodotto 380 kV Foggia – Villanova",null,127,"-",1,1,1,1,1,null,null,1,null,null,1,null,1,"Gruppo di opere",7,4,0,0,25,0,0,75,null,null,"2028/2030","2005: Villanova-Gissi \n2007: Gissi-Larino-Foggia",null,132,"8",null,"8",1,null,null,null,null,"Si","rif. Tab. C",222,462,"Altri interventi che impattano sulla capacità di scambio tra le zone Sud-CSud sono: l’elettrodotto 380 kV Montecorvino - Benevento (cod. PdS 506-P), l’elettrodotto 380 kV Aliano - Montecorvino (cod.PdS 546-P) e Nord Benevento (cod. PdS 553-P)","Per i dettagli dei benefici, si rimanda al PdS17"]
["Intervento Piano precedente","Area Centro",1,null,null,"Abruzzo/Marche","403-P","Rete AAT/AT medio Adriatico","-","-","-",null,1,null,1,null,null,1,null,null,null,null,null,1,"Gruppo di opere",4,4,0,25,25,0,25,25,null,null,2034,2003,null,"44","3","5","88","2","4",null,null,null,"Si","rif. Tab. C",2,42,null,"Per i dettagli dei benefici, si rimanda al PdS20"]
["Intervento Piano precedente","Area Centro",1,null,null,"Lazio","404-P","Riassetto area metropolitana di Roma","-","-","-",null,1,null,1,null,null,null,null,null,null,null,null,1,"Gruppo di opere",9,7,0,0,100,0,0,0,null,null,2035,2008,null,154,64,45,164,56,38,"20","14","4","Si","rif. Tab. C",120,491,null,"Per i dettagli dei benefici, si rimanda al PdS17"]
["Intervento Piano precedente","Area Centro",1,null,null,"Abruzzo/Molise ","405-P","Elettrodotto 150 kV Portocannone – S. Salvo Z.I. e nuovo smistamento","-","-","-",null,1,null,null,null,null,null,null,null,null,null,null,1,"Gruppo di opere",3,3,0,0,0,33,0,67,null,null,2024,2002,null,"6",null,null,"2",null,1,"39",1,null,"Si","rif. Tab. C",22,33,null,"Per i dettagli dei benefici, si rimanda al PdS19"]
["Intervento Piano precedente","Area Centro",1,null,null,"Abruzzo","407-P","Sviluppi di rete sulla direttrice Villavalle – Popoli","-","-","-",null,1,null,1,null,null,null,null,null,null,null,null,1,"Stazione",1,1,0,100,0,0,0,0,2021,2024,2035,2009,null,null,null,null,null,null,null,null,null,null,"No",null,1,14]
["Intervento Piano precedente","Area Centro",1,null,null,"Lazio","408-P","Sviluppi di rete nell’area di Cassino","-","-","-",null,1,null,null,null,null,null,null,null,null,null,null,1,"Gruppo di opere",6,6,67,0,0,16,0,16,null,null,2035,2009,null,7,null,null,1,null,null,32,null,1,"Si","rif. Tab. C",4,25,null,"Per i dettagli dei benefici, si rimanda al PdS19"]
["Intervento Piano precedente","Area Centro",1,null,null,"Lazio/Umbria","409-P","Potenziamento della rete AT tra Terni e Roma","-","-","-",null,1,null,1,null,null,1,null,null,null,null,1,1,"Gruppo di opere",3,3,0,33,0,33,33,0,null,2019,2035,2009,null,"3",1,null,"22","1",1,null,null,null,"No",null,11,23,"Dipendenza da accordi con e-distribuzione per la realizzazione di stalli presso le Cabine Primarie"]
["Intervento Piano precedente","Area Centro",1,null,null,"Abruzzo/Molise","410-P","Interventi sulla rete AT per la raccolta della produzione rinnovabile tra Abruzzo e Molise","-","-","-",1,1,null,1,null,null,null,1,null,null,null,null,1,"Rimozione limitazioni linea",2,2,0,100,0,0,0,0,2022,2025,2033,2011,null,null,null,null,null,null,null,"75","38","3","No",null,4,11]
["Intervento Piano precedente","Area Centro",1,null,null,"Abruzzo/Lazio","411-P","Interventi sulla rete AT per la raccolta della produzione rinnovabile in Abruzzo e Lazio","-","-","-",1,1,null,1,null,null,null,1,null,null,null,null,1,"Gruppo di opere",4,4,25,25,0,0,50,0,null,2023,2035,2011,null,"39","22","6","5",null,"4","45",1,"2","Si","rif. Tab. C",7,42,null,"Per i dettagli dei benefici, si rimanda al PdS21"]
["Intervento Piano precedente","Area Centro",1,null,null,"Campania/Molise","412-P","Interventi sulla rete AT per la raccolta della produzione rinnovabile tra Campania e Molise","-","-","-",1,1,null,1,null,null,null,1,null,null,null,null,1,"Rimozione limitazioni linea",1,1,0,0,0,0,100,0,2021,2022,2024,2012,null,null,null,null,null,null,null,"24","5","1","No",null,2,24]
["Intervento Piano precedente","Area Centro",1,null,null,"Molise","414-P","Stazione 380 kV Rotello","-","-","-",1,1,null,1,null,null,null,1,null,null,null,1,1,"Gruppo di opere",2,2,0,0,0,50,0,50,null,null,2023,2011,null,"6",null,null,null,null,null,null,null,null,"No",null,2,3]
["Intervento Piano precedente","Area Centro",1,null,null,"Lazio","416-P","Stazione 380 kV Tuscania","-","-","-",null,1,null,null,null,null,null,null,null,null,null,null,1,"Stazione",2,2,0,0,0,50,0,50,null,null,2024,2011,null,"9",null,null,null,null,null,null,null,null,"No",null,3,9]
["Intervento Piano precedente","Area Centro",1,null,null,"Lazio","418-P","Riassetto rete AT Roma Sud – Latina - Garigliano","-","-","-",null,1,null,null,null,null,null,null,null,null,null,null,1,"Gruppo di opere",5,4,50,25,0,0,0,25,null,null,2031,2010,null,8,null,1,10,null,null,25,null,1,"No",null,11,20]
["Intervento Piano precedente","Area Centro",1,null,null,"Lazio","419-P","Riassetto rete Roma Ovest - Roma Sud Ovest","-","-","-",null,1,null,1,null,null,null,null,null,null,null,null,1,"Gruppo di opere",3,3,33,33,0,0,33,0,null,2023,2035,2010,null,4,4,2,1,1,null,28,27,3,"No",null,7,25]
["Intervento Piano precedente","Area Centro",1,null,null,"Abruzzo","420-P","Riassetto rete Teramo - Pescara","-","-","-",null,1,null,null,null,null,null,null,null,null,null,null,1,"Gruppo di opere",4,3,0,33,67,0,0,0,null,null,2035,2010,null,"49","4","11","22","1","6",null,null,null,"Si","rif. Tab. C",10,66,null,"Per i dettagli dei benefici, si rimanda al PdS19"]
["Intervento Piano precedente","Area Centro",1,null,null,"Marche/Umbria/Abruzzo","421-P","Razionalizzazione rete AT in Umbria","-","-","-",1,1,null,1,null,null,1,1,null,null,null,null,1,"Gruppo di opere",4,4,0,25,50,25,0,0,null,2023,2035,2002,null,70,6,10,54,8,3,144,28,5,"Si","rif. Tab. C",17,100]
["Intervento Piano precedente","Area Centro",1,null,null,"Lazio","428-P","Riassetto rete AT area Sud di Roma","-","-","-",null,1,null,1,null,null,1,null,null,null,null,null,1,"Gruppo di opere",3,3,0,0,67,0,33,0,null,null,2034,2013,null,16,null,1,9,null,1,37,null,6,"Si","rif. Tab. C",4,35,null,"Per i dettagli dei benefici, si rimanda al PdS21"]
["Intervento Piano precedente","Area Centro",1,null,null,"Toscana/Umbria/Abruzzo/Marche","432-P","Rimozione limitazioni sezione Centro Sud – Centro Nord","-",33,"-",1,1,1,1,null,1,null,1,null,null,1,null,1,"Gruppo di opere",4,4,0,25,0,0,75,0,null,null,"2023/2026",2014,"150 - 300","12",null,null,"13",null,"2","443",35,"6","Si","rif. Tab. C",30,74,null,"Per i dettagli dei benefici, si rimanda al PdS20"]
["Intervento Piano precedente","Area Centro",1,null,null,"Abruzzo","433-P","Rimozione derivazione rigida S. Angelo","-","-","-",null,1,null,null,null,null,null,null,null,null,null,null,1,"Linea",1,1,100,0,0,0,0,0,2022,2027,2035,2017,null,null,null,null,null,null,null,"4","3",1,"No",null,"<1",2]
["Intervento Piano precedente","Area Centro",1,null,null,"Abruzzo","434-P","Nuovo collegamento AT “SSE Carrito FS – CP Collarmele”","-","-","-",null,1,null,1,null,null,null,null,1,null,null,null,1,"Gruppo di opere",2,2,50,50,0,0,0,0,2023,2025,2035,2018,null,null,null,null,"16",null,"2",null,null,null,"No",null,"<1",12]
["Intervento Piano precedente","Area Centro",1,null,null,"Abruzzo/Lazio","435-P","Nuovo collegamento AT “SSE Carsoli FS - CP Carsoli”","-","-","-",null,1,null,1,null,null,null,null,1,null,null,null,1,"Gruppo di opere",3,3,67,33,0,0,0,0,2023,2025,2035,2018,null,1,null,null,null,null,null,"1",null,1,"No",null,"<1",9]
["Intervento Piano precedente","Area Centro",1,null,null,"Lazio","437-P (e1 407-S)","Richiusura CP Leonessa","-","-","-",null,1,null,1,null,null,null,null,null,null,null,null,1,"Linea",2,2,100,0,0,0,0,0,2024,2027,2035,2013,null,1,null,null,null,null,null,"26","10",null,"No",null,"<1",7]
["Intervento Piano precedente","Area Centro",1,null,null,"Lazio","438-P","Risoluzione derivazione rigida Trelleborg","-","-","-",null,1,null,1,null,null,null,null,null,null,null,null,1,"Gruppo di opere",2,2,100,0,0,0,0,0,2026,2033,2035,2017,null,1,null,null,null,null,null,null,null,null,"No",null,"<1",13]
["Intervento Piano precedente","Area Centro",1,null,null,"Lazio/Toscana","439-P","Riassetto rete AT nell'area di Chiusi","-","-","-",null,null,null,1,null,null,null,null,1,null,null,null,null,"Gruppo di opere",2,2,100,0,0,0,0,0,2024,2027,2035,2019,null,"2",null,null,"23","3","1",null,null,null,"No",null,"<1",3,null," "]
["Intervento Piano precedente","Area Centro",1,null,null,"Lazio","440-P","Nuovo elettrodotto 150 kV \"S. Virginia CP - Cisterna CP\"","-","-","-",null,1,null,1,null,null,null,null,null,null,null,null,1,"Linea",3,3,100,0,0,0,0,0,2025,2033,2035,2019,null,"5",null,1,null,null,null,null,null,null,"No",null,"<1",14,null," "]
["Intervento Piano precedente","Area Centro",1,null,null,"Marche","441-P","Razionalizzazione rete AT Costa Marchigiana","-","-","-",null,1,null,null,null,null,null,null,null,null,null,null,1,"Gruppo di opere",3,2,100,0,0,0,0,0,2025,2033,2035,2020,null,"6",null,"1","79",null,5,null,null,null,"No",null,"<1",6]
["Intervento Piano precedente","Area Centro",1,null,null,"Marche","442-P","Razionalizzazione rete AT S. Benedetto del Tronto","-","-","-",null,1,null,null,null,null,null,null,1,null,null,null,1,"Gruppo di opere",4,3,100,0,0,0,0,0,2023,2033,2035,2020,null,"7",null,1,"6",null,"2",null,null,null,"No",null,"<1",11]
["Intervento Piano precedente","Area Centro",1,null,null,"Marche/Umbria","443-P","Razionalizzazione rete AT Appennino Umbro-Marchigiano","-","-","-",null,1,null,null,null,null,null,null,1,null,null,null,1,"Gruppo di opere",3,2,100,0,0,0,0,0,2026,2033,2035,2020,null,"4","4",1,"69","12","4",null,null,null,"No",null,"<1",8]
["Intervento Piano precedente","Area Centro",1,null,null,"Abruzzo","444-P","Stazione 220/132 kV Capannelle","-","-","-",null,1,null,1,null,null,null,null,1,null,null,null,1,"Gruppo di opere",3,2,100,0,0,0,0,0,2024,2033,2035,2020,null,"7","3",null,"13",null,1,null,null,null,"No",null,0,13]
["Intervento Piano precedente","Area Centro",1,null,null,"Lazio","445-P","Rimozione limitazioni el. 150 kV Vignaturci – S. Lucia","-","-","-",null,1,null,null,null,null,null,1,null,null,null,null,1,"Rimozione limitazioni linea",1,1,100,0,0,0,0,0,2024,2028,2030,2021,null,null,null,null,null,null,null,"4",null,null,"No",null,"<1",3]
["Intervento Piano precedente","Area Centro",1,null,null,"Lazio","446-P","Riassetto rete fra SE Roma Nord e CP A. Smist. Est","-","-","-",null,1,null,null,null,null,null,1,null,null,null,null,1,"Gruppo di opere",3,2,100,0,0,0,0,0,2024,2028,2035,2020,null,"1",1,1,"11",7,"3",null,null,null,"No",null,"<1",2]
["Intervento Piano precedente","Area Sud",1,null,null,"Calabria, Sicilia","501-P","Elettrodotto 380 kV Sorgente-Rizziconi","-","-","-",1,1,1,1,null,1,null,1,null,null,null,null,1,"Gruppo di opere",3,0,33,0,67,0,0,0,null,null,2027,2003,null,"15","5","6","93","55",8,null,null,null,"No",null,809,855,"555-N Nuovo cavo 380 kV Bolano-Paradiso","Per le opere completate si rimanda all'Avanzamento del Piano di Sviluppo 2021"]
["Intervento Piano precedente","Area Sud",1,null,null,"Basilicata","503-P","Riassetto rete AT nell’area di Potenza","-","-","-",1,1,null,1,null,null,null,1,null,null,null,null,1,"Gruppo di opere",4,4,0,50,0,0,0,50,null,null,2035,2010,null,"21",null,2,"26",null,1,null,null,null,"No",null,"<1",7]
["Intervento Piano precedente","Area Sud",1,null,null,"Campania","504-P","Riassetto rete AT penisola Sorrentina","-","-","RGIP 2017",null,1,null,1,null,null,1,null,null,null,null,null,1,"Gruppo di opere",16,13,{"$f":"1/13*100","v":7.6923076923076925},{"$f":"2/13*100","v":15.384615384615385},{"$f":"2/13*100","v":15.384615384615385},null,{"$f":"2/13*100","v":15.384615384615385},{"$f":"6/13*100","v":46.153846153846153},null,null,2032,2010,null,90,35,7,"84","29","8",null,null,null,"Si","rif. Tab. C",78,208,null,"Per i dettagli dei benefici, si rimanda al PdS17"]
["Intervento Piano precedente","Area Sud",1,null,null,"Campania/Puglia","505-P","Stazioni 380/150 kV e relativi raccordi alla rete AT per la raccolta di produzione da fonte rinnovabile: rinforzi rete AAT e AT nell’area tra Foggia e Benevento","-",127,"-",1,1,1,1,1,null,null,1,null,null,1,null,1,"Gruppo di opere",9,9,null,null,{"$f":"4/9*100","v":44.444444444444443},null,{"$f":"1/9*100","v":11.111111111111111},{"$f":"4/9*100","v":44.444444444444443},null,null,2030,2007,null,49,"27",1,"5",null,1,null,null,null,"Si","rif. Tab. C",156,209,null,"Per i dettagli dei benefici, si rimanda al PdS17"]
["Intervento Piano precedente","Area Sud",1,null,null,"Campania","506-P","Elettrodotto 380 kV Montecorvino – Avellino Nord – Benevento II","-",1059,"RGIP 2017",1,1,1,1,1,null,null,1,null,null,1,null,1,"Gruppo di opere",6,5,0,80,0,0,0,20,null,null,"2028/2029",2004,"200 S/CS - 900 S/CAL","78",25,"5","54",35,"1","71","21","2","Si","rif. Tab. C",76,319,"723/E-P HVDC Continente – Sicilia – Sardegna\n546-P El. 380 kV Aliano – Montecorvino\n505-P El. 380 kV Deliceto – Bisaccia\n528-P El. 150 kV Goleto – Avellino N."]
["Intervento Piano precedente","Area Sud",1,null,null,"Basilicata/Calabria","509-P","Riassetto rete nord Calabria","-",1059,"-",1,1,1,1,1,null,null,1,null,null,1,null,1,"Gruppo di opere",12,11,null,{"$f":"1/11*100","v":9.0909090909090917},{"$f":"3/11*100","v":27.27272727272727},{"$f":"1/11*100","v":9.0909090909090917},null,{"$f":"6/11*100","v":54.54545454545454},null,null,2030,2007,null,"33",8,"1","101","59","1",null,null,null,"Si","rif. Tab. C",165,203,null,"Per i dettagli dei benefici, si rimanda al PdS17"]
["Intervento Piano precedente","Area Sud",1,null,null,"Campania/Puglia/Basilicata/Calabria","510-P","Stazioni 380/150 kV e relativi raccordi alla rete AT per la raccolta di produzione da fonte rinnovabile nel Sud","-","-","-",1,1,null,1,null,null,null,1,null,null,null,null,1,"Gruppo di opere",12,12,{"$f":"1/12*100","v":8.3333333333333321},0,{"$f":"2/12*100","v":16.666666666666664},{"$f":"2/12*100","v":16.666666666666664},0,{"$f":"7/12*100","v":58.333333333333336},null,null,2035,2008,null,"31","4","3","1",null,"1",null,null,null,"No",null,8,33,null,"- Il totale investimento sostenuto si riferisce alla somma dei 4 Cluster. Così suddiviso:\nCluster 1: <1\nCluster 2: 6\nCluster 3: 1\nCluster 4: ricompreso in 521 - P\n\n- '- Il totale investimento stimato si riferisce alla somma dei 4 Cluster. Così suddiviso:\nCluster 1: 6\nCluster 2: 15\nCluster 3: 12\nCluster 4: ved. 521 - P"]
["Intervento Piano precedente","Area Sud",1,null,null,"Campania","511-P","Stazione 380 kV S. Sofia","-","-","-",null,1,null,1,null,null,1,null,null,null,null,null,1,"Gruppo di opere",6,6,null,30,null,20,null,50,null,null,2035,2002,null,31,null,12,39,5,10,null,null,null,"Si","rif. Tab. C",25,74,null,"Per i dettagli dei benefici, si rimanda al PdS17"]
["Intervento Piano precedente","Area Sud",1,null,null,"Puglia","512-P","Stazione 380 - 150 kV di Palo del Colle","-","-","-",null,1,null,1,null,null,null,null,null,null,null,null,1,"Gruppo di opere",5,5,null,20,40,null,null,40,null,null,2034,2007,null,"13",null,null,4,null,"2",38,1,1,"Si","rif. Tab. C",46,78,null,"Per i dettagli dei benefici, si rimanda al PdS17"]
["Intervento Piano precedente","Area Sud",1,null,null,"Campania","514-P","Riassetto rete a 220 kV città di Napoli","-","-","RGIP 2017",null,1,null,1,null,null,null,null,null,null,null,null,1,"Gruppo di opere",5,5,null,20,null,null,20,60,null,null,2032,2008,null,"11",null,6,33,4,10,7,"1","5","Si","rif. Tab. C",146,159,null,"- Per i dettagli delle attività concluse si rimnda ai Piani di Sviluppo Precedenti\n-Per i dettagli dei benefici, si rimanda al PdS 2017"]
["Intervento Piano precedente","Area Sud",1,null,null,"Campania","515-P","Stazione 220 kV Maddaloni","-","-","-",null,1,null,null,null,null,null,null,null,null,null,null,1,"Stazione",1,1,null,100,null,null,null,null,null,2032,2035,2006,null,null,null,null,null,null,null,null,null,null,"No",null,4,10]
["Intervento Piano precedente","Area Sud",1,null,null,"Campania/Lazio","517-P","Interventi sulla rete AT per la raccolta della produzione rinnovabile tra Lazio e Campania","-","-","-",1,1,null,1,null,null,null,1,null,null,null,null,1,"Rimozione limitazioni linea",3,2,null,null,null,null,null,100,null,null,2028,2012,null,null,null,null,null,null,null,"61","2",3,"No",null,5,6]
["Intervento Piano precedente","Area Sud",1,null,null,"Campania","518-P","Interventi sulla rete AT per la raccolta della produzione rinnovabile in Campania","-","-","-",1,1,null,1,null,null,null,1,null,null,null,null,1,"Gruppo di opere",9,8,null,10,null,10,null,80,null,null,2035,2008,null,"18",null,"8","15","4","1","159","39",105,"Si","rif. Tab. C",27,40,null,"- Il totale investimento sostenuto si riferisce alla somma dei 4 Cluster. Così suddiviso:\nCluster 1: 12\nCluster 3: 5\nCluster 4: 10\n\n'- Il totale investimento stimato si riferisce alla somma dei 4 Cluster. Così suddiviso:\nCluster 1: 13\nCluster 3: 14\nCluster 4: 13\n\n- Per i dettagli dei benefici si rimanda al PdS 2019"]
["Intervento Piano precedente","Area Sud",1,null,null,"Puglia","519-P","Interventi sulla rete AT per la raccolta della produzione rinnovabile in Puglia","-","-","-",1,1,null,1,null,null,null,1,null,null,null,null,1,"Gruppo di opere",2,1,null,100,null,null,null,null,null,null,2032,2008,null,null,null,null,null,null,null,247,45,3,"Si","rif. Tab. C",9,43,null,"Per i dettagli dei benefici si rimanda al PdS 2017"]
["Intervento Piano precedente","Area Sud",1,null,null,"Basilicata/Puglia","520-P","Interventi sulla rete AT per la raccolta della produzione rinnovabile in Basilicata","-","-","-",1,1,null,1,null,null,null,1,null,null,null,null,1,"Gruppo di opere",6,4,null,25,null,25,null,50,null,null,2027,2009,null,"41",2,"3",41,"2","3",163,70,1,"Si","rif. Tab. C",22,44,null,"- Il totale investimento sostenuto si riferisce alla somma dei 3 Cluster. Così suddiviso:\nCluster 1: 17\nCluster 3: 5\n\n'- Il totale investimento stimato si riferisce alla somma dei 3 Cluster. Così suddiviso:\nCluster 1: 29\nCluster 3: 15\n\nPer i dettagli dei benefici, si rimanda al PdS 18 (Cluster 1) e al PdS 19 (Cluster 2)"]
["Intervento Piano precedente","Area Sud",1,null,null,"Calabria","521-P","Interventi sulla rete AT per la raccolta della produzione rinnovabile in Calabria","-","-","-",1,1,null,1,null,null,null,1,null,null,null,null,1,"Gruppo di opere",8,7,null,14,14,null,null,72,null,null,2033,2008,null,48,4,1,"83","5","4",59,null,"1","Si","rif. Tab. C",{"$f":"8+15+9","v":32},{"$f":"11+50+9","v":70},"Dipendenza da accordi con e-distribuzione per la rimozione delle limitazioni presso le Cabine Primarie","Per i dettagli dei benefici, si rimanda al PdS 2019"]
["Intervento Piano precedente","Area Sud",1,null,null,"Puglia","523-P","Elettrodotto 150 kV Sural – Taranto Ovest","-","-","-",null,1,null,null,null,null,null,null,null,null,null,null,1,"Rimozione limitazioni linea",2,2,null,null,null,null,50,50,null,null,2023,2008,null,null,null,null,null,null,null,"20",null,1,"No",null,3,5,"Dipendenza da accordi con e-distribuzione per la rimozione delle limitazioni presso le Cabine Primarie"]
["Intervento Piano precedente","Area Sud",1,null,null,"Calabria ","525-P","Rinforzi rete AT Calabria centrale ionica","-","-","-",1,null,null,1,null,null,null,1,null,null,null,null,null,"Gruppo di opere",1,1,null,null,100,null,null,null,null,2026,2029,2010,null,"8",null,null,1,null,null,null,null,null,"No",null,"<1",7]
["Intervento Piano precedente","Area Sud",1,null,null,"Puglia","526-P","Elettrodotto 150 kV Noci – Martina Franca","-","-","-",null,1,null,1,null,null,1,null,null,null,null,null,1,"Linea",1,1,null,null,100,null,null,null,null,2025,2028,2012,null,"21","18",null,30,null,null,null,null,null,"Si","rif. Tab. C","<1",41]
["Intervento Piano precedente","Area Sud",1,null,null,"Campania","528-P","Elettrodotto 150 kV Goleto – Avellino N.","-","-","-",1,null,null,1,null,null,null,1,null,null,null,null,null,"Gruppo di opere",3,2,50,null,50,null,null,null,2020,2025,2030,2013,null,"29",null,null,70,"23","5","12","5",null,"No",null,"<1",23]
["Intervento Piano precedente","Area Sud",1,null,null,"Puglia","529-P","Raccordi a 150 kV Brindisi Sud","-","-","-",1,null,null,1,null,null,null,1,null,null,null,null,null,"Linea",1,1,0,100,0,0,0,0,2021,2027,2029,2013,null,"5",null,null,7,"1",null,null,null,null,"No",null,2,4]
["Intervento Piano precedente","Area Sud",1,null,null,"Campania","530-P","Stazione 380 kV S. Maria Capua Vetere","-","-","-",null,1,null,null,null,null,null,null,null,null,null,null,1,"Linea",1,1,null,100,null,null,null,null,2021,2025,2028,2013,null,"1",null,null,"1",null,null,null,null,null,"No",null,"<1",7]
["Intervento Piano precedente","Area Sud",1,null,null,"Campania","531-P","Nuovo elettrodotto 150 kV “SSE Benevento FS – CP Benevento Ind.”","-","-","-",1,null,null,1,null,null,null,1,1,null,null,null,null,"Linea",1,1,0,100,0,0,0,0,2023,2027,2029,2016,null,"7",null,"3",null,null,null,null,null,null,"No",null,"<1",14,"506-P Montecorvino-Benevento"]
["Intervento Piano precedente","Area Sud",1,null,null,"Basilicata","532-P","Interventi sulla rete AT nell’area tra le province di Potenza e Matera","-","-","-",1,null,null,1,null,null,null,1,null,null,null,null,null,"Linea",2,2,100,null,null,null,null,null,2025,2029,2032,2016,null,"20","12",null,null,null,null,null,null,null,"No",null,"<1",13]
["Intervento Piano precedente","Area Sud",1,null,null,"Campania","533-P","Interventi sulla rete AT nell’area tra le province di Napoli e Caserta","-","-","-",null,1,null,1,null,null,null,null,null,null,null,null,1,"Gruppo di opere",5,4,25,50,null,null,null,25,null,2025,2029,2016,null,"10",null,1,"76",7,15,"1",null,null,"Si","rif. Tab. C",8,26,"-Soluzione connessione CP Suio\n- Acquisto in RTN porzione di rete esistente"]
["Intervento Piano precedente","Area Sud",1,null,null,"Puglia/Molise","534-P (e1 530-P)","Direttrice 150 kV “SE Foggia – SSE Termoli”","-","-","-",1,null,null,1,null,null,null,1,1,null,null,null,null,"Rimozione limitazioni linea",2,2,50,50,null,null,null,null,2021,2026,2030,2016,null,null,null,null,null,null,null,"93",1,"4","Si","rif. Tab. C","<1",29]
["Intervento Piano precedente","Area Sud",1,null,null,"Puglia","535-P","Interventi sulla rete AT per la raccolta di energia rinnovabile nell’area tra le province di Foggia e Barletta ","-","-","-",1,null,null,1,null,null,null,1,null,null,null,null,null,"Gruppo di opere",1,1,100,null,null,null,null,null,2027,2030,2032,2017,null,"19",null,"1",null,null,null,null,null,null,"Si","rif. Tab. C",24,51,"Possibili acquisizioni di porzioni di rete AT già esistenti"]
["Intervento Piano precedente","Area Sud",1,null,null,"Campania","536-P (e1 516-P)","Interconnessione a 150 kV isola di Ischia","-","-","-",null,1,null,1,null,null,null,null,null,null,null,null,1,"Gruppo di opere",2,2,100,null,null,null,null,null,2023,2026,2029,2009,null,"25","5","1",null,null,null,"22","5","2","Si","rif. Tab. C","<1",90,"Attività ricompresa in PdS precedenti all'interno dell'intervento 516-P. Piano Resilienza"]
["Intervento Piano precedente","Area Sud",1,null,null,"Campania","537-P","Elettrodotto 220 kV Arenella – Colli Aminei","-","-","-",null,1,null,null,null,null,null,null,null,null,null,null,1,"Rimozione limitazioni linea",1,1,null,null,100,null,null,null,null,2026,2030,2018,null,"3","1","2","2","2","1",null,null,null,"No",null,"<1",9,"Riassetto rete a 220 kV città di Napoli (514 - P)"]
["Intervento Piano precedente","Area Sud",1,null,null,"Puglia","538-P","Stazione 380/150 kV Deliceto","-","-","-",1,null,null,null,null,null,null,1,null,null,null,null,null,"Stazione",1,1,null,null,null,null,100,null,null,2021,2024,2018,null,null,null,null,null,null,null,null,null,null,"No",null,2,5,null,"Non presenti impatti territoriali: intervento relativo a sole aree di stazione"]
["Intervento Piano precedente","Area Sud",1,null,null,"Puglia","539-P","Stazione 380/150 kV Galatina","-","-","-",1,1,null,null,null,null,null,1,null,null,null,null,1,"Stazione",1,1,null,null,null,100,null,null,null,2023,2024,2018,null,null,null,null,null,null,null,null,null,null,"No",null,"<1",2,null,"Non presenti impatti territoriali: intervento relativo a sole aree di stazione"]
["Intervento Piano precedente","Area Sud",1,null,null,"Campania","540-P","Stazione 150 kV Tanagro","-","-","-",1,1,null,null,null,null,null,1,null,null,null,null,1,"Stazione",1,1,null,100,null,null,null,null,2023,2024,2025,2018,null,null,null,null,null,null,null,null,null,null,"No",null,"<1",5,"Sono in corso valutazioni per l'acquisizione in ambito RTN della parte AT dell'impianto Tanagro","Non presenti impatti territoriali: intervento relativo a sole aree di stazione"]
["Intervento Piano precedente","Area Sud",1,null,null,"Campania","541-P","Stazione 150 kV Bussento","-","-","-",null,1,1,null,null,null,null,null,null,null,null,null,1,"Gruppo di opere",2,2,null,100,null,null,null,null,2023,2024,2025,2018,null,null,null,null,null,null,null,null,null,null,"No",null,1,5,null,"Non presenti impatti territoriali: intervento relativo a sole aree di stazione"]
["Intervento Piano precedente","Area Sud",1,null,null,"Basilicata/Calabria","542-P","Sviluppi rete AT Calabria Nord Ionica","-","-","-",null,1,null,null,null,null,null,null,null,null,null,null,1,"Gruppo di opere",5,5,80,null,null,null,null,20,null,null,2032,2018,300,"9",1,1,"5",null,null,118,"30","11","Si","rif. Tab. C",2,33,"Subordinato all'acquisizione dell'asset da terzi"]
["Intervento Piano precedente","Area Sud",1,null,null,"Campania","543-P","Nuovo elettrodotto 220 kV CP Arenella - SE Fuorigrotta","-","-","-",null,1,null,1,null,null,null,null,null,null,null,null,1,"Linea",1,1,100,null,null,null,null,null,2023,2026,2030,2019,null,"6",null,"6",null,null,null,null,null,null,"No",null,"<1",12,null," "]
["Intervento Piano precedente","Area Sud",1,null,null,"Basilicata","545-P","Nuovo elettrodotto 150 kV “SE Vaglio RT (e1 FS) – nuova SE 150 kV Sider.Lucchini”","-","-","-",null,1,null,null,null,null,1,null,1,null,null,null,1,"Gruppo di opere",2,2,100,null,null,null,null,null,2024,2027,2030,2019,null,"5",null,"1",null,null,null,null,null,null,"No",null,"<1",8,"546-P Elettrodotto 380 kV Aliano - Montecorvino"," "]
["Intervento Piano precedente","Area Sud",1,null,null,"Basilicata/Calabria","546-P","Elettrodotto 380 kV Aliano – Montecorvino","-",1109,"-",1,1,null,1,null,1,null,1,null,null,null,null,1,"Gruppo di opere",3,3,100,null,null,null,null,null,2026,2030,2032,"2021 (2010)",300,"116",32,"1",null,null,null,null,null,null,"Si","rif. Tab. C","<1",274,"Con altre opere: \n553-N Elettrodotto 380 kV Benevento Nord\n506-P Elettrodotto 380 kV Montecorvino – Benevento\n545-P Nuovo elettrodotto 150 kV “SE Vaglio RT (ex FS) – Nuova SE 150 kV Sider.Lucchini”\n\nDa accordi con terzi: Dipendenza da accordi con e-distribuzione per la rimozione delle limitazioni presso le Cabine Primarie."]
["Intervento Piano precedente","Area Sud",1,null,null,"Calabria","548-P","Nuovo Potenziamento rete AT area Crotone","-","-","-",1,null,null,null,null,null,null,1,null,null,null,null,null,"Linea",1,1,100,null,null,null,null,null,2027,2031,2035,2020,null,"11",null,null,null,null,null,null,null,null,"No",null,"<1",2]
["Intervento Piano precedente","Area Sud",1,null,null,"Calabria","549-P","Razionalizzazione rete AT Golfo di Gioia Tauro","-","-","-",null,1,null,null,null,null,null,null,1,null,null,null,1,"Gruppo di opere",4,3,100,null,null,null,null,null,2027,2031,2035,2020,null,12,null,"1","41","13",6,null,null,null,"No",null,"<1",15]
["Intervento Piano precedente","Area Sud",1,null,null,"Sicilia/Calabria","550-P","Razionalizzazione Rete AT Golfo di Santa Eufemia","-","-","-",null,1,null,null,null,null,null,null,1,null,null,null,1,"Gruppo di opere",4,3,100,null,null,null,null,null,2025,2028,2030,2020,null,"15",null,"1",42,null,"2",null,null,null,"No",null,"<1",15]
["Intervento Piano precedente","Area Sud",1,null,null,"Campania","553-P","Elettrodotto 380 kV Area Nord Benevento","-",1109,"-",1,1,1,null,1,1,1,1,1,null,1,null,1,"Linea",2,1,100,0,0,0,0,0,2027,2031,2035,2021,200,"42","25","1",null,null,null,null,null,null,"Si",{"$f":"IF(AV75=\"Si\",\"rif. Tab. C\", \" \")","v":"rif. Tab. C"},"<1",60,"Intervento 546-P (El. 380 kV Aliano – Montecorvino)\nIntervento 506-P (El. 380 kV Montecorvino – Benevento)"]
["Intervento Piano precedente","Area Sud",1,null,null,"Puglia","554-p","Nuovo HVDC Italia-Grecia (GRITA 2)","-",1112,"-",1,1,1,1,null,1,null,1,null,1,1,null,1,"Gruppo di opere",2,2,100,0,0,0,0,0,2023,2027,2031,2021,500,123,"2",3,null,null,null,null,null,null,"Si","rif. Tab. C",1,750]
["Intervento Piano precedente","Area Sud",1,null,null,"Sicilia/Calabria","555-P","Nuovo collegamento 380 kV Bolano Paradiso","-","-","-",1,null,1,null,null,1,null,1,null,null,1,null,1,"Gruppo di opere",5,5,40,20,20,20,0,0,2022,2024,2026,2021,500,"9","2","2",null,null,null,null,null,null,"Si","rif. Tab. C",12,175,"509-P (Riassetto rete nord Calabria)\n602-P (Elettrodotto 380 kV Chiaramonte – Gulfi – Ciminna)\n603-P (Elettrodotto 380 kV Paternò – Pantano – Priolo)\n723-P (HVDC Continente-Sicilia-Sardegna)"]
["Intervento Piano precedente","Area Sud",1,null,null,"Puglia","556-P","Raccordi 150 kV alla SE Cerignola 380/150 kV","-","-","-",1,null,1,null,1,null,1,1,null,null,1,null,1,"Gruppo di opere",2,2,100,0,0,0,0,0,2026,2030,2032,2021,null,1,null,null,null,null,null,null,null,null,"No"," ","<1",8]
["Intervento Piano precedente","Area Sud",1,null,null,"Puglia","557-P","Raccordi 380 kV alla SE Manfredonia 380 kV","-","-","-",1,1,null,null,1,null,1,1,null,null,1,null,1,"Linea",1,1,100,0,0,0,0,0,2026,2030,2032,2021,null,"1",null,null,"1",null,null,null,null,null,"No"," ","<1",2]
["Intervento Piano precedente","Area Sud",1,null,null,"Basilicata","558-P","SE Melfi 380/150 kV e raccordi 150 kV","-","-","-",1,1,1,1,1,null,1,1,null,null,1,null,1,"Gruppo di opere",2,2,100,0,0,0,0,0,2025,2031,2035,2021,null,"9",null,null,null,null,null,null,null,null,"No"," ","<1",9]
["Intervento Piano precedente","Area Sud",1,null,null,"Lazio, Campania","559-P","Incremento magliatura 150 kV dorsale ferroviaria AV Roma - Napoli","-","-","-",null,1,null,null,null,null,null,null,1,null,null,null,1,"Linea",2,2,100,0,0,0,0,0,2028,2032,2035,2021,null,"1",null,null,1,null,null,null,null,null,"No"," ","<1",2]
["Intervento Piano precedente","Area Sud",1,null,null,"Puglia","560-P","SE 380/150 kV Foggia","-","-","-",1,1,1,1,1,null,1,1,null,null,1,null,1,"Stazione",1,1,100,0,0,0,0,0,2024,2028,2031,2021,null,null,null,null,null,null,null,null,null,null,"No"," ","<1",4]
["Intervento Piano precedente","Area Sud",1,null,null,"Puglia","561-P","SE 380/150 kV Troia","-","-","-",1,1,1,1,1,null,1,1,null,null,1,null,1,"Stazione",1,1,100,0,0,0,0,0,2024,2028,2031,2021,null,null,null,null,null,null,null,null,null,null,"No"," ","<1",4]
["Intervento Piano precedente","Area Sud",1,null,null,"Puglia","562-P","SE 380/150 kV Andria","-","-","-",1,1,1,1,1,null,1,1,null,null,1,null,1,"Stazione",1,1,100,0,0,0,0,0,2024,2028,2031,2021,null,null,null,null,null,null,null,null,null,null,"No"," ","<1",4]
["Intervento Piano precedente","Area Sicilia",1,null,null,"Sicilia","601-I","Nuova interconnessione Italia-Tunisia","2.33",29,"-",1,1,1,1,null,1,null,1,null,1,1,null,null,"Linea",2,2,0,0,100,0,0,0,2022,2024,2028,2016,600,176,13,null,null,null,null,null,null,null,"Si","rif. Tab. C","<2",425,"Elettrodotto 380 kV Chiaramonte Gulfi – Ciminna (602-P);\nCollegamento HVDC Continente – Sicilia – Sardegna (723-P)"]
["Intervento Piano precedente","Area Sicilia",1,null,null,"Sicilia","602-P","Elettrodotto 380 kV “Chiaramonte Gulfi – Ciminna”","-","-","RIP 2017",1,1,1,1,1,null,null,1,null,null,1,null,1,"Gruppo di opere",6,3,0,0,0,0,100,0,null,2022,"2026/2030",2005,null,193,null,"1","20","2","1",null,null,null,"Si","rif. Tab. C",43,480,"Elettrodotto 380 kV “Assoro - Sorgente 2 e Sorgente 2 – Villafranca” (604-P);\nCollegamento HVDC Continente – Sicilia – Sardegna (723-P);\nNuova interconnessione Italia-Tunisia (601-I);\n\"Caracoli-Ciminna\" (627-P)"]
["Intervento Piano precedente","Area Sicilia",1,null,null,"Sicilia","603-P","Elettrodotto 380 kV Paternò-Pantano-Priolo","-","-","RGIP 2017",1,1,1,1,1,null,null,1,null,null,null,null,1,"Gruppo di opere",5,7,0,29,14,0,57,0,null,null,2028,2006,null,90,"4",1,114,"16","1","15",null,null,"Si","rif. Tab. C",218,325,null,"Per i benefici si rimanda al PdS 2017"]
["Intervento Piano precedente","Area Sicilia",1,null,null,"Sicilia","607-P","Elettrodotto 220 kV Partinico- Fulgatore","-","-","-",1,null,null,null,1,null,null,1,null,null,null,null,null,"Linea",1,1,100,0,0,0,0,0,2026,2031,2035,2021,null,50,"2",2,null,null,null,null,null,null,"Si","rif. Tab. C","<1",31]
["Intervento Piano precedente","Area Sicilia",1,null,null,"Sicilia","610-P","Elettrodotto 150 kV Paternò – Belpasso","-","-","-",null,1,null,null,null,null,null,null,null,null,null,null,1,"Linea",1,1,0,0,100,0,0,0,null,2025,2027,2012,null,"5",null,null,"1",null,null,null,null,null,"No",null,"<1",3]
["Intervento Piano precedente","Area Sicilia",1,null,null,"Sicilia","611-P","Interventi sulla rete AT nell’area di Catania","-","-","-",null,1,null,1,null,null,1,null,null,null,null,null,1,"Linea",2,2,0,0,0,0,100,0,null,2021,2024,2010,null,"6",null,"6",null,null,null,"10",null,"5","No",null,11,15]
["Intervento Piano precedente","Area Sicilia",1,null,null,"Sicilia","612-P","Interventi sulla rete AT nell’area a nord di Catania","-","-","-",null,1,null,1,null,null,null,null,1,null,null,null,1,"Gruppo di opere",4,3,0,0,0,0,67,33,null,null,2025,2010,null,"17",null,"11","28",null,"16",null,null,null,"Si","rif. Tab. C",17,40,null,"Per i benefici si rimanda al PdS 2020"]
["Intervento Piano precedente","Area Sicilia",1,null,null,"Sicilia","613-P","Interventi sulla rete AT nell’area di Ragusa","-","-","-",1,1,null,1,null,null,1,1,null,null,null,null,1,"Gruppo di opere",5,4,0,0,0,0,100,0,null,null,2028,2007,null,23,"3",null,null,null,null,null,null,null,"Si","rif. Tab. C",32,72,null,"Per i benefici si rimanda al PdS 2019"]
["Intervento Piano precedente","Area Sicilia",1,null,null,"Sicilia","616-P","Stazione 380 kV Vizzini (e1 SE 380 kV Mineo)","-","-","-",1,1,null,1,null,null,null,1,null,null,null,null,1,"Gruppo di opere",4,4,0,0,0,0,50,50,null,2020,2024,2011,null,"39",null,null,"7",null,null,null,null,null,"Si","rif. Tab. C",45,57,null,"Per i benefici si rimanda al PdS 2019"]
["Intervento Piano precedente","Area Sicilia",1,null,null,"Sicilia","622-P","Direttrice 150 kV \"SE Caracoli-SSE Furnari RT\"","-","-","-",null,1,null,null,null,null,null,null,1,null,null,null,1,"Gruppo di opere",5,4,100,0,0,0,0,0,2026,2033,2035,2021,null,1,null,1,null,null,null,"147",34,"7","No",null,0,13,"501-P/629-P"]
["Intervento Piano precedente","Area Sicilia",1,null,null,"Sicilia","623-P","Nuovo elettrodotto 150 kV \"Lentini - Lentini RT (e1 FS)\"","-","-","-",null,1,null,1,null,null,null,null,1,null,null,null,1,"Linea",1,1,0,100,0,0,0,0,2025,2028,2030,2019,null,3,null,2,null,null,null,null,null,null,"No",null,"<1",3,"603-P"," "]
["Intervento Piano precedente","Area Sicilia",1,null,null,"Sicilia","624-P","Nuovo raccordo 150 kV “CP Siracusa Est – Siracusa RT (e1 FS)”","-","-","-",null,1,null,1,null,null,1,null,null,null,null,null,1,"Gruppo di opere",2,2,100,0,0,0,0,0,2026,2033,2035,2019,null,"1",null,"1",21,null,"7",null,null,null,"No",null,"<1",5,null," "]
["Intervento Piano precedente","Area Sicilia",1,null,null,"Sicilia","625-P","Razionalizzazione rete AT area Caltanissetta","-","-","-",null,1,null,null,null,null,null,null,1,null,null,null,1,"Gruppo di opere",3,2,100,0,0,0,0,0,2026,2033,2035,2020,null,"1",null,1,"7",null,"1",null,null,null,"No",null,0,3]
["Intervento Piano precedente","Area Sicilia",1,null,null,"Sicilia","626-P","Nuovo elettrodotto 150 kV Vallelunga RT - SE Cammarata","-","-","-",1,1,null,null,null,null,null,1,1,null,null,null,1,"Gruppo di opere",2,1,100,0,0,0,0,0,2026,2032,2035,2020,null,"10",null,"1",null,null,null,null,null,null,"No",null,"<1",8,null," "]
["Intervento Piano precedente","Area Sicilia",1,null,null,"Sicilia","627-P","Elettrodotto 380 kV Caracoli - Ciminna","-","-","-",1,1,1,1,1,null,null,1,null,null,null,null,null,"Linea",1,1,0,100,0,0,0,0,2023,2027,2030,2020,null,"22","4","1",null,null,null,null,null,null,"Si","rif. Tab. C","<1",70,"602-P, 723-P, 605-P","Per i benefici si rimanda al PdS 2021"]
["Intervento Piano precedente","Area Sicilia",1,null,null,"Sicilia","628-P","Interventi di magliatura nella zona industriale di Catania","-","-","-",null,1,null,null,null,null,null,null,null,null,null,null,1,"Gruppo di opere",2,2,100,0,0,0,0,0,2026,2033,2035,2021,null,"6",1,null,null,null,null,null,null,null,"No",{"$f":"IF(AV100=\"Si\",\"rif. Tab. C\", \" \")","v":" "},0,9,"(603-P) El. 380 kV Paternò-Pantano-Priolo 1489 CRT"]
["Intervento Piano precedente","Area Sicilia",1,null,null,"Sicilia","629-N","Razionalizzazione area di Cefalù",null,null,null,null,1,null,null,null,null,null,null,1,null,null,null,1,"Gruppo di opere",3,2,100,0,0,0,0,0,2026,2033,2035,2021,null,1,null,1,1,null,1,null,null,null,"No",{"$f":"IF(AV101=\"Si\",\"rif. Tab. C\", \" \")","v":" "},0,5,"589 CRT"]
["Intervento Piano precedente","Area Sicilia",1,null,null,"Sicilia","630-P","Interconnessione Isola di Favignana",null,null,null,1,1,1,1,null,null,1,1,null,null,1,null,1,"Gruppo di opere",4,4,100,0,0,0,0,0,2025,2033,2035,2021,null,"43","11",null,null,null,null,null,null,null,"Si","rif. Tab. C",0,100,null,"Per la stima delle voci di costo e degli indicatori di beneficio si rimanda all’analisi costi benefici riportate nella scheda 630-N del PdS’21"]
["Intervento Piano precedente","Area Sicilia",1,null,null,"Sicilia","632-P","Incremento di magliatura 150 kV area di Trapani",null,null,null,null,1,null,null,null,null,null,1,null,null,null,null,1,"Gruppo di opere",2,2,100,0,0,0,0,0,2026,2033,2035,2021,null,1,null,null,null,null,null,"22","1","1","No",{"$f":"IF(AV103=\"Si\",\"rif. Tab. C\", \" \")","v":" "},0,9]
["Intervento Piano precedente","Area Nord-Ovest",null,1,null,"Piemonte/Lombardia","4-P","Elettrodotto 380 kV Trino-Lacchiarella e opere di razionalizzazione associate","-","-","-",null,1,null,1,null,null,null,null,null,null,null,null,1,"Gruppo di opere",27,1,0,0,0,0,0,100,null,null,2038,2004,null,"94","44",6,"114","53",9,null,null,null,"No",null,194,405]
["Intervento Piano precedente","Area Nord-Ovest",null,1,null,"Piemonte","6-P","Razionalizzazione rete 220 e 132 kV Provincia di Torino","-","-","RIP 2017",null,1,null,1,null,null,null,null,null,null,null,null,1,"Gruppo di opere",34,19,0,0,0,0,0,100,null,null,2035,2006,null,"9",null,4,"31",7,"5","70","4",2,"Si","rif. Tab. C",196,244,null,"Per i dettagli dei benefici, si rimanda al PdS 2017"]
["Intervento Piano precedente","Area Nord-Ovest",null,1,null,"Piemonte","24-P","Stazione 220 kV Novara Sud","-","-","-",null,1,null,null,null,null,null,null,null,null,null,null,1,"Stazione",1,1,0,0,0,0,100,0,null,null,2025,2007,null,null,null,null,null,null,null,null,null,null,"No",null,8,14]
["Intervento Piano precedente","Area Nord-Ovest",null,1,null,"Liguria","26-P","Stazione 220 kV San Colombano","-","-","-",null,1,null,1,null,null,null,null,null,null,null,null,1,"Stazione",1,1,0,0,0,0,100,0,null,null,2025,2014,null,null,null,null,null,null,null,null,null,null,"No",null,5,12]
["Intervento Piano precedente","Area Nord-Ovest",null,1,null,"Liguria","15-P","Elettrodotto 132 kV “Imperia – S. Remo”","-","-","-",null,1,null,null,null,null,null,null,1,null,null,null,1,"Gruppo di opere",2,2,100,0,0,0,0,0,2025,2027,2030,2005,null,null,null,null,null,null,null,"26","1","1","No",null,0,9]
["Intervento Piano precedente","Area Nord-Ovest",null,1,null,"Piemonte","14-P","Elettrodotto 132 kV Magliano Alpi – Fossano e scrocio di Murazzo","-","-","-",null,1,null,1,null,null,null,null,null,null,null,null,1,"Gruppo di opere",2,2,0,0,0,50,0,50,null,null,2027,2003,null,"15","1",null,null,null,null,null,null,null,"No",null,1.7,16.5]
["Intervento Piano precedente","Area Nord-Ovest",null,1,null,"Liguria","10-P","Rinforzi 132 kV Area Metropolitana di Genova","-","-","-",null,1,null,1,null,null,null,null,1,null,null,null,1,"Gruppo di opere",12,12,{"$f":"5/12*100","v":41.666666666666671},0,0,0,{"$f":"1/12*100","v":8.3333333333333321},{"$f":"6/12*100","v":50},null,null,2030,2007,null,"11",1,"6","15",null,"6",11,null,1,"Si","rif. Tab. C",35,88,null,"Per i dettagli dei benefici, si rimanda al PdS 2017"]
["Intervento Piano precedente","Area Nord-Ovest",null,1,null,"Valle d'Aosta","25-P","Rete 132 kV provincia di Aosta","-","-","-",null,1,null,null,null,null,null,null,null,null,null,null,1,"Gruppo di opere",2,2,0,0,0,50,50,0,null,null,2025,2017,null,null,null,null,null,null,null,null,null,null,"No",null,"<1",1]
["Intervento Piano precedente","Area Nord-Ovest",null,1,null,"Piemonte","155-P","Stazione 132 kV Novara Est","-","-","-",null,1,null,null,null,null,null,null,null,null,null,null,1,"Stazione",1,1,100,0,0,0,0,0,2025,2025,2030,2018,null,null,null,null,null,null,null,null,null,null,"No",null,"<1",10.5]
["Intervento Piano precedente","Area Nord-Ovest",null,1,null,"Piemonte","159-P","Stazione 132 kV Villadossola","-","-","-",null,1,null,null,null,null,null,null,null,null,null,null,1,"Stazione",1,1,0,100,0,0,0,0,null,2024,2035,2018,null,null,null,null,null,null,null,null,null,null,"No",null,"<1",3]
["Intervento Piano precedente","Area Nord-Ovest",null,1,null,"Valle d'Aosta","158-P","Stazione 220 kV Villeneuve","-","-","-",null,1,null,null,null,null,null,null,null,null,null,null,1,"Stazione",1,1,0,100,0,0,0,0,null,2024,2027,2018,null,null,null,null,null,null,null,null,null,null,"No",null,"<1",3]
["Intervento Piano precedente","Area Nord-Ovest",null,1,null,"Piemonte","3-P","Nuovo incremento di capacità di interconnessione con la Francia ",null,null,"-",1,1,1,1,null,null,null,null,null,1,1,null,1,"Gruppo di opere",2,2,0,0,0,0,100,0,null,null,2023,2004,null,"89","2","9",null,null,null,null,null,null,"No",null,285,297,"Opera realizzata in sinergia con l’intervento 2-I (medesimo cantiere)"]
["Intervento Piano precedente","Area Nord",null,1,null,"Lombardia","104-P","Elettrodotto 380 kV tra Milano e Brescia","-","-","-",null,1,1,null,1,null,null,null,null,null,1,null,1,"Gruppo di opere",4,4,50,0,0,0,25,25,null,null,2025,2010,null,"64",null,"1","55",null,"1",null,null,null,"No",null,26,71]
["Intervento Piano precedente","Area Nord",null,1,null,"Lombardia","106-P","Elettrodotto 220 kV Glorenza – Tirano – der.Premadio","-","-","-",1,1,null,1,1,null,null,1,null,null,1,null,null,"Gruppo di opere",3,3,0,0,0,{"$f":"1/3*100","v":33.333333333333329},0,{"$f":"2/3*100","v":66.666666666666657},null,null,2024,2004,null,"8","3","1","4","2",null,null,null,null,"Si","rif. Tab. C",16.5,26,null,"Per i dettagli dei benefici, si rimanda al PdS 2019"]
["Intervento Piano precedente","Area Nord",null,1,null,"Lombardia","113-P","Razionalizzazione 220/132 kV in Provincia di Lodi","-","-","-",null,1,null,1,null,null,null,null,null,null,null,null,1,"Gruppo di opere",29,3,0,0,0,0,0,100,null,null,2035,2006,null,2,null,null,null,null,null,22,null,4,"No",null,150,218,null,"Le attività in corso si riferiscono ad opere di razionalizzazione associate all’opera principale già entrata in servizio, conseguenti alla necessità di\nottemperare a prescrizioni autorizzative e/o concertative quindi non soggette ad Analisi Costi Benefici."]
["Intervento Piano precedente","Area Nord",null,1,null,"Lombardia","116-P","Razionalizzazione 220/132 kV in Valle Sabbia","-","-","-",1,1,null,1,null,null,null,1,null,null,null,1,1,"Gruppo di opere",5,5,0,0,0,{"$f":"3/5*100","v":60},{"$f":"2/5*100","v":40},0,null,null,2025,2010,null,11,1,null,"22",null,"2",null,null,null,"Si","rif. Tab. C",42,63,null,"Per i dettagli dei benefici, si rimanda al PdS 2017"]
["Intervento Piano precedente","Area Nord",null,1,null,"Lombardia","127-P","Stazione 380 kV Mese","-","-","-",1,1,null,1,1,null,null,1,null,null,1,null,null,"Stazione",1,1,0,0,100,0,0,0,null,2030,2035,2008,null,null,null,null,null,null,null,null,null,null,"Si","rif. Tab. C","<1",37]
["Intervento Piano precedente","Area Nord",null,1,null,"Lombardia","126-P","Stazione 380 kV Magenta","-","-","-",null,1,null,1,null,null,null,null,null,null,null,null,1,"Gruppo di opere",6,2,0,0,0,0,100,0,null,null,2023,2009,null,"8",null,"5","6",null,"3",null,null," ","Si","rif. Tab. C",29,39,null,"Per i dettagli dei benefici, si rimanda al PdS 2018"]
["Intervento Piano precedente","Area Nord",null,1,null,"Lombardia","138-P","Stazione 380 kV Brugherio","-","-","-",null,1,null,null,null,null,null,null,null,null,null,null,1,"Stazione",1,1,0,0,0,0,100,0,null,null,2025,2007,null,null,null,null,null,null,null,null,null,null,"No",null,"<1",3]
["Intervento Piano precedente","Area Nord",null,1,null,"Lombardia","142-P","Stazione 380 kV Tavazzano","-","-","-",null,1,null,null,null,null,null,null,null,null,null,null,1,"Stazione",2,2,50,0,0,0,50,0,null,null,2025,2007,null,null,null,null,null,null,null,null,null,null,"No",null,2.5,7]
["Intervento Piano precedente","Area Nord",null,1,null,"Lombardia","137-P","Stazione 380 kV Bovisio","-","-","-",null,1,null,null,null,null,null,null,null,null,null,null,1,"Stazione",2,2,0,0,0,0,50,50,null,null,2025,"2006/2010",null,null,null,null,null,null,null,null,null,null,"No",null,4,6]
["Intervento Piano precedente","Area Nord",null,1,null,"Lombardia","143-P","Stazione 380 kV Turbigo","-","-","-",null,1,null,null,null,null,null,null,null,null,null,null,1,"Stazione",2,2,50,0,0,0,0,50,null,null,2035,"2006/2010",null,null,null,null,null,null,null,null,null,null,"No",null,3,12]
["Intervento Piano precedente","Area Nord",null,1,null,"Lombardia","144-P","Stazione 380 kV S.Rocco","-","-","-",null,1,null,null,null,null,null,null,null,null,null,null,1,"Stazione",1,1,0,0,0,0,100,0,null,null,2023,2011,null,null,null,null,null,null,null,null,null,null,"No",null,"<2",2]
["Intervento Piano precedente","Area Nord",null,1,null,"Lombardia","152-P","Stazione 220 kV Tirano","-","-","-",null,1,null,null,null,null,null,null,null,null,null,null,1,"Stazione",1,1,0,0,0,0,100,0,null,2023,2024,2017,null,null,null,null,null,null,null,null,null,null,"No",null,2,4]
["Intervento Piano precedente","Area Nord",null,1,null,"Lombardia","130-P","Stazione 220 kV Vaiano Valle","-","-","-",null,1,1,null,null,null,null,null,null,null,null,null,1,"Stazione",1,1,100,0,0,0,0,0,2025,2028,2030,2006,null,"3",null,null,null,null,null,null,null,null,"No",null,3,19]
["Intervento Piano precedente","Area Nord",null,1,null,"Lombardia","149-P","Elettrodotto 132 kV Cedrate - Casorate","-","-","-",null,1,null,null,1,null,null,null,null,null,null,null,1,"Rimozione limitazioni linea",1,1,100,0,0,0,0,0,2025,2027,2035,2013,null,null,null,null,null,null,null,"7",null,1,"No",null,"<1",10]
["Intervento Piano precedente","Area Nord",null,1,null,"Lombardia","153-P","Riassetto rete 132 kV area Rho","-","-","-",null,1,null,null,null,null,null,null,null,null,null,null,1,"Gruppo di opere",4,4,100,0,0,0,0,0,2025,2033,2035,2017,null,null,null,null,null,null,null,"15",null,"4","Si","rif. Tab. C",0,38]
["Intervento Piano precedente","Area Nord",null,1,null,"Lombardia","114-P","Riassetto rete 132 kV Brescia","-","-","-",null,1,null,1,null,null,null,null,null,null,null,null,1,"Linea",2,2,0,0,0,100,0,0,null,2023,2027,2008,null,null,null,null,null,null,null,"7",null,"5","No",null,6,19]
["Intervento Piano precedente","Area Nord",null,1,null,"Lombardia","108-P","Riassetto rete 132 kV tra La Casella e Castelnuovo","-","-","-",null,1,null,null,null,null,null,null,null,null,null,null,1,"Gruppo di opere",6,6,{"$f":"4/6*100","v":66.666666666666657},0,0,0,{"$f":"2/6*100","v":33.333333333333329},0,null,2023,2035,2011,null,"10",null,null,null,null,null,"57",null,"1","No",null,"<1",15]
["Intervento Piano precedente","Area Nord",null,1,null,"Lombardia","119-P","Razionalizzazione 132 kV Cremona","-","-","-",null,1,null,null,1,null,1,null,null,null,null,null,1,"Gruppo di opere",4,4,{"$f":"1/4*100","v":25},50,25,0,0,0,null,2024,2035,2010,null,null,null,null,null,null,null,"48","1","1","Si","rif. Tab. C","<1",40]
["Intervento Piano precedente","Area Nord",null,1,null,"Lombardia","110-P","Riassetto rete AT tra Lodi e Piacenza","-","-","-",null,1,null,null,null,null,null,null,null,null,null,null,1,"Linea",1,1,0,0,0,100,0,0,null,2025,2026,2011,null,null,null,null,null,null,null,null,null,null,"No",null,"<1",8]
["Intervento Piano precedente","Area Nord",null,1,null,"Lombardia","154-P","Riassetto lago di Como","-","-","-",null,1,null,1,null,null,null,null,null,null,null,null,1,"Gruppo di opere",3,3,0,100,0,0,0,0,2027,2032,2035,2018,null,"18","2",5,"67","10",17,null,null,null,"No",null,"<1",13]
["Intervento Piano precedente","Area Nord",null,1,null,"Lombardia","156-P","Razionalizzazione rete 132 kV Cislago – Castellanza – Olgiate O.","-","-","-",null,1,null,null,null,null,null,null,null,null,null,null,1,"Linea",1,1,100,0,0,0,0,0,2024,2028,2030,2018,null,"2",null,"1","2",null,"1",null,null,null,"No",null,"<1",4]
["Intervento Piano precedente","Area Nord",null,1,null,"Lombardia","112-P","Razionalizzazione 380 kV Media Valtellina (Fase B)","-","-","-",null,1,null,1,1,null,1,null,null,null,null,null,1,"Gruppo di opere",14,14,{"$f":"0.714285714285714*100","v":71.428571428571402},{"$f":"0.285714285714286*100","v":28.571428571428598},0,0,0,0,null,2033,2038,2004,null,163,48,8,466,106,27,null,null,null,"No",null,8.4,524,null,"L'intervento non è soggetto ad ACB in quanto è una compensazione legata alla San Fiorano Robbia"]
["Intervento Piano precedente","Area Nord",null,1,null,"Lombardia","117-P","Razionalizzazione rete AT Val Camonica/Val Seriana (BG)","-","-","-",null,1,null,null,null,null,null,null,null,null,null,null,1,"Linea",1,1,100,0,0,0,0,0,2024,2030,2033,2009,null,"28","11",null,"26","2","3",null,null,null,"No",null,"<1",15]
["Intervento Piano precedente","Area Sardegna/Centro Nord",null,1,1,"Sardegna/Toscana","301-P","Collegamento HVDC Sardegna – Corsica – Italia (SA.CO.I.3)","2.4",299,"-",1,1,1,1,null,1,null,1,null,1,1,null,1,"Gruppo di opere",3,3,0,0,100,0,0,0,null,2023,2027,2011,400,21,null,"3","30","1",null,"103",null,null,"Si","rif. Tab. C",181,950]
["Intervento Piano precedente","Area Sardegna",null,1,null,"Sardegna ","707-P","Elettrodotto 150 kV SE S.Teresa – Buddusò","-","-","RIP 2017",1,1,null,1,null,null,null,1,null,null,1,null,1,"Gruppo di opere",4,4,50,0,25,0,0,25,null,null,2028,2003,null,"92",1,null,"6","3",null,null,null,null,"Si","rif. Tab. C",14,85,null,"Per i dettagli dei benefici, si rimanda al PdS 2017"]
["Intervento Piano precedente","Area Sardegna",null,1,null,"Sardegna","708-P","Elettrodotto 150 kV Selargius – Goni","-","-","-",1,1,null,1,null,null,null,1,null,null,null,null,1,"Linea",2,2,0,50,0,50,0,0,null,2025,2030,2004,null,"30",null,"2",null,null,null,null,null,null,"No",null,"<1",16]
["Intervento Piano precedente","Area Sardegna",null,1,null,"Sardegna","724-P","Adeguamento SE Rumianca","-","-","-",null,1,null,null,null,null,null,null,null,null,null,null,1,"Stazione",4,4,75,0,0,0,0,25,null,null,2026,2018,null,null,null,null,null,null,null,null,null,null,"No",null,4.5,22]
["Intervento Piano precedente","Centro Sud/Sicilia/Sardegna",1,1,null,"Campania/Sicilia/Sardegna","723 / W-P","Collegamento HVDC Continente – Sicilia – Sardegna (West Link)","-",339,"-",1,1,1,1,null,1,null,1,null,null,1,null,1,"Gruppo di opere",5,5,0,0,100,0,0,0,null,2023,2027,2018,1000,848,43,36,null,null,null,null,null,null,"Si","rif. Tab. C","<1",1900,"723/E-P, 602-P, 627-P, 605-P, 601-I","- Per i dettagli dei benefici, si rimanda al PdS 2021\n- I valori degli impatti territoriali si riferiscono sia all'intervento 723 W/P che 723 E/P"]
["Intervento Piano precedente","Centro Sud/Sicilia/Sardegna",1,1,null,"Campania/Sicilia/Sardegna","723 / E-P","Collegamento HVDC Continente – Sicilia – Sardegna (East Link)","-",339,"-",1,1,1,1,null,1,null,1,null,null,1,null,1,"Gruppo di opere",6,6,0,0,0,100,0,0,null,null,2028,2018,1000,null,null,null,null,null,null,null,null,null,"Si","rif. Tab. C","<1",1800,"723/W-P, 506-P, 546-P, 601-I, 602-P, 627-P e 605-P","Per i dettagli dei benefici, si rimanda al PdS 2021"]
["Intervento Piano precedente","Area Nord-Ovest",null,1,null,"Piemonte","28-P","Riassetto Sud Ovest di Alessandria","-","-","-",null,1,null,null,null,null,1,null,null,null,null,null,1,"Linea",2,2,100,0,0,0,0,0,2023,2027,2030,2019,null,null,null,null,null,null,null,null,null,null,"Si","rif. Tab. C",0,27]
["Intervento Piano precedente","Area Nord-Ovest",null,1,null,"Piemonte","29-P","Riassetto rete 220 kV area Sud Ovest di Torino","-","-","-",null,1,null,null,null,null,1,null,null,null,null,null,1,"Stazione",1,1,100,0,0,0,0,0,2024,2026,2035,2019,null,"4",null,1,"2",null,"1",null,null,null,"No"," ",0,9,"6-P"]
["Intervento Piano precedente","Area Nord",null,1,null,"Lombardia","161-P","Riassetto rete 220 kV a Nord di Milano","-","-","-",null,1,null,null,null,null,null,null,null,null,null,null,1,"Linea",2,2,100,0,0,0,0,0,2023,2026,2028,2019,null,null,null,null,null,null,null,null,null,null,"No"," ",0,1]
["Intervento Piano precedente","Area Nord",null,1,null,"Lombardia","162-P","Riassetto rete AT area Bordogna","-","-","-",1,1,null,1,1,null,null,1,null,null,null,null,1,"Gruppo di opere",5,5,100,0,0,0,0,0,2024,2027,2035,2019,null,"36","11","2","63","23","3",null,null,null,"Si","rif. Tab. C",0,30]
["Intervento Piano precedente","Area Nord",null,1,null,"Lombardia","163-P","Riassetto Nord di Brescia","-","-","-",null,1,null,1,null,null,null,null,null,null,null,null,1,"Gruppo di opere",2,2,100,0,0,0,0,0,2025,2028,2030,2019,null,"9",null,"2","7",null,"2",null,null,null,"No",null,0,20]
["Intervento Piano precedente","Area Nord",null,1,null,"Lombardia","164-P","Risoluzione derivazione rigida CP Gravedona","-","-","-",1,1,null,1,null,null,null,1,null,null,null,null,1,"Gruppo di opere",2,2,100,0,0,0,0,0,2024,2027,2029,2019,null,"2",null,"1",3,null,1,null,null,null,"No"," ",0,14]
["Intervento Piano precedente","Area Nord-Ovest",null,1,null,"Liguria","30-P","Elettrodotto 220 kV Erzelli - Bistagno",null,null,null,null,1,null,null,null,null,null,null,null,null,null,null,1,"Rimozione limitazioni linea",1,1,100,0,0,0,0,0,2023,2027,2030,2020,null,null,null,null,null,null,null,"50","12","1","No",null,"<1",5]
["Intervento Piano precedente","Area Nord-Ovest",null,1,null,"Valle d’Aosta","31-P","Adeguamento SE Chatillon",null,null,null,null,1,null,null,null,null,null,null,null,null,null,null,1,"Stazione",1,1,100,0,0,0,0,0,2023,2027,2030,2020,null,null,null,null,null,null,null,null,null,null,"No",null,0,5]
["Intervento Piano precedente","Area Nord",null,1,null,"Lombardia","165-P","Razionalizzazione rete 380 kV Brianza",null,null,null,null,1,1,1,1,null,null,null,null,null,null,null,1,"Gruppo di opere",3,3,0,{"$f":"1/3*100","v":33.333333333333329},{"$f":"2/3*100","v":66.666666666666657},0,0,0,null,2027,2030,2020,null,"18","1","3","26","2","10",null,null,null,"Si","rif. Tab. C","<1",245]
["Intervento Piano precedente","Area Nord",null,1,null,"Lombardia","166-P","Risoluzione antenna CP Liscate",null,null,null,null,1,null,null,null,null,null,null,null,null,null,null,1,"Gruppo di opere",2,2,100,0,0,0,0,0,2025,2028,2030,2020,null,"5",null,null,"5",null,null,null,null,null,"No",null,0,6]
["Intervento Piano precedente","Area Sardegna",null,1,null,"Sardegna","725-P","Adeguamento SE Florinas","-","-","-",null,1,null,null,null,null,null,null,null,null,null,null,1,"Stazione",1,1,0,100,0,0,0,0,2026,2028,2032,2020,null,null,null,null,null,null,null,null,null,null,"No"," ",0,4]
["Intervento Piano precedente","Area Sardegna",null,1,null,"Sardegna","726-P","Adeguamento SE Ploaghe","-","-","-",null,1,null,null,null,null,null,null,null,null,null,null,1,"Stazione",1,1,0,100,0,0,0,0,2026,2028,2032,2020,null,null,null,null,null,null,null,null,null,null,"No"," ",0,4]
["Intervento Piano precedente","Area Sardegna",null,1,null,"Sardegna","727-P","Adeguamento SE Tula","-","-","-",null,1,null,null,null,null,null,1,null,null,null,null,1,"Stazione",1,1,0,100,0,0,0,0,2026,2028,2032,2020,null,null,null,null,null,null,null,null,null,null,"No"," ",0,4]
["Intervento Piano precedente","Area Sardegna",null,1,null,"Sardegna","728-P","Adeguamento SE Busachi","-","-","-",null,1,null,null,null,null,null,null,null,null,null,null,1,"Stazione",1,1,0,100,0,0,0,0,2026,2028,2032,2020,null,null,null,null,null,null,null,null,null,null,"No"," ",0,4]
["Intervento Piano precedente","Area Sardegna",null,1,null,"Sardegna","729-P","Adeguamento SE Nurri","-","-","-",null,1,null,null,null,null,null,1,null,null,null,null,1,"Stazione",1,1,0,100,0,0,0,0,2026,2028,2032,2020,null,null,null,null,null,null,null,null,null,null,"No"," ",0,4]
["Intervento Piano precedente","Area Sardegna",null,1,null,"Sardegna","730-P","Adeguamento SE Ulassai","-","-","-",null,1,null,null,null,null,null,1,null,null,null,null,1,"Stazione",1,1,0,100,0,0,0,0,2026,2028,2032,2020,null,null,null,null,null,null,null,null,null,null,"No"," ",0,4]
["Intervento Piano precedente","Area Nord-Ovest",null,1,null,"Piemonte","32-P","Rimozione Antenna CP Cappellazzo",null,null,null,null,1,null,null,null,null,null,null,null,null,null,null,1,"Linea",1,1,100,0,0,0,0,0,2024,2027,2030,2021,null,8,null,null,null,null,null,null,null,null,"No",null,0,4]
["Intervento Piano precedente","Area Nord",null,1,null,"Lombardia","167-P","Razionalizzazione Valchiavenna",null,null,null,1,1,1,1,null,1,null,1,null,1,1,null,1,"Gruppo di opere",8,8,100,0,0,0,0,0,2023,2033,2038,2021,1000,270,82,15,552,78,39,null,null,null,"Si","rif. Tab. C","<1",1244,"112-P \n127-P"]
["Intervento Piano precedente","Area Nord",null,1,null,"Lombardia","168-P","Riassetto rete 132 kV tra Mantova e Ostiglia",null,null,null,null,1,null,1,null,null,null,null,null,null,null,null,1,"Gruppo di opere",3,3,100,0,0,0,0,0,2023,2026,2028,2021,null,37,null,null,6,null,null,null,null,null,"No",null,0,9,"328-P"]
["Intervento Piano precedente","Area Nord",null,1,null,"Lombardia","169-P","Riassetto rete tra Tavazzano e Colà",null,null,null,null,1,null,null,null,null,null,null,null,null,null,null,1,"Gruppo di opere",2,2,100,0,0,0,0,0,2023,2028,2030,2021,null,4,null,1,2,null,null,107,null,4,"Si","rif. Tab. C",0,59]
["Intervento Piano precedente","Area Nord",null,1,null,"Lombardia","170-P","Riassetto rete tra Cislago e Dalmine",null,null,null,null,1,null,null,null,null,null,null,null,null,null,null,1,"Gruppo di opere",5,5,100,0,0,0,0,0,2025,2028,2030,2021,null,9,1,3,null,null,null,9,1,3,"No",null,0,9]
["Intervento Piano precedente","Area Nord",null,1,null,"Piemonte","171-P","Nuova stazione 380 kV Greggio",null,null,null,null,1,null,null,null,null,null,null,1,null,null,null,1,"Gruppo di opere",2,2,100,0,0,0,0,0,2026,2032,2035,2021,null,null,null,null,null,null,null,null,null,null,"No",null,0,14]
["Intervento Piano precedente","Area Sardegna",null,1,null,"Sardegna","731-P","Riassetto rete area Rumianca/S.Gilla",null,null,null,null,1,null,null,null,null,null,1,null,null,null,null,1,"Gruppo di opere",3,3,0,100,0,0,0,0,2023,2025,2027,2021,null,5,null,null,null,null,null,null,null,null,"No"," ",0,15]
["Intervento Piano precedente","Area Nord-Est",null,null,1,"Veneto","204-P","Elettrodotto 220 kV Interconnessione Italia - Austria","-",375,"-",1,null,1,null,null,null,null,null,null,1,1,null,null,"Gruppo di opere",3,2,100,0,0,0,0,0,2023,2032,2035,2001,500,"32","31","3","32","26",1,null,null,null,"Si","rif. Tab. C",2,83]
["Intervento Piano precedente","Area Nord-Est",null,null,1,"Trentino Alto Adige","208-P","Elettrodotto 132/110 kV Prati di Vizze (IT) – Steinach (AT)","-",336,"RIP 2017",1,null,1,1,null,null,1,null,null,1,1,null,null,"Gruppo di opere",4,4,0,25,0,25,0,50,null,null,2023,2003,null,"3",null,"1","2",null,1,"14",null,null,"Si","rif. Tab. C",31,60,null,"Per i dettagli dei benefici, si rimanda al PdS 2017"]
["Intervento Piano precedente","Area Nord-Est",null,null,1,"Trentino Alto Adige","252-P","Interconnessione AT Dobbiaco - Austria","-","-","-",null,null,1,null,null,null,null,null,null,1,null,null,1,"Linea",1,1,100,0,0,0,0,0,2032,3035,2038,2018,"80 - 160","18","2",3,null,null,null,null,null,null,"Si","rif. Tab. C","<1",59,"215-P"]
["Intervento Piano precedente","Area Nord-Est",null,null,1,"Friuli Venezia Giulia","207-P","Elettrodotto 380 kV Udine Ovest - Redipuglia","-","-","-",null,1,1,1,1,null,1,null,1,1,1,null,1,"Gruppo di opere",13,6,0,16.666666666666664,0,0,0,{"$f":"(5/6)*100","v":83.333333333333343},null,null,2028,2002,null,16,1,3,37,"1",3,null,null,null,"Si","rif. Tab. C",160,171,null,"Per i dettagli dei benefici, si rimanda al PdS 2017"]
["Intervento Piano precedente","Area Nord-Est",null,null,1,"Veneto","203-P","Razionalizzazione 380 kV fra Venezia e Padova","-","-","RIP 2017",null,null,1,1,1,null,1,null,null,null,null,null,1,"Gruppo di opere",14,12,9,0,0,58,0,33,null,null,2028,2004,null,67,null,"2","72",null,6,1,null,null,"Si","rif. Tab. C",112,372,null,"- Opera a cura del distributore localePer i dettagli dei benefici, si rimanda al PdS 2017\n- Opera a cura del distributore locale"]
["Intervento Piano precedente","Area Nord-Est",null,null,1,"Trentino Alto Adige","222-P","Riassetto rete 220 kV Trentino Alto Adige","-","-","-",1,1,null,1,1,null,null,1,null,null,1,null,1,"Gruppo di opere",6,5,0,60,0,40,0,0,null,null,2034,2013,null,13,null,3,"7",null,"1","169","12","4","Si","rif. Tab. C",7,100,null,"Per i dettagli dei benefici, si rimanda al PdS 2021"]
["Intervento Piano precedente","Area Nord-Est",null,null,1,"Veneto","216-P","Razionalizzazione rete Media Valle del Piave","-","-","RIP 2017",1,1,null,1,1,null,null,1,null,null,1,null,1,"Gruppo di opere",11,10,30,0,70,0,0,0,null,2024,2038,"<2004",null,"77","26","5",77,"27",4,"78","18",2,"Si","rif. Tab. C",10,269]
["Intervento Piano precedente","Area Nord-Est",null,null,1,"Veneto/Trentino Alto Adige","215-P","Riassetto rete alto Bellunese","-","-","-",1,1,null,1,1,null,1,1,null,null,null,1,1,"Gruppo di opere",3,3,0,0,0,0,33,67,null,null,2023,2010,null,39,17,18,"3",null,1,"124","18",27,"Si","rif. Tab. C",66,103,null,"Per i dettagli dei benefici, si rimanda al PdS 2019"]
["Intervento Piano precedente","Area Nord-Est",null,null,1,"Veneto","206-P","Stazione 380 kV Volpago","-","-","RIP 2017",null,1,1,1,null,null,null,null,null,1,null,null,1,"Gruppo di opere",6,4,50,25,0,0,0,25,null,null,2040,2006,null,"74",7,6,"18",null,"3",125,"13",4,"Si","rif. Tab. C",6,320,null,"Opera a cura del distributore locale"]
["Intervento Piano precedente","Area Nord-Est",null,null,1,"Veneto","229-P","Stazione 380 kV Sandrigo","-","-","-",null,1,null,null,null,null,null,null,null,null,null,null,1,"Stazione",1,1,0,0,0,0,100,0,null,null,2023,2012,null,null,null,null,null,null,null,null,null,null,"No",null,"<1",5,null,"Impatti territoriali non significativi"]
["Intervento Piano precedente","Area Nord-Est",null,null,1,"Veneto","239-P","Stazione 380 kV Dugale","-","-","-",null,1,null,null,null,null,null,null,null,null,null,null,1,"Stazione",1,1,0,0,100,0,0,0,null,null,2024,2012,null,null,null,null,null,null,null,null,null,null,"No",null,"<1",5,null,"Impatti territoriali non significativi"]
["Intervento Piano precedente","Area Nord-Est",null,null,1,"Trentino Alto Adige","249-P","Stazione 220/132 kV S.Floriano","-","-","-",1,1,null,null,null,null,null,1,1,null,null,null,1,"Gruppo di opere",2,2,100,0,0,0,0,0,2026,2032,2035,2018,null,null,null,null,null,null,null,null,null,null,"No",null,0,15]
["Intervento Piano precedente","Area Nord-Est",null,null,1,"Friuli Venezia Giulia","253-P","Stazione 220/132 kV Padriciano","-","-","-",null,1,null,null,null,null,null,null,null,null,null,null,1,"Gruppo di opere",2,2,100,0,0,0,0,0,null,2026,2029,2018,null,null,null,null,null,null,null,null,null,null,"No",null,3,14]
["Intervento Piano precedente","Area Nord-Est",null,null,1,"Trentino Alto Adige","235-P","Stazione 220 kV Ala","-","-","-",null,1,null,null,null,null,null,1,null,null,null,null,1,"Gruppo di opere",4,3,100,0,0,0,0,0,2028,2032,2035,2008,null,null,null,null,"4",null,1,"9",null,"1","No",null,"<1",11]
["Intervento Piano precedente","Area Nord-Est",null,null,1,"Trentino Alto Adige","238-P","Stazione 220 kV Glorenza","-","-","-",1,1,null,1,null,null,null,1,null,null,null,null,1,"Gruppo di opere",3,3,0,66.67,0,0,0,33.33,null,null,2024,2012,null,1,null,null,null,null,null,"34","30",1,"Si","rif. Tab. C",21,38,null,"Per i dettagli dei benefici, si rimanda al PdS 2019"]
["Intervento Piano precedente","Area Nord-Est",null,null,1,"Veneto","237-P ","Stazione 220 kV Schio e potenziamento rete","-","-","-",null,1,null,1,null,null,1,null,null,null,null,null,1,"Gruppo di opere",6,6,33,16,0,17,0,33,null,null,2030,2006,null,17,null,null,3,null,null,52,1,1,"Si","rif. Tab. C",19,140,null,"Per i dettagli dei benefici, si rimanda al PdS 2019"]
["Intervento Piano precedente","Area Nord-Est",null,null,1,"Friuli Venezia Giulia","210-P","Elettrodotto 132 kV Redipuglia – Duino","-","-","-",null,1,null,null,null,null,null,null,null,null,null,null,1,"Rimozione limitazioni linea",2,2,0,50,0,0,0,50,null,null,2026,2009,null,null,null,null,null,null,null,"15","13",1,"No",null,1,4]
["Intervento Piano precedente","Area Nord-Est",null,null,1,"Trentino Alto Adige","220-P","Razionalizzazione rete AT nell’area di S.Massenza","-","-","-",1,1,null,null,null,null,1,1,null,null,null,null,1,"Gruppo di opere",5,5,40,20,0,0,0,40,null,null,2027,2008,null,"1",null,null,"21",null,"1",null,null,null,"No",null,7,12]
["Intervento Piano precedente","Area Nord-Est",null,null,1,"Trentino Alto Adige","221-P","Razionalizzazione 132 kV Trento Sud","-","-","-",null,1,null,null,null,null,1,1,null,null,null,null,1,"Gruppo di opere",6,5,60,0,0,40,0,0,null,2023,2030,2003,null,"58","2","7","48","2",7,"34","1","2","Si","rif. Tab. C",4,43,null,"Per i dettagli dei benefici, si rimanda al PdS 2021"]
["Intervento Piano precedente","Area Nord-Est",null,null,1,"Veneto","225-P","Potenziamento rete AT area Rovigo","-","-","-",null,1,null,null,null,null,1,null,1,null,null,1,1,"Gruppo di opere",3,3,33.33,0,0,33.33,0,33.340000000000003,null,null,2031,2011,null,null,null,null,"5",1,"5",null,null,null,"No",null,2,3]
["Intervento Piano precedente","Area Nord-Est",null,null,1,"Trentino Alto Adige","245-P ","Stazione Bressanone e direttrice 132 kV Terme di Brennero – Bolzano FS – Mori","-","-","-",1,1,null,1,1,null,null,1,1,null,null,null,1,"Gruppo di opere",6,6,66.67,0,17,0,0,16.66,null,null,2035,"2016/2007",null,4,null,3,74,3,6,43,null,3,"Si","rif. Tab. C",6,50]
["Intervento Piano precedente","Area Nord-Est",null,null,1,"Friuli Venezia Giulia","246-P","Direttrice 132 kV Opicina FS – Redipuglia","-","-","-",null,null,1,null,null,null,null,null,1,null,null,null,null,"Rimozione limitazioni linea",1,1,0,0,0,100,0,0,null,null,2025,2016,null,null,null,null,null,null,null,"31","31",null,"No",null,"<1",7]
["Interconnector","Area Nord-Est",null,null,1,"Trentino Alto Adige","100I","Incremento della capacità di interconnessione con l’Austria ai sensi della legge 99/2009 e s.m.i.","-",26,"-",1,null,1,1,null,null,null,null,null,1,1,null,null,"Gruppo di opere",2,2,0,0,0,0,50,50,null,null,2023,2010,null,26,null,1,null,null,null,null,null,null,"Si","rif. Tab. C",61,80,"238–P","Per i dettagli dei benefici, si rimanda al PdS 2019"]
["Interconnector","Area Nord-Est",null,null,1,"Veneto","200-I","Incremento della capacità di interconnessione con la Slovenia ai sensi della legge 99/2009 e s.m.i.","3.21",150,"-",1,null,1,1,null,null,null,1,null,1,1,null,1,"Gruppo di opere",2,2,50,0,50,0,0,0,null,2026,2042,2010,1000,null,null,null,null,null,null,38,2,2,"Si","rif. Tab. C",5,"400-450"]
["Intervento Piano precedente","Area Centro-Nord",null,null,1,"Emilia Romagna/Toscana","302-P","Elettrodotto 380 kV Colunga – Calenzano","-",33,"-",1,1,1,1,null,1,null,1,1,null,1,1,1,"Gruppo di opere",13,9,0,0,0,89,0,11,null,null,2025,2005,400,"129","27","3","108","16","3",null,null,null,"Si","rif. Tab. C",74,252,null,"Per i dettagli dei benefici, si rimanda al PdS 2020"]
["Intervento Piano precedente","Area Centro-Nord",null,null,1,"Toscana","309-P","Elettrodotto 132 kV Elba – Continente","-","-","RIP 2017",null,1,1,1,1,null,1,null,null,null,null,1,1,"Linea",2,2,0,0,null,50,50,0,null,null,2023,2011,null,"42","31","1","7",1,1,null,null,null,"Si","rif. Tab. C",89,143,null,"Per i dettagli dei benefici, si rimanda al PdS 2017"]
["Intervento Piano precedente","Area Centro-Nord",null,null,1,"Toscana","306-P","Riassetto rete 380 e 132 kV area di Lucca","-","-","-",null,1,1,null,null,null,null,null,1,null,null,null,1,"Gruppo di opere",3,3,33,0,67,0,0,0,null,2026,2034,2008,null,3,null,1,null,null,null,32,null,2,"Si","rif. Tab. C",2,66]
["Intervento Piano precedente","Area Centro-Nord",null,null,1,"Toscana","317-P","Rete metropolitana di Firenze","-","-","-",null,1,null,1,1,null,null,1,null,null,null,1,1,"Gruppo di opere",12,12,0,0,0,0,58,42,null,null,2024,2010,null,11,null,7,16,null,"7","3",null,"1","Si","rif. Tab. C",25,44,null,"Per i dettagli dei benefici, si rimanda al PdS 2017"]
["Intervento Piano precedente","Area Centro-Nord",null,null,1,"Emilia Romagna","319-P","Anello 132 kV Riccione - Rimini","-","-","-",null,1,null,1,null,null,1,null,1,null,null,null,1,"Gruppo di opere",6,6,17,0,0,83,0,0,null,2024,2028,2009,null,"17",null,6,"41",null,"8","19",null,"2","Si","rif. Tab. C",10,53,null,"Per i dettagli dei benefici, si rimanda al PdS 2021"]
["Intervento Piano precedente","Area Centro-Nord",null,null,1,"Toscana","305-P"," Rete AT di Arezzo","-","-","-",null,1,null,null,null,null,null,null,null,null,null,null,1,"Gruppo di opere",6,6,67,0,0,16.666666666666664,0,16,null,null,2034,2009,null,null,null,null,null,null,null,"57","8","6","No",null,1,13]
["Intervento Piano precedente","Area Centro-Nord",null,null,1,"Emilia Romagna","307-P","Elettrodotto 220 kV Colunga - Este","-","-","-",null,1,null,null,null,null,null,null,null,null,null,null,1,"Gruppo di opere",4,3,0,0,0,100,0,0,null,null,2024,2001,null,"18",null,"4",65,"1",9,"28",1,null,"No",null,6,13]
["Intervento Piano precedente","Area Centro-Nord",null,null,1,"Toscana","308-P","Riassetto rete area Livorno","-","-","-",null,1,1,null,1,null,null,null,1,null,null,null,1,"Gruppo di opere",8,5,20,0,0,20,20,40,null,null,2030,2009,null,"1",null,"1","1",null,null,"33","5",null,"Si","rif. Tab. C",39,57,null,"Per i dettagli dei benefici, si rimanda al PdS 2019"]
["Intervento Piano precedente","Area Centro-Nord",null,null,1,"Emilia Romagna","310-P","Rete 132 kV tra Borgonovo, Salsominore e Borgotaro","-","-","-",1,1,null,null,null,null,null,1,null,null,null,null,1,"Gruppo di opere",3,3,67,0,0,0,0,33.333333333333329,null,null,2030,2003,null,"15","2",null,null,null,null,null,null,null,"Si","rif. Tab. C",7,31,null,"Per i dettagli dei benefici, si rimanda al PdS 2020"]
["Intervento Piano precedente","Area Centro-Nord",null,null,1,"Toscana","311-P","Elettrodotto 132 kV Grosseto FS – Orbetello FS","-","-","-",1,1,null,null,null,null,null,1,1,null,null,null,1,"Gruppo di opere",3,3,67,0,0,0,0,33,null,null,2030,2003,null,"21",1,"1",null,null,null,"44",null,null,"No",null,"<1",22]
["Intervento Piano precedente","Area Centro-Nord",null,null,1,"Toscana","314-P","Rete Avenza/Lucca e raccordi 132 kV di Strettoia","-","-","-",null,1,null,null,null,null,null,null,null,null,null,1,1,"Gruppo di opere",4,4,0,25,25,0,0,50,null,null,2025,2011,null,null,null,null,null,null,null,"23","1","4","No",null,5,6]
["Intervento Piano precedente","Area Centro-Nord",null,null,1,"Emilia Romagna","318-P","Riassetto di Ferrara","-","-","-",null,1,null,null,null,null,null,null,null,null,null,null,1,"Gruppo di opere",9,9,100,0,0,0,0,0,2024,2028,2030,2009,null,"2",null,"2",null,null,null,"124",1,"41","Si","rif. Tab. C","<1",53]
["Intervento Piano precedente","Area Centro-Nord",null,null,1,"Emilia Romagna","320-P","Razionalizzazione 132 kV area di Reggio Emilia","-","-","-",null,1,null,null,null,null,1,null,1,null,null,null,1,"Gruppo di opere",3,3,0,0,100,0,0,0,null,2027,2030,2003,null,"34",null,"6",33,null,"6","4",null,null,"Si","rif. Tab. C",8,47]
["Intervento Piano precedente","Area Centro-Nord",null,null,1,"Emilia Romagna","323-P","Rete AT area di Modena","-","-","-",null,1,null,null,null,null,1,null,1,null,null,null,1,"Gruppo di opere",4,4,0,0,50,0,0,50,null,null,2027,2008,null,"6",null,null,null,null,null,"36","1","4","No",null,6,23]
["Intervento Piano precedente","Area Centro-Nord",null,null,1,"Emilia Romagna","327-P","Elettrodotto 132 kV Laguna - Faenza","-","-","-",null,1,null,null,null,null,null,null,null,null,null,null,1,"Rimozione limitazioni linea",1,1,100,0,0,0,0,0,2024,2026,2030,2011,null,null,null,null,null,null,null,"14",null,1,"No",null,4,10]
["Intervento Piano precedente","Area Centro-Nord",null,null,1,"Toscana","345-P","Stazione 380/132 kV Larderello","-","-","-",1,null,null,null,1,null,null,1,1,null,null,null,1,"Stazione",1,1,0,100,0,0,0,0,2024,2028,2030,2018,null,"3",null,null,null,null,null,null,null,null,"Si","rif. Tab. C","<1",33]
["Intervento Piano precedente","Area Centro-Nord",null,null,1,"Emilia Romagna","346-P","Stazione 220 kV Colorno","-","-","-",null,1,null,null,null,null,null,null,1,null,null,null,1,"Gruppo di opere",2,2,100,0,0,0,0,0,2026,2028,2030,2018,null,null,null,null,null,null,null,null,null,null,"No",null,0,10]
["Intervento Piano precedente","Area Centro-Nord",null,null,1,"Toscana","335-P","Stazione 220 kV Avenza","-","-","-",null,1,null,null,null,null,null,null,null,null,null,null,1,"Stazione",1,1,0,0,0,100,0,0,2023,2025,2026,2005,null,null,null,null,null,null,null,null,null,null,"No",null,5,10,null,"Impatti territoriali non significativi"]
["Intervento Piano precedente","Area Centro-Nord",null,null,1,"Emilia Romagna","326-P","Riassetto rete AT area di Bologna","-","-","-",null,1,null,1,null,null,null,null,1,null,null,1,1,"Gruppo di opere",10,10,0,0,10,90,0,0,null,null,"2028/2031","2005/2016",null,"40",null,"15","61",1,"17","58","2","7","Si","rif. Tab. C",1,66,null,"Per i dettagli dei benefici, si rimanda al PdS 2021"]
["Intervento Piano precedente","Area Centro-Nord",null,null,1,"Emilia Romagna/Toscana","337-P","Rete 132 kV tra Romagna e Toscana","-","-","-",null,1,null,1,null,null,null,null,1,null,null,1,1,"Gruppo di opere",4,4,50,50,0,0,0,0,null,2025,2035,2014,null,"47","5","2","21","2",null,"95","2",1,"Si","rif. Tab. C","<1",58]
["Intervento Piano precedente","Area Centro-Nord",null,null,1,"Emilia Romagna","321-P","Rete area Forlì/Cesena","-","-","-",null,1,null,null,null,null,null,null,null,null,null,1,1,"Gruppo di opere",4,4,25,50,0,25,0,0,null,2025,2028,2010,null,1,null,null,null,null,null,"93",null,9,"Si","rif. Tab. C","<1",36,null,"Per i dettagli dei benefici, si rimanda al PdS 2021"]
["Intervento Piano precedente","Area Centro-Nord",null,null,1,"Emilia Romagna","322-P","Rete Nord – Ovest Emilia","-","-","-",null,1,null,null,null,null,null,null,null,null,null,null,1,"Rimozione limitazioni linea",4,4,50,50,0,0,0,0,null,2030,2034,2010,null,null,null,null,null,null,null,"48",null,"2","No",null,"<1",16]
["Intervento Piano precedente","Area Centro-Nord",null,null,1,"Toscana","338-P","Stazione 380 kV a nord di Grosseto","-","-","-",null,1,1,1,1,null,null,1,null,null,1,null,1,"Gruppo di opere",3,3,0,100,0,0,0,0,2024,2028,2030,2014,null,"1",null,null,null,null,null,null,null,null,"Si","rif. Tab. C",1,125]
["Intervento Piano precedente","Area Centro-Nord",null,null,1,"Toscana/Emilia Romagna","339-P","Direttrice 132 kV Talamello – Subbiano all.","-","-","-",null,1,null,null,null,null,null,null,1,null,null,null,1,"Linea",1,1,100,0,0,0,0,0,2023,2025,2028,2016,null,null,null,null,null,null,null,"48","4",1,"No",null,"<1",14]
["Intervento Piano precedente","Area Centro-Nord",null,null,1,"Toscana","341-P","Direttrice 132 kV Pontremoli FS – Borgotaro FS – Berceto FS","-","-","-",null,1,null,null,null,null,null,null,1,null,null,null,1,"Linea",1,1,0,100,0,0,0,0,null,2025,2028,2016,null,"1",null,null,null,null,null,"15",null,null,"No",null,"<1",7]
["Intervento Piano precedente","Area Nord-Est",null,null,1,"Veneto","254-P","Elettrodotto 380 kV Venezia Nord - Salgareda","-","-","-",null,null,1,null,1,null,null,null,null,null,null,null,null,"Linea",1,1,100,0,0,0,0,0,2023,2023,2024,2019,null,null,null,null,null,null,null,"31","1",null,"No"," ",0,14]
["Intervento Piano precedente","Area Nord-Est",null,null,1,"Trentino Alto Adige","255-P","Elettrodotto 132 kV Predazzo - Moena","-","-","-",null,1,null,null,null,null,1,null,null,null,null,null,1,"Linea",1,1,100,0,0,0,0,0,2023,2025,2028,2019,null,"8",null,"2",null,null,null,null,null,null,"No"," ",0,13,"Interventi di connessione previsti nell'area"]
["Intervento Piano precedente","Area Nord-Est",null,null,1,"Friuli Venezia Giulia","256-P","Risoluzione antenna utente Ferriere Nord","-","-","-",null,1,null,null,null,null,1,null,null,null,null,null,1,"Linea",1,1,100,0,0,0,0,0,2030,2032,2035,2019,null,1,null,null,null,null,null,null,null,null,"No"," ",0,10]
["Intervento Piano precedente","Area Nord-Est",null,null,1,"Veneto","257-P","Riassetto rete ad ovest di Padova",null,null,null,null,1,null,1,null,null,null,null,1,null,null,null,1,"Gruppo di opere",2,2,100,0,0,0,0,0,2028,2032,2035,2020,null,"9",null,1,"2",null,null,null,null,null,"No",null,0,12]
["Intervento Piano precedente","Area Nord-Est",null,null,1,"Veneto","258-P","Riassetto rete area di Abano",null,null,null,null,1,null,1,null,null,null,null,1,null,null,null,1,"Gruppo di opere",3,3,100,0,0,0,0,0,2023,2025,2030,2020,null,"6",null,1,"18",null,"1",null,null,null,"No",null,0,11]
["Intervento Piano precedente","Area Nord-Est",null,null,1,"Veneto","259-P","Razionalizzazione rete AT Verona",null,null,null,null,1,null,1,null,null,null,null,1,null,null,null,1,"Gruppo di opere",11,10,100,0,0,0,0,0,2024,2034,2038,2020,null,"26",null,4,"83","5","6","2",null,null,"Si","rif. Tab. C",1,111]
["Intervento Piano precedente","Area Centro-Nord",null,null,1,"Emilia Romagna","348-P","Razionalizzazione rete tra Parma e Piacenza","-","-","-",null,1,null,1,null,null,null,null,1,null,null,null,1,"Gruppo di opere",7,7,100,0,0,0,0,0,2028,2030,2034,2020,null,"27","2","2","39",1,"2",null,null,null,"Si","rif. Tab. C",0,36]
["Intervento Piano precedente","Area Centro-Nord",null,null,1,"Toscana","349-P","Stazione 380 kV Piombino","-","-","-",1,1,null,1,null,null,1,1,null,null,null,null,1,"Gruppo di opere",4,3,100,0,0,0,0,0,2030,2033,2036,2020,null,"10",null,null,"23","4",null,null,null,null,"No",null,0,14]
["Intervento Piano precedente","Area Nord-Est",null,null,1,"Veneto","260-P","Razionalizzazione rete at in provincia di Venezia",null,null,null,null,1,null,null,null,null,1,null,1,null,null,null,1,"Linea",5,5,100,0,0,0,0,0,2028,2032,2035,2021,null,"14",null,null,"3",null,null,null,null,null,"No",null,0,10]
["Intervento Piano precedente","Area Nord-Est",null,null,1,"Veneto","261-P","Riassetto rete nell’area della stazione Cavilla","-","-","-",null,1,null,1,null,null,null,null,null,null,null,null,1,"Linea",2,2,100,0,0,0,0,0,2024,2028,2030,2021,null,"3",3,1,"8",4,1,null,null,null,"No",null,0,14]
["Intervento Piano precedente","Area Nord-Est",null,null,1,"Veneto","262-P","Incremento magliatura se 220 kV Conegliano","-","-","-",null,1,null,null,null,null,null,null,null,null,null,null,1,"Gruppo di opere",3,3,100,0,0,0,0,0,2028,2032,2035,2021,null,1,null,null,1,null,null,null,null,null,"No",null,0,8]
["Intervento Piano precedente","Area Centro-Nord",null,null,1,"Emilia Romagna / Lombardia","350-P","Elettrodotto 220 kV Colunga-Bussolengo","-","-","-",null,1,null,null,null,null,null,null,null,null,null,null,1,"Gruppo di opere",3,3,100,0,0,0,0,0,2023,2026,2028,2021,null,"9",null,"2","54",null,"6",null,null,null,"No",null,0,20,"326-P\n168-P"]
["Intervento Piano precedente","Area Centro-Nord",null,null,1,"Toscana","351-P","Rimozione limitazioni elettrodotto 380 kV Calenzano-Suvereto","-","-","-",null,1,1,null,1,1,null,null,null,null,1,null,1,"Gruppo di opere",2,2,100,0,0,0,0,0,2025,2028,2030,2021,null,"6",null,null,"17",null,"2",null,null,null,"Si","rif. Tab. C",0,30]
["Intervento Piano precedente","Area Centro-Nord",null,null,1,"Toscana","352-P","Incremento magliatura rete 132 kV area Amiata","-","-","-",null,1,null,null,null,null,null,1,null,null,null,null,1,"Gruppo di opere",4,4,100,0,0,0,0,0,2023,2026,2030,2021,null,"44","1","2",null,null,null,null,null,null,"Si","rif. Tab. C",0,90]
["Intervento Piano precedente","Area Centro-Nord",null,null,1,"Toscana","353-P","Riassetto rete per alimentazione av 132 kV in Toscana","-","-","-",null,1,null,null,null,null,null,null,1,null,null,null,1,"Stazione",3,3,100,0,0,0,0,0,2024,2028,2031,2021,null,null,null,null,null,null,null,null,null,null,"No",null,0,12,null,"Impatti territoriali non significativi"]
["Intervento Piano precedente","Area Centro-Nord",null,null,1,"Toscana","354-P","Interconnessione isola del Giglio","-","-","-",1,1,1,1,null,null,1,1,null,null,1,null,1,"Gruppo di opere",3,3,100,0,0,0,0,0,2025,2033,2035,2021,null,80,61,1,3,null,null,null,null,null,"Si","rif. Tab. C",0,0,null,"-Per la stima delle voci di costo e degli indicatori di beneficio si rimanda all’analisi costi benefici riportate nella scheda 354-N del PdS21\n- Le nuove tempistiche tengono conto del parere ARERA 335/22/EEL"]
["Intervento Piano precedente","Area Centro-Nord",1,null,1,"Abruzzo/Marche","436-P","HVDC Centro Sud / Centro Nord","-",338,"-",1,1,1,1,null,1,null,1,null,null,1,null,null,"Gruppo di opere",4,4,0,0,100,0,0,0,2022,2024,2028,2018,1000,276,null,1,null,null,null,null,null,null,"Si","rif. Tab. C",10,1308,"432-P\n338-P\n302-P"]

{"sheet":"Foglio1","index":2,"n_rows":21,"n_cols":15,"rows_kept":21,"cut":false,"hidden":true,"merged":[]}
["Per liste",null,"NON TOCCARE",null,null,null,null,null,null,null,null,null,null,null,"BE"]
["Intervento Piano precedente",null,null,null,"Area Nord-Ovest",null,null,"DTNO",null,"Dispositivo di compensazione",null,null,"Si",null,"ST"]
["Interconnector",null,null,null,"Area Nord-Est",null,null,"DTNE",null,"Gruppo di opere",null,null,"No",null,"DG"]
["Nuovo intervento",null,null,null,"Area Nord",null,null,"DTCS",null,"Linea",null,null," ",null,"V1"]
[null,null,null,null,"Area Centro",null,null," ",null,"Rimozione limitazioni linea",null,null,null,null,"V3"]
[null,null,null,null,"Area Centro-Nord",null,null,null,null,"Stazione",null,null,null,null,"PNIEC"]
[null,null,null,null,"Area Sardegna",null,null,null,null," ",null,null,null,null,"PNIEC-BAU"]
[null,null,null,null,"Area Sicilia",null,null,null,null,null,null,null,null,null,"DEC"]
[null,null,null,null,"Area Sud",null,null,null,null,null,null,null,null,null,"BAU"]
[null,null,null,null,"Area Sardegna/Centro Nord",null,null,null,null,null,null,null,null,null,"PNIEC-DEC"]
[null,null,null,null,"Centro Sud/Sicilia/Sardegna",null,null,null,null,null,null,null,null,null,"PNIEC-PNIEC-DEC"]
[null,null,null,null,null,null,null,null,null,null,null,null,null,null,"PNIEC-BAU-BAU"]
[null,null,null,null,null,null,null,null,null,null,null,null,null,null,"NT-IT/NT-IT"]
[null,null,null,null,null,null,null,null,null,null,null,null,null,null,"BAU-BAU"]
[null,null,null,null,null,null,null,null,null,null,null,null,null,null,"NT-IT/BAU"]
[null,null,null,null,null,null,null,null,null,null,null,null,null,null,"ST-ST"]
[null,null,null,null,null,null,null,null,null,null,null,null,null,null,"DEC-DEC"]
[null,null,null,null,null,null,null,null,null,null,null,null,null,null,"FF55/DE"]
[null,null,null,null,null,null,null,null,null,null,null,null,null,null,"LT/LT"]
[null,null,null,null,null,null,null,null,null,null,null,null,null,null,"DE"]
[null,null,null,null,null,null,null,null,null,null,null,null,null,null,"LT"]

{"sheet":"C-Benefici Attesi PdS23","index":3,"n_rows":151,"n_cols":108,"rows_kept":151,"cut":false,"hidden":false,"merged":[]}
[]
[null,null,null,null,null,null,null,null,null,null,null,null,null,null,null,null,null,null,null,null,null,null,null,null,null,null,null,null,null,null,"Base?"]
[null,null,null,null,null,null,null,null,null,null,null,null,null,null,null,null,null,null,null,null,null,null,null,null,null,null,null,null,null,null,null,"Non presenti in attuale ACB, devono essere popolati solo per scenari di PdSp precedenti","Non presenti in attuale ACB, devono essere popolati solo per scenari di PdSp precedenti",null,null,null,null,"Non presenti in attuale ACB, devono essere popolati solo per scenari di PdSp precedenti",null,null,null,null,null,null,null,null,null,null,null,null,null,null,null,null,null,null,null,null,null,null,null,null,null,null,"DA verificare se valorizzata colonna",null,null,null,null,null,null,null,null,null,null,null,null,null,null,"serve doppia colonna GW e GWh?"]
[null,null,null,null,null,null,null,null,null,null,null,null,null,null,{"$f":"SUBTOTAL(9,O8:O120)","v":277},{"$f":"SUBTOTAL(9,P8:P120)","v":0},null,{"$f":"SUBTOTAL(9,R8:R120)","v":16},null,{"$f":"SUBTOTAL(9,T8:T120)","v":3},{"$f":"SUBTOTAL(9,U8:U120)","v":4.0019999999999998},null,{"$f":"SUBTOTAL(9,W8:W120)","v":27},null,{"$f":"SUBTOTAL(9,Y8:Y120)","v":-2},{"$f":"SUBTOTAL(9,Z8:Z120)","v":3},null,{"$f":"SUBTOTAL(9,AB8:AB120)","v":0},{"$f":"SUBTOTAL(9,AC8:AC120)","v":50},{"$f":"SUBTOTAL(9,AD8:AD120)","v":29},{"$f":"SUBTOTAL(9,AE8:AE120)","v":1083},{"$f":"SUBTOTAL(9,AF8:AF120)","v":57.9},null,{"$f":"SUBTOTAL(9,AH8:AH120)","v":197},null,{"$f":"SUBTOTAL(9,AJ8:AJ120)","v":208},{"$f":"SUBTOTAL(9,AK8:AK120)","v":663.3},{"$f":"SUBTOTAL(9,AM8:AM120)","v":14},{"$f":"SUBTOTAL(9,AO8:AO120)","v":71.460000000000008},{"$f":"SUBTOTAL(9,AN8:AN120)","v":116.6},{"$f":"SUBTOTAL(9,AS8:AS120)","v":0},{"$f":"SUBTOTAL(9,AT8:AT120)","v":32.599999999999994},{"$f":"SUBTOTAL(9,AU8:AU120)","v":-27.03},null,{"$f":"SUBTOTAL(9,AW8:AW120)","v":4515},{"$f":"SUBTOTAL(9,AX8:AX120)","v":111.9},{"$f":"SUBTOTAL(9,AY8:AY120)","v":450.20000000000005},null,{"$f":"SUBTOTAL(9,BA8:BA120)","v":187},{"$f":"SUBTOTAL(9,BC8:BC120)","v":449.012},{"$f":"SUBTOTAL(9,BD8:BD120)","v":0},null,{"$f":"SUBTOTAL(9,BF8:BF120)","v":34.6},{"$f":"SUBTOTAL(9,BG8:BG120)","v":1483},{"$f":"SUBTOTAL(9,BI8:BI120)","v":0},{"$f":"SUBTOTAL(9,BJ8:BJ120)","v":1196.3},{"$f":"SUBTOTAL(9,BK8:BK120)","v":340.82999999999993},{"$f":"SUBTOTAL(9,BL8:BL120)","v":29.911999999999999},{"$f":"SUBTOTAL(9,BM8:BM120)","v":0},{"$f":"SUBTOTAL(9,BO8:BO120)","v":2513.3029000000001},{"$f":"SUBTOTAL(9,BP8:BP120)","v":2470},{"$f":"SUBTOTAL(9,BQ8:BQ120)","v":1541900},{"$f":"SUBTOTAL(9,BS8:BS120)","v":4.8000000000000001E-2},{"$f":"SUBTOTAL(9,BT8:BT120)","v":43.8},{"$f":"SUBTOTAL(9,BU8:BU120)","v":-0.19700000000000001},null,{"$f":"SUBTOTAL(9,BV8:BV120)","v":1600},{"$f":"SUBTOTAL(9,BW8:BW120)","v":9341},{"$f":"SUBTOTAL(9,BX8:BX120)","v":44},null,{"$f":"SUBTOTAL(9,BY8:BY120)","v":970.63300000000004},{"$f":"SUBTOTAL(9,BZ8:BZ120)","v":7.0000000000000001E-3},{"$f":"SUBTOTAL(9,CB8:CB120)","v":7.78247},{"$f":"SUBTOTAL(9,CC8:CC120)","v":0},{"$f":"SUBTOTAL(9,CE8:CE120)","v":4761.476999999999},{"$f":"SUBTOTAL(9,CF8:CF120)","v":1432.4170000000001},{"$f":"SUBTOTAL(9,CH8:CH120)","v":3976.6700000000005},{"$f":"SUBTOTAL(9,CI8:CI120)","v":-0.44500000000000006},null,{"$f":"SUBTOTAL(9,CK8:CK120)","v":37600},{"$f":"SUBTOTAL(9,CL8:CL120)","v":9024384},{"$f":"SUBTOTAL(9,CL8:CL120)","v":9024384},{"$f":"SUBTOTAL(9,CM8:CM120)","v":3352.5},{"$f":"SUBTOTAL(9,CO8:CO120)","v":1406.8779999999999},null,{"$f":"SUBTOTAL(9,CP8:CP120)","v":1.2E-2},{"$f":"SUBTOTAL(9,CR8:CR120)","v":10.162719999999997},null,{"$f":"SUBTOTAL(9,CS8:CS120)","v":0.55390000000000006},{"$f":"SUBTOTAL(9,CU8:CU120)","v":6665.2526000000007},{"$f":"SUBTOTAL(9,CW8:CW120)","v":243.77},{"$f":"SUBTOTAL(9,CN8:CN120)","v":-1942},{"$f":"SUBTOTAL(9,CY8:CY120)","v":7.9340000000000019},{"$f":"SUBTOTAL(9,DA8:DA120)","v":19200},null,{"$f":"SUBTOTAL(9,DB8:DB120)","v":39453457},{"$f":"SUBTOTAL(9,DC8:DC120)","v":9886},null,null,"CORRETTA QUANTIFICAZIONE IN ENERGIA",null,null,null,null,null,null,null,{"$f":"SUBTOTAL(9,DD8:DD120)","v":-2624}]
[null,null,null,null,null,null,null,null,null,null,null,null,null,null,"Benefici Monetari Mln€","Benefici Monetari Mln€","Benefici Monetari Mln€","Benefici Monetari Mln€","Benefici Monetari Mln€","Benefici Monetari Mln€","Benefici Monetari Mln€","Benefici Monetari Mln€","Benefici Monetari Mln€","Benefici Monetari Mln€","Benefici Monetari Mln€","Benefici Monetari Mln€","Benefici Monetari Mln€","Benefici Monetari Mln€","Benefici Monetari Mln€","Benefici Monetari Mln€","Benefici Base Monetari Mln€","Benefici Base Monetari Mln€","Benefici Base Monetari Mln€","Benefici Base Monetari Mln€","Benefici Base Monetari Mln€","Benefici Base Monetari Mln€","Benefici Base Monetari Mln€","Benefici Base Monetari Mln€","Benefici Base Monetari Mln€","Benefici Base Monetari Mln€","Benefici Base Monetari Mln€","Benefici Base Monetari Mln€","Benefici Base Monetari Mln€","Benefici Base Monetari Mln€","Benefici Base Monetari Mln€","Benefici Base Monetari Mln€","Benefici Base Monetari Mln€",null,"Benefici Base Monetari Mln€","Benefici Base Monetari Mln€","Benefici Base Monetari Mln€","Benefici Base Monetari Mln€","Benefici Base Monetari Mln€","Benefici Base Monetari Mln€","Benefici Base Monetari Mln€","Benefici Base Monetari Mln€","Benefici Base Monetari Mln€","Benefici Base Monetari Mln€","Benefici Base Monetari Mln€","Benefici Base Monetari Mln€","Benefici Base Monetari Mln€","Benefici Base Monetari Mln€","Benefici Base Monetari Mln€","Quantità di benefici monetari","Quantità di benefici monetari","Quantità di benefici monetari","Quantità di benefici monetari","Quantità di benefici monetari","Quantità di benefici monetari","Quantità di benefici monetari","Quantità di benefici monetari","Quantità di benefici monetari","Quantità di benefici monetari","Quantità di benefici monetari","Quantità di benefici monetari","Quantità di benefici monetari","Quantità di benefici monetari","Quantità di benefici monetari","Quantità di benefici monetari","Quantità di benefici monetari","Quantità di benefici monetari","Quantità di benefici monetari","Quantità di benefici monetari","Quantità di benefici monetari","Quantità di benefici monetari","Quantità di benefici monetari","Quantità di benefici monetari","Quantità di benefici monetari","Quantità di benefici monetari","Quantità di benefici monetari","Quantità di benefici monetari","Quantità di benefici monetari","Quantità di benefici monetari","Quantità di benefici monetari","Quantità di benefici monetari","Quantità di benefici monetari","Quantità di benefici monetari","Quantità di benefici monetari","Quantità di benefici monetari","Quantità di benefici monetari","Quantità di benefici monetari","Quantità di benefici monetari","Quantità di benefici monetari",null,"Altri benefici non monetari","Altri benefici non monetari","Altri benefici non monetari","Altri benefici non monetari"]
[null,"Distretto Territoriale",null,null,null,null,null,null,null,null,null,null,null,null,2025,2025,2025,2025,2025,2025,2025,2025,2025,2025,2025,2025,2025,2025,2025,2025,2030,2030,2030,2030,2030,2030,2030,2030,2030,2030,2030,2030,2030,2030,2030,2030,2030,2030,2040,2040,2040,2040,2040,2040,2040,2040,2040,2040,2040,2040,2040,2040,2040,2025,2025,2025,2025,2025,2025,2025,2025,2025,2025,2025,2025,2025,2030,2030,2030,2030,2030,2030,2030,2030,2030,2030,2030,2030,2030,2030,2030,2030,2040,2040,2040,2040,2040,2040,2040,2040,2040,2040,2040,2040,2040,2040,2040,2040]
["Area Territoriale","DTNO","DTNE","DTCS","Regioni interessate","Codice PdS dell'Intervento","Nome dell'intervento","Scenario","IUS","IUS benefici base","IUS benefici totali","VAN [M€]","VAN benefici base [M€]","VAN benefici totali [M€]","B1 - SEW ","B2a - Riduzione Perdite ","B2b- Riduzione Perdite ","B3a- Riduzione ENF ","B3b- Riduzione ENF ","B4 - Costi evitati o differiti","B5b - Integrazione rinnovabili ","B5- Integrazione rinnovabili ","B6 - Investimenti evitati ","B7 - Costi evitati MSD","B7n - Costi evitati MSD Nodale","B7z - Costi evitati MSD Zonale","B13 - Incremento Resilienza","B16 - Opex Evitati o differiti","B18 - Riduzione CO2","B19 - Rid. NOx, SOx, PM","B1 - SEW ","B2a - Riduzione Perdite ","B2b - Riduzione Perdite","B3a- Riduzione ENF ","B3b - Riduzione ENF","B4 - Costi evitati o differiti","B5a - Integrazione rinnovabili ","B5b - Integrazione rinnovabili ","B6 - Investimenti evitati ","B7 - Costi evitati MSD Nodale","B7n - Costi evitati MSD Nodale","B7z - Costi evitati MSD Zonale","B8 - Costi per servizi di rete e approvvigionamento","B13 - Incremento Resilienza","B16 - Opex Evitati o differiti","B18 - Riduzione CO2","B19 - Rid. NOx, SOx, PM","B21 - Visual Amenity","B1 - SEW ","B2a - Riduzione Perdite ","B3a- Riduzione ENF ","B3b - Riduzione ENF","B4 - Costi evitati o differiti","B5a - Integrazione rinnovabili ","B5b - Integrazione rinnovabili ","B6 - Investimenti evitati ","B7 - Costi evitati MSD Nodale","B7n - Costi evitati MSD Nodale","B7z - Costi evitati MSD Zonale","B8 - Costi per servizi di rete e approvvigionamento","B16 - Opex Evitati o differiti","B18 - Riduzione CO2","B19 - Rid. NOx, SOx, PM","B2a - Riduzione Perdite [GWh]","B2a - Riduzione Perdite [GW]","B2b - Riduzione perdite [MW]","B3a- Riduzione ENF [MWh]","B3b- Riduzione ENF [MWh]","B5a - Integrazione rinnovabili [MWh]","B5b - Integrazione rinnovabili [GWh]","B5b - Integrazione rinnovabili [GW]","B18 - Riduzione CO2 [k ton]","B19 - Rid. NOx, SOx, PM [k ton]","I21 - TTC/Zone di mercato [MW]","I5 - Overgeneration [MWh]","I8 - Variaz. emissioni CO2 [k ton]","B2a - Riduzione Perdite [GWh]","B2a - Riduzione Perdite [GW]","B2b - Riduzione Perdite [MW]","B3a- Riduzione ENF [GWh]","B3a- Riduzione ENF [GW]","B3b - Riduzione ENF [MWh]","B5a - Integrazione rinnovabili [GWh]","B5b - Integrazione rinnovabili [GWh]","B5b - Integrazione rinnovabili [GW]","B18 - Riduzione CO2 [k ton]","B19 - Rid. NOx, SOx, PM [k ton]","B20 [anni]","I21 - TTC/Zone di mercato [MW]","I5 - Overgeneration [MWh]","I8 - Variaz. emissioni CO2 [k ton]","I2 - Variaz. Perdite [GWh]","B2a - Riduzione Perdite [GWh]","B2a - Riduzione Perdite [GW]","B2b - Riduzione Perdite [MW]","B3a- Riduzione ENF [GWh]","B3a- Riduzione ENF [GW]","B3b - Riduzione ENF [GWh]","B5a - Integrazione rinnovabili [GWh]","B5b - Integrazione rinnovabili [GWh]","B5b - Integrazione rinnovabili [GW]","B18 - Riduzione CO2 [k ton]","B19 - Rid. NOx, SOx, PM [k ton]","B20 - Anticipo Fruizione Benefici (anni)","I21 - TTC/Zone di mercato [MW]","I5 - Overgeneration [MWh]","I8 - Variaz. emissioni CO2 [k ton]","I2 - Variaz. Perdite [GWh]"]
["Area Centro/Centro-Nord/Nord",1,1,1,"Lazio/Toscana/Emilia- Romagna/\nLombardia","355-N","HVDC Milano-Montalto","FF55/DE",{"$f":"CONCATENATE(J8,\"-\",K8)","v":"4,1-5,1"},4.0999999999999996,5.0999999999999996,{"$f":"CONCATENATE(M8,\"-\",N8)","v":"6825-9000"},6825,9000,null,null,null,null,null,null,null,null,null,null,null,null,null,null,null,null,185,null,null,null,null,null,-23,null,null,1,null,null,137,null,null,3,-2,null,1045,null,null,null,null,-194,null,null,4,null,null,57,null,195,50,null,null,null,null,null,null,null,null,null,null,null,null,null,null,null,null,null,null,null,-192.7,null,null,647,-0.1,null,"2000/800",783425,647,-624,null,null,null,null,null,null,-1527.9,null,null,1334,1.2,null,"2000/800",5541030,1334,-821]
["Area Centro/Centro-Nord/Nord",1,1,1,"Lazio/Toscana/Emilia- Romagna/\nLombardia","355-N","HVDC Milano-Montalto","LT/LT","1,7-2,1",1.7,2.1,"1550-2330",1550,2330,null,null,null,null,null,null,null,null,null,null,null,null,null,null,null,null,74,null,null,null,null,null,-24,null,null,1,null,null,60,null,null,1,6,null,370,null,null,null,null,-86,null,null,7,null,null,91,null,73,12,null,null,null,null,null,null,null,null,null,null,null,null,null,null,null,null,null,null,null,-208.2,null,null,115,0.1,null,"2000/800",350112,115,-690,null,null,null,null,null,null,-677,null,null,501,0.3,null,"2000/800",1445072,501,-633]
["Area Centro/Centro-Nord",null,1,1,"Toscana/Umbria","356-N","Central Link","FF55/DE","3,3-4",3.3,4,"520-670",520,670,null,null,null,null,null,null,null,null,null,null,null,null,null,null,null,null,null,null,null,null,null,null,2,null,null,1,null,null,18,null,null,null,null,null,92,null,null,null,null,-21,null,null,-1,null,null,7,null,13,4,null,null,null,null,null,null,null,null,null,null,null,null,null,null,null,null,null,null,null,15.3,null,null,null,null,null,600,5209,null,-127,null,null,null,null,null,null,-168.7,null,null,88,0.1,null,600,420935,88,-330]
["Area Centro/Centro-Nord",null,1,1,"Toscana/Umbria","356-N","Central Link","LT/LT","1,3-1,6",1.3,1.6,"80-140",80,140,null,null,null,null,null,null,null,null,null,null,null,null,null,null,null,null,null,null,null,null,null,null,1,null,null,null,null,null,4,null,null,null,null,null,36,null,null,null,null,-11,null,null,-1,null,null,8,null,7,0,null,null,null,null,null,null,null,null,null,null,null,null,null,null,null,null,null,null,null,4,null,null,null,null,null,600,180,null,-128,null,null,null,null,null,null,-84.1,null,null,49,0,null,600,103085,49,-209]
["Area Centro/Sardegna",1,null,1,"Sardegna/Lazio","732-N","Dorsale Sarda: HVDC Fiumesanto – Montalto (SAPEI 2) e Sardinian Link","DE","5,8-6",5.8,6,"3760-3900",3760,3900,null,null,null,null,null,null,null,null,null,null,null,null,null,null,null,null,null,null,null,null,null,null,null,null,null,null,null,null,null,null,null,null,null,null,78,null,null,null,null,359,null,null,55,null,null,74,null,15,4,null,null,null,null,null,null,null,null,null,null,null,null,null,null,null,null,null,null,null,null,null,null,null,null,null,null,null,null,null,null,null,null,null,null,null,2491,null,null,102,0.1,null,1000,3310311,102,-48]
["Area Centro/Sardegna",1,null,1,"Sardegna/Lazio","732-N","Dorsale Sarda: HVDC Fiumesanto – Montalto (SAPEI 2) e Sardinian Link","LT","3,9-4",3.9,4,"2220-2320",2220,2320,null,null,null,null,null,null,null,null,null,null,null,null,null,null,null,null,null,null,null,null,null,null,null,null,null,null,null,null,null,null,null,null,null,null,24,null,null,null,null,153,null,null,15,null,null,181,null,12,1,null,null,null,null,null,null,null,null,null,null,null,null,null,null,null,null,null,null,null,null,null,null,null,null,null,null,null,null,null,null,null,null,null,null,null,1059.0999999999999,null,null,79,0.03,null,1000,1268765,79,-16]
["Area Centro Sud",null,null,1,"Calabria/Basilicata/Campania/\nLazio","563/1-N","Dorsale Ionica - Tirrenica: HVDC Rossano-Montecorvino-Latina","DE","1,8-2,2",1.8,2.2000000000000002,"1405-2180",1405,2180,null,null,null,null,null,null,null,null,null,null,null,null,null,null,null,null,null,null,null,null,null,null,null,null,null,null,null,null,null,null,null,null,null,null,338,null,null,null,null,-7,null,null,43,null,null,-43,null,61,19,null,null,null,null,null,null,null,null,null,null,null,null,null,null,null,null,null,null,null,null,null,null,null,null,null,null,null,null,null,null,null,null,null,null,null,-57.6,null,null,418,0.4,null,"2000/1000",1968058,418,-71]
["Area Centro Sud",null,null,1,"Calabria/Basilicata/Campania/\nLazio","563/1-N","Dorsale Ionica - Tirrenica: HVDC Rossano-Montecorvino-Latina","LT","1,4-1,6",1.4,1.6,"700-1045",700,1045,null,null,null,null,null,null,null,null,null,null,null,null,null,null,null,null,null,null,null,null,null,null,null,null,null,null,null,null,null,null,null,null,null,null,103,null,null,null,null,154,null,null,8,null,null,-5,null,27,8,null,null,null,null,null,null,null,null,null,null,null,null,null,null,null,null,null,null,null,null,null,null,null,null,null,null,null,null,null,null,null,null,null,null,null,1206.9000000000001,null,null,188,0.2,null,"2000/1000",1782160,188,-8]
["Area Centro Sud",null,null,1,"Sicilia/Calabria","563/2-N","Dorsale Ionica - Tirrenica: HVDC Ionian","DE","4,6-4,7",4.5999999999999996,4.7,"3400-3490",3400,3490,null,null,null,null,null,null,null,null,null,null,null,null,null,null,null,null,null,null,null,null,null,null,null,null,null,null,null,null,null,null,null,null,null,null,42,null,null,null,null,207,null,null,20,null,null,176,null,6,2,null,null,null,null,null,null,null,null,null,null,null,null,null,null,null,null,null,null,null,null,null,null,null,null,null,null,null,null,null,null,null,null,null,null,null,1625.5,null,null,43,0.1,null,"2000/1000",1982548,43,-119]
["Area Centro Sud",null,null,1,"Sicilia/Calabria","563/2-N","Dorsale Ionica - Tirrenica: HVDC Ionian","LT","2,1-2,2",2.1,2.2000000000000002,"1080-1120",1080,1120,null,null,null,null,null,null,null,null,null,null,null,null,null,null,null,null,null,null,null,null,null,null,null,null,null,null,null,null,null,null,null,null,null,null,6,null,null,null,null,147,null,null,-11,null,null,66,null,3,0.4,null,null,null,null,null,null,null,null,null,null,null,null,null,null,null,null,null,null,null,null,null,null,null,null,null,null,null,null,null,null,null,null,null,null,null,1153.3,null,null,23,0,null,"2000/1000",1166333,23,-31]
["Area Centro Sud/Centro Nord",null,1,1,"Puglia/Molise/Abruzzo/\nMarche/Emilia- Romagna","447-N","Dorsale Adriatica: HVDC Foggia-Villanova-Fano-Forlì","FF55/DE","4,4-5,2",4.4000000000000004,5.2,"5720-7070",5720,7070,null,null,null,null,null,null,null,null,null,null,null,null,null,null,null,null,103,null,null,null,null,null,32,null,null,2,null,null,13,null,null,2,3,null,744,null,null,null,null,-110,null,null,44,null,null,96,null,119,27,null,null,null,null,null,null,null,null,null,null,null,null,null,null,null,null,null,null,null,270.2,null,null,322,0.1,null,"600/500",759560,322,-12,null,null,null,null,null,null,-863.9,null,null,812,0.6,null,"600/1000/2000",4157383,812,-425]
["Area Centro Sud/Centro Nord",null,1,1,"Puglia/Molise/Abruzzo/\nMarche/Emilia- Romagna","447-N","Dorsale Adriatica: HVDC Foggia-Villanova-Fano-Forlì","LT/LT","1,3-1,6",1.3,1.6,"580-1020",580,1020,null,null,null,null,null,null,null,null,null,null,null,null,null,null,null,null,32,null,null,null,null,null,30,null,null,1,null,null,5,null,null,null,null,null,202,null,null,null,null,-16,null,null,9,null,null,38,null,45,3,null,null,null,null,null,null,null,null,null,null,null,null,null,null,null,null,null,null,null,255.5,null,null,null,null,null,"600/500",452089,-34,-23,null,null,null,null,null,null,-127.5,null,null,306,0.1,null,"600/1000/2000",1164358,306,-280]
["Area Nord-Ovest",1,null,null,"Piemonte","6-P","Razionalizzazione rete 220 e 132 kV Provincia di Torino","V1",2.1,null,null,270,null,null,null,null,null,null,null,null,null,null,null,27.6,null,null,null,null,null,null,null,null,null,null,null,null,null,null,null,27.6,null,null,null,null,null,null,null,null,null,null,null,null,null,null,null,null,null,null,null,null,null,null,null,29.91,null,null,80,null,null,null,null,null,null,null,null,null,31.28,null,null,8.4000000000000005E-2]
["Area Nord-Ovest",1,null,null,"Liguria","10-P","Rinforzi 132 kV Area Metropolitana di Genova","V1",2.4,null,null,75,null,null,null,null,null,null,null,null,null,null,null,null,null,null,null,null,null,null,null,null,null,null,null,null,null,null,null,null,null,null,null,null,null,null,null,null,null,null,null,null,null,null,null,null,null,null,null,null,null,null,null,null,null,null,null,200,null,null,null,null,null,null,0,null,null,null,0,null,null,209]
["Area Nord",1,null,null,"Lombardia","106-P","Elettrodotto 220 kV Glorenza – Tirano – der.Premadio","ST",{"$f":"CONCATENATE(J22,\"-\",K22)","v":"1,8-1,8"},1.8,1.8,{"$f":"CONCATENATE(M22,\"-\",N22)","v":"17-17"},17,17,null,"<1",null,null,null,null,null,null,null,1,null,null,null,null,null,null,null,2,null,null,null,null,null,null,null,1,null,null,null,null,null,null,null,null,null,null,null,null,null,null,null,null,null,null,null,null,null,null,null,null,null,null,null,null,null,null,null,null,null,null,210,null,null,null,null,null,null,null,null,null,null,null,null,null,null,390]
["Area Nord",1,null,null,"Lombardia","116-P","Razionalizzazione 220/132 kV in Valle Sabbia","V1",3.7,null,null,220,null,null,"          ",null,null,null,null,null,null,null,null,null,null,null,null,null,null,null,null,null,null,null,null,null,null,null,null,null,null,null,null,null,null,null,null,null,null,null,null,null,null,null,null,null,null,null,null,null,null,null,null,null,0,0,null,620,null,null,4.8000000000000001E-2,null,null,null,null,null,null,null,0,null,null,648,null,null,4.8000000000000001E-2]
["Area Nord",1,null,null,"Lombardia","127-P","Stazione 380 kV Mese","DE",{"$f":"CONCATENATE(J24,\"-\",K24)","v":"2,5-2,5"},2.5,2.5,{"$f":"CONCATENATE(M24,\"-\",N24)","v":"40-40"},40,40,null,null,null,null,null,null,null,null,null,null,null,null,null,null,null,null,null,null,null,null,null,null,null,null,null,null,null,null,null,null,null,null,null,null,null,null,null,null,null,4,null,null,3,null,null,null,0,0,0,null,null,null,null,null,null,null,null,null,null,null,null,null,null,null,null,null,null,null,null,null,null,null,null,null,null,null,null,null,null,null,null,null,null,null,267.60000000000002,null,null,null,null,null,null,null,null,-4]
["Area Nord",1,null,null,"Lombardia","126-P","Stazione 380 kV Magenta","ST","5,9-5,9",5.9,5.9,"194-194",194,194,null,null,1,null,13,null,null,null,null,null,null,null,null,null,null,null,null,null,2,null,14]
["Area Nord",1,null,null,"Lombardia","153-P","Riassetto rete 132 kV area Rho","DE","1,8-1,8",1.8,1.8,"21-21",21,21,null,null,null,null,null,null,null,null,null,null,null,null,null,null,null,null,null,null,null,null,null,null,null,null,null,null,null,null,null,null,null,null,null,null,null,null,5,null,null,null,null,null,null,null,null,null,null,null,null,null,null,null,null,null,null,null,null,null,null,null,null,null,null,null,null,null,null,null,null,null,null,null,null,null,null,null,null,null,null,null,null,0.122,null,null,null,null,null,null,null,null,null,null,null,1]
["Area Nord",1,null,null,"Lombardia","119-P","Razionalizzazione 132 kV Cremona","DE","4,6-4,6",4.5999999999999996,4.5999999999999996,"96-96",96,96,null,null,null,null,null,null,null,null,null,null,null,null,null,null,null,null,null,null,null,null,null,null,null,null,null,null,null,null,null,null,null,null,null,null,null,null,10,null,null,1,null,null,null,null,null,2,null,null,null,null,null,null,null,null,null,null,null,null,null,null,null,null,null,null,null,null,null,null,null,null,null,null,null,null,null,null,null,null,null,null,null,0.24,null,null,9.1999999999999993,null,null,null,null,null,null,null,null,-6]
["Area Sardegna/Centro Nord",1,1,null,"Sardegna/Toscana","301-P","Collegamento HVDC Sardegna – Corsica – Italia (SA.CO.I.3)","FF55/DE","3,2-3,4",3.2,3.4,"1900-2110",1900,2110,null,null,null,null,null,null,null,null,null,null,null,null,null,null,null,null,68,null,null,2,null,null,117,null,null,"-1",null,null,132,null,null,2,{"$f":"+(-3)","v":-3},null,85,null,{"$f":"+(-1)","v":-1},null,null,52,null,null,{"$f":"+(-3)","v":-3},null,null,null,null,27,1,null,null,null,null,null,null,null,null,null,null,null,null,null,null,null,null,4.3999999999999997E-2,null,null,995.4,null,null,450,"-0,1",null,400,1254009,450,null,null,null,null,{"$f":"+(-0.02)","v":-0.02},null,null,871.2,null,null,184,null,null,400,903993,184,-61]
["Area Sardegna/Centro Nord",1,1,null,"Sardegna/Toscana","301-P","Collegamento HVDC Sardegna – Corsica – Italia (SA.CO.I.3)","LT/LT","3,1-3,4",3.1,3.4,"1860-2135",1860,2135,null,null,null,null,null,null,null,null,null,null,null,null,null,null,null,null,43,null,null,2,null,null,59,null,null,"-1",null,null,180,null,null,1,{"$f":"+(-5)","v":-5},null,53,null,0,null,null,15,null,null,{"$f":"+(-2)","v":-2},null,null,86,null,41,"-4",null,null,null,null,null,null,null,null,null,null,null,null,null,null,null,null,5.3999999999999999E-2,null,null,504,null,null,227,"-0,1",null,400,598658,227,"-5",null,null,null,{"$f":"+(-0.003)","v":-3.0000000000000001E-3},null,null,119.7,null,null,282,{"$f":"+(-0.1)","v":-0.1},null,400,240426,282,-32]
["Centro Sud/Sicilia/Sardegna",1,null,1,"Campania/Sicilia/Sardegna","723-WP","Collegamento HVDC Continente – Sicilia – Sardegna (West Link)","NT-IT/NT-IT","5-5",5,5,"6236-6129",6236,6129,null,null,null,null,null,null,null,null,null,null,null,null,null,null,null,null,"-19",null,null,null,null,93,null,6,null,null,{"$f":"+(-4)","v":-4},401,null,null,null,0.2,{"$f":"+(-3)","v":-3},null,{"$f":"+(-66)","v":-66},null,null,null,75,null,93,null,null,4,627,null,null,"-11","-2",null,null,null,null,null,null,null,null,null,null,null,null,null,null,null,null,null,null,null,null,107.87,null,null,"-0,074",null,1000,2537,null,null,null,null,null,null,null,null,null,1397.74,null,{"$f":"+(-100)","v":-100},{"$f":"+(-0.051)","v":-5.0999999999999997E-2},null,1000,644353,{"$f":"+(-100)","v":-100}]
["Centro Sud/Sicilia/Sardegna",1,null,1,"Campania/Sicilia/Sardegna","723-WP","Collegamento HVDC Continente – Sicilia – Sardegna (West Link)","BAU-BAU","1,7-1,7",1.7,1.7,"1079-1086",1079,1086,null,null,null,null,null,null,null,null,null,null,null,null,null,null,null,null,5,null,null,null,null,null,null,16,null,null,1,98,null,null,null,"-0,2",{"$f":"+(-2)","v":-2},null,13,null,null,null,null,null,56,null,null,{"$f":"+(-0.4)","v":-0.4},206,null,null,3,"-0,1",null,null,null,null,null,null,null,null,null,null,null,null,null,null,null,null,null,null,null,null,284.58,null,null,"-0,065",null,1000,285260,null,null,null,null,null,null,null,null,null,835.24,null,26,{"$f":"+(-0.003)","v":-3.0000000000000001E-3},null,1000,896947,26]
["Centro Sud/Sicilia/Sardegna",1,null,1,"Campania/Sicilia/Sardegna","723-EP","Collegamento HVDC Continente – Sicilia – Sardegna (East Link)","NT-IT/NT-IT","2,5-2,8",2.5,2.8,"2152-2478",2152,2478,null,null,null,null,null,null,null,null,null,null,null,null,null,null,null,null,5,null,null,null,null,53,null,33,null,null,null,128,null,null,null,2,9,null,93,null,null,null,53,null,52,null,null,null,146,null,null,32,5,null,null,null,null,null,null,null,null,null,null,null,null,null,null,null,null,null,null,null,null,591.35,null,51,0.245,null,1000,2537,null,null,null,null,null,null,null,null,null,785.08,null,391,0.13,null,1000,644353,391]
["Centro Sud/Sicilia/Sardegna",1,null,1,"Campania/Sicilia/Sardegna","723-EP","Collegamento HVDC Continente – Sicilia – Sardegna (East Link)","BAU-BAU","1,5-1,6",1.5,1.6,"730-897",730,897,null,null,null,null,null,null,null,null,null,null,null,null,null,null,null,null,12,null,null,null,null,53,null,3,null,null,null,64,null,null,null,1,9,null,10,null,null,null,53,null,25,null,null,{"$f":"+(-3)","v":-3},122,null,null,9,8,null,null,null,null,null,null,null,null,null,null,null,null,null,null,null,null,null,null,null,null,45.9,null,29,0.251,null,1000,285260,null,null,null,null,null,null,null,null,null,371.95,null,80,0.224,null,1000,896947,80]
["Area Nord-Ovest",1,null,null,"Piemonte","28-P","Riassetto Sud Ovest di Alessandria","FF55/DE","2,2-2,2",2.2000000000000002,2.2000000000000002,"27-27",27,27,null,null,null,null,null,null,null,null,null,null,null,null,null,null,null,null,null,null,null,2.6,null,null,null,null,null,null,null,null,null,null,null,null,null,null,null,null,5,null,null,null,null,null,null,null,null,null,null,null,null,null,null,null,null,null,null,null,null,null,null,null,null,null,null,null,null,6.6000000000000003E-2,null,null,null,null,null,null,null,null,null,null,null,null,null,null,null,0.121]
["Area Nord",1,null,null,"Lombardia","162-P","Riassetto rete AT area Bordogna","DE","1,9-1,9",1.9,1.9,"18-18",18,18,null,null,null,null,null,null,null,null,null,null,null,null,null,null,null,null,null,null,null,null,null,null,null,null,null,null,null,null,null,null,null,null,null,null,null,null,1,null,null,2,null,null,1,null,null,null,null,null,null,null,null,null,null,null,null,null,null,null,null,null,null,null,null,null,null,null,null,null,null,null,null,null,null,null,null,null,null,null,null,null,null,1.7000000000000001E-2,null,null,16.2,null,null,null,null,null,null,null,null,25]
["Area Nord",1,null,null,"Lombardia","165-P","Razionalizzazione rete 380 kV Brianza","FF55/DE","2,9-2,9",2.9,2.9,"378-378",378,378,null,null,null,null,null,null,null,null,null,null,null,null,null,null,null,null,null,null,null,5,null,null,11,null,null,32,null,null,null,null,null,null,null,null,null,null,null,null,null,32,null,null,17,null,null,null,null,null,null,null,null,null,null,null,null,null,null,null,null,null,null,null,null,null,null,0.122,null,null,94.8,null,null,null,null,null,null,null,null,110,null,null,null,5.0000000000000001E-3,null,null,252.5,null,null,null,null,null,null,null,null,399]
["Area Nord",1,null,null,"Lombardia","167-P","Razionalizzazione Valchiavenna e Interconnessione Svizzera","DE","1,2-1,6",1.2,1.6,"116-460",116,460,null,null,null,null,null,null,null,null,null,null,null,null,null,null,null,null,null,null,null,null,null,null,null,null,null,null,null,null,null,null,null,null,null,null,37,null,null,null,null,17,null,null,11,null,null,31,null,39,1,null,null,null,null,null,null,null,null,null,null,null,null,null,null,null,null,null,null,null,null,null,null,null,null,null,null,null,null,null,null,null,null,{"$f":"+(-0.007)","v":-7.0000000000000001E-3},null,null,136.19999999999999,null,null,266,0.02,null,1000,30986,266,54]
["Area Nord",1,null,null,"Lombardia","167-P","Razionalizzazione Valchiavenna e Interconnessione Svizzera","LT","1-2,2",1,2.2000000000000002,"-36-835","-36",835,null,null,null,null,null,null,null,null,null,null,null,null,null,null,null,null,null,null,null,null,null,null,null,null,null,null,null,null,null,null,null,null,null,null,{"$f":"+(-5)","v":-5},null,null,null,null,2,null,null,76,null,null,6,null,47,53,null,null,null,null,null,null,null,null,null,null,null,null,null,null,null,null,null,null,null,null,null,null,null,null,null,null,null,null,null,null,null,null,4.0000000000000001E-3,null,null,13.9,null,null,322,1.2,null,1000,1234,322,156]
["Area Nord",1,null,null,"Lombardia","169-P","Riassetto rete tra Tavazzano e Colà","FF55/DE","2,7-2,7",2.7,2.7,"84-84",84,84,null,null,null,null,null,null,null,null,null,null,null,null,null,null,null,null,null,null,null,11,null,null,null,null,null,null,null,null,null,null,null,null,null,null,null,null,11,null,null,null,null,null,null,null,null,null,null,null,null,null,null,null,null,null,null,null,null,null,null,null,null,null,null,null,null,0.28199999999999997,null,null,null,null,null,null,null,null,null,null,null,null,null,null,null,0.28199999999999997]
["Area Nord-Est",null,1,null,"Veneto","204-P","Elettrodotto 220 kV Interconnessione Italia - Austria","FF55/DE","8,8-11,6",8.8000000000000007,11.6,"432-584",432,584,null,null,null,null,null,null,null,null,null,null,null,null,null,null,null,null,null,null,null,null,null,null,null,null,null,null,null,null,null,null,null,null,null,null,27,null,null,null,null,1,null,null,6,null,null,16,null,9,6,null,null,null,null,null,null,null,null,null,null,null,null,null,null,null,null,null,null,null,null,null,null,null,null,null,null,null,null,null,null,null,null,null,null,null,10.3,null,null,279,0.2,null,500,1857,237,-66]
["Area Nord-Est",null,1,null,"Veneto","204-P","Elettrodotto 220 kV Interconnessione Italia - Austria","LT/LT","3,5-9,2",3.5,9.1999999999999993,"139-453",139,453,null,null,null,null,null,null,null,null,null,null,null,null,null,null,null,null,null,null,null,null,null,null,null,null,null,null,null,null,null,null,null,null,null,null,15,null,null,null,null,0,null,null,6,null,null,-1,null,6,26,null,null,null,null,null,null,null,null,null,null,null,null,null,null,null,null,null,null,null,null,null,null,null,null,null,null,null,null,null,null,null,null,null,null,null,0,null,null,180,0.6,null,500,null,180,-25]
["Area Nord-Est",null,1,null,"Trentino Alto Adige","208-P","Elettrodotto 132/110 kV Prati di Vizze (IT) – Steinach (AT)","V1",9.4,null,null,432,null,null,12,null,null,null,null,null,null,null,null,9,null,null,null,null,null,null,null,null,null,null,null,null,null,null,null,null,null,null,null,null,null,null,null,null,null,null,null,null,null,null,null,null,null,null,null,null,null,null,null,0,null,null,50,null,102400]
["Area Nord-Est",null,1,null,"Trentino Alto Adige","208-P","Elettrodotto 132/110 kV Prati di Vizze (IT) – Steinach (AT)","V3",7.7,null,null,348,null,null,13,null,null,null,null,null,null,null,null,null,null,null,null,null,null,null,null,null,null,null,null,null,null,null,null,null,null,null,null,null,null,null,null,null,null,null,null,null,null,null,null,null,null,null,null,null,null,null,null,0,null,null,0,null,147800]
["Area Nord-Est",null,1,null,"Trentino Alto Adige","208-P","Elettrodotto 132/110 kV Prati di Vizze (IT) – Steinach (AT)","V1",17.8,null,null,865,null,null,36,null,null,null,null,null,null,null,null,9,null,null,null,null,null,null,null,null,null,null,null,null,null,null,null,null,null,null,null,null,null,null,null,null,null,null,null,null,null,null,null,null,null,null,null,null,null,null,null,0,null,null,50,null,102400]
["Area Nord-Est",null,1,null,"Trentino Alto Adige","208-P","Elettrodotto 132/110 kV Prati di Vizze (IT) – Steinach (AT)","V3",13.1,null,null,624,null,null,24,null,null,null,null,null,null,null,null,null,null,null,null,null,null,null,null,null,null,null,null,null,null,null,null,null,null,null,null,null,null,null,null,null,null,null,null,null,null,null,null,null,null,null,null,null,null,null,null,0,null,null,0,null,147800]
["Area Nord-Est",null,1,null,"Trentino Alto Adige","252-P","Interconnessione AT Dobbiaco - Austria","FF55/DE","4,2-6,4",4.2,6.4,"113-188",113,188,null,null,null,null,null,null,null,null,null,null,null,null,null,null,null,null,null,null,null,null,null,null,null,null,null,null,null,null,null,null,null,null,null,null,14,null,null,null,null,null,null,null,null,null,null,3,null,7,1,null,null,null,null,null,null,null,null,null,null,null,null,null,null,null,null,null,null,null,null,null,null,null,null,null,null,null,null,null,null,null,null,null,null,null,null,null,null,51,0.03,null,"80-160",842,48,-18]
["Area Nord-Est",null,1,null,"Trentino Alto Adige","252-P","Interconnessione AT Dobbiaco - Austria","LT/LT","3-4,4",3,4.4000000000000004,"69-120",69,120,null,null,null,null,null,null,null,null,null,null,null,null,null,null,null,null,null,null,null,null,null,null,null,null,null,null,null,null,null,null,null,null,null,null,4,null,null,null,null,1,null,null,3,null,null,5,null,-2,8,null,null,null,null,null,null,null,null,null,null,null,null,null,null,null,null,null,null,null,null,null,null,null,null,null,null,null,null,null,null,null,null,null,null,null,4.8,null,null,-14,0.2,null,"80-160",1455,-14,4]
["Area Nord-Est",null,1,null,"Friuli Venezia Giulia","207-P","Elettrodotto 380 kV Udine Ovest - Redipuglia","V1",10.4,null,null,2103,null,null,42,null,null,null,null,null,null,null,null,61,null,null,null,null,null,null,null,null,null,null,null,null,null,null,null,null,null,null,null,null,null,null,null,null,null,null,null,null,null,null,null,null,null,null,null,null,null,null,null,0,null,null,940,null,251000]
["Area Nord-Est",null,1,null,"Friuli Venezia Giulia","207-P","Elettrodotto 380 kV Udine Ovest - Redipuglia","V3",8.1999999999999993,null,null,1611,null,null,45,null,null,null,null,null,null,null,null,5,null,null,null,null,null,null,null,null,null,null,null,null,null,null,null,null,null,null,null,null,null,null,null,null,null,null,null,null,null,null,null,null,null,null,null,null,null,null,null,0,null,null,580,null,606000]
["Area Nord-Est",null,1,null,"Veneto","203-P","Razionalizzazione 380 kV fra Venezia e Padova","V3",1.6,null,null,183,null,null,null,null,null,null,null,null,null,null,null,13,null,null,null,null,null,null,null,null,null,null,null,null,null,null,null,14,null,null,null,null,null,null,null,null,null,null,null,null,null,null,null,null,null,null,null,null,null,null,null,0,null,null,582,null,0,null,null,null,null,null,null,null,0,null,null,0.56499999999999995,null,null,0]
["Area Nord-Est",null,1,null,"Trentino Alto Adige","222-P","Riassetto rete 220 kV Trentino Alto Adige","NT-IT/NT-IT",2.2999999999999998,2.2999999999999998,2.2999999999999998,97,97,97,null,null,null,null,null,null,null,null,null,null,null,null,null,null,null,null,null,null,null,null,null,null,null,9,null,null,null,null,null,null,null,null,null,null,null,null,null,null,null,null,17,null,null,null,null,null,null,null,null,null,null,null,null,null,null,null,null,null,null,null,null,null,null,null,null,null,null,null,null,160.91800000000001,null,null,null,null,null,null,null,null,null,null,null,null,null,null,null,null,243.72300000000001]
["Area Nord-Est",null,1,null,"Veneto","216-P","Razionalizzazione rete Media Valle del Piave","FF55/DE",1.6,1.6,1.6,89,89,89,null,null,null,null,null,null,null,null,null,null,null,null,null,null,null,null,null,null,null,null,null,null,null,null,null,null,null,null,null,null,null,null,null,null,null,null,5,null,null,2,null,null,22,null,null,null,null,null,null,null,null,null,null,null,null,null,null,null,null,null,null,null,null,null,null,null,null,null,null,null,null,null,null,null,null,null,null,23,null,null,null,0.24099999999999999,null,null,12.1,null,null,null,null,null,null,null,null,32]
["Area Nord-Est",null,1,null,"Veneto","216-P","Razionalizzazione rete Media Valle del Piave","LT/LT",2,2,2,162,162,162,null,null,null,null,null,null,null,null,null,null,null,null,null,null,null,null,null,null,null,null,null,null,null,null,null,null,null,null,null,null,null,null,null,null,null,null,7,null,null,null,null,null,30,null,null,null,null,null,null,null,null,null,null,null,null,null,null,null,null,null,null,null,null,null,null,null,null,null,null,null,null,null,null,null,null,null,null,null,null,null,null,0.35299999999999998,null,null,null,null,null,null,null,null,null,null,null,98]
["Area Nord-Est",null,1,null,"Veneto/Trentino Alto Adige","215-P","Riassetto rete alto Bellunese","ST","1,6-2,7",1.6,2.7,"75-226",75,226,null,"<1",null,2,null,null,"<1",null,null,"<1",null,null,10,null,null,null,null,null,null,2,null,null,null,5,null,9,null,null,null,10]
["Area Nord-Est",null,1,null,"Veneto","206-P","Stazione 380 kV Volpago","FF55/DE",3,3,3,347,347,347,null,null,null,null,null,null,null,null,null,null,null,null,null,null,null,null,null,null,null,null,null,null,null,null,null,null,null,null,null,null,null,null,null,null,null,null,60,null,null,3,null,null,2,null,null,null,null,null,null,null,null,null,null,null,null,null,null,null,null,null,null,null,null,null,null,null,null,null,null,null,null,null,null,null,null,null,null,null,null,null,null,1.5029999999999999,null,null,1.7,null,null,null,null,null,null,null,null,51]
["Area Nord-Est",null,1,null,"Veneto","206-P","Stazione 380 kV Volpago","LT/LT",4.4000000000000004,4.4000000000000004,4.4000000000000004,598,598,598,null,null,null,null,null,null,null,null,null,null,null,null,null,null,null,null,null,null,null,null,null,null,null,null,null,null,null,null,null,null,null,null,null,null,null,null,75,null,null,4,null,null,16,null,null,null,null,null,null,null,null,null,null,null,null,null,null,null,null,null,null,null,null,null,null,null,null,null,null,null,null,null,null,null,null,null,null,null,null,null,null,1.887,null,null,28.6,null,null,null,null,null,null,null,null,56]
["Area Nord-Est",null,1,null,"Trentino Alto Adige","238-P","Stazione 220 kV Glorenza","ST",2.7,2.7,2.7,54,54,54,null,null,null,null,1,null,3,null,null,null,null,null,null,null,null,null,null,null,null,1,null,null,null,5]
["Area Nord-Est",null,1,null,"Veneto","237-P ","Stazione 220 kV Schio e potenziamento rete","ST",2.7,2.7,2.7,213,213,213,null,null,2,null,20,null,null,null,null,null,null,null,null,null,null,null,null,null,4,null,20]
["Area Nord-Est",null,1,null,"Trentino Alto Adige","221-P","Razionalizzazione 132 kV Trento Sud","BAU-BAU",3,3,3,58,58,58,null,null,null,null,null,null,null,null,null,null,null,null,null,null,null,null,null,1,null,7,null,null,null,null,null,null,null,null,null,null,null,null,null,null,null,0.5,7,null,null,null,null,null,null,null,null,null,null,null,null,null,null,null,null,null,null,null,null,null,null,null,null,null,16.100000000000001,null,null,0.245,null,null,null,null,null,null,null,null,null,null,null,null,6.81,null,null,0.24099999999999999]
["Area Nord-Est",null,1,null,"Trentino Alto Adige","245-P ","Stazione Bressanone e direttrice 132 kV Terme di Brennero – Bolzano FS – Mori","DE",4,4,4,99,99,99,null,null,null,null,null,null,null,null,null,null,null,null,null,null,null,null,null,null,null,null,null,null,null,null,null,null,null,null,null,null,null,null,null,null,null,null,null,null,null,14,null,null,null,null,null,null,null,null,null,null,null,null,null,null,null,null,null,null,null,null,null,null,null,null,null,null,null,null,null,null,null,null,null,null,null,null,null,null,null,null,null,null,null,null,118.3,null,null,null,null,null,null,null,null,21]
["Area Nord-Est",null,1,null,"Trentino Alto Adige","100I","Incremento della capacità di interconnessione con l’Austria ai sensi della legge 99/2009 e s.m.i.","ST","16,7-23,5",16.7,23.5,"762-1084",762,1084,6,null,null,null,null,null,null,null,null,53,null,null,null,null,11,8,null,null,null,null,null,null,null,null,null,null,null,null,null,null,null,null,null,null,null,null,null,null,null,null,null,null,null,null,null,null,null,null,null,null,null,null,null,null,null,null,null,null,null,300]
["Area Nord-Est",null,1,null,"Trentino Alto Adige","100I","Incremento della capacità di interconnessione con l’Austria ai sensi della legge 99/2009 e s.m.i.","DG","6,2-13,4",6.2,13.4,"254-599",254,599,7,null,null,null,null,null,null,null,null,12,null,null,null,null,13,8,null,null,null,null,null,null,null,null,null,null,null,null,null,null,null,null,null,null,null,null,null,null,null,null,null,null,null,null,null,null,null,null,null,null,null,null,null,null,null,null,null,null,null,300]
["Area Nord-Est",null,1,null,"Trentino Alto Adige","100I","Incremento della capacità di interconnessione con l’Austria ai sensi della legge 99/2009 e s.m.i.","ST","24,9-31,6",24.9,31.6,"1153-1475",1153,1475,31,null,null,null,null,null,null,null,null,53,null,null,null,null,11,8,null,null,null,null,null,null,null,null,null,null,null,null,null,null,null,null,null,null,null,null,null,null,null,null,null,null,null,null,null,null,null,null,null,null,null,null,null,null,null,null,null,null,null,300]
["Area Nord-Est",null,1,null,"Trentino Alto Adige","100I","Incremento della capacità di interconnessione con l’Austria ai sensi della legge 99/2009 e s.m.i.","DG","20,4-27,8",20.399999999999999,27.8,"939-1284",939,1284,55,null,null,null,null,null,null,null,null,12,null,null,null,null,13,8,null,null,null,null,null,null,null,null,null,null,null,null,null,null,null,null,null,null,null,null,null,null,null,null,null,null,null,null,null,null,null,null,null,null,null,null,null,null,null,null,null,null,null,300]
["Area Nord-Est",null,1,null,"Veneto","200I","Incremento della capacità di interconnessione con la Slovenia ai sensi della legge 99/2009 e s.m.i.","FF55/DE","6,5-8,7",6.5,8.6999999999999993,"1487-2085",1487,2085,null,null,null,null,null,null,null,null,null,null,null,null,null,null,null,null,null,null,null,null,null,null,null,null,null,null,null,null,null,null,null,-1,14,null,168,null,null,null,null,2,null,null,3,null,null,33,null,34,31,null,null,null,null,null,null,null,null,null,null,null,null,null,null,null,null,null,null,null,null,null,null,-127.5,0.3,null,1000,718,-127.5,1,null,null,null,null,null,null,13.6,null,null,1025.8,0.7,null,1000,13511,453,-118]
["Area Nord-Est",null,1,null,"Veneto","200I","Incremento della capacità di interconnessione con la Slovenia ai sensi della legge 99/2009 e s.m.i.","LT/LT","2,4-3,6",2.4,3.6,"384-706",384,706,null,null,null,null,null,null,null,null,null,null,null,null,null,null,null,null,-2,null,null,null,null,null,null,null,null,5,null,null,10,null,null,-2,15,null,-10,null,null,null,null,1,null,null,8,null,null,72,null,1,31,null,null,null,null,null,null,null,null,null,null,null,null,null,null,null,null,null,null,null,null,null,null,127,0.4,null,1000,837,-383,1,null,null,null,null,null,null,7.9939999999999998,null,null,3.4,0.7,null,1000,4860,3,-37]
["Area Centro-Nord",null,1,null,"Emilia Romagna/Toscana","302-P","Elettrodotto 380 kV Colunga – Calenzano","PNIEC","1,2-1,3",1.2,1.3,"36-52",36,52,6,null,null,null,null,null,1,null,null,null,-2,3,null,null,2,-3,6,null,null,0.32,null,null,null,5,null,null,0.45,6,null,null,null,2,-1,null,null,null,null,null,null,null,null,null,null,null,null,null,null,null,null,null,null,null,null,null,null,9.0190000000000001,null,43.8,-0.19700000000000001,400,9131,44,null,null,null,8.0000000000000002E-3,null,null,null,65.944000000000003,null,42.9,-5.5E-2,1,400,61745,43]
["Area Centro-Nord",null,1,null,"Emilia Romagna/Toscana","302-P","Elettrodotto 380 kV Colunga – Calenzano","PNIEC-BAU","1,3-1,7",1.3,1.7,"50-119",50,119,null,null,null,null,null,null,null,null,null,null,null,null,null,null,null,null,9,null,null,0.08,null,null,null,1,null,null,0.01,9,null,null,null,7,-1,null,null,null,null,null,null,null,null,null,null,null,null,null,null,null,null,null,null,null,null,null,null,null,null,null,null,null,null,null,null,null,null,2E-3,null,null,null,19.035,null,158,-0.09,1,400,24877,158]
["Area Centro-Nord",null,1,null,"Toscana","309-P","Elettrodotto 132 kV Elba – Continente","V1",5.4,null,null,864,null,null,null,null,null,null,null,null,null,null,null,null,null,null,null,null,null,null,null,null,null,null,null,1,null,null,null,null,null,null,null,null,null,null,null,null,null,null,null,null,null,null,null,null,null,null,null,null,null,null,null,null,null,1,null,1650,0,null,null,null,null,null,null,null,null,null,1,null,null,1667,0]
["Area Centro-Nord",null,1,null,"Toscana","306-P","Riassetto rete 380 e 132 kV area di Lucca","FF55/DE",2.8,2.8,2.8,84,84,84,null,null,null,null,null,null,null,null,null,null,null,null,null,null,null,null,null,null,null,null,null,null,null,null,null,null,null,null,null,null,null,null,null,null,null,null,13,null,null,null,null,null,null,null,null,null,null,null,null,null,null,null,null,null,null,null,null,null,null,null,null,null,null,null,null,null,null,null,null,null,null,null,null,null,null,null,null,null,null,null,null,0.32108999999999999,null,null,null,null,null,null,null,null,null,null,null,35]
["Area Centro-Nord",null,1,null,"Toscana","317-P","Rete metropolitana di Firenze","V1",3.7,null,null,184,null,null,null,null,null,null,null,null,null,null,22,-5,null,null,null,null,null,null,null,null,null,null,null,null,null,null,null,-5,null,null,null,null,null,null,null,null,null,null,null,null,null,null,null,null,null,null,null,null,null,null,null,0,null,null,150,null,184500,null,null,null,null,null,null,null,null,0,null,0.152,null,null,205]
["Area Centro-Nord",null,1,null,"Emilia Romagna","319-P","Anello 132 kV Riccione - Rimini","BAU-BAU",1.6,1.6,1.6,29,29,29,null,null,null,null,null,null,null,null,null,null,null,null,null,null,null,null,null,0.3,null,3,null,null,null,null,null,null,null,null,null,null,null,null,null,null,null,0.4,7,null,null,null,null,null,null,null,null,null,null,null,null,null,null,null,null,null,null,null,null,null,null,null,null,null,null,null,1,0.10199999999999999,null,null,null,null,null,null,null,null,null,null,null,null,null,null,1,0.24199999999999999]
["Area Centro-Nord",null,1,null,"Toscana","308-P","Riassetto rete area Livorno","ST",1.5,1.5,1.5,24,24,24,null,null,null,null,1,3,null,null,null,null,null,null,null,null,null,null,null,null,null,null,1,3]
["Area Centro-Nord",null,1,null,"Emilia Romagna","310-P","Rete 132 kV tra Borgonovo, Salsominore e Borgotaro","BAU-BAU",1.6,1.6,1.6,12,12,12,null,null,null,null,null,null,null,null,null,null,null,null,null,null,null,null,null,null,null,null,2,null,null,null,null,null,null,null,null,null,null,null,null,null,null,null,null,3,null,null,null,null,null,null,null,null,null,null,null,null,null,null,null,null,null,null,null,null,null,null,null,null,null,null,null,null,null,112,null,null,null,null,null,null,null,null,null,null,null,null,null,null,null,0.159]
["Area Centro-Nord",null,1,null,"Emilia Romagna","318-P","Riassetto di Ferrara","FF55/DE",1.4,1.4,1.4,19,19,19,null,null,null,null,null,null,null,null,null,null,null,null,null,null,null,null,null,null,null,4,null,null,null,null,null,null,null,null,null,null,null,null,null,null,null,null,6,null,null,null,null,null,null,null,null,null,null,null,null,null,null,null,null,null,null,null,null,null,null,null,null,null,null,null,null,0.20927000000000001,null,null,null,null,null,null,null,null,null,null,null,10,null,null,null,0.28232000000000002,null,null,null,null,null,null,null,null,null,null,null,18]
["Area Centro-Nord",null,1,null,"Emilia Romagna","320-P","Razionalizzazione 132 kV area di Reggio Emilia","FF55/DE",2.2999999999999998,2.2999999999999998,2.2999999999999998,50,50,50,null,null,null,null,null,null,null,null,null,null,null,null,null,null,null,null,null,null,null,null,null,null,null,null,null,null,null,null,null,null,null,null,null,null,null,null,null,null,null,null,null,null,null,null,null,null,null,null,null,null,null,null,null,null,null,null,null,null,null,null,null,null,null,null,null,null,null,null,null,null,null,null,null,null,null,null,null,23]
["Area Centro-Nord",null,1,null,"Toscana","345-P","Stazione 380/132 kV Larderello","FF55/DE",14.2,14.2,14.2,352,352,352,null,null,null,null,null,null,null,null,null,null,null,null,null,null,null,null,null,null,null,null,null,null,29,null,null,null,null,null,null,null,null,null,null,null,null,null,null,null,null,33,null,null,null,null,null,null,null,null,null,null,null,null,null,null,null,null,null,null,null,null,null,null,null,null,null,null,null,null,249.1,null,null,null,null,null,null,null,null,21,null,null,null,null,null,null,257.7,null,null,null,null,null,null,null,null,35]
["Area Centro-Nord",null,1,null,"Emilia Romagna","326-P","Riassetto rete AT area di Bologna","NT-IT/BAU",3.7,3.7,3.7,157,157,157,null,null,null,3,null,null,null,null,null,null,null,null,null,null,null,null,null,0.3,null,18,null,null,null,null,null,null,null,null,null,null,null,null,null,null,null,null,null,null,null,null,null,null,null,null,null,null,null,null,null,null,null,null,81,null,null,null,null,null,null,null,null,null,null,null,1,0.44]
["Area Centro-Nord",null,1,null,"Emilia Romagna/Toscana","337-P","Rete 132 kV tra Romagna e Toscana","FF55/DE",2.2000000000000002,2.2000000000000002,2.2000000000000002,45,45,45,null,null,null,null,null,null,null,null,null,null,null,null,null,null,null,null,null,null,null,null,null,null,null,null,null,null,null,null,null,null,null,null,null,null,null,null,9,null,null,null,null,null,null,null,null,null,null,null,null,null,null,null,null,null,null,null,null,null,null,null,null,null,null,null,null,null,null,null,null,null,null,null,null,null,null,null,null,null,null,null,null,0.21511,null,null,null,null,null,null,null,null,null,null,null,12]
["Area Centro-Nord",null,1,null,"Emilia Romagna","321-P","Rete area Forlì/Cesena","BAU-BAU",3.5,3.5,3.5,70,70,70,null,null,null,null,null,null,null,null,null,null,null,null,null,null,null,null,null,0.3,null,7,null,null,null,null,null,null,null,null,null,null,null,null,null,null,null,1,8,null,null,null,null,null,null,null,null,null,null,null,null,null,null,null,null,null,null,null,null,null,null,null,null,null,null,1E-3,null,0.223,null,null,null,null,null,null,null,null,null,null,null,null,null,null,2,0.27300000000000002]
["Area Centro-Nord",null,1,null,"Toscana","338-P","Stazione 380 kV a nord di Grosseto","FF55/DE",3.2,3.2,3.2,221,221,221,null,null,null,null,null,null,null,null,null,null,null,null,null,null,null,null,null,null,null,null,null,null,25,null,null,null,null,null,null,null,null,null,null,null,null,null,null,null,null,28,null,null,null,null,null,null,null,null,null,null,null,null,null,null,null,null,null,null,null,null,null,null,null,null,null,null,null,null,null,null,null,null,null,null,null,null,null,29]
["Area Nord-Est",null,1,null,"Veneto","259-P","Razionalizzazione rete AT Verona","FF55/DE",1.9,1.9,1.9,60,60,60,null,null,null,null,null,null,null,null,null,null,null,null,null,null,null,null,null,null,null,null,null,null,null,null,null,null,null,null,null,null,null,null,null,null,null,null,15,null,null,null,null,null,null,null,null,null,null,null,null,null,null,null,null,null,null,null,null,null,null,null,null,null,null,null,null,null,null,null,null,null,null,null,null,null,null,null,null,null,null,null,null,null,0.37369999999999998,null,null,null,null,null,null,null,null,null,null,5]
["Area Centro-Nord",null,1,null,"Emilia Romagna","348-P","Razionalizzazione rete tra Parma e Piacenza","FF55/DE",2.4,2.4,2.4,36,36,36,null,null,null,null,null,null,null,null,null,null,null,null,null,null,null,null,null,null,null,null,null,null,null,null,null,null,null,null,null,null,null,null,null,null,null,null,6,null,null,null,null,null,null,null,null,null,null,null,null,null,null,null,null,null,null,null,null,null,null,null,null,null,null,null,null,null,null,null,null,null,null,null,null,null,null,null,null,null,null,null,null,null,0.1502,null,null,null,null,null,null,null,null,null,null,17]
["Area Centro-Nord",null,1,null,"Toscana","351-P","Rimozione limitazioni elettrodotto 380 kV Calenzano-Suvereto","FF55/DE",7.1,7.1,7.1,146,146,146,null,null,null,null,null,null,null,null,null,null,null,null,null,null,null,null,null,null,null,null,null,null,null,null,null,2,null,null,null,null,null,null,null,null,null,null,null,null,null,null,null,null,18]
["Area Centro-Nord",null,1,null,"Toscana","351-P","Rimozione limitazioni elettrodotto 380 kV Calenzano-Suvereto","LT/LT",4.2,4.2,4.2,78,78,78,null,null,null,null,null,null,null,null,null,null,null,null,null,null,null,null,null,null,null,null,null,null,null,null,null,null,null,null,null,null,null,null,null,null,null,null,null,null,null,null,null,null,11]
["Area Centro-Nord",null,1,null,"Toscana","352-P","Incremento magliatura rete 132 kV area Amiata","FF55/DE",7.6,7.6,7.6,476,476,476,null,null,null,null,null,null,null,null,null,null,null,null,null,null,null,null,null,null,null,null,null,null,42,null,null,null,null,null,null,null,null,null,null,null,null,null,null,null,null,48,null,null,null,null,null,null,null,null,null,null,null,null,null,null,null,null,null,null,null,null,null,null,null,null,null,null,null,null,357.9,null,null,null,null,null,null,null,null,16,null,null,null,null,null,null,374,null,null,null,null,null,null,null,null,20]
["Area Centro-Nord",null,1,null,"Toscana","354-P","Interconnessione isola del Giglio","NT-IT/NT-IT","1-1,3",1,1.3,"0-23",0,23,null,null,null,null,null,null,null,null,null,null,null,null,null,null,null,null,null,null,null,1,null,5,null,0.01,null,null,null,null,null,null,null,0.4,1,null,null,null,1,null,6,null,0.01,null,null,null,null,null,null,1,1,null,null,null,null,null,null,null,null,null,null,null,null,null,null,null,null,2.5999999999999999E-2,null,null,null,0.19,null,6.67,3.4000000000000002E-2,null,null,null,null,null,null,null,null,2.87E-2,null,null,null,0.1976,null,6.6029999999999998,3.5000000000000003E-2]
["Area Centro-Nord",null,1,null,"Abruzzo/Marche","436-P","HVDC Centro Sud / Centro Nord","FF55/DE","3,1-4,2",3.1,4.2,"2410-3560",2410,3560,null,null,null,null,null,null,null,null,null,null,null,null,null,null,null,null,56,null,null,null,null,null,-1,null,null,7,null,null,52,null,null,1,-7,null,395,null,null,null,null,-100,null,null,84,null,null,-16,null,111,31,null,null,null,null,null,null,null,null,null,null,null,null,null,null,null,null,null,null,null,-8.4,null,null,277,-0.2,null,1000,207495,277,-189,null,null,null,null,null,null,-787.3,null,null,758,0.7,null,1000,2504059,758,-356]
["Area Centro-Nord",null,1,null,"Abruzzo/Marche","436-P","HVDC Centro Sud / Centro Nord","LT/LT","1,4-1,7",1.4,1.7,"470-780",470,780,null,null,null,null,null,null,null,null,null,null,null,null,null,null,null,null,22,null,null,null,null,null,-6,null,null,3,null,null,6,null,null,0,-1,null,178,null,null,null,null,-43,null,null,23,null,null,19,null,34,4,null,null,null,null,null,null,null,null,null,null,null,null,null,null,null,null,null,null,null,-51.3,null,null,68,-0.03,null,1000,55029,68,-169,null,null,null,null,null,null,-333.2,null,null,230,0.1,null,1000,586735,230,-86]
["Area Centro",null,null,1,"Abruzzo/Lazio","411-P","Interventi sulla rete AT per la raccolta della produzione rinnovabile in Abruzzo e Lazio","NT-IT/BAU",1.5,1.5,null,31,31,null,null,null,null,6,null,null,null,null,null,null,null,null,null,null,null,null,null,null,null,7,null,null,null,null,null,null,null,null,null,null,null,0,0,null,0,0,0,null,0,null,0,0,null,0,0,null,0,0,0,0,0,null,0.3029,0,0,null,0,0,0,0,0,0,0,0,null,0.3352,0,null,0,0,null,0,0,null,0,0,0,null,0,0,null,0,0,null,0,null,0,0,0]
["Area Centro",null,null,1,"Marche/Umbria/Abruzzo","421-P","Razionalizzazione rete AT in Umbria","LT/LT",2.4,2.4,2.4,126,126,126,null,null,null,5,null,null,2E-3,null,5,null,null,null,null,null,null,null,null,null,null,5,null,null,9,2E-3,null,null,null,null,null,null,null,0,0,null,0,0,8,null,0,9,2E-3,0,null,0,0,null,0,0,0,2E-3,0,null,null,null,null,null,0,0,0,0,0,0,3.0000000000000001E-3,0,null,0.182,null,null,73.599999999999994,0,null,0,0,null,24000,0,0,null,4.0000000000000001E-3,0,null,0.26100000000000001,0,null,73.599999999999994,null,0,0,0,null,null,null,null,28]
["Area Sud",null,null,1,"Campania","506-P","Elettrodotto 380 kV Montecorvino – Benevento","FF55/DE","4,1-4,4",4.0999999999999996,4.4000000000000004,822,909,"822-909",null,null,null,null,null,null,null,null,null,null,null,null,null,null,null,null,105,null,null,null,null,null,40,4,null,5,null,null,72,null,null,2,6,null,-10,6,0,null,0,17,49,0,3,null,null,null,0,4,2,0,0,null,0,0,0,null,0,0,0,0,0,0,null,0,null,0,0,null,342.3,0,null,291,0.1,null,"200 S/CS - 900 S/CAL",855562,291,{"$f":"(-101)","v":-101},null,0,null,0,0,null,130.69999999999999,null,0,29,0.1,null,"200 S/CS - 900 S/CAL",152171,29,{"$f":"(-136)","v":-136}]
["Area Sud",null,null,1,"Campania","506-P","Elettrodotto 380 kV Montecorvino – Benevento","LT/LT","2,8-2,8",2.8,2.8,471,476,"471-476",null,null,null,null,null,null,null,null,null,null,null,null,null,null,null,null,35,null,null,null,null,null,41,4,null,5,null,null,39,null,null,1,1,null,0,6,0,null,0,14,49,0,2,null,null,7,0,null,null,0,0,null,0,0,0,null,0,0,0,0,0,0,null,0,null,0,0,null,354.7,0,null,98,0,null,"200 S/CS - 900 S/CAL",523907,98,{"$f":"(-43)","v":-43},null,0,null,0,0,null,107.3,null,0,null,null,null,"200 S/CS - 900 S/CAL",105629,null,{"$f":"-(41)","v":-41}]
["Area Sud",null,null,1,"Campania","536-P (EX 516-P)","Interconnessione a 150 kV isola di Ischia","FF55/DE",10.1,10.1,null,694,694,null,null,null,null,null,null,null,null,null,null,null,null,null,null,null,null,null,null,null,null,62,null,null,null,null,null,null,null,null,null,null,null,0,0,null,0,0,62,null,0,null,0,0,null,0,0,null,0,0,0,0,0,null,0,0,0,null,0,0,0,0,0,0,0,0,null,1.5609999999999999,0,null,0,0,null,0,0,null,0,0,0,null,0,0,null,1.5609999999999999,0,null,0,null,0,0,0]
["Area Sud",null,null,1,"Campania","536-P (EX 516-P)","Interconnessione a 150 kV isola di Ischia","LT/LT",10.1,10.1,null,694,694,null,null,null,null,null,null,null,null,null,null,null,null,null,null,null,null,null,null,null,null,null,null,null,null,null,null,null,null,null,null,null,null,0,0,null,0,0,62,null,0,null,0,0,null,0,0,null,0,0,0,0,0,null,0,0,0,null,0,0,0,0,0,0,0,0,null,1.5609999999999999,0,null,0,0,null,0,0,null,0,0,0,null,0,0,null,null,0,null,0,null,0,0,0]
["Area Sud",null,null,1,"Campania","533-P","Interventi sulla rete AT nell’area tra le province di Napoli e Caserta","FF55/DE",1.3,1.3,null,6,6,null,null,null,null,null,null,null,null,null,null,null,null,null,null,null,null,null,null,null,null,1,null,null,null,null,14,null,null,null,null,null,null,0,0,null,0,0,1,null,0,null,0,0,null,0,0,null,0,0,0,0,0,null,0,0,0,null,0,0,0,0,0,0,0,0,null,3.2000000000000001E-2,0,null,0,0,null,0,0,null,0,0,0,null,0,0,null,0.03,0.03,null,0,null,0,0,0]
["Area Sud",null,null,1,"Campania","533-P","Interventi sulla rete AT nell’area tra le province di Napoli e Caserta","LT/LT",1.3,1.3,null,6,6]
["Area Sud",null,null,1,"Puglia, Molise","534-P","Direttrice 150 kV \"SE Foggia - SSE Termoli\"","FF55/DE",8.1999999999999993,8.1999999999999993,null,167,167,null,null,null,null,null,null,null,null,null,null,null,null,null,null,null,null,null,null,null,null,null,null,null,139.30000000000001,null,null,null,null,null,null,null,null,null,null,null,null,null,null,null,null,16,null,null,null,null,null,null,null,null,null,null,null,null,null,null,null,null,null,null,null,null,null,null,null,null,null,null,null,null,139.30000000000001,null,null,null,null,null,null,null,null,null,null,null,null,null,null,null,123.2]
["Area Sud",null,null,1,"Puglia, Molise","534-P","Direttrice 150 kV \"SE Foggia - SSE Termoli\"","LT/LT",8.1999999999999993,8.1999999999999993,null,167,167]
["Area Sud",null,null,1,"Puglia","535-P","Interventi sulla rete AT per la raccolta di energia rinnovabile nell’area tra le province di Foggia e Barletta ","FF55/DE",4.0999999999999996,4.0999999999999996,null,114,114,null,null,null,null,null,null,null,null,null,null,null,null,null,null,null,null,null,null,1,null,null,null,null,5,null,null,null,null,null,null,null,null,0,0,null,0,2,0,null,0,14,null,0,null,0,0,null,0,0,0,0,0,null,0,0,0,null,0,0,0,0,0,0,0,3.0000000000000001E-3,null,0,0,null,45,0,null,0,0,null,0,0,0,null,0,6.0000000000000001E-3,null,0,0,null,108.1,null,null,0,0]
["Area Sud",null,null,1,"Puglia","535-P","Interventi sulla rete AT per la raccolta di energia rinnovabile nell’area tra le province di Foggia e Barletta ","LT/LT",4.0999999999999996,4.0999999999999996,null,114,114,null,null,null,null,null,null,null,null,null,null,null,null,null,null,null,null,null,null,1,null,null,null,null,null,null,null,null,null,null,null,null,null,0,0,null,0,2,0,null,0,null,null,0,null,0,0,null,0,0,0,0,0,null,0,0,0,null,0,0,0,0,0,0,0,3.0000000000000001E-3,null,0,0,null,0,0,null,0,0,null,0,0,0,null,0,6.0000000000000001E-3,null,0,0,null,0,null,4.7E-2,0,0]
["Area Sud",null,null,1,"Puglia","526-P","Elettrodotto 150 kV Noci – Martina Franca","FF55/DE",2.7,2.7,null,59,59,null,null,null,null,null,null,null,null,null,null,null,null,null,null,null,null,null,null,null,null,6,null,null,null,null,null,null,null,null,null,null,null,0,0,null,0,0,8,null,0,null,0,0,null,0,0,null,0,0,0,0,0,null,0,0,0,null,0,0,0,0,0,0,0,0,null,0.157,0,null,0,0,null,0,0,null,0,0,0,null,0,0,null,0.19625000000000001,0,null,0,null,0,0,0]
["Area Sud",null,null,1,"Puglia","526-P","Elettrodotto 150 kV Noci – Martina Franca","LT/LT",2.7,2.7,null,59,59,null,null,null,null,null,null,null,null,null,null,null,null,null,null,null,null,null,null,null,null,null,null,null,null,null,null,null,null,null,null,null,null,0,0,null,0,0,null,null,0,null,0,0,null,0,0,null,0,0,0,0,0,null,0,0,0,null,0,0,0,0,0,0,0,0,null,null,0,null,0,0,null,0,0,null,0,0,0,null,0,0,null,0.19625000000000001,0,null,0,null,0,0,0]
["Area Sud",null,null,1,"Basilicata/Calabria","542-P","Sviluppi rete AT Calabria Nord Ionica","FF55/DE",1.5,1.5,null,13,13,null,null,null,null,null,null,null,null,null,null,null,null,null,null,null,null,null,null,null,null,4,null,null,null,null,null,null,null,null,null,null,null,null,null,null,null,null,4,null,null,null,null,null,null,null,null,null,null,null,null,null,null,null,null,null,null,null,null,null,null,null,null,null,null,null,null,0.2,null,null,null,null,null,null,null,null,null,null,null,null,null,null,null,0.2]
["Area Sud",null,null,1,"Basilicata/Calabria","542-P","Sviluppi rete AT Calabria Nord Ionica","LT/LT",1.5,1.5,null,13,13]
["Area Sud",null,null,1,"Basilicata/Calabria","546-P (ex 503-S)","Elettrodotto 380 kV Aliano – Montecorvino","FF55/DE","2-2,4",2,2.4,"206-275",206,275,null,null,null,null,null,null,null,null,null,null,null,null,null,null,null,null,36,null,null,null,null,null,15,null,null,{"$f":"(-3)","v":-3},null,null,9,null,null,1,2,null,28,null,null,null,0,1,null,0,{"$f":"(-5)","v":-5},0,null,13,0,5,2,0,0,null,0,0,0,null,0,0,0,0,0,0,null,0,null,0,0,null,131.69999999999999,0,null,93,0.1,null,300,325600,93,13,null,0,null,null,0,null,10.199999999999999,null,0,31,0.04,null,300,218288,31,28]
["Area Sud",null,null,1,"Basilicata/Calabria","546-P (ex 503-S)","Elettrodotto 380 kV Aliano – Montecorvino","LT/LT","1,8-1,8",1.8,1.8,"158-158",158,158,null,null,null,null,null,null,null,null,null,null,null,null,null,null,null,null,15,null,null,null,null,null,13,null,null,{"$f":"(-2)","v":-2},null,null,3,null,null,{"$f":"(-1)","v":-1},0,null,0,null,null,null,0,18,null,0,4,0,null,11,0,null,0,0,0,null,0,0,0,null,0,0,0,0,0,0,null,0,null,0,0,null,107.3,0,null,{"$f":"+(-128)","v":-128},{"$f":"+(-0.01)","v":-0.01},null,300,203539,{"$f":"+(-123)","v":-123},5,null,0,null,null,0,null,141.30000000000001,null,0,null,0,null,300,146181,null,39]
["Area Sicilia",null,null,1,"Sicilia","601-I","Nuova interconnessione Italia-Tunisia","FF55/DE","4,5-5,1",4.5,5.0999999999999996,"1272-1523",1272,1523,null,null,null,null,null,null,null,null,null,null,null,null,null,null,null,null,124,null,null,null,null,null,3,0.05,null,null,-4,0,null,null,null,3,{"$f":"+(-34)","v":-34},null,126,0,-0.4,null,0,3,31,0,{"$f":"+(-1)","v":-1},null,null,null,0,50,{"$f":"+(-3)","v":-3},0,0,null,0,0,null,null,0,0,0,0,0,0,0,0,null,0,0,null,25.4,0,null,604,{"$f":"+(-0.8)","v":-0.8},null,600,605508,604,47,0,0,null,0,0,null,25.9,null,0,300.60000000000002,-0.1,null,600,1884674,1523,99]
["Area Sicilia",null,null,1,"Sicilia","601-I","Nuova interconnessione Italia-Tunisia","LT/LT","2,2-2,3",2.2000000000000002,2.2999999999999998,"432-487",432,487,null,null,null,null,null,null,null,null,null,null,null,null,null,null,null,null,73,null,null,null,null,null,2,0.05,null,null,-4,0,null,null,null,0,{"$f":"+(-38)","v":-38},null,60,0,-0.4,null,0,0,31,0,{"$f":"+(-2)","v":-2},null,null,null,0,47,{"$f":"+(-20)","v":-20},0,0,null,0,0,0,null,0,0,0,0,0,0,0,0,null,0,0,null,12.6,0,null,9,{"$f":"+(-0.9)","v":-0.9},null,600,267953,9,{"$f":"+(-120)","v":-120},0,0,null,0,0,null,3.5,null,0,1523,-0.5,null,600,396554,323,{"$f":"+(-29)","v":-29}]
["Area Sicilia",null,null,1,"Sicilia","602-P","Elettrodotto 380 kV “Chiaramonte Gulfi – Ciminna”","NT-IT/NT-IT","4,6-4,7",4.5999999999999996,4.7,"1923-1981",1923,1981,null,null,null,null,null,null,null,null,null,null,null,null,null,null,null,null,null,8,null,3,null,null,null,8,null,null,-2,150,null,null,null,1,0,null,25,10,3,null,0,null,15,0,null,2,157,null,0,8,0.2,0,0,null,0,0,0,null,0,0,0,0,0,0,137.035,0,null,7.6999999999999999E-2,0,null,149.93,0,null,17.5,-0.03,null,0,149930,18,null,145.16,0,null,6.6000000000000003E-2,0,null,null,257.12,0,92.8,0,null,null,1743143,93]
["Area Sicilia",null,null,1,"Sicilia","602-P","Elettrodotto 380 kV “Chiaramonte Gulfi – Ciminna”","BAU-BAU","2,3-2,3",2.2999999999999998,2.2999999999999998,"712-726",712,726,null,null,null,null,null,null,null,null,null,null,null,null,null,null,null,null,null,18,null,20,null,null,null,0.4,null,null,6,21,null,null,null,1,{"$f":"+(-1)","v":-1},null,5,37,25,null,0,null,8,0,null,15,34,null,0,29.3,0.03,0,0,null,0,0,0,null,0,0,0,0,0,0,324.58999999999997,0,null,0.48799999999999999,0,null,6.7,0,null,29.8,0.02,null,0,6700,30,null,554.87199999999996,0,null,0.61899999999999999,0,null,null,128.91999999999999,0,29.3,0.03,null,null,140347,29]
["Area Sicilia",null,null,1,"Sicilia","607-P","Elettrodotto 220 kV Partinico- Fulgatore","DE","2,2-2,2",2.2000000000000002,2.2000000000000002,"26-26",26,26,null,null,null,null,null,null,null,null,null,null,null,null,null,null,null,null,null,null,null,null,null,null,null,null,null,null,null,null,null,null,null,null,null,null,null,null,0,null,0,3,null,0,1,null,null,null,null,null,null,null,null,null,null,null,null,null,null,null,null,null,null,null,null,null,null,null,null,null,null,null,null,null,null,null,0,0,0,null,null,0,null,0,0,null,11.2]
["Area Sicilia",null,null,1,"Sicilia","627-P","Elettrodotto 380 kV Caracoli - Ciminna","NT-IT/NT-IT","4,6-4,7",4.5999999999999996,4.7,"1923-1981",1923,1981,null,null,null,null,null,null,null,null,null,null,null,null,null,null,null,null,null,8,null,3,null,null,null,8,null,null,-2,150,null,null,null,1,{"$f":"+(-0.03)","v":-0.03},null,25,10,3,null,0,null,15,0,null,2,157,null,0,8,0.2,0,0,null,0,0,0,null,0,0,0,0,0,0,137.035,0,null,7.6999999999999999E-2,0,null,null,149.93,null,17.5,null,null,0,149930,18,null,145.16,0,null,6.6000000000000003E-2,0,null,null,257.12,0,92.8,0,null,null,1743143,93]
["Area Sicilia",null,null,1,"Sicilia","627-P","Elettrodotto 380 kV Caracoli - Ciminna","BAU-BAU","2,3-2,3",2.2999999999999998,2.2999999999999998,"712-712",712,712,null,null,null,null,null,null,null,null,null,null,null,null,null,null,null,null,null,18,null,20,null,null,null,0.4,null,null,6,21,null,null,null,1,{"$f":"+(-1)","v":-1},null,5,37,25,null,null,null,8,null,null,15,34,null,null,3,{"$f":"+(-1)","v":-1},null,null,null,null,null,null,null,null,null,null,null,null,null,324.58999999999997,null,null,0.48799999999999999,null,null,null,6.7,null,29.8,0.02,null,null,6700,30,null,554.87199999999996,null,null,0.61899999999999999,null,null,null,128.91999999999999,null,29.3,0.03,null,null,140347,29]
["Area Sud",null,null,1,"Puglia","554-P","Nuovo HVDC Italia-Grecia (GRITA 2)","FF55/DE","4,0-4,9",4,4.9000000000000004,"1688-2194",1688,2194,null,null,null,null,null,null,null,null,null,null,null,null,null,null,null,null,64,null,null,null,null,null,2,null,null,6,37,5,39,null,null,3,0,null,124,0,0,null,0,12,null,0,9,null,null,51,0,36,8,0,0,null,0,0,0,null,0,0,0,0,0,0,0,0,null,0,0,null,17.399999999999999,0,null,494,0,null,500,561874,494,35,0,0,null,0,0,null,95.7,null,0,246,0.2,null,500,236885,246,36]
["Area Sud",null,null,1,"Puglia","554-P","Nuovo HVDC Italia-Grecia (GRITA 2)","LT/LT","1,6-2,3",1.6,2.2999999999999998,"352-716",352,716,null,null,null,null,null,null,null,null,null,null,null,null,null,null,null,null,13,null,null,null,null,null,null,null,null,13,37,5,35,null,null,0,6,null,26,0,0,null,0,2,null,0,18,null,null,34,0,22,10,0,0,null,0,0,0,null,0,0,0,0,0,0,0,0,null,0,0,null,3.6,0,null,28,0.1,null,500,237254,28,{"$f":"+(-50)","v":-50},0,0,null,0,0,null,17.100000000000001,null,0,149,0.2,null,500,375354,149,149]
["Area Sud",null,null,1,"Sicilia/Calabria","555-P","Nuovo collegamento 380 kV Bolano Annunziata","FF55/DE","7,3-7,4",7.3,7.4,"1024-1034",1024,1034,null,null,null,null,null,null,null,null,null,null,null,null,null,null,null,null,null,null,null,null,null,null,65,1,null,{"$f":"+(-3)","v":-3},0,null,101,null,null,0,0,null,2,0,0,null,0,27,null,0,null,0,null,{"$f":"+(-6)","v":-6},0,1,1,0,0,null,0,0,0,null,0,0,0,0,0,0,0,0,null,0,0,null,558.89400000000001,0,null,0,0,null,0,0,0,null,0,0,null,0,0,null,210.577,null,0,3,1.9E-2,null,500,238268,3,7]
["Area Sud",null,null,1,"Sicilia/Calabria","555-P","Nuovo collegamento 380 kV Bolano Annunziata","LT/LT","2,5-2,5",2.5,2.5,"236-236",236,236,null,null,null,null,null,null,null,null,null,null,null,null,null,null,null,null,null,null,null,null,null,null,35,1,null,{"$f":"+(-6)","v":-6},0,null,16,null,null,0,0,null,0,0,0,null,0,12,null,0,{"$f":"+(-1)","v":-1},0,null,5,0,null,null,0,0,null,0,0,0,null,0,0,0,0,0,0,0,0,null,0,0,null,302.45299999999997,0,null,0,0,null,0,0,0,null,0,0,null,0,0,null,92.9816,null,0,null,null,null,500,93372,null,{"$f":"+(-3)","v":-3}]
["Area Sud",null,null,1,"Campania","553-P","Elettrodotto 380 kV Area Nord Benevento","FF55/DE","2,1-3,9",2.1,3.9,"44-117",44,117,null,null,null,null,null,null,null,null,null,null,null,null,null,null,null,null,null,null,null,null,null,null,null,null,null,null,null,null,null,null,null,null,null,null,5,0,0,null,0,5,null,0,4,null,null,{"$f":"+(-5)","v":-5},0,5,3,0,0,null,0,0,0,null,0,0,0,0,0,0,0,0,null,0,0,null,null,0,null,0,0,null,0,0,0,null,0,0,null,0,0,null,38.799999999999997,null,0,31,0.1,null,200,80764,31,{"$f":"+(-45)","v":-45}]
["Area Sud",null,null,1,"Campania","553-P","Elettrodotto 380 kV Area Nord Benevento","LT/LT","2,2-3,0",2.2000000000000002,3,"48-79",48,79,null,null,null,null,null,null,null,null,null,null,null,null,null,null,null,null,null,null,null,null,null,null,null,null,null,null,null,null,null,null,null,null,null,null,3,0,0,null,0,6,null,0,{"$f":"+(-1)","v":-1},null,null,1,0,3,1,0,0,null,0,0,0,null,0,0,0,0,0,0,0,0,null,0,0,null,null,0,null,0,0,null,0,0,0,null,0,0,null,0,0,null,50.9,null,0,18,0,null,200,75741,18,5]
["Area Centro",null,null,1,"Lazio","428-P","Riassetto rete AT area Sud di Roma","BAU-BAU",7.1,7.1,null,152,152,null,null,null,null,null,null,null,null,null,null,null,null,null,null,null,null,null,null,null,null,13,null,null,null,null,null,null,0,0,null,null,null,0,0,null,0,0,15,null,0,null,0,0,null,0,0,null,0,0,0,0,0,null,0,0,0,null,0,0,0,0,0,0,0,0,null,0.33600000000000002,0,null,0,0,null,0,0,null,0,0,0,null,0,0,null,0.375,0,null,0,null,0,0,0,null,null,0,0]
["Area Sud",null,null,1,"Basilicata/Puglia","520-P Cluster 2","Interventi sulla rete AT per la raccolta della produzione rinnovabile in Basilicata","ST","2,3-2,3",2.2999999999999998,2.2999999999999998,"29-29",29,29,null,null,null,null,null,null,4]
["Area Sud",null,null,1,"Basilicata/Puglia","520-P Cluster 2","Interventi sulla rete AT per la raccolta della produzione rinnovabile in Basilicata","DG","2,5-2,5",2.5,2.5,"34-34",34,34,null,null,null,null,null,null,4]
["Area Sud",null,null,1,"Puglia","518-P","Interventi sulla rete AT per la raccolta della produzione rinnovabile in Campania","ST","3,6-3,6",3.6,3.6,"99-99",99,99,null,null,null,null,null,null,4,null,null,null,null,null,null,null,null,null,null,null,null,null,null,null,null,12]
["Area Sud",null,null,1,"Puglia","519-P Cluster 1","Interventi sulla rete AT per la raccolta della produzione rinnovabile in Calabria","ST","3,1-3,1",3.1,3.1,"47-47",47,47,null,null,null,null,null,null,5]
["Area Centro Sud",null,null,1,"Abruzzo","420-P","Riassetto rete Teramo - Pescara","ST","1,9-2,9",1.9,2.9,"75-148",75,148,null,null,1,null,9,null,null,null,null,null,null,null,5,null,null,null,null,null,1,null,9,null,null,null,null,null,null,null,null,5]
["Area Centro Sud",null,null,1,"Abruzzo/Molise","405-P","Elettrodotto 150 kV Portocannone – S. Salvo Z.I. e nuovo smistamento","ST","1,6-1,6",1.6,1.6,"16-16",16,16,null,null,1,null,3,null,null,null,null,null,null,null,5,null,null,null,null,null,1,null,9,null,null,null,null,null,null,null,null,5]
["Area  Sud",null,null,1,"Sicilia","612-P","Interventi sulla rete AT nell’area a nord di Catania","ST",3.3,3.3,null,113,113,null,null,null,null,null,11,null,null,null,null,null,null,null,null,null,null,null,null,null,null,null,10]
["Area  Sud",null,null,1,"Sicilia","616-P","Stazione 380 kV Vizzini (ex SE 380 kV Mineo)","ST",8,8,null,93,93,null,null,null,null,null,5,null,4,null,null,null,null,null,null,null,null,null,null,null,null,null,5,null,null,"<1"]
["Area  Sud",null,null,1,"Sicilia","613-P","Interventi sulla rete AT nell’area di Ragusa","ST",2.2999999999999998,2.2999999999999998,null,84,84,null,null,null,null,null,10,null,4,null,null,null,null,null,null,null,null,null,null,null,null,null,10]
["Area  Sud",null,null,1,"Sicilia","603-P","Elettrodotto 380 kV Paternò-Pantano-Priolo","V1",1.7,1.7,null,242,242,null,null,null,null,null,null,null,null,null,null,35,null,null,null,null,null,null,null,null,null,null,null,null,null,null,null,36,null,null,null,null,null,null,null,null,null,null,null,null,null,null,null,null,null,null,null,null,null,null,null,14.9,null,null,17,null,900,null,null,null,null,null,null,null,15,null,null,1.6E-2,null,null,1.1000000000000001]
["Area  Sud",null,null,1,"Sicilia","603-P","Elettrodotto 380 kV Paternò-Pantano-Priolo","V3",2.1,2.1,null,376,376,null,null,null,null,null,null,null,null,null,null,43,null,null,null,null,null,null,null,null,null,null,null,null,null,null,null,45,null,null,null,null,null,null,null,null,null,null,null,null,null,null,null,null,null,null,null,null,null,null,null,13.63,null,null,16,null,1100,null,null,null,null,null,null,null,13.2,null,null,1.4999999999999999E-2,null,null,1.43]
["Area Centro Sud",null,null,1,"Lazio","408-P","Sviluppi di rete nell’area di Cassino","ST",2,2,null,17,17,null,null,null,null,null,2,null,null,null,null,null,null,null,null,null,null,null,null,null,null,null,2]
["Area Centro",null,null,1,"Lazio","404-P","Riassetto area metropolitana di Roma","V1",3.2,3.2,null,985,985,null,null,null,null,null,null,null,null,null,null,null,null,null,null,null,null,null,null,null,null,null,null,null,null,null,null,null,null,null,null,null,null,null,null,null,null,null,null,null,null,null,null,null,null,null,null,null,null,null,null,null,null,3,null,2327,null,null,null,null,null,null,null,null,null,null,3,null,null,2263]
["Area Sud/Centro Sud",null,null,1,"Campania/Puglia","505-P","Stazioni 380/150 kV e relativi raccordi alla rete AT per la raccolta di produzione da fonte rinnovabile: rinforzi rete AAT e AT nell’area tra Foggia e Benevento","V1",4.3,4.3,null,731,731,null,5,null,null,null,null,null,null,null,null,22,null,null,null,null,null,null,3.2,null,null,null,null,null,null,null,null,23,null,null,null,null,null,null,null,null,null,null,null,null,null,null,null,null,null,null,null,null,null,null,null,null,null,null,null,60,464590,null,null,null,null,null,null,null,null,null,null,null,null,61,515.69500000000005]
["Area Sud/Centro Sud",null,null,1,"Campania/Puglia","505-P","Stazioni 380/150 kV e relativi raccordi alla rete AT per la raccolta di produzione da fonte rinnovabile: rinforzi rete AAT e AT nell’area tra Foggia e Benevento","V3",2.4,2.4,null,314,314,null,8,null,null,null,null,null,null,null,null,1,null,null,null,null,null,null,19,null,null,null,null,null,null,null,null,1,null,null,null,null,null,null,null,null,null,null,null,null,null,null,null,null,null,null,null,null,null,null,null,131.80000000000001,null,null,null,null,122610,null,null,null,null,null,null,null,null,null,null,null,null,null,159.393]
["Area Centro Sud",null,null,1,"Campania","504-P","Riassetto rete AT penisola Sorrentina","V1",16.5,16.5,null,3838,3838,null,null,null,null,null,null,null,null,null,null,null,null,null,null,null,null,null,null,null,null,null,null,null,null,null,null,null,null,null,null,null,null,null,null,null,null,null,null,null,null,null,null,null,null,null,null,null,null,null,null,null,null,2,null,13500]
["Area Centro Sud",null,null,1,"Campania","511-P","Stazione 380 kV S. Sofia","V3",5.3,5.3,null,157,157,null,null,null,null,null,null,null,null,null,null,null,null,null,null,null,null,null,null,null,null,null,null,null,null,null,null,null,null,null,null,null,null,null,null,null,null,null,null,null,null,null,null,null,null,null,null,null,null,null,null,null,null,null,null,322,null,null,null,null,null,null,null,null,null,null,null,null,null,307]
["Area  Sud",null,null,1,"Puglia","512-P","Stazione 380 - 150 kV di Palo del Colle","V1",2.6,2.6,null,116,116,null,null,null,null,null,null,null,null,null,null,null,null,null,null,null,null,null,null,null,null,null,null,null,null,null,null,null,null,null,null,null,null,null,null,null,null,null,null,null,null,null,null,null,null,null,null,null,null,null,null,null,null,5,null,506]
["Area  Sud",null,null,1,"Basilicata/Calabria","509-P","Riassetto rete nord Calabria","V1",2.4,2.4,null,344,344,null,null,null,null,null,null,null,null,null,null,30.9,null,null,null,null,null,null,null,null,null,null,null,null,null,null,null,32,null,null,null,null,null,null,null,null,null,null,null,null,null,null,null,null,null,null,null,null,null,null,null,null,null,null,null,30,172230,null,null,null,null,null,null,null,null,null,null,null,null,30]
["Area  Sud",null,null,1,"Basilicata/Calabria","509-P","Riassetto rete nord Calabria","V3",2.1,2.1,null,269,269,null,null,null,null,null,null,null,null,null,null,10.3,null,null,null,null,null,null,null,null,null,null,null,null,null,null,null,11,null,null,null,null,null,null,null,null,null,null,null,null,null,null,null,null,null,null,null,null,null,null,null,null,null,null,null,null,null,null,null,null,null,null,null,null,null,null,null,null,null,null,223.899]
["Area  Sud",null,null,1,"Campania","514-P","Riassetto rete a 220 kV città di Napoli","V1",2.5,null,null,314,314,null,null,null,null,null,null,null,null,null,null,null,null,null,null,null,null,null,null,null,null,null,null,null,null,null,null,null,null,null,null,null,null,null,null,null,null,null,null,null,null,null,null,null,null,null,null,null,null,null,null,null,null,4,null,1018,null,null,null,null,null,null,null,null,null,null,4,null,null,943]
["Area Centro",null,null,1,"Toscana/Umbria/Abruzzo/Marche","432-P","Rimozione limitazioni sezione Centro Sud – Centro Nord","DEC","2-2,3",2,2.2999999999999998,"69-90",69,90,null,null,null,null,null,null,null,null,null,null,null,null,null,null,null,null,5,null,null,0.08,null,null,null,3,null,null,0.05,3,null,null,null,4,{"$f":"+(-2)","v":-2},null,13,null,0.28000000000000003,null,null,null,null,null,null,5.0000000000000001E-3,{"$f":"+(-1)","v":-1},null,null,1,{"$f":"+(-0.35)","v":-0.35},null,null,null,null,null,null,null,null,null,null,null,null,null,null,null,null,4.0000000000000001E-3,null,null,null,48.707999999999998,null,96.894000000000005,{"$f":"+(-0.105)","v":-0.105},null,"150-300",55839,97,null,null,null,null,1.4E-2,null,null,null,null,null,67.734999999999999,{"$f":"+(-0.024)","v":-2.4E-2},null,"150-300",84458,68]
["Area Centro",null,null,1,"Toscana/Umbria/Abruzzo/Marche","432-P","Rimozione limitazioni sezione Centro Sud – Centro Nord","BAU","3,4-3,5",3.4,3.5,"167-175",167,175,null,null,null,null,null,null,null,null,null,null,null,null,null,null,null,null,4,null,null,null,null,null,null,4,null,null,{"$f":"+(-0.32)","v":-0.32},15,null,null,null,1,{"$f":"+(-1)","v":-1},null,11,null,null,null,null,null,1,null,null,null,5,null,null,2,{"$f":"+(-1)","v":-1},null,null,null,null,null,null,null,null,null,null,null,null,null,null,null,null,null,null,null,null,72.358000000000004,null,22.643000000000001,{"$f":"+(-0.062)","v":-6.2E-2},null,"150-301",75130,28,null,null,null,null,null,null,null,null,16.239000000000001,null,60,{"$f":"+(-0.06)","v":-0.06},null,"150-300",56299,60]
["Area Centro",null,null,1,"Abruzzo/Marche","403-P","Rete AAT/AT medio Adriatico","BAU","2,3-3,9",2.2999999999999998,3.9,"33-74",33,74,null,null,null,null,null,null,null,null,null,null,null,null,null,null,null,null,null,null,null,5,null,null,null,null,9,null,null,null,null,null,null,null,null,23,null,null,5,null,null,null,null,null,null,null,null,null,null,null,null,null,null,null,null,null,null,null,null,null,null,null,null,null,null,null,null,0.157,null,null,null,null,null,null,null,1.6,null,null,null,null,null,null,null,0.17299999999999999,null,null,null,null,null,null,null,1.6]
["Area Sud",null,null,1,"Abruzzo/Molise/Puglia","402-P","Elettrodotto 380 kV Foggia – Villanova","V1",5.3,null,null,3570,null,null,22,null,null,null,null,null,null,null,null,28.57,null,null,null,null,null,null,24,null,null,null,null,null,null,null,null,29.427099999999999,null,null,null,null,null,null,null,null,null,null,null,null,null,null,null,null,null,null,null,null,null,null,null,205.24,null,null,6680,null,176160,null,null,null,null,null,null,null,207.292,null,null,6.7469999999999999,null,null,195.5376]
["Area Sud",null,null,1,"Abruzzo/Molise/Puglia","402-P","Elettrodotto 380 kV Foggia – Villanova","V3",2.9,null,null,1587,null,null,33,null,null,null,null,null,null,null,null,32,null,null,null,null,null,null,83.98,null,null,null,null,null,null,null,null,33.28,null,null,null,null,null,null,null,null,null,null,null,null,null,null,null,null,null,null,null,null,null,null,null,206.22,null,null,1290,null,null,null,null,null,null,null,null,null,200.03299999999999,null,null,1.2509999999999999]
["Area Sud",null,null,1,"Calabria","521-P","Interventi sulla rete AT per la raccolta della produzione rinnovabile in Calabria","ST",2.2000000000000002,2.2000000000000002,2.2000000000000002,53,53,53,null,null,null,null,null,null,4,null,null,null,null,null,null,null,null,null,null,null,null,null,null,null,null,6]
["Area Sicilia",null,null,1,"Sicilia","630-P","Interconnessione Isola di Favignana","NT-IT/NT-IT","1-1,4",1,1.4,"0-32",0,32,null,null,null,null,null,null,null,null,null,null,null,null,null,null,null,null,null,null,null,1,null,6,null,0.01,null,null,null,null,null,null,null,1,2,null,null,null,1,null,null,null,0.06,null,null,null,null,null,null,2,2,null,null,null,null,null,null,null,null,null,null,null,null,null,null,null,null,1.2999999999999999E-2,null,null,null,0.2482,null,null,null,null,null,null,null,null,null,null,null,1.4500000000000001E-2,null,null,null,1.0547]
["Area Nord-Ovest",1,null,null,"Piemonte","6-P","Razionalizzazione rete 220 e 132 kV Provincia di Torino","V1",2.1,null,null,270,null,null,null,null,null,null,null,null,null,null,null,27.6,null,null,null,null,null,null,null,null,null,null,null,null,null,null,null,27.6,null,null,null,null,null,null,null,null,null,null,null,null,null,null,null,null,null,null,null,null,null,null,null,29.91,null,null,80,null,null,null,null,null,null,null,null,null,31.28,null,null,8.4000000000000005E-2]
["Area Sardegna",1,null,null,"Sardegna ","707-P","Elettrodotto 150 kV SE S.Teresa – Buddusò","V1",3.4,null,null,151,null,null,null,null,null,null,null,null,null,null,null,null,null,null,null,null,null,null,null,null,null,null,null,null,null,null,null,null,null,null,null,null,null,null,null,null,null,null,null,null,null,null,null,null,null,null,null,null,null,null,null,null,null,null,438,null,null,null,null,null,null,null,null,null,null,null,null,0.438]

{"sheet":"D-Merchant line","index":4,"n_rows":11,"n_cols":8,"rows_kept":11,"cut":false,"hidden":false,"merged":[]}
[]
["Frontiera ","Progetto ","AC/DC","Tensione [kV]","Potenza [MW]","Società richiedente  ","Schema di connessione","Regione interessata"]
["Italia-Tunisia","Montalto-Rejim Maatoug","DC",500,2000,"NUR POWER ITALY SRL","In doppia antenna alla stazione \"Montalto di Castro\"","Lazio"]
["Italia-Svizzera","Mese-Castasegna","AC",220,250,"MERA","In antenna alla stazione di \"Mese\",previa realizzazione della sezione a 380 kV","Lombardia"]
["Italia-Svizzera","Verderio-Sils","DC",400,1000,"GREENCONNECTOR SRL","In antenna alla stazione di \"Verderio\"","Lombardia"]
["Italia-Francia","Cesana-Briançon","AC",132,150,"ENEL PRODUZIONE SPA","In antenna alla stazione di \"Cesana\"","Piemonte"]
["Italia-Svizzera","Mese-Castasegna","AC",132,100,"ENEL PRODUZIONE SPA","In antenna alla stazione di \"Mese\"","Lombardia"]
["Italia-Slovenia","Redipuglia-Vrtojba","AC",110,150,"ADRIA LINK","In antenna alla stazione di \"Redipuglia\"","Friuli "]
["Italia-Austria","Somplago-Wurmlach","AC",220,300,"ALPE ADRIA ENERGIA SPA","In antenna alla stazione di \"Somplago\"","Friuli"]
["Italia Malta","Ragusa Maghtab","AC",220,500,"ENEMALTA PLC","In antenna alla stazione \"Ragusa\"","Sicilia"]
["Italia-Austria","Prati di vizze -Steinach","AC",132,80,"MEMC SPA","In antenna alla nuova stazione da inserire in entra-esce sulla futura linea \"Prati di Vizze- Steinach\"","Trentino Aldo Adige"]

{"sheet":"E- PdS 2023 - opere princip","index":5,"n_rows":1167,"n_cols":9,"rows_kept":1167,"cut":false,"hidden":false,"merged":[[542,6,543,6]]}
[]
["Tipo Intervento","Distretto Territoriale","Codice PdS","Tipologia","Nome Intervento","Nome \nintervento /opera","Avvio attività","Avvio realizzazione","Completamento"]
["Intervento Piano precedente","DTCS","432-P","Intervento","Rimozione limitazioni sezione Centro Sud – Centro Nord","Rimozione limitazioni sezione Centro Sud – Centro Nord"," "," ","2023/2026"]
["Intervento Piano precedente","DTCS","432-P","Opera Principale","Rimozione limitazioni sezione Centro Sud – Centro Nord","Direttrice 220 kV “S. Barbara - Villavalle\" ","07/07/2014 (EL-314)",2020,2023]
["Intervento Piano precedente","DTCS","432-P","Opera Principale","Rimozione limitazioni sezione Centro Sud – Centro Nord","Direttrice 220 kV “Candia - Villanova\" ",2021,2021,2023]
["Intervento Piano precedente","DTCS","432-P","Opera Principale","Rimozione limitazioni sezione Centro Sud – Centro Nord","Stazioni S. Barbara, Villavalle, Villanova e Candia",2021,2021,2023]
["Intervento Piano precedente","DTCS","432-P","Opera Principale","Rimozione limitazioni sezione Centro Sud – Centro Nord","Rimozioni limitazioni rete 132 kV",2021,2024,2026]
["Intervento Piano precedente","DTCS","402-P","Intervento","Elettrodotto 380 kV Foggia – Villanova","Elettrodotto 380 kV Foggia – Villanova"," "," ","2028/2030"]
["Intervento Piano precedente","DTCS","402-P","Opera Principale","Elettrodotto 380 kV Foggia – Villanova","Elettrodotto 380 kV “Villanova – Gissi”","25/01/2010 (EL-195)","2014-05-01","2016-01-01"]
["Intervento Piano precedente","DTCS","402-P","Opera Principale","Elettrodotto 380 kV Foggia – Villanova","SE 380 kV SE Villanova","25/01/2010 (EL-195)","2013-02-01","2014-12-01"]
["Intervento Piano precedente","DTCS","402-P","Opera Principale","Elettrodotto 380 kV Foggia – Villanova","Installazione PST SE Villanova","16/07/2010 (EL-211)",2011,"2012-11-01"]
["Intervento Piano precedente","DTCS","402-P","Opera Principale","Elettrodotto 380 kV Foggia – Villanova","Elettrodotto 380 kV “Foggia – Larino – Gissi”","25/07/2012 (EL-285)",2025,2028]
["Intervento Piano precedente","DTCS","402-P","Altre Opere","Elettrodotto 380 kV Foggia – Villanova","Razionalizzazioni nell’area di Cepagatti in uscita dalla SE di Villanova lungo l’elettrodotto 380 kV “Villanova-Gissi-Foggia”","13/10/2021 (EL-490)",2027,2028]
["Intervento Piano precedente","DTCS","402-P","Altre Opere","Elettrodotto 380 kV Foggia – Villanova","Ottimizzazione presso SE Gissi dell’elettrodotto 380 kV “Villanova-Gissi”",2024,2027,2028]
["Intervento Piano precedente","DTCS","402-P","Altre Opere","Elettrodotto 380 kV Foggia – Villanova","Razionalizzazione delle esistenti reti 132 e 150 kV",2021,2026,2030]
["Intervento Piano precedente","DTCS","404-P","Intervento","Riassetto area metropolitana di Roma","Riassetto area metropolitana di Roma"," "," ",2035]
["Intervento Piano precedente","DTCS","404-P","Opera Principale","Riassetto area metropolitana di Roma","El. 150 kV “Flaminia – Laurentina”","11/10/2011 (EL-245)","2018-10-01",2030]
["Intervento Piano precedente","DTCS","404-P","Opera Principale","Riassetto area metropolitana di Roma","Riassetto \"Quadrante Nord-Ovest\"","10/03/2011 (EL-230)",2032,2035]
["Intervento Piano precedente","DTCS","404-P","Opera Principale","Riassetto area metropolitana di Roma","Riassetto \"Quadrante Sud-Ovest\"","25/01/2011 (EL-223)",2026,2030]
["Intervento Piano precedente","DTCS","404-P","Opera Principale","Riassetto area metropolitana di Roma","El. 220 kV “Piazza Dante – S. Paolo – Castel di Leva”","25/01/2011 (EL-247)",2027,2035]
["Intervento Piano precedente","DTCS","404-P","Opera Principale","Riassetto area metropolitana di Roma","SE 220 kV Castel di Leva e raccordi alla linea 220 kV S. Paolo - Roma Sud","12/12/2012 (EL-295)",2026,2029]
["Intervento Piano precedente","DTCS","404-P","Opera Principale","Riassetto area metropolitana di Roma","Ampliamento SE Magliana RT ed El. 150 kV Magliana RT – CP A. Magliana 1","12/02/2012 (EL-464)",2023,2026]
["Intervento Piano precedente","DTCS","404-P","Opera Principale","Riassetto area metropolitana di Roma","Bypass “Magliana RT – Palidoro RT” e “Aurelia RT – Magliana RT”","12/02/2012 (EL-464)",2023,2025]
["Intervento Piano precedente","DTCS","404-P","Altre Opere","Riassetto area metropolitana di Roma","Razionalizzazione delle esistenti reti 132 e 150 kV","10/03/2011 (EL-230)",2032,2035]
["Intervento Piano precedente","DTCS","404-P","Altre Opere","Riassetto area metropolitana di Roma","Riassetto tra CP Crocicchie e CP Cesano","10/03/2011 (EL-230)",2032,2035]
["Intervento Piano precedente","DTCS","420-P","Intervento","Riassetto rete Teramo - Pescara","Riassetto rete Teramo - Pescara"," "," ",2035]
["Intervento Piano precedente","DTCS","420-P","Opera Principale","Riassetto rete Teramo - Pescara","Ampliamento SE Teramo e raccordi 380/132 kV","07/11/2018 (EL-405)",2025,2028]
["Intervento Piano precedente","DTCS","420-P","Opera Principale","Riassetto rete Teramo - Pescara","Risoluzione der. Rigida “Montesilvano – Pineto der. Villanova”","30/03/2020 (EL-444)",2025,2035]
["Intervento Piano precedente","DTCS","420-P","Opera Principale","Riassetto rete Teramo - Pescara","Risoluzione der. Rigida “Montesilvano – Montesilvano all. der. Villanova”",2021,2024,2026]
["Intervento Piano precedente","DTCS","420-P","Altre Opere","Riassetto rete Teramo - Pescara","Rimozione limitazioni CP S. Giovanni Teatino","-","-",2028]
["Intervento Piano precedente","DTCS","414-P","Intervento","Stazione 380 kV Rotello","Stazione 380 kV Rotello"," "," ",2023]
["Intervento Piano precedente","DTCS","414-P","Opera Principale","Stazione 380 kV Rotello","SE 380/150 kV Rotello e raccordi 380 kV",2010,"2011-01-01","2014-12-01"]
["Intervento Piano precedente","DTCS","414-P","Opera Principale","Stazione 380 kV Rotello","Nuovo el. 150 kV \"SE Rotello - Rotello smistamento\"","20/12/2013 (EL-321)",2021,2023]
["Intervento Piano precedente","DTCS","416-P","Intervento","Stazione 380 kV Tuscania","Stazione 380 kV Tuscania"," "," ",2024]
["Intervento Piano precedente","DTCS","416-P","Opera Principale","Stazione 380 kV Tuscania","SE 380/150 kV Tuscania e raccordi 380 kV.","2010-04-19","2011-05-01","2014-01-01"]
["Intervento Piano precedente","DTCS","416-P","Opera Principale","Stazione 380 kV Tuscania","Raccordo 150 kV in doppia terna della linea Canino - Arlena","30/07/2013 (EL-310)",2023,2024]
["Intervento Piano precedente","DTCS","405-P","Intervento","Elettrodotto 150 kV Portocannone – S. Salvo Z.I. e nuovo smistamento","Elettrodotto 150 kV Portocannone – S. Salvo Z.I. e nuovo smistamento",null," ",2024]
["Intervento Piano precedente","DTCS","405-P","Opera Principale","Elettrodotto 150 kV Portocannone – S. Salvo Z.I. e nuovo smistamento","Nuova SE S. Salvo smistamento e raccordi","16/11/2011 (EL-252)","2016-11-01","2018-07-30"]
["Intervento Piano precedente","DTCS","405-P","Opera Principale","Elettrodotto 150 kV Portocannone – S. Salvo Z.I. e nuovo smistamento","Ricostruzione direttrice tra le CP di Portocannone e S. Salvo Z.I.","16/11/2011 (EL-252)",2016,"2018-07-09"]
["Intervento Piano precedente","DTCS","405-P","Opera Principale","Elettrodotto 150 kV Portocannone – S. Salvo Z.I. e nuovo smistamento","Variante all'el. 150 kV \"Termoli Sinarca - Termoli Z.I.”","20/09/2018 (EL-402)",2023,2024]
["Intervento Piano precedente","DTCS","409-P","Intervento","Potenziamento della rete AT tra Terni e Roma","Potenziamento della rete AT tra Terni e Roma",null,2019,2035]
["Intervento Piano precedente","DTCS","409-P","Opera Principale","Potenziamento della rete AT tra Terni e Roma","SE 150/132 e raccordi tra Villavalle e Orte",2023,2033,2035]
["Intervento Piano precedente","DTCS","409-P","Opera Principale","Potenziamento della rete AT tra Terni e Roma","Risoluzione der. rigide area S. Lucia di Mentana","28/11/2018 (EL-408)",2023,2025]
["Intervento Piano precedente","DTCS","409-P","Opera Principale","Potenziamento della rete AT tra Terni e Roma","El. 150 kV Fiano - Nazzano","11/07/2012 (EL-286)",2021,2023]
["Intervento Piano precedente","DTCS","410-P","Intervento","Interventi sulla rete AT per la raccolta della produzione rinnovabile tra Abruzzo e Molise","Interventi sulla rete AT per la raccolta della produzione rinnovabile tra Abruzzo e Molise",2022,2025,2033]
["Intervento Piano precedente","DTCS","410-P","Opera Principale","Interventi sulla rete AT per la raccolta della produzione rinnovabile tra Abruzzo e Molise","Rimozione limitazioni el. 150 kV “Alanno – Villa S. Maria” e “Scafa – Guardiagrele – Casoli”",2022,2025,2028]
["Intervento Piano precedente","DTCS","410-P","Opera Principale","Interventi sulla rete AT per la raccolta della produzione rinnovabile tra Abruzzo e Molise","Rimozione limitazioni el. 150 kV “Villa S. Maria – Castel del Giudice derivazione Agnone”",2031,2032,2033]
["Intervento Piano precedente","DTCS","411-P","Intervento","Interventi sulla rete AT per la raccolta della produzione rinnovabile in Abruzzo e Lazio","Interventi sulla rete AT per la raccolta della produzione rinnovabile in Abruzzo e Lazio",null,2033,2035]
["Intervento Piano precedente","DTCS","411-P","Opera Principale","Interventi sulla rete AT per la raccolta della produzione rinnovabile in Abruzzo e Lazio","El.150kV “Pettino-Torrione”","12/11/2018 (EL-407)",2022,2023]
["Intervento Piano precedente","DTCS","411-P","Opera Principale","Interventi sulla rete AT per la raccolta della produzione rinnovabile in Abruzzo e Lazio","El.150kV “Torrione-Bazzano”","2021-12-01",2030,2035]
["Intervento Piano precedente","DTCS","411-P","Opera Principale","Interventi sulla rete AT per la raccolta della produzione rinnovabile in Abruzzo e Lazio","Rimozione limitazioni sugli el. 150 kV “Popoli – S.Pio – Bazzano”",2018,2020,2024]
["Intervento Piano precedente","DTCS","411-P","Opera Principale","Interventi sulla rete AT per la raccolta della produzione rinnovabile in Abruzzo e Lazio","Risoluz. Der rigida “Collarmele – Sulmona NI – der. S.Angelo”",2025,2030,2035]
["Intervento Piano precedente","DTCS","412-P","Intervento","Interventi sulla rete AT per la raccolta della produzione rinnovabile tra Campania e Molise","Interventi sulla rete AT per la raccolta della produzione rinnovabile tra Campania e Molise",2021,2026,2028]
["Intervento Piano precedente","DTCS","412-P","Opera Principale","Interventi sulla rete AT per la raccolta della produzione rinnovabile tra Campania e Molise","Rimozione limitazioni el. 150 kV “Campobasso – Cercemaggiore - Castelpagano”",2021,2022,2024]
["Intervento Piano precedente","DTCS","437-P (ex 407-S)","Intervento","Elettrodotto 150 kV “Villavalle – Leonessa”","Richiusura CP Leonessa",2024,2027,2035]
["Intervento Piano precedente","DTCS","437-P (ex 407-S)","Opera Principale","Elettrodotto 150 kV “Villavalle – Leonessa”","Nuova SE 220/150 kV e raccordi alla CP Leonessa",2024,2027,2035]
["Intervento Piano precedente","DTCS","437-P (ex 407-S)","Opera Principale","Elettrodotto 150 kV “Villavalle – Leonessa”","Nuovo raccordo 220 kV in derivazione all'el. Villavalle – S.Giacomo der. Provvidenza ",2024,2027,2035]
["Intervento Piano precedente","DTCS","434-P","Intervento","Nuovo collegamento AT “SSE Carrito FS – CP Collarmele”","Nuovo collegamento AT “SSE Carrito FS – CP Collarmele”",2023,2025,2035]
["Intervento Piano precedente","DTCS","434-P","Opera Principale","Nuovo collegamento AT “SSE Carrito FS – CP Collarmele”","El. 60 kV “Carrito FS – CP Collarmele”",2023,2025,2035]
["Intervento Piano precedente","DTCS","434-P","Opera Principale","Nuovo collegamento AT “SSE Carrito FS – CP Collarmele”","TR 150/60 kV",2023,2025,2035]
["Intervento Piano precedente","DTCS","435-P","Intervento","Nuovo collegamento AT “SSE Carsoli FS - CP Carsoli”","Nuovo collegamento AT “SSE Carsoli FS - CP Carsoli”",2023,2025,2035]
["Intervento Piano precedente","DTCS","435-P","Opera Principale","Nuovo collegamento AT “SSE Carsoli FS - CP Carsoli”","El. 60 kV “Carsoli FS – CP Carsoli”",2023,2025,2035]
["Intervento Piano precedente","DTCS","435-P","Opera Principale","Nuovo collegamento AT “SSE Carsoli FS - CP Carsoli”","TR 150/60 kV",2023,2025,2035]
["Intervento Piano precedente","DTCS","435-P","Opera Principale","Nuovo collegamento AT “SSE Carsoli FS - CP Carsoli”","Adeguamento SSE Carsoli FS",2023,2025,2035]
["Intervento Piano precedente","DTCS","433-P","Intervento","Rimozione derivazione rigida S. Angelo","Rimozione derivazione rigida S. Angelo",2022,2027,2035]
["Intervento Piano precedente","DTCS","433-P","Opera Principale","Rimozione derivazione rigida S. Angelo","Nuovo raccordo a 150 kV",2022,2027,2035]
["Intervento Piano precedente","DTCS","403-P","Intervento","Rete AAT/AT medio Adriatico","Rete AAT/AT medio Adriatico",null," ",2034]
["Intervento Piano precedente","DTCS","403-P","Opera Principale","Rete AAT/AT medio Adriatico","Riasetto tra la SE di Candia e la CP di Fossombrone","18/04/2019 (EL-421)",2032,2034]
["Intervento Piano precedente","DTCS","403-P","Opera Principale","Rete AAT/AT medio Adriatico","Nuovo el. 132 kV “Acquara – Porta Potenza Picena”",2019,2025,2027]
["Intervento Piano precedente","DTCS","403-P","Opera Principale","Rete AAT/AT medio Adriatico","Risoluzione der. Rigida CP Osimo",2019,2022,2023]
["Intervento Piano precedente","DTCS","403-P","Opera Principale","Rete AAT/AT medio Adriatico","Rimozione limitazioni el. 132 kV “Visso – Belforte”",2014,2015,2016]
["Intervento Piano precedente","DTCS","408-P","Intervento","Sviluppi di rete nell’area di Cassino","Sviluppi di rete nell’area di Cassino",null," ",2035]
["Intervento Piano precedente","DTCS","408-P","Opera Principale","Sviluppi di rete nell’area di Cassino","Nuova SE 150 kV Pontecorvo e raccordi","26/02/2019 (EL-418)",2024,2027]
["Intervento Piano precedente","DTCS","408-P","Opera Principale","Sviluppi di rete nell’area di Cassino","Rimozione limitazioni el. 150 kV “Ceprano - Cassino – Montelungo”",2013,2014,"2015-12-01"]
["Intervento Piano precedente","DTCS","408-P","Opera Principale","Sviluppi di rete nell’area di Cassino","Nuovo raccordo 150 kV alla SE S. Vittore",2025,2033,2035]
["Intervento Piano precedente","DTCS","408-P","Opera Principale","Sviluppi di rete nell’area di Cassino","Nuova SE 150 kV Wepa Lucca e raccordi ",2025,2033,2035]
["Intervento Piano precedente","DTCS","408-P","Opera Principale","Sviluppi di rete nell’area di Cassino","El. 150 kV “Cassino CP – Nuova SE 150 kV Wepa Lucca”",2025,2033,2035]
["Intervento Piano precedente","DTCS","408-P","Opera Principale","Sviluppi di rete nell’area di Cassino","El. 150 kV “Nuova SE Wepa Lucca – Ut. Wepa Lucca”",2025,2033,2035]
["Intervento Piano precedente","DTCS","418-P","Intervento","Riassetto rete AT Roma Sud – Latina - Garigliano","Riassetto rete AT Roma Sud – Latina - Garigliano",null," ",2030]
["Intervento Piano precedente","DTCS","418-P","Opera Principale","Riassetto rete AT Roma Sud – Latina - Garigliano","Ampliamento SE 380 kV Aprilia e nuovi collegamenti in cavo 150 kV alla SE Aprilia 150 kV","02/09/2014 (EL-337)",2020,2022]
["Intervento Piano precedente","DTCS","418-P","Opera Principale","Riassetto rete AT Roma Sud – Latina - Garigliano","Nuovo raccordo 150 kV Fondi CP – Fondi RT",2021,2024,2027]
["Intervento Piano precedente","DTCS","418-P","Opera Principale","Riassetto rete AT Roma Sud – Latina - Garigliano","Soluz. der. Rigida el. 150 kV “Cisterna – Latina Nuc. Der. Latina TLF",2022,2027,2030]
["Intervento Piano precedente","DTCS","418-P","Opera Principale","Riassetto rete AT Roma Sud – Latina - Garigliano","Nuovo el. 150 kV SE Aprilia – CP Aprilia",2024,2028,2031]
["Intervento Piano precedente","DTCS","418-P","Altre Opere","Riassetto rete AT Roma Sud – Latina - Garigliano","Rimozione limitazioni CP Pontinia","-","-",2021]
["Intervento Piano precedente","DTCS","419-P","Intervento","Riassetto rete Roma Ovest - Roma Sud Ovest","Riassetto rete Roma Ovest - Roma Sud Ovest",null,2023,2035]
["Intervento Piano precedente","DTCS","419-P","Opera Principale","Riassetto rete Roma Ovest - Roma Sud Ovest","El. 150 kV esistente “CP Fiumicino – CP Porto”",2021,2024,2035]
["Intervento Piano precedente","DTCS","419-P","Opera Principale","Riassetto rete Roma Ovest - Roma Sud Ovest","El. 150 kV “Roma Ovest – Raffinerie Smistamento”, “Raffinerie Smistamento – Interporto”, “Interporto – Porto” e “Porto – Ponte Galeria”",2024,2028,2035]
["Intervento Piano precedente","DTCS","419-P","Opera Principale","Riassetto rete Roma Ovest - Roma Sud Ovest","Nuovo el. 150 kV “Porto - Fiumicino”","13.04.2015 (EL-346)",2023,2025]
["Intervento Piano precedente","DTCS","421-P","Intervento","Razionalizzazione rete AT in Umbria","Razionalizzazione rete AT in Umbria",null,2023,2035]
["Intervento Piano precedente","DTCS","421-P","Opera Principale","Razionalizzazione rete AT in Umbria","El. 132 kV “Cappuccini – Camerino” e variante el. “Cappuccini – Preci”","27/11/2012 (EL-306)",2033,2035]
["Intervento Piano precedente","DTCS","421-P","Opera Principale","Razionalizzazione rete AT in Umbria","El. 132 kV “Villavalle – Spoleto” e nuova SE 132 e raccordi","11/02/2015 (EL-344)",2027,2030]
["Intervento Piano precedente","DTCS","421-P","Opera Principale","Razionalizzazione rete AT in Umbria","El. 132 kV “Magione – Ponte Rio”",2025,2033,2035]
["Intervento Piano precedente","DTCS","421-P","Opera Principale","Razionalizzazione rete AT in Umbria","Passaggio di tensione di esercizio da 120 kV a 132 kV.","06/06/2016 (EL-357)",2023,2024]
["Intervento Piano precedente","DTCS","428-P","Intervento ","Riassetto rete AT area Sud di Roma","Riassetto rete AT area Sud di Roma",null," ",2034]
["Intervento Piano precedente","DTCS","428-P","Opera Principale","Riassetto rete AT area Sud di Roma","Rimozione limitazioni direttrice 150 kV  “SE Valmontone - CP Cinecittà”",2017,2019,2024]
["Intervento Piano precedente","DTCS","428-P","Opera Principale","Riassetto rete AT area Sud di Roma","Nuovo el. 150 kV tra SE Roma Sud e la direttrice “SE Valmontone - CP Cinecittà”","12/11/2021 (EL-492)",2024,2028]
["Intervento Piano precedente","DTCS","428-P","Opera Principale","Riassetto rete AT area Sud di Roma","Nuovo el. 150 kV per rimozione der. rigida Ciampino","12/11/2021 (EL-492)",2032,2034]
["Intervento Piano precedente","DTCS","407-P","Intervento ","Sviluppi di rete sulla direttrice Villavalle – Popoli","Sviluppi di rete sulla direttrice Villavalle – Popoli",2021,2024,2035]
["Intervento Piano precedente","DTCS","407-P","Opera Principale","Sviluppi di rete sulla direttrice Villavalle – Popoli","Adeguamento SE 150 kV Pettino",2021,2024,2035]
["Intervento Piano precedente","DTCS","438-P","Intervento ","Risoluzione derivazione rigida Trelleborg","Risoluzione derivazione rigida Trelleborg",2026,2033,2035]
["Intervento Piano precedente","DTCS","438-P","Opera Principale","Risoluzione derivazione rigida Trelleborg","El. 150 kV “Pirelli All – Trelleborg”",2026,2033,2035]
["Intervento Piano precedente","DTCS","438-P","Opera Principale","SE smistamento in e-e sulla “Acquoria – Arci” 150 kV","SE smistamento in e-e sulla “Acquoria – Arci” 150 kV",2026,2033,2035]
["Intervento Piano precedente","DTCS","441-P","Intervento","Razionalizzazione rete AT Costa Marchigiana","Razionalizzazione rete AT Costa Marchigiana",2025,2033,2035]
["Intervento Piano precedente","DTCS","441-P","Opera Principale","Razionalizzazione rete AT Costa Marchigiana","Nuovi raccordi di Loreto RT in e-e all'el. 132 kV \"CP Sirolo-CP Loreto\"",2025,2033,2035]
["Intervento Piano precedente","DTCS","441-P","Opera Principale","Razionalizzazione rete AT Costa Marchigiana","Nuovi raccordi di \"P.S. Elpidio-CP Colmarino\"",2025,2033,2035]
["Intervento Piano precedente","DTCS","441-P","Altre Opere","Razionalizzazione rete AT Costa Marchigiana","Razionalizzazione associata",2025,2033,2035]
["Intervento Piano precedente","DTCS","442-P","Intervento ","Razionalizzazione rete AT S. Benedetto del Tronto","Razionalizzazione rete AT S. Benedetto del Tronto",2023,2033,2035]
["Intervento Piano precedente","DTCS","442-P","Opera Principale","Razionalizzazione rete AT S. Benedetto del Tronto","Nuova SE di smistamento 132 kV in doppia sbarra e raccordi",2023,2033,2035]
["Intervento Piano precedente","DTCS","442-P","Opera Principale","Razionalizzazione rete AT S. Benedetto del Tronto","Nuovi raccordi della Nuova SE 132 kV in e-e all’el.132kV “M. Prandone RT. - Roseto RT”",2023,2033,2035]
["Intervento Piano precedente","DTCS","442-P","Opera Principale","Razionalizzazione rete AT S. Benedetto del Tronto","Bypass SE Porto S.Giorgio RT e SE M.Prandone RT",2023,2033,2035]
["Intervento Piano precedente","DTCS","442-P","Altre Opere","Razionalizzazione rete AT S. Benedetto del Tronto","Razionalizzazione associata",2023,2033,2035]
["Intervento Piano precedente","DTCS","443-P","Intervento ","Razionalizzazione rete AT Appennino Umbro-Marchigiano","Razionalizzazione rete AT Appennino Umbro-Marchigiano",2026,2033,2035]
["Intervento Piano precedente","DTCS","443-P","Opera Principale","Razionalizzazione rete AT Appennino Umbro-Marchigiano","Nuovi raccordi di Genga RT in e-e all’el. 132 Kv “CP Fabriano -CP S.Elena”",2026,2033,2035]
["Intervento Piano precedente","DTCS","443-P","Opera Principale","Razionalizzazione rete AT Appennino Umbro-Marchigiano","Nuovo elettrodotto 132 kV “CP Iesi–Iesi RT”",2026,2033,2035]
["Intervento Piano precedente","DTCS","443-P","Altre Opere","Razionalizzazione rete AT Appennino Umbro-Marchigiano","Razionalizzazione associata",2026,2033,2035]
["Intervento Piano precedente","DTCS","444-P","Intervento ","Stazione 220/132 kV Capannelle","Stazione 220/132 kV Capannelle",2024,2033,2035]
["Intervento Piano precedente","DTCS","444-P","Opera Principale","Stazione 220/132 kV Capannelle","Nuova SE 220/132 kV Capannelle e raccordi",2024,2033,2035]
["Intervento Piano precedente","DTCS","444-P","Opera Principale","Stazione 220/132 kV Capannelle","El. 132 kV “Capannelle -Cagnano”",2024,2033,2035]
["Intervento Piano precedente","DTCS","444-P","Altre Opere","Stazione 220/132 kV Capannelle","Razionalizzazione rete AT",2024,2033,2035]
["Intervento Piano precedente","DTCS","501-P","Intervento ","Elettrodotto 380 kV Sorgente-Rizziconi","Elettrodotto 380 kV Sorgente-Rizziconi",null," ",2027]
["Intervento Piano precedente","DTCS","501-P","Altre Opere","Elettrodotto 380 kV Sorgente-Rizziconi","Riassetto rete AT Messina: “Contesse - Contesse FS”, “S. Cosimo - Messina R.”, “Villafranca FS/Villafranca CP - Pace del Mela” e dismissioni associate","13/05/2016 (RS-004)",2024,2027]
["Intervento Piano precedente","DTCS","501-P","Altre Opere","Elettrodotto 380 kV Sorgente-Rizziconi","Raccordo 150 kV “S. Procopio – Palmi Sud”","17/05/2017 (EL-369)",2024,2026]
["Intervento Piano precedente","DTCS","501-P","Altre Opere","Elettrodotto 380 kV Sorgente-Rizziconi","Riassetto rete 150 kV Reggio Calabria",2023,2025,2027]
["Intervento Piano precedente","DTCS","506-P","Intervento ","Elettrodotto 380 kV Montecorvino – Avellino Nord – Benevento II","Elettrodotto 380 kV Montecorvino – Avellino Nord – Benevento II",null," ","2028/2029"]
["Intervento Piano precedente","DTCS","506-P","Opera Principale","Elettrodotto 380 kV Montecorvino – Avellino Nord – Benevento II","Nuovo el. 380 kV Montecorvino – Avellino N. 380 kV","09/06/2010 (EL-209)",2026,"2028/2029"]
["Intervento Piano precedente","DTCS","506-P","Opera Principale","Elettrodotto 380 kV Montecorvino – Avellino Nord – Benevento II","Nuovo el. 380 kV Avellino N.– Benevento III",2021,2026,"2028/2029"]
["Intervento Piano precedente","DTCS","506-P","Opera Principale","Elettrodotto 380 kV Montecorvino – Avellino Nord – Benevento II","Rimozione limitazioni el. 380 kV “Bisaccia - Avellino – S.Sofia”",2022,2023,2024]
["Intervento Piano precedente","DTCS","506-P","Opera Principale","Elettrodotto 380 kV Montecorvino – Avellino Nord – Benevento II","Rimozione limitazioni el. 380 kV  “Montecorvino – S.Sofia”",2022,2023,2025]
["Intervento Piano precedente","DTCS","506-P","Opera Principale","Elettrodotto 380 kV Montecorvino – Avellino Nord – Benevento II","SE 380/150 kV di Avellino N. e raccordi","26/06/2008 (EL-129)","12/2010","12/2014"]
["Intervento Piano precedente","DTCS","506-P","Altre Opere","Elettrodotto 380 kV Montecorvino – Avellino Nord – Benevento II","Razionalizzazione rete AT tra le SE Montecorvino e Benevento II.","2024/2025",2028,2035]
["Intervento Piano precedente","DTCS","505-P","Intervento ","Stazioni 380/150 kV e relativi raccordi alla rete AT per la raccolta di produzione da fonte rinnovabile: rinforzi rete AAT e AT nell’area tra Foggia e Benevento","Stazioni 380/150 kV e relativi raccordi alla rete AT per la raccolta di produzione da fonte rinnovabile: rinforzi rete AAT e AT nell’area tra Foggia e Benevento",null," ",2030]
["Intervento Piano precedente","DTCS","505-P","Opera Principale","Stazioni 380/150 kV e relativi raccordi alla rete AT per la raccolta di produzione da fonte rinnovabile: rinforzi rete AAT e AT nell’area tra Foggia e Benevento","Nuova SE 380/150 kV Bisaccia in e-e alla linea 380 kV “Matera – S. Sofia”.","2006-07-24",2009,"2010-12-01"]
["Intervento Piano precedente","DTCS","505-P","Opera Principale","Stazioni 380/150 kV e relativi raccordi alla rete AT per la raccolta di produzione da fonte rinnovabile: rinforzi rete AAT e AT nell’area tra Foggia e Benevento","Nuova SE 380/150 kV Deliceto in e-e alla linea a 380 kV “Foggia – Candela”.","2005-02-19",2009,"2011-02-01"]
["Intervento Piano precedente","DTCS","505-P","Opera Principale","Stazioni 380/150 kV e relativi raccordi alla rete AT per la raccolta di produzione da fonte rinnovabile: rinforzi rete AAT e AT nell’area tra Foggia e Benevento","Nuova SE 380/150 kV Troia in e-e alla linea a 380 kV “Foggia – Benevento II”.",2007,2010,"2011-05-01"]
["Intervento Piano precedente","DTCS","505-P","Opera Principale","Stazioni 380/150 kV e relativi raccordi alla rete AT per la raccolta di produzione da fonte rinnovabile: rinforzi rete AAT e AT nell’area tra Foggia e Benevento","Nuovo el. 380 kV “Deliceto - Bisaccia”","18/01/2012 (EL-267)",2020,2022]
["Intervento Piano precedente","DTCS","505-P","Opera Principale","Stazioni 380/150 kV e relativi raccordi alla rete AT per la raccolta di produzione da fonte rinnovabile: rinforzi rete AAT e AT nell’area tra Foggia e Benevento","PST SE Bisaccia",2019,"2019-03-01",2023]
["Intervento Piano precedente","DTCS","505-P","Opera Principale","Stazioni 380/150 kV e relativi raccordi alla rete AT per la raccolta di produzione da fonte rinnovabile: rinforzi rete AAT e AT nell’area tra Foggia e Benevento","ATR 380/150 kV SE Bisaccia",2019,2020,2023]
["Intervento Piano precedente","DTCS","505-P","Opera Principale","Stazioni 380/150 kV e relativi raccordi alla rete AT per la raccolta di produzione da fonte rinnovabile: rinforzi rete AAT e AT nell’area tra Foggia e Benevento","Nuovo el. 150 kV “SE Troia-Celle San Vito","03/12/2010 (EL-224)",2025,2028]
["Intervento Piano precedente","DTCS","505-P","Opera Principale","Stazioni 380/150 kV e relativi raccordi alla rete AT per la raccolta di produzione da fonte rinnovabile: rinforzi rete AAT e AT nell’area tra Foggia e Benevento","Nuovo el. 150 kV “Troia – Alberona”","07/06/2019 (EL-426)",2026,2030]
["Intervento Piano precedente","DTCS","505-P","Opera Principale","Stazioni 380/150 kV e relativi raccordi alla rete AT per la raccolta di produzione da fonte rinnovabile: rinforzi rete AAT e AT nell’area tra Foggia e Benevento","Nuovo el. 150 kV “SE Troia - SE Troia/Eos1 – Troia CP”","09/10/2012 (EL-291)",2025,2028]
["Intervento Piano precedente","DTCS","509-P","Intervento ","Riassetto rete nord Calabria","Riassetto rete nord Calabria",null," ",2030]
["Intervento Piano precedente","DTCS","509-P","Opera Principale","Riassetto rete nord Calabria","Nuova SE 380 kV di Aliano e relativi raccordi",2007,2011,"2012-09-01"]
["Intervento Piano precedente","DTCS","509-P","Opera Principale","Riassetto rete nord Calabria","Elettrodotto 380 kV Feroleto-Maida","23/04/2009 (EL-156)",2012,"2013-11-01"]
["Intervento Piano precedente","DTCS","509-P","Opera Principale","Riassetto rete nord Calabria","Declassamento a 150 kV della direttrice “Rotonda – Pisticci – Taranto N. – Villa Castelli – Brindisi Pignicelle”",2012,2013,"2014-07-01"]
["Intervento Piano precedente","DTCS","509-P","Opera Principale","Riassetto rete nord Calabria","Nuovo el. In cavo 150 kV “Laino – Rotonda”","08/09/2011 (EL-256)",2014,"2015-08-07"]
["Intervento Piano precedente","DTCS","509-P","Opera Principale","Riassetto rete nord Calabria","Adeguamento 150 kV SE Rotonda",2012,"2013-07-01",2021]
["Intervento Piano precedente","DTCS","509-P","Opera Principale","Riassetto rete nord Calabria","Ottemperanza prescrizione 2 DEC VIA n. 3062 del 19/06/1998 relativo a elettrodotto in DT a 380 kV Laino - Rizziconi","13/06/2017 (EL-379)",2021,2023]
["Intervento Piano precedente","DTCS","509-P","Opera Principale","Riassetto rete nord Calabria","Revisione prescrizione 1 del DEC VIA n. 3062 del 19/06/1998 relativo a elettrodotto in DT a 380 kV Laino - Rizziconi","2009 23/02/2017",2024,2030]
["Intervento Piano precedente","DTCS","509-P","Opera Principale","Riassetto rete nord Calabria","Razionalizzazione area di Castrovillari","15/09/2011 (EL-260)",2027,2030]
["Intervento Piano precedente","DTCS","509-P","Opera Principale","Riassetto rete nord Calabria","Variante in cavo 150 kV “CP Feroleto – Soveria Mannelli”.","02/09/2014 (EL-338)",2024,2026]
["Intervento Piano precedente","DTCS","509-P","Opera Principale","Riassetto rete nord Calabria","Elettrodotto 380 kV “Laino – Altomonte”","19/01/2010 (EL-190)",2026,2029]
["Intervento Piano precedente","DTCS","509-P","Opera Principale","Riassetto rete nord Calabria","Riassetto 150 kV area Pisticci",2021,2022,2022]
["Intervento Piano precedente","DTCS","509-P","Altre Opere","Riassetto rete nord Calabria","Razionalizzazione delle esistenti reti AT ricadenti nell’area nel territorio del Parco del Pollino","13/06/2017 (EL-379)\n23/02/2017",2020,2027]
["Intervento Piano precedente","DTCS","537-P","Intervento ","Elettrodotto 220 kV Arenella – Colli Aminei","Elettrodotto 220 kV Arenella – Colli Aminei",null,2026,2030]
["Intervento Piano precedente","DTCS","537-P","Opera Principale","Elettrodotto 220 kV Arenella – Colli Aminei","Potenziamento el- 220 kV Arenella – Colli A.","2022 EL-519",2026,2030]
["Intervento Piano precedente","DTCS","514-P","Intervento ","Riassetto rete a 220 kV città di Napoli","Riassetto rete a 220 kV città di Napoli",null," ",2028]
["Intervento Piano precedente","DTCS","514-P","Opera Principale","Riassetto rete a 220 kV città di Napoli","Nuovo el. 220 kV “Napoli Dir. – Castelluccia”","12/05/2010 (EL-197)","2019-04-01",2021]
["Intervento Piano precedente","DTCS","514-P","Opera Principale","Riassetto rete a 220 kV città di Napoli","Nuovo el. 220 kV “Napoli Dir. - Napoli Levante”","12/05/2010 (EL-197)",2017,"2018-12-13"]
["Intervento Piano precedente","DTCS","514-P","Opera Principale","Riassetto rete a 220 kV città di Napoli","Raccordi 220 kV CP Fuorigrotta ","23/11/2012 (EL-288)",2024,2025]
["Intervento Piano precedente","DTCS","514-P","Opera Principale","Riassetto rete a 220 kV città di Napoli","El. 220 kV “Castelluccia – S. Sebastiano”","30/03/2017 (EL-371)","2019-07-01",2021]
["Intervento Piano precedente","DTCS","514-P","Opera Principale","Riassetto rete a 220 kV città di Napoli","El. 220 kV “Napoli Lev – Ercolano",2022,2028,2032]
["Intervento Piano precedente","DTCS","504-P","Intervento ","Riassetto rete AT penisola Sorrentina","Riassetto rete AT penisola Sorrentina",null," ",2032]
["Intervento Piano precedente","DTCS","504-P","Opera Principale","Riassetto rete AT penisola Sorrentina","Collegamento in e – e della CP Sorrento","10/11/2010 (EL-222)",2013,"2015-11-01"]
["Intervento Piano precedente","DTCS","504-P","Opera Principale","Riassetto rete AT penisola Sorrentina","Nuova SE 220/150 kV di Scafati e raccordi","07/05/2012 (EL-280)","2019-08-01",2021]
["Intervento Piano precedente","DTCS","504-P","Opera Principale","Riassetto rete AT penisola Sorrentina","Nuova SE 150 kV Sorrento","12/01/2012 (EL-269)","2019-01-01","2020-10-01"]
["Intervento Piano precedente","DTCS","504-P","Opera Principale","Riassetto rete AT penisola Sorrentina","Nuovo collegamento 150 kV “Sorrento – Vico Equense – Agerola – Lettere”","23/04/2013 (EL-307)",2022,2025]
["Intervento Piano precedente","DTCS","504-P","Opera Principale","Riassetto rete AT penisola Sorrentina","Connessione CP Mercatello a esistente el. 150 kV “Lettere – Montecorvino”","22/03/2017 (EL-363)","2018-10-15","2019-12-01"]
["Intervento Piano precedente","DTCS","504-P","Opera Principale","Riassetto rete AT penisola Sorrentina","Interconnessione 150 kV CP Solofra-CP Mercato S. Severino-CP Baronissi","2022 (EL-512)",2024,2028]
["Intervento Piano precedente","DTCS","504-P","Opera Principale","Riassetto rete AT penisola Sorrentina","Rimozione limitazioni el. 150 kV “Lettere – Scafati”",2012,2013,2013]
["Intervento Piano precedente","DTCS","504-P","Opera Principale","Riassetto rete AT penisola Sorrentina","Rimozione limitazioni el. 220 kV “Nocera – Salerno N.” e “Nocera – S. Valentino”.",2013,2014,2014]
["Intervento Piano precedente","DTCS","504-P","Opera Principale","Riassetto rete AT penisola Sorrentina","SE 150 kV Torre C.le e riassetto el. 150 kV ","08/05/2019 (EL-422)",2021,2024]
["Intervento Piano precedente","DTCS","504-P","Opera Principale","Riassetto rete AT penisola Sorrentina","Nuovo el. 150 kV tra area Castellammare e Sorrento",2025,2029,2032]
["Intervento Piano precedente","DTCS","504-P","Opera Principale","Riassetto rete AT penisola Sorrentina","Nuovo el. 150 kV tra CP Castellammare – Fincantieri","04/09/2017 (EL-387)","2019-05-01","2020-09-01"]
["Intervento Piano precedente","DTCS","504-P","Opera Principale","Riassetto rete AT penisola Sorrentina","Raccordi 150 kV alla CP Torre Sud e utenze connesse",2022,2024,2025]
["Intervento Piano precedente","DTCS","504-P","Opera Principale","Riassetto rete AT penisola Sorrentina","Nuova SE 150/60 Kv area Fuorni/Salerno Industriale",2022,2023,2025]
["Intervento Piano precedente","DTCS","504-P","Altre Opere","Riassetto rete AT penisola Sorrentina","Razionalizzazione della locale rete AT",2019,2023,2030]
["Intervento Piano precedente","DTCS","504-P","Altre Opere","Riassetto rete AT penisola Sorrentina","Adeguamento a 150 kV delle CP Agerola, Vico Eq., Lettere e Castellamare","-","-",2023]
["Intervento Piano precedente","DTCS","504-P","Altre Opere","Riassetto rete AT penisola Sorrentina","Rimozione limitazioni nelle CP 220 kV Salerno e S. Valentino","-","-",2018]
["Intervento Piano precedente","DTCS","510-P","Intervento ","Stazioni 380/150 kV e relativi raccordi alla rete AT per la raccolta di produzione da fonte rinnovabile nel Sud","Stazioni 380/150 kV e relativi raccordi alla rete AT per la raccolta di produzione da fonte rinnovabile nel Sud",null," ",2032]
["Intervento Piano precedente","DTCS","510-P","Opera Principale","Stazioni 380/150 kV e relativi raccordi alla rete AT per la raccolta di produzione da fonte rinnovabile nel Sud","Nuova SE 380/150 kV Montesano","20/10/2015 (EL-351)",2031,2035]
["Intervento Piano precedente","DTCS","510-P","Opera Principale","Stazioni 380/150 kV e relativi raccordi alla rete AT per la raccolta di produzione da fonte rinnovabile nel Sud","Nuova SE 380/150 kV Castellaneta","2006-12-29",2011,"2012-06-01"]
["Intervento Piano precedente","DTCS","510-P","Opera Principale","Stazioni 380/150 kV e relativi raccordi alla rete AT per la raccolta di produzione da fonte rinnovabile nel Sud","Raccordi a 150 kV in doppia terna dall’el. “CP Palagiano – CP Gioia del Colle” alla SE Castellaneta","08/09/2014 (EL-335)",2026,2029]
["Intervento Piano precedente","DTCS","510-P","Opera Principale","Stazioni 380/150 kV e relativi raccordi alla rete AT per la raccolta di produzione da fonte rinnovabile nel Sud","Nuova SE 380/150 kV Erchie","2006-11-29",2012,"2013-06-01"]
["Intervento Piano precedente","DTCS","510-P","Opera Principale","Stazioni 380/150 kV e relativi raccordi alla rete AT per la raccolta di produzione da fonte rinnovabile nel Sud","Nuova SE 380/150 kV Manfredonia","2007-05-30",2012,"2014-02-01"]
["Intervento Piano precedente","DTCS","510-P","Opera Principale","Stazioni 380/150 kV e relativi raccordi alla rete AT per la raccolta di produzione da fonte rinnovabile nel Sud","Reattore Erchie",2016,2016,"2018-08-07"]
["Intervento Piano precedente","DTCS","510-P","Opera Principale","Stazioni 380/150 kV e relativi raccordi alla rete AT per la raccolta di produzione da fonte rinnovabile nel Sud","Ampliamento della SE 380 kV di Brindisi Sud","2007-02-08",2010,"2012-09-01"]
["Intervento Piano precedente","DTCS","510-P","Opera Principale","Stazioni 380/150 kV e relativi raccordi alla rete AT per la raccolta di produzione da fonte rinnovabile nel Sud","Ampliamento della SE 380 kV di Galatina","2008-12-19",2011,"2014-07-01"]
["Intervento Piano precedente","DTCS","510-P","Opera Principale","Stazioni 380/150 kV e relativi raccordi alla rete AT per la raccolta di produzione da fonte rinnovabile nel Sud","Ampliamento della SE 380 kV di Foggia","2009-05-07",2011,"2014-02-01"]
["Intervento Piano precedente","DTCS","510-P","Opera Principale","Stazioni 380/150 kV e relativi raccordi alla rete AT per la raccolta di produzione da fonte rinnovabile nel Sud","Raccordi a 150 kV alla nuova SE 380/150 kV Belcastro","2020 (EL-436)",2026,2030]
["Intervento Piano precedente","DTCS","510-P","Opera Principale","Stazioni 380/150 kV e relativi raccordi alla rete AT per la raccolta di produzione da fonte rinnovabile nel Sud","Raccordi a 150 kV alla SE Garaguso",2025,2029,2032]
["Intervento Piano precedente","DTCS","510-P","Opera Principale","Stazioni 380/150 kV e relativi raccordi alla rete AT per la raccolta di produzione da fonte rinnovabile nel Sud","Raccordi a 150 kV alla SE Melfi e relativo ampliamento a 150 kV con ATR 380/150 kV","06/12/2017 (EL-383)",2023,2025]
["Intervento Piano precedente","DTCS","512-P","Intervento ","Stazione 380 - 150 kV di Palo del Colle","Stazione 380 - 150 kV di Palo del Colle",null," ",2033]
["Intervento Piano precedente","DTCS","512-P","Opera Principale","Stazione 380 - 150 kV di Palo del Colle","Nuova sezione a 150 kV SE Palo del Colle, ATR 380/150 kV e raccordi 150 kV Modugno – Bitonto","13/05/2009 (EL-133)\n21/03/2018 (EL-133 VL)",2014,"2017-04-11"]
["Intervento Piano precedente","DTCS","512-P","Opera Principale","Stazione 380 - 150 kV di Palo del Colle","El. 150 kV in cavo “Palo del Colle - Bari Termica”","13/05/2009 (EL-133)\n21/03/2018 (EL-133 VL)",2014,"2019-10-01"]
["Intervento Piano precedente","DTCS","512-P","Opera Principale","Stazione 380 - 150 kV di Palo del Colle","Ricostruzione SE 150 kV Bari Termica e relativi raccordi","20/12/2022 (EL-434)",2025,2033]
["Intervento Piano precedente","DTCS","512-P","Opera Principale","Stazione 380 - 150 kV di Palo del Colle","Ricostruzione elettrodotto 150 kV “Corato - Bari Termica”","22/04/2009 (EL-151)",2029,2033]
["Intervento Piano precedente","DTCS","512-P","Opera Principale","Stazione 380 - 150 kV di Palo del Colle","Raccordi 150 kV della SE Palo del Colle alle linee “Bari Industriale 2 – Corato”",2027,2031,2034]
["Intervento Piano precedente","DTCS","511-P","Intervento ","Stazione 380 kV S. Sofia","Stazione 380 kV S. Sofia",null," ",2035]
["Intervento Piano precedente","DTCS","511-P","Opera Principale","Stazione 380 kV S. Sofia","Reattore SE 380 kV S. Sofia",2011,2012,"2012-10-01"]
["Intervento Piano precedente","DTCS","511-P","Opera Principale","Stazione 380 kV S. Sofia","Nuovo el. 150 kV “CP Saint Gobain – CP Caserta Sud”","2004-03-05",2012,"2016-12-30"]
["Intervento Piano precedente","DTCS","511-P","Opera Principale","Stazione 380 kV S. Sofia","Nuovo el. 150 kV “CP Saint Gobain - SE S. Sofia”","25/10/2019 (EL- 431)",2023,2035]
["Intervento Piano precedente","DTCS","511-P","Opera Principale","Stazione 380 kV S. Sofia","Raccordi della SE S. Sofia alla linea 150 kV “Fratta - S. Giuseppe 2”",2024,2028,2032]
["Intervento Piano precedente","DTCS","511-P","Opera Principale","Stazione 380 kV S. Sofia","Nuova SE 220/150/60 kV presso Nola Ind.",2024,2028,2032]
["Intervento Piano precedente","DTCS","511-P","Opera Principale","Stazione 380 kV S. Sofia","Ricostruzione tratti di elettrodotti a 150 kV",2009,2013,2013]
["Intervento Piano precedente","DTCS","530-P","Intervento ","Stazione 380 kV S. Maria Capua Vetere","Stazione 380 kV S. Maria Capua Vetere",2021,2025,2028]
["Intervento Piano precedente","DTCS","530-P","Opera Principale","Stazione 380 kV S. Maria Capua Vetere","Raccordi 380 kV SE S. Maria Capua Vetere in entra-esce alla linea Patria – S. Sofia.",2023,2025,2028]
["Intervento Piano precedente","DTCS","538-P","Intervento ","Stazione 380/150 kV Deliceto","SE 380/150 kV Deliceto",null,2021,2024]
["Intervento Piano precedente","DTCS","538-P","Opera Principale","Stazione 380/150 kV Deliceto","Potenziamento ATR 380/150 kV",2019,2021,2024]
["Intervento Piano precedente","DTCS","539-P","Intervento ","Stazione 380/150 kV Galatina","SE 380/150 kV Galatina",null,2023,2024]
["Intervento Piano precedente","DTCS","539-P","Opera Principale","Stazione 380/150 kV Galatina","Potenziamento ATR 380/150 kV",2019,2023,2024]
["Intervento Piano precedente","DTCS","515-P","Intervento ","Stazione 220 kV Maddaloni","Stazione 220 kV Maddaloni",null,2032,2035]
["Intervento Piano precedente","DTCS","515-P","Opera Principale","Stazione 220 kV Maddaloni","Adeguamento SE 220 kV Maddaloni",2013,2032,2035]
["Intervento Piano precedente","DTCS","540-P","Intervento ","Stazione 150 kV Tanagro","Stazione 150 kV Tanagro",2023,2024,2025]
["Intervento Piano precedente","DTCS","540-P","Opera Principale","Stazione 150 kV Tanagro","Adeguamento SE 150 kV",2023,2024,2025]
["Intervento Piano precedente","DTCS","541-P","Intervento ","Stazione 150 kV Bussento","Stazione 150 kV Bussento",2023,2024,2025]
["Intervento Piano precedente","DTCS","541-P","Opera Principale","Stazione 150 kV Bussento","Adeguamento SE 150 kV",2023,2024,2025]
["Intervento Piano precedente","DTCS","541-P","Opera Principale","Stazione 150 kV Bussento","Condensatore 54 MVAr",2023,2024,2025]
["Intervento Piano precedente","DTCS","536-P (ex 516-P)","Intervento ","Interconnessione a 150 kV isola di Ischia","Interconnessione a 150 kV isola di Ischia",2023,2026,2029]
["Intervento Piano precedente","DTCS","536-P (ex 516-P)","Opera Principale","Interconnessione a 150 kV isola di Ischia","Secondo collegamento 150 kV isola Ischia",2023,2026,2029]
["Intervento Piano precedente","DTCS","536-P (ex 516-P)","Opera Principale","Interconnessione a 150 kV isola di Ischia","Nuova SE 150 kV Ischia",2023,2026,2029]
["Intervento Piano precedente","DTCS","517-P","Intervento ","Interventi sulla rete AT per la raccolta della produzione rinnovabile tra Lazio e Campania","Interventi sulla rete AT per la raccolta della produzione rinnovabile tra Lazio e Campania",null," ",2028]
["Intervento Piano precedente","DTCS","517-P","Opera Principale","Interventi sulla rete AT per la raccolta della produzione rinnovabile tra Lazio e Campania","Rimozione limitazioni sulla direttrice 150 kV “Ceprano - Santa Maria Capua Vetere”",2014,2015,2020]
["Intervento Piano precedente","DTCS","517-P","Opera Principale","Interventi sulla rete AT per la raccolta della produzione rinnovabile tra Lazio e Campania","Rimozione limitazioni el. 150 kV “Marzanello- Montelungo”",2014,2015,2015]
["Intervento Piano precedente","DTCS","517-P","Altre Opere","Interventi sulla rete AT per la raccolta della produzione rinnovabile tra Lazio e Campania","Rimozione limitazioni Cabine Primarie",2024,2028,2028]
["Intervento Piano precedente","DTCS","518-P","Intervento ","Interventi sulla rete AT per la raccolta della produzione rinnovabile in Campania","Interventi sulla rete AT per la raccolta della produzione rinnovabile in Campania",null," ",2035]
["Intervento Piano precedente","DTCS","518-P","Opera Principale","Interventi sulla rete AT per la raccolta della produzione rinnovabile in Campania","Rimozione limitazioni sulla direttrice 150 kV “Benevento Ind.le – Bisaccia 380 kV – Contursi”",2008,2009,2013]
["Intervento Piano precedente","DTCS","518-P","Opera Principale","Interventi sulla rete AT per la raccolta della produzione rinnovabile in Campania","Rimozione limitazioni sulle direttrici 150 kV “Montecorvino – Rotonda”","26/01/2020 (EL-461)",2031,2035]
["Intervento Piano precedente","DTCS","518-P","Opera Principale","Interventi sulla rete AT per la raccolta della produzione rinnovabile in Campania","El. 150 kV “Campagna – Contursi”",2009,2012,2012]
["Intervento Piano precedente","DTCS","518-P","Opera Principale","Interventi sulla rete AT per la raccolta della produzione rinnovabile in Campania","El. 150 kV “Montecorvino – Campagna”","2020 (EL-434)",2023,2026]
["Intervento Piano precedente","DTCS","518-P","Opera Principale","Interventi sulla rete AT per la raccolta della produzione rinnovabile in Campania","Installazione DTR el. 150 kV “Benevento II-Foiano” e “Benevento II – Montefalcone”",2013,2014,2014]
["Intervento Piano precedente","DTCS","518-P","Opera Principale","Interventi sulla rete AT per la raccolta della produzione rinnovabile in Campania","Installazione DTR el. 150 kV “Bisaccia-Bisaccia 380”",2013,2014,2014]
["Intervento Piano precedente","DTCS","518-P","Opera Principale","Interventi sulla rete AT per la raccolta della produzione rinnovabile in Campania","Installazione DTR el. “Bisaccia – Matera”, “Montecorvino-S.Sofia” e  “Tusciano-Laino”",2012,2013,2015]
["Intervento Piano precedente","DTCS","518-P","Opera Principale","Interventi sulla rete AT per la raccolta della produzione rinnovabile in Campania","Rimozione limitazioni el. 150 kV “Bisaccia – Bisaccia 380 kV”",2012,2013,2014]
["Intervento Piano precedente","DTCS","518-P","Altre Opere","Interventi sulla rete AT per la raccolta della produzione rinnovabile in Campania","Rimozione limitazioni nelle Cabine Primarie","-","-",2026]
["Intervento Piano precedente","DTCS","519-P","Intervento ","Interventi sulla rete AT per la raccolta della produzione rinnovabile in Puglia","Interventi sulla rete AT per la raccolta della produzione rinnovabile in Puglia",2023,2029,2032]
["Intervento Piano precedente","DTCS","519-P","Opera Principale","Interventi sulla rete AT per la raccolta della produzione rinnovabile in Puglia","Elettrodotto 150 kV \"Foggia-Accadia-Orsara\"",2023,2029,2032]
["Intervento Piano precedente","DTCS","519-P","Altre Opere","Interventi sulla rete AT per la raccolta della produzione rinnovabile in Puglia","Rimozione limitazioni nelle CP presenti lungo le direttrici 150 kV",null,null,2024]
["Intervento Piano precedente","DTCS","520-P","Intervento ","Interventi sulla rete AT per la raccolta della produzione rinnovabile in Basilicata","Interventi sulla rete AT per la raccolta della produzione rinnovabile in Basilicata",null," ",2027]
["Intervento Piano precedente","DTCS","520-P","Opera Principale","Interventi sulla rete AT per la raccolta della produzione rinnovabile in Basilicata","Potenziamento el. 150 kV “Matera CP - Grottole – Salandra – S. Mauro Forte”","01/07/2009 (EL-163)",2023,2024]
["Intervento Piano precedente","DTCS","520-P","Opera Principale","Interventi sulla rete AT per la raccolta della produzione rinnovabile in Basilicata","Potenziamento linea 150 kV “Matera SE – Acquaviva delle Fonti”","12/10/2010 (EL-218)",2024,2027]
["Intervento Piano precedente","DTCS","520-P","Opera Principale","Interventi sulla rete AT per la raccolta della produzione rinnovabile in Basilicata","Rimozione limitazioni sulle direttrici 150 kV afferenti i nodi di Melfi e Potenza.",2012,2013,2014]
["Intervento Piano precedente","DTCS","520-P","Opera Principale","Interventi sulla rete AT per la raccolta della produzione rinnovabile in Basilicata","Variante in cavo elettrodotto 150 kV Matera SE – CP Matera.","04/02/2009 (EL-149)",2011,2011]
["Intervento Piano precedente","DTCS","520-P","Altre Opere","Interventi sulla rete AT per la raccolta della produzione rinnovabile in Basilicata","Rimozione limitazioni nelle CP presenti lungo le direttrici 150 kV","-","-",2027]
["Intervento Piano precedente","DTCS","520-P","Altre Opere","Interventi sulla rete AT per la raccolta della produzione rinnovabile in Basilicata","Nuovo cavo Matera CP – Matera Nord",2022,2025,2027]
["Intervento Piano precedente","DTCS","521-P","Intervento ","Interventi sulla rete AT per la raccolta della produzione rinnovabile in Calabria","Interventi sulla rete AT per la raccolta della produzione rinnovabile in Calabria",null," ",2033]
["Intervento Piano precedente","DTCS","521-P","Opera Principale","Interventi sulla rete AT per la raccolta della produzione rinnovabile in Calabria","Rimozione limitazioni sulla direttrice 150 kV “Rossano – Scandale”",2014,2015,2022]
["Intervento Piano precedente","DTCS","521-P","Opera Principale","Interventi sulla rete AT per la raccolta della produzione rinnovabile in Calabria","Incremento capacità di trasformazione SE Scandale",2027,2030,2033]
["Intervento Piano precedente","DTCS","521-P","Opera Principale","Interventi sulla rete AT per la raccolta della produzione rinnovabile in Calabria","Rimozione limitazioni sulla direttrice 150 kV “Feroleto – Scandale”",2011,2012,2013]
["Intervento Piano precedente","DTCS","521-P","Opera Principale","Interventi sulla rete AT per la raccolta della produzione rinnovabile in Calabria","Rimozione limitazioni sulla direttrice “Rossano T. – Acri – Cammarata – Coscile”",2010,2011,2013]
["Intervento Piano precedente","DTCS","521-P","Opera Principale","Interventi sulla rete AT per la raccolta della produzione rinnovabile in Calabria","Rimozione limitazioni elettrodotto 150 kV “Mucone – Cecita”",2013,2014,"2015-09-01"]
["Intervento Piano precedente","DTCS","521-P","Opera Principale","Interventi sulla rete AT per la raccolta della produzione rinnovabile in Calabria","Elettrodotto 150 kV “Catanzaro- Belcastro – Mesoraca - Calusia”","2020-01-01",2026,2030]
["Intervento Piano precedente","DTCS","521-P","Opera Principale","Interventi sulla rete AT per la raccolta della produzione rinnovabile in Calabria","Potenziamento dell'elettrodotto 150 kV \"Belcastro- Simeri\"","08/10/2009 (EL-172)",2011,2012]
["Intervento Piano precedente","DTCS","521-P","Altre Opere","Interventi sulla rete AT per la raccolta della produzione rinnovabile in Calabria","Rimozione limitazioni nelle CP presenti lungo le direttrici 150 kV","-","-",2028]
["Intervento Piano precedente","DTCS","531-P","Intervento ","Nuovo elettrodotto 150 kV “SSE Benevento FS – CP Benevento Ind.”","Nuovo elettrodotto 150 kV “SSE Benevento FS – CP Benevento Ind.”",2023,2027,2029]
["Intervento Piano precedente","DTCS","531-P","Opera Principale","Nuovo elettrodotto 150 kV “SSE Benevento FS – CP Benevento Ind.”","Nuovo el. 150 kV tra la SSE Benevento FS e la CP Benevento Ind.",2023,2027,2029]
["Intervento Piano precedente","DTCS","532-P","Intervento ","Interventi sulla rete AT nell’area tra le province di Potenza e Matera","Interventi sulla rete AT nell’area tra le province di Potenza e Matera",2025,2029,2032]
["Intervento Piano precedente","DTCS","532-P","Opera Principale","Interventi sulla rete AT nell’area tra le province di Potenza e Matera","Nuovo el. 150 kV tra la SSE Campomaggiore e la CP Tricarico/SE Garaguso",2025,2029,2032]
["Intervento Piano precedente","DTCS","532-P","Opera Principale","Interventi sulla rete AT nell’area tra le province di Potenza e Matera","Nuovo elettrodotto 150 kV Vaglio – Vaglio RT",2025,2029,2032]
["Intervento Piano precedente","DTCS","533-P","Intervento ","Interventi sulla rete AT nell’area tra le province di Napoli e Caserta","Interventi sulla rete AT nell’area tra le province di Napoli e Caserta",null,2025,2029]
["Intervento Piano precedente","DTCS","533-P","Opera Principale","Interventi sulla rete AT nell’area tra le province di Napoli e Caserta","Riclassamento a 150 kV rete AT tra SSE Falciano FS e SSE Villa FS",2022,2025,2029]
["Intervento Piano precedente","DTCS","533-P","Opera Principale","Interventi sulla rete AT nell’area tra le province di Napoli e Caserta","Nuovi raccordi 150 kV SSE Falciano FS",2022,2025,2029]
["Intervento Piano precedente","DTCS","533-P","Opera Principale","Interventi sulla rete AT nell’area tra le province di Napoli e Caserta","Nuovi raccordi 150 kV SSE Villa FS",2022,2025,2029]
["Intervento Piano precedente","DTCS","533-P","Opera Principale","Interventi sulla rete AT nell’area tra le province di Napoli e Caserta","Acquisizione el. 60 kV Montelungo - Suio",2017,2018,"2018-12-21"]
["Intervento Piano precedente","DTCS","533-P","Altre Opere","Interventi sulla rete AT nell’area tra le province di Napoli e Caserta","Interventi di rimozione delle limitazioni presso le CP","-","-",2028]
["Intervento Piano precedente","DTCS","535-P","Intervento ","Interventi sulla rete AT per la raccolta di energia rinnovabile nell’area tra le province di Foggia e Barletta ","Interventi sulla rete AT per la raccolta di energia rinnovabile nell’area tra le province di Foggia e Barletta ",2027,2030,2032]
["Intervento Piano precedente","DTCS","535-P","Opera Principale","Interventi sulla rete AT per la raccolta di energia rinnovabile nell’area tra le province di Foggia e Barletta ","Nuovo el. 150 kV “Cerignola FS – Stornara – Deliceto”",2027,2030,2032]
["Intervento Piano precedente","DTCS","534-P (ex 530-N)","Intervento ","Direttrice 150 kV “SE Foggia – SSE Termoli”","Direttrice 150 kV “SE Foggia – SSE Termoli”",2023,2026,2030]
["Intervento Piano precedente","DTCS","534-P (ex 530-N)","Opera Principale","Direttrice 150 kV “SE Foggia – SSE Termoli”","Rimozione limitazioni direttrice 150 kV tra SSE FS Foggia e Termoli",2023,2025,2030]
["Intervento Piano precedente","DTCS","534-P (ex 530-N)","Opera Principale","Direttrice 150 kV “SE Foggia – SSE Termoli”","Rimozione limitazioni SSE FS Foggia, S. Severo, Lesina, Ripalta e Termoli",2021,2026,2030]
["Intervento Piano precedente","DTCS","523-P","Intervento ","Elettrodotto 150 kV Sural – Taranto Ovest","Elettrodotto 150 kV Sural – Taranto Ovest",null," ",2023]
["Intervento Piano precedente","DTCS","523-P","Opera Principale","Elettrodotto 150 kV Sural – Taranto Ovest","Rimozione limitazioni el. 150 kV “Sural - Taranto Ovest”",2020,2021,2023]
["Intervento Piano precedente","DTCS","523-P","Opera Principale","Elettrodotto 150 kV Sural – Taranto Ovest","Rimozioni limitazioni della rete AT afferente la SE Taranto",2011,2012,2013]
["Intervento Piano precedente","DTCS","525-P","Intervento ","Rinforzi rete AT Calabria centrale ionica","Rinforzi rete AT Calabria centrale ionica",null,2026,2029]
["Intervento Piano precedente","DTCS","525-P","Opera Principale","Rinforzi rete AT Calabria centrale ionica","Raccordi 150 kV SE Maida in e-e a linea 150 kV “Girifalco-Jacurso”","27/12/2008 (EL-412)",2026,2029]
["Intervento Piano precedente","DTCS","526-P","Intervento ","Elettrodotto 150 kV Noci – Martina Franca","Elettrodotto 150 kV Noci – Martina Franca",null,2025,2028]
["Intervento Piano precedente","DTCS","526-P","Opera Principale","Elettrodotto 150 kV Noci – Martina Franca","Nuovo el. 150 kV Noci – Martina Franca.","25/06/2018 (EL-398)",2025,2028]
["Intervento Piano precedente","DTCS","528-P","Intervento ","Elettrodotto 150 kV Goleto – Avellino N.","Elettrodotto 150 kV Goleto – Avellino N.",2020,2025,2032]
["Intervento Piano precedente","DTCS","528-P","Opera Principale","Elettrodotto 150 kV Goleto – Avellino N.","Nuovo elettrodotto 150 kV Goleto – Avellino N.",2026,2029,2032]
["Intervento Piano precedente","DTCS","528-P","Opera Principale","Elettrodotto 150 kV Goleto – Avellino N.","Raccordi 150 kV di Acquedotto Cassano a Goleto – Cassano CP","09/02/2021 (EL-463)",2023,2026]
["Intervento Piano precedente","DTCS","528-P","Altre Opere","Elettrodotto 150 kV Goleto – Avellino N.","Adeguamento a 150 kV delle Cabine Primarie","-","-",2028]
["Intervento Piano precedente","DTCS","529-P","Intervento ","Raccordi a 150 kV Brindisi Sud","Raccordi a 150 kV Brindisi Sud",2021,2025,2028]
["Intervento Piano precedente","DTCS","529-P","Opera Principale","Raccordi a 150 kV Brindisi Sud","Nuovo elettrodotto 150 kV “Mesagne – Brindisi Sud”","2021 EL-485",2027,2029]
["Intervento Piano precedente","DTCS","503-P","Intervento ","Riassetto rete AT nell’area di Potenza","Riassetto rete AT nell’area di Potenza",null," ",2035]
["Intervento Piano precedente","DTCS","503-P","Opera Principale","Riassetto rete AT nell’area di Potenza","Rimozione delle limitazioni su el. 150 kV “Avigliano – Potenza”",2013,2014,"2014-11-01"]
["Intervento Piano precedente","DTCS","503-P","Opera Principale","Riassetto rete AT nell’area di Potenza","Nuovo el. 150 kV “Smistamento Tito - CP Avigliano der. CP Potenza”",2013,2014,"2015-04-24"]
["Intervento Piano precedente","DTCS","503-P","Opera Principale","Riassetto rete AT nell’area di Potenza","Nuovo el. 150 kV “CP Potenza – CP Potenza est”",2027,2031,2035]
["Intervento Piano precedente","DTCS","503-P","Opera Principale","Riassetto rete AT nell’area di Potenza","Nuovo el. 150 kV “Smistamento Tito – Sider. Lucchini”",2027,2031,2035]
["Intervento Piano precedente","DTCS","542-P","Intervento ","Sviluppi rete AT Calabria Nord Ionica","Sviluppi rete AT Calabria Nord Ionica",null," ",2032]
["Intervento Piano precedente","DTCS","542-P","Opera Principale","Sviluppi rete AT Calabria Nord Ionica","Acquisizione el. 150 kV “Italcementi – Italcementi Matera”",2018,2018,2018]
["Intervento Piano precedente","DTCS","542-P","Opera Principale","Sviluppi rete AT Calabria Nord Ionica","Nuova SE 150 Kv area Matera",2026,2029,2032]
["Intervento Piano precedente","DTCS","542-P","Opera Principale","Sviluppi rete AT Calabria Nord Ionica","Nuova SE 150 Kv area Amendolara",2026,2029,2032]
["Intervento Piano precedente","DTCS","542-P","Opera Principale","Sviluppi rete AT Calabria Nord Ionica","Adeguamento el. 150 kV “Italcementi – Italcementi Matera”",2026,2029,2032]
["Intervento Piano precedente","DTCS","542-P","Opera Principale","Sviluppi rete AT Calabria Nord Ionica","Raccordi a CP Amendolara, Policoro e Rotondella",2026,2029,2032]
["Intervento Piano precedente","DTCS","548-P","Intervento ","Nuovo potenziamento rete AT area Crotone","Nuovo potenziamento rete AT area Crotone",2027,2031,2035]
["Intervento Piano precedente","DTCS","548-P","Opera Principale","Nuovo potenziamento rete AT area Crotone","Nuovo doppio raccordo 150 kV Crotone –Crotone Ind.",2027,2031,2035]
["Intervento Piano precedente","DTCS","549-P","Intervento ","Razionalizzazione rete AT Golfo di Gioia Tauro","Razionalizzazione rete AT Golfo di Gioia Tauro",2027,2031,2035]
["Intervento Piano precedente","DTCS","549-P","Opera Principale","Razionalizzazione rete AT Golfo di Gioia Tauro","Nuovo el. SE Palmi RT - CP Palmi",2027,2031,2035]
["Intervento Piano precedente","DTCS","549-P","Opera Principale","Razionalizzazione rete AT Golfo di Gioia Tauro","Nuovi raccordi 60 kV",2027,2031,2035]
["Intervento Piano precedente","DTCS","549-P","Opera Principale","Razionalizzazione rete AT Golfo di Gioia Tauro","Rimozione elementi limitanti rete 60 kV",2027,2031,2035]
["Intervento Piano precedente","DTCS","549-P","Altre Opere","Razionalizzazione rete AT Golfo di Gioia Tauro","Razionalizzazione associata",2027,2031,2035]
["Intervento Piano precedente","DTCS","550-P","Intervento ","Razionalizzazione Rete AT Golfo di Santa Eufemia","Razionalizzazione Rete AT Golfo di Santa Eufemia",2025,2028,2030]
["Intervento Piano precedente","DTCS","550-P","Opera Principale","Razionalizzazione Rete AT Golfo di Santa Eufemia","Nuovi raccordi di Vibo Marina RT in e-e a el.150 kV “Maierato-Vibo valentia”",2025,2028,2030]
["Intervento Piano precedente","DTCS","550-P","Opera Principale","Razionalizzazione Rete AT Golfo di Santa Eufemia","Nuovi raccordi di Vibo Pizzo RT in e-e a el.150 kV “Maierato-Vibo Valentia”",2025,2028,2030]
["Intervento Piano precedente","DTCS","550-P","Opera Principale","Razionalizzazione Rete AT Golfo di Santa Eufemia","Rimozione elementi limitanti rete 150 kV",2025,2028,2030]
["Intervento Piano precedente","DTCS","550-P","Altre Opere","Razionalizzazione Rete AT Golfo di Santa Eufemia","Razionalizzazione associata",2025,2028,2030]
["Intervento Piano precedente","DTCS","546-P","Intervento ","Elettrodotto 380 kV Aliano – Montecorvino","Elettrodotto 380 kV Aliano – Montecorvino",2026,2030,2032]
["Intervento Piano precedente","DTCS","546-P","Opera Principale","Elettrodotto 380 kV Aliano – Montecorvino","Nuovo el. 380 kV Aliano-Montecorvino",2026,2030,2032]
["Intervento Piano precedente","DTCS","546-P","Opera Principale","Elettrodotto 380 kV Aliano – Montecorvino","Nuova SE 380/150 kV Basilicata",2026,2030,2032]
["Intervento Piano precedente","DTCS","546-P","Opera Principale","Elettrodotto 380 kV Aliano – Montecorvino","Nuova SE 380 kV area Montecorvino",2026,2030,2032]
["Interconnector","DTCS","601-I","Intervento ","Nuova interconnessione Italia-Tunisia","Nuova interconnessione Italia-Tunisia",2022,2024,2028]
["Interconnector","DTCS","601-I","Opera Principale","Nuova interconnessione Italia-Tunisia","Nuovo el. HVDC in cavo “Italia-Tunisia”","2022 (EL-532)",2024,2028]
["Interconnector","DTCS","601-I","Opera Principale","Nuova interconnessione Italia-Tunisia","Stazione di conversione e raccordi","2022 (EL-532)",2024,2028]
["Intervento Piano precedente","DTCS","602-P","Intervento ","Elettrodotto 380 kV “Chiaramonte Gulfi – Ciminna”","Elettrodotto 380 kV “Chiaramonte Gulfi – Ciminna”",null,2022,"2026/2030"]
["Intervento Piano precedente","DTCS","602-P","Opera Principale","Elettrodotto 380 kV “Chiaramonte Gulfi – Ciminna”","Elettrodotto d.t. 380 kV \"Chiaramonte Gulfi – Ciminna\"","26/04/2012 (EL-279)\n27/11/2018 (EL-279 bis)",2022,2026]
["Intervento Piano precedente","DTCS","602-P","Opera Principale","Elettrodotto 380 kV “Chiaramonte Gulfi – Ciminna”","Ampliamento SE 380 kV Chiaramonte Gulfi","26/04/2012 (EL-279)\n27/11/2018 (EL-279 bis)",2022,2026]
["Intervento Piano precedente","DTCS","602-P","Opera Principale","Elettrodotto 380 kV “Chiaramonte Gulfi – Ciminna”","Ampliamento SE 380 kV Ciminna","26/04/2012 (EL-279)\n27/11/2018 (EL-279 bis)",2022,2026]
["Intervento Piano precedente","DTCS","602-P","Altre Opere","Elettrodotto 380 kV “Chiaramonte Gulfi – Ciminna”","El. 150 kV “Cammarata - Campofranco FS”",2023,2028,2031]
["Intervento Piano precedente","DTCS","602-P","Altre Opere","Elettrodotto 380 kV “Chiaramonte Gulfi – Ciminna”","Nuova SE Campofranco FS",2023,2028,2031]
["Intervento Piano precedente","DTCS","602-P","Altre Opere","Elettrodotto 380 kV “Chiaramonte Gulfi – Ciminna”","El. 150 kV “Caltanissetta – Nicoletti”",2025,2030,2032]
["Intervento Piano precedente","DTCS","603-P","Intervento ","Elettrodotto 380 kV Paternò-Pantano-Priolo","Elettrodotto 380 kV Paternò-Pantano-Priolo",null," ",2028]
["Intervento Piano precedente","DTCS","603-P","Opera Principale","Elettrodotto 380 kV Paternò-Pantano-Priolo","Elettrodotto 380 kV \"Paternò-Pantano - Priolo\"","03/02/2011 (EL-227)",2020,2024]
["Intervento Piano precedente","DTCS","603-P","Opera Principale","Elettrodotto 380 kV Paternò-Pantano-Priolo","Stazione 380 kV Pantano","03/02/2011 (EL-227)",2020,2023]
["Intervento Piano precedente","DTCS","603-P","Opera Principale","Elettrodotto 380 kV Paternò-Pantano-Priolo","Ampliamento SE 380 kV Paternò","03/02/2011 (EL-227)",2020,2023]
["Intervento Piano precedente","DTCS","603-P","Opera Principale","Elettrodotto 380 kV Paternò-Pantano-Priolo","Raccordi el. 150 kV \"CP Pantano d’Arci - CP Zia Lisa\" in e-e alla SE Pantano","03/02/2011 (EL-227)",2025,2028]
["Intervento Piano precedente","DTCS","603-P","Opera Principale","Elettrodotto 380 kV Paternò-Pantano-Priolo","Raccordo el. 150 kV \"SE Pantano d’Arci - CP Catania ZI”","03/02/2011 (EL-227)",2025,2028]
["Intervento Piano precedente","DTCS","603-P","Opera Principale","Elettrodotto 380 kV Paternò-Pantano-Priolo","Variante di tracciato 380 kV","2021 (EL 227VLbis)","2023/4",2024]
["Intervento Piano precedente","DTCS","603-P","Opera Principale","Elettrodotto 380 kV Paternò-Pantano-Priolo","Variante localizzativa della SE di Pantano","3/09/20 (EL-227VL)",2022,2023]
["Intervento Piano precedente","DTCS","603-P","Altre Opere","Elettrodotto 380 kV Paternò-Pantano-Priolo","Elettrodotto 150 kV “Augusta - Augusta 2”.","2011-10-06",2027,2030]
["Intervento Piano precedente","DTCS","603-P","Altre Opere","Elettrodotto 380 kV Paternò-Pantano-Priolo","Variante 150 kV in cavo el. “CP Zia Lisa – CP Pantano”","18/03/2015 (RS-006)",2025,2028]
["Intervento Piano precedente","DTCS","603-P","Altre Opere","Elettrodotto 380 kV Paternò-Pantano-Priolo","Nuovo el. In cavo 150 kV “SE Melilli - Priolo CP” e demolizione el. 150 kV aerei “SE Melilli - CP Priolo” e “SE Melilli - Priolo Sez.”","28/07/2014 (RS-008)","2019-12-01",2023]
["Intervento Piano precedente","DTCS","603-P","Altre Opere","Elettrodotto 380 kV Paternò-Pantano-Priolo","Raccordi CP Lentini in e-e a el. 150 kV “SE Pantano - Melilli”",2021,2026,2028]
["Intervento Piano precedente","DTCS","603-P","Altre Opere","Elettrodotto 380 kV Paternò-Pantano-Priolo","Raccordi CP Sortino in e-e a el. 150 kV “SE Pantano - Melilli”",2021,2026,2028]
["Intervento Piano precedente","DTCS","616-P","Intervento ","Stazione 380 kV Vizzini (ex SE 380 kV Mineo)","Stazione 380 kV Vizzini (ex SE 380 kV Mineo)",null,2020,2024]
["Intervento Piano precedente","DTCS","616-P","Opera Principale","Stazione 380 kV Vizzini (ex SE 380 kV Mineo)","Nuova SE 380/150 kV Vizzini e raccordi 380 kV","28/10/2013 (EL 316)",2021,2022]
["Intervento Piano precedente","DTCS","616-P","Opera Principale","Stazione 380 kV Vizzini (ex SE 380 kV Mineo)","Raccordi 150 kV alla SE 380/150 kV Vizzini in e-e a “Scordia – Lentini”","2014-03-26",2019,2024]
["Intervento Piano precedente","DTCS","616-P","Opera Principale","Stazione 380 kV Vizzini (ex SE 380 kV Mineo)","El. 150 kV “CP Mineo – SE Vizzini”","2014-03-26",2019,2024]
["Intervento Piano precedente","DTCS","616-P","Opera Principale","Stazione 380 kV Vizzini (ex SE 380 kV Mineo)","El. 150 kV “SE Vizzini - SE Licodia Eubea”","2014-03-26",2019,2023]
["Intervento Piano precedente","DTCS","607-P","Intervento ","Elettrodotto 220 kV Partinico- Fulgatore","Elettrodotto 220 kV Partinico- Fulgatore",2025,2031,2035]
["Intervento Piano precedente","DTCS","607-P","Opera Principale","Elettrodotto 220 kV Partinico- Fulgatore","Nuovo elettrodotto 220 kV Partinico-Fulgatore",2025,2031,2035]
["Intervento Piano precedente","DTCS","609-P","Intervento ","Interventi sulla rete AT per la raccolta di produzione rinnovabile in Sicilia","Interventi sulla rete AT per la raccolta di produzione rinnovabile in Sicilia",null," ",2026]
["Intervento Piano precedente","DTCS","609-P","Opera Principale","Interventi sulla rete AT per la raccolta di produzione rinnovabile in Sicilia","Rimozione limitazioni stazioni",null,null,2026]
["Intervento Piano precedente","DTCS","610-P","Intervento ","Elettrodotto 150 kV Paternò – Belpasso","Elettrodotto 150 kV Paternò – Belpasso",null,2025,2027]
["Intervento Piano precedente","DTCS","610-P","Opera Principale","Elettrodotto 150 kV Paternò – Belpasso","Nuovo el. 150 kV “Paterno – Belpasso”","30/12/2015 (EL-007)",2025,2027]
["Intervento Piano precedente","DTCS","611-P","Intervento ","Interventi sulla rete AT nell’area di Catania","Interventi sulla rete AT nell’area di Catania",null,2021,2024]
["Intervento Piano precedente","DTCS","611-P","Opera Principale","Interventi sulla rete AT nell’area di Catania","El. 150 kV Catania Est – Villa Bellini","21/11/2018 (RS-013)",2021,2024]
["Intervento Piano precedente","DTCS","611-P","Opera Principale","Interventi sulla rete AT nell’area di Catania","El. 150 kV Catania Est – Catania Nord","21/11/2018 (RS-013)",2021,2023]
["Intervento Piano precedente","DTCS","612-P","Intervento ","Interventi sulla rete AT nell’area a nord di Catania","Interventi sulla rete AT nell’area a nord di Catania",null," ",2025]
["Intervento Piano precedente","DTCS","612-P","Opera Principale","Interventi sulla rete AT nell’area a nord di Catania","Rimozione limitazioni sugli elettrodotti 150 kV compresi tra SE Sorgente e Misterbianco",2011,2012,2015]
["Intervento Piano precedente","DTCS","612-P","Opera Principale","Interventi sulla rete AT nell’area a nord di Catania","Nuovo el. 150 kV – S. Giovanni la Punta - Acicastello” e demolizioni associate","29/11/2018 (RS-014)",2024,2025]
["Intervento Piano precedente","DTCS","612-P","Opera Principale","Interventi sulla rete AT nell’area a nord di Catania","Nuovo el. 150 kV “S. Giovanni Galermo – S. Giovanni la Punta -” e demolizioni associate","29/11/2018 (RS-014)",2023,2024]
["Intervento Piano precedente","DTCS","612-P","Altre Opere","Interventi sulla rete AT nell’area a nord di Catania","Rimozione limitazioni Cabine Primarie","-","-",2024]
["Intervento Piano precedente","DTCS","613-P","Intervento ","Interventi sulla rete AT nell’area di Ragusa","Interventi sulla rete AT nell’area di Ragusa",null," ",2028]
["Intervento Piano precedente","DTCS","613-P","Opera Principale","Interventi sulla rete AT nell’area di Ragusa","Nuovo el. 150 kV “Vittoria Sud – S. Croce Camerina”","12/03/2020 (RS-018)",2024,2026]
["Intervento Piano precedente","DTCS","613-P","Opera Principale","Interventi sulla rete AT nell’area di Ragusa","Nuovo el. 150 kV “S. Croce Camerina –  Scicli”","12/03/2020 (RS-018)",2022,2026]
["Intervento Piano precedente","DTCS","613-P","Opera Principale","Interventi sulla rete AT nell’area di Ragusa","Installazione dispositivi compensazione reattiva",2020,2022,2023]
["Intervento Piano precedente","DTCS","613-P","Opera Principale","Interventi sulla rete AT nell’area di Ragusa","Risoluzione der. rigida della CP Dirillo","29/05/2018 (RS-015)",2022,2023]
["Intervento Piano precedente","DTCS","613-P","Altre Opere","Interventi sulla rete AT nell’area di Ragusa","Rimozione limitazioni Cabine Primarie","-","-",2028]
["Intervento Piano precedente","DTCS","622-P","Intervento ","Direttrice 150 kV \"SE Caracoli-SSE Furnari FS\"","Direttrice 150 kV \"SE Caracoli - SSE Furnari FS\"",2026,2033,2035]
["Intervento Piano precedente","DTCS","622-P","Opera Principale","Direttrice 150 kV \"SE Caracoli-SSE Furnari FS\"","Nuovi raccordi 150 kV nell’area di Patti RT",2026,2033,2035]
["Intervento Piano precedente","DTCS","622-P","Opera Principale","Direttrice 150 kV \"SE Caracoli-SSE Furnari FS\"","Nuovi raccordi 150 kV nell’area Furnari RT",2026,2033,2035]
["Intervento Piano precedente","DTCS","622-P","Opera Principale","Direttrice 150 kV \"SE Caracoli-SSE Furnari FS\"","Rimozione limitazioni direttrice 150 kV  tra la SSE FS Furnari e la SE Caracoli",2026,2033,2035]
["Intervento Piano precedente","DTCS","622-P","Opera Principale","Direttrice 150 kV \"SE Caracoli-SSE Furnari FS\"","Interventi di magliatura SSE Milazzo RT",2026,2033,2035]
["Intervento Piano precedente","DTCS","622-P","Altre Opere","Direttrice 150 kV \"SE Caracoli-SSE Furnari FS\"","Razionalizzazioni associate",2026,2033,2035]
["Intervento Piano precedente","DTCS","625-P","Intervento ","Razionalizzazione rete AT area Caltanissetta","Razionalizzazione rete AT area Caltanissetta",2026,2033,2035]
["Intervento Piano precedente","DTCS","625-P","Opera Principale","Razionalizzazione rete AT area Caltanissetta","Nuovi raccordi 150 kV Caltanissetta RT",2026,2033,2035]
["Intervento Piano precedente","DTCS","625-P","Opera Principale","Razionalizzazione rete AT area Caltanissetta","Demolizione elettrodotto “Caltanissetta RT – S.Caterina VIllarmosa”",2026,2033,2035]
["Intervento Piano precedente","DTCS","625-P","Altre Opere","Razionalizzazione rete AT area Caltanissetta","Rimozione elementi limitanti",2026,2033,2035]
["Intervento Piano precedente","DTCS","626-P","Intervento ","Nuovo elettrodotto 150 kV Vallelunga RT - SE Cammarata","Nuovo elettrodotto 150 kV Vallelunga RT - SE Cammarata",2026,2032,2035]
["Intervento Piano precedente","DTCS","626-P","Opera Principale","Nuovo elettrodotto 150 kV Vallelunga RT - SE Cammarata","Nuovo elettrodotto “Vallelunga RT – SE Cammarata”",2026,2032,2035]
["Intervento Piano precedente","DTCS","626-P","Altre Opere","Nuovo elettrodotto 150 kV Vallelunga RT - SE Cammarata","Razionalizzazione associata",2026,2032,2035]
["Intervento Piano precedente","DTCS","436-P","Intervento ","Nuovo elettrodotto 150 kV Vallelunga RT - SE Cammarata",null,2022,2024,2028]
["Intervento Piano precedente","DTCS","436-P","Opera Principale","HVDC Centro Sud / Centro Nord","Collegamento HVDC Villanova - Fano","2022 (EL-538)",2024,2028]
["Intervento Piano precedente","DTCS","436-P","Opera Principale","HVDC Centro Sud / Centro Nord","Stazione di conversione HVDC Fano","2023 (EL-538)",2024,2028]
["Intervento Piano precedente","DTCS","436-P","Opera Principale","HVDC Centro Sud / Centro Nord","Stazione di conversione HVDC Villanova","2024 (EL-538)",2024,2028]
["Intervento Piano precedente","DTCS","436-P","Opera Principale","HVDC Centro Sud / Centro Nord","Adeguamento SE 380 kV Fano","2025 (EL-538)",2024,2028]
["Intervento Piano precedente","DTCS","439-P","Intervento","Riassetto rete AT nell'area di Chiusi","Riassetto rete AT nell'area di Chiusi",2024,2027,2035]
["Intervento Piano precedente","DTCS","439-P","Opera Principale","Riassetto rete AT nell'area di Chiusi","Risoluz. Der. Rigida SSE Chiusi RT",2024,2027,2035]
["Intervento Piano precedente","DTCS","439-P","Opera Principale","Riassetto rete AT nell'area di Chiusi","CP Fabro Scalo in e-e alla linea \"SSE Orvieto RT (ex FS) - Città della Pieve RT (ex FS)\"",2024,2027,2035]
["Intervento Piano precedente","DTCS","440-P","Intervento","Nuovo elettrodotto 150 kV \"S. Virginia CP - Cisterna CP\"","Nuovo elettrodotto 150 kV \"S. Virginia CP - Cisterna CP\"",2025,2033,2035]
["Intervento Piano precedente","DTCS","440-P","Opera Principale","Nuovo elettrodotto 150 kV \"S. Virginia CP - Cisterna CP\"","Nuova SE 150 kV di smistamento e raccordi",2025,2033,2035]
["Intervento Piano precedente","DTCS","440-P","Opera Principale","Nuovo elettrodotto 150 kV \"S. Virginia CP - Cisterna CP\"","Nuovo el. 150 kV \"CP Cisterna - Nuova SE 150 kV\"",2025,2033,2035]
["Intervento Piano precedente","DTCS","440-P","Opera Principale","Nuovo elettrodotto 150 kV \"S. Virginia CP - Cisterna CP\"","Nuovo el. 150 kV \"Nuova SE 150 kV - CP S. Virginia\"",2025,2033,2035]
["Intervento Piano precedente","DTCS","543-P","Intervento","Nuovo elettrodotto 220 kV CP Arenella - SE Fuorigrotta","Nuovo elettrodotto 220 kV CP Arenella - SE Fuorigrotta",2023,2026,2030]
["Intervento Piano precedente","DTCS","543-P","Opera Principale","Nuovo elettrodotto 220 kV CP Arenella - SE Fuorigrotta","Nuovo elettrodotto 220 kV CP Arenella - SE Fuorigrotta",2023,2026,2030]
["Intervento Piano precedente","DTCS","545-P","Intervento","Nuovo elettrodotto 150 kV “SE Vaglio RT (ex FS) – nuova SE 150 kV Sider.Lucchini”","Nuovo elettrodotto 150 kV \"SE Vaglio RT (ex FS) - nuova SE 150 kV Sider.Lucchini\"",2024,2027,2030]
["Intervento Piano precedente","DTCS","545-P","Opera Principale","Nuovo elettrodotto 150 kV “SE Vaglio RT (ex FS) – nuova SE 150 kV Sider.Lucchini”","El. 150 kV \"SE Vaglio RT (ex FS) - Sider.Lucchini\"",2024,2027,2030]
["Intervento Piano precedente","DTCS","545-P","Opera Principale","Nuovo elettrodotto 150 kV “SE Vaglio RT (ex FS) – nuova SE 150 kV Sider.Lucchini”","Nuova SE 150 kV",2024,2027,2030]
["Intervento Piano precedente","DTCS","623-P","Intervento","Nuovo elettrodotto 150 kV \"Lentini - Lentini RT (ex FS)\"","Nuovo elettrodotto 150 kV \"Lentini - Lentini RT (ex FS)\"",2025,2028,2030]
["Intervento Piano precedente","DTCS","623-P","Opera Principale","Nuovo elettrodotto 150 kV \"Lentini - Lentini RT (ex FS)\"","Nuovo elettrodotto 150 kV \"Lentini - Lentini RT (ex FS)\"",2025,2028,2030]
["Intervento Piano precedente","DTCS","624-P","Intervento","Nuovo raccordo 150 kV “CP Siracusa Est – Siracusa RT (ex FS)”","Nuovo raccordo 150 kV \"CP Siracusa Est - Siracusa RT (ex FS)\"",2026,2033,2035]
["Intervento Piano precedente","DTCS","624-P","Opera Principale","Nuovo raccordo 150 kV “CP Siracusa Est – Siracusa RT (ex FS)”","Nuovo raccordo 150 kV \"CP Siracusa Est - Siracusa RT (ex FS)\"",2026,2033,2035]
["Intervento Piano precedente","DTCS","624-P","Opera Principale","Nuovo raccordo 150 kV “CP Siracusa Est – Siracusa RT (ex FS)”","Nuovo raccordo 150 kV \"Siracusa RT (ex FS) - Siracusa 1\"",2026,2033,2035]
["Intervento Piano precedente","DTCS","445-P","Intervento","Rimozione limitazioni el. 150 kV Vignaturci – S. Lucia","Rimozione limitazioni el. 150 kV Vignaturci – S. Lucia",2024,2028,2030]
["Intervento Piano precedente","DTCS","445-P","Opera Principale","Rimozione limitazioni el. 150 kV Vignaturci – S. Lucia","Rimozione limitazioni elettrodotto 150 kV SE S. Lucia – CP Vignaturci",2024,2028,2030]
["Intervento Piano precedente","DTCS","446-P","Intervento","Riassetto rete fra SE Roma Nord e CP A. Smist. Est","Riassetto rete fra SE Roma Nord e CP A. Smist. Est",2024,2028,2035]
["Intervento Piano precedente","DTCS","446-P","Opera Principale","Riassetto rete fra SE Roma Nord e CP A. Smist. Est","Declassamento a 150 kV dell’el. 220 kV “Roma N – ex Cinecittà (Palo 35)”",2024,2028,2035]
["Intervento Piano precedente","DTCS","446-P","Opera Principale","Riassetto rete fra SE Roma Nord e CP A. Smist. Est","Raccordo 150 kV della linea “A. Smist.Est – A. Salisano” con la “Roma N – ex Cinecittà”",2024,2028,2035]
["Intervento Piano precedente","DTCS","446-P","Altre Opere","Riassetto rete fra SE Roma Nord e CP A. Smist. Est","Razionalizzazione associata",null,null,2035]
["Intervento Piano precedente","DTCS","553-N","Intervento","Elettrodotto 380 kV Area Nord Benevento","Elettrodotto 380 kV Area Nord Benevento",2027,2031,2035]
["Intervento Piano precedente","DTCS","553-N","Opera Principale","Elettrodotto 380 kV Area Nord Benevento","Nuovo el. 380 kV Benevento III –Nuova SE 380 kV",2027,2031,2035]
["Intervento Piano precedente","DTCS","553-N","Altre Opere","Elettrodotto 380 kV Area Nord Benevento","Rimozione elementi limitanti",2027,2031,2035]
["Intervento Piano precedente","DTCS","554-P","Intervento","Nuovo HVDC Italia-Grecia (GRITA 2)","Nuovo HVDC Italia-Grecia (GRITA 2)",2023,2027,2031]
["Intervento Piano precedente","DTCS","554-P","Opera Principale","Nuovo HVDC Italia-Grecia (GRITA 2)","Nuovo HVDC Italia - Grecia (500 MW)",2023,2027,2031]
["Intervento Piano precedente","DTCS","554-P","Opera Principale","Nuovo HVDC Italia-Grecia (GRITA 2)","Nuove Stazioni di Conversione Galatina/Arachthos",2023,2027,2031]
["Intervento Piano precedente","DTCS","555-P","Intervento","Nuovo collegamento 380 kV Bolano - Annunziata","Nuovo collegamento 380 kV Bolano - Annunziata",2022,2024,2026]
["Intervento Piano precedente","DTCS","555-P","Opera Principale","Nuovo collegamento 380 kV Bolano - Annunziata","Rimozione limitazioni 380 kV “Sorgente-Paradiso” e nuova localizzazione SE transizione Annunziata","17/06/2020 (EL-534)",2024,2026]
["Intervento Piano precedente","DTCS","555-P","Opera Principale","Nuovo collegamento 380 kV Bolano - Annunziata","Nuovo cavo 380 kV Bolano-Annunziata (ex SE Paradiso)","2022 (EL-534)",2024,2026]
["Intervento Piano precedente","DTCS","555-P","Opera Principale","Nuovo collegamento 380 kV Bolano - Annunziata","Adeguamento ATR SE Sorgente",2023,2024,2026]
["Intervento Piano precedente","DTCS","555-P","Opera Principale","Nuovo collegamento 380 kV Bolano - Annunziata","Rimozione limitazioni elettrodotti lato Sicilia",2023,2024,2026]
["Intervento Piano precedente","DTCS","555-P","Opera Principale","Nuovo collegamento 380 kV Bolano - Annunziata","Rimozione limitazioni elettrodotti lato Calabria",2023,2024,2026]
["Intervento Piano precedente","DTCS","556-P","Intervento","Raccordi 150 kV alla SE Cerignola 380/150 kV","Raccordi 150 kV alla SE Cerignola 380/150 kV",2026,2030,2032]
["Intervento Piano precedente","DTCS","556-P","Opera Principale","Raccordi 150 kV alla SE Cerignola 380/150 kV","Nuovi raccordi 150 kV SE Cerignola",2026,2030,2032]
["Intervento Piano precedente","DTCS","556-P","Opera Principale","Raccordi 150 kV alla SE Cerignola 380/150 kV","Incremento capacità di trasformazione SE Cerignola 380/150 kV",2027,2030,2032]
["Intervento Piano precedente","DTCS","557-P","Intervento","Raccordi 380 kV alla SE Manfredonia 380 kV","Raccordi 380 kV alla SE Manfredonia 380 kV",2026,2030,2032]
["Intervento Piano precedente","DTCS","557-P","Opera Principale","Raccordi 380 kV alla SE Manfredonia 380 kV","Nuovi raccordi 380 kV SE Manfredonia",2026,2030,2032]
["Intervento Piano precedente","DTCS","558-P","Intervento","SE Melfi 380/150 kV e raccordi 150 kV","SE Melfi 380/150 kV e raccordi 150 kV",2025,2031,2035]
["Intervento Piano precedente","DTCS","558-P","Opera Principale","SE Melfi 380/150 kV e raccordi 150 kV","Nuovi raccordi 150 kV SE Melfi 380/150 kV",2025,2031,2035]
["Intervento Piano precedente","DTCS","558-P","Opera Principale","SE Melfi 380/150 kV e raccordi 150 kV","Adeguamento della capacità di trasformazione della SE 380/150 kV di Melfi",2028,2031,2035]
["Intervento Piano precedente","DTCS","559-P","Intervento","Incremento magliatura 150 kV dorsale ferroviaria AV Roma - Napoli","Incremento magliatura 150 kV dorsale ferroviaria AV Roma - Napoli",2028,2032,2035]
["Intervento Piano precedente","DTCS","559-P","Opera Principale","Incremento magliatura 150 kV dorsale ferroviaria AV Roma - Napoli","Collegamenti in cavo 150 kV Vairano RT – S. Maria Capua Vetere e Marcianise TAV – S. Maria Capua Vetere",2028,2032,2035]
["Intervento Piano precedente","DTCS","559-P","Opera Principale","Incremento magliatura 150 kV dorsale ferroviaria AV Roma - Napoli","Collegamento in cavo 150 kV Roma Est – Gallicano RT",2028,2032,2035]
["Intervento Piano precedente","DTCS","560-P","Intervento","SE 380/150 kV Foggia","SE 380/150 kV Foggia",2024,2028,2031]
["Intervento Piano precedente","DTCS","560-P","Opera Principale","SE 380/150 kV Foggia","Adeguamento della capacità di trasformazione della SE 380/150 kV di Foggia",2024,2028,2031]
["Intervento Piano precedente","DTCS","561-P","Intervento","SE 380/150 kV Troia","SE 380/150 kV Troia",2024,2028,2031]
["Intervento Piano precedente","DTCS","561-P","Opera Principale","SE 380/150 kV Troia","Incremento della capacità di trasformazione della SE 380/150 kV di Troia",2024,2028,2031]
["Intervento Piano precedente","DTCS","562-P","Intervento","SE 380/150 kV Andria","SE 380/150 kV Andria",2024,2028,2031]
["Intervento Piano precedente","DTCS","562-P","Opera Principale","SE 380/150 kV Andria","Incremento della capacità di trasformazione della SE 380/150 kV di Andria",2024,2028,2031]
["Intervento Piano precedente","DTCS","628-P","Intervento","Interventi di magliatura nella zona industriale di Catania","Interventi di magliatura nella zona industriale di Catania",2026,2033,2035]
["Intervento Piano precedente","DTCS","628-P","Opera Principale","Interventi di magliatura nella zona industriale di Catania","Nuovo El. 150 kV SE Pantano - Area industriale Catania",2026,2033,2035]
["Intervento Piano precedente","DTCS","628-P","Opera Principale","Interventi di magliatura nella zona industriale di Catania","Realizzazione stalli 150 kV in SE afferenti",2026,2033,2035]
["Intervento Piano precedente","DTCS","629-P","Intervento","Razionalizzazione area di Cefalù","Razionalizzazione area di Cefalù",2026,2033,2035]
["Intervento Piano precedente","DTCS","629-P","Opera Principale","Razionalizzazione area di Cefalù","Nuovi raccordi 150 kV area di Campo Felice RT",2026,2033,2035]
["Intervento Piano precedente","DTCS","629-P","Opera Principale","Razionalizzazione area di Cefalù","Rimozione limitazioni direttrice",2026,2033,2035]
["Intervento Piano precedente","DTCS","629-P","Altre Opere","Razionalizzazione area di Cefalù","Razionalizzazione associata",2026,2033,2035]
["Intervento Piano precedente","DTCS","630-P","Intervento","Interconnessione Isola di Favignana","Interconnessione Isola di Favignana",2025,2033,2035]
["Intervento Piano precedente","DTCS","630-P","Opera Principale","Interconnessione Isola di Favignana","Nuovi collegamenti AT con Favignana",2025,2033,2035]
["Intervento Piano precedente","DTCS","630-P","Opera Principale","Interconnessione Isola di Favignana","Nuova SE AT Favignana",2025,2033,2035]
["Intervento Piano precedente","DTCS","630-P","Opera Principale","Interconnessione Isola di Favignana","Nuova SE 150 kV area Birgi",2025,2033,2035]
["Intervento Piano precedente","DTCS","630-P","Opera Principale","Interconnessione Isola di Favignana","Adeguamento SE Fulgatore",2025,2033,2035]
["Intervento Piano precedente","DTCS","632-P","Intervento","Incremento di magliatura 150 kV area di Trapani","Incremento di magliatura 150 kV area di Trapani",2026,2033,2035]
["Intervento Piano precedente","DTCS","632-P","Opera Principale","Incremento di magliatura 150 kV area di Trapani","Nuovo raccordo 150 kV CP Trapani Saline-CP Trapani",2026,2033,2035]
["Intervento Piano precedente","DTCS","632-P","Opera Principale","Incremento di magliatura 150 kV area di Trapani","Rimozione elementi limitanti elettrodotti afferenti CP Trapani",2026,2033,2035]
["Nuovo intervento","DTCS, DTNO, DTNE","355-N","Intervento","HVDC Milano-Montalto","HVDC Milano-Montalto",2024,2027,"2030/2032"]
["Nuovo intervento","DTCS, DTNO, DTNE","355-N","Opera Principale","HVDC Milano-Montalto","Nuovi cavi marini HVDC (4x500MW) tra SdC Montalto e stazione di transizione cavo/ aereo presso Avenza",2024,2027,"2030/2032"]
["Nuovo intervento","DTCS, DTNO, DTNE","355-N","Opera Principale","HVDC Milano-Montalto","Stazione di Conversione 2x1000 MW ±500 kV a sud di Milano",2024,2027,"2030/2032"]
["Nuovo intervento","DTCS, DTNO, DTNE","355-N","Opera Principale","HVDC Milano-Montalto","Stazione di Conversione 2x1000 MW ±500 kV a Montalto",2024,2027,"2030/2032"]
["Nuovo intervento","DTCS, DTNO, DTNE","355-N","Opera Principale","HVDC Milano-Montalto","Riconversione in c.c. ±500 kV Parma-S.Rocco Po- Turano",2024,2027,"2030/2032"]
["Nuovo intervento","DTCS, DTNO, DTNE","355-N","Opera Principale","HVDC Milano-Montalto","Ricostruzione in c.c. ±500 kV Avenza-Colorno",2024,2027,"2030/2032"]
["Nuovo intervento","DTCS, DTNO, DTNE","355-N","Opera Principale","HVDC Milano-Montalto","Nuova SE smistamento a sud di Milano con raccordi a el.380 kV Chignolo Po-Maleo, el.380 kV S.Rocco Po-Turano",2024,2027,"2030/2032"]
["Nuovo intervento","DTCS, DTNO, DTNE","355-N","Opera Principale","HVDC Milano-Montalto","Installazione conduttori termoresistenti su direttrice 380kV Calenzano-Casellina- Poggio a Caiano",2024,2027,"2030/2032"]
["Nuovo intervento","DTCS, DTNO, DTNE","355-N","Opera Principale","HVDC Milano-Montalto","Installazione conduttori termoresistenti su direttrice 380kV S.Rocco Po-Maleo-Cremona",2024,2027,"2030/2032"]
["Nuovo intervento","DTCS, DTNE","356-N","Intervento","Central Link","Central Link",2024,2026,2030]
["Nuovo intervento","DTCS, DTNE","356-N","Opera Principale","Central Link","El. 220kV Villavalle-Pietrafitta",2024,2026,2030]
["Nuovo intervento","DTCS, DTNE","356-N","Opera Principale","Central Link","El. 220kV Pietrafitta-Nuovo smistamento",2024,2026,2030]
["Nuovo intervento","DTCS, DTNE","356-N","Opera Principale","Central Link","El.220kV Arezzo C – Nuovo smistamento",2024,2026,2030]
["Nuovo intervento","DTCS, DTNE","356-N","Opera Principale","Central Link","El.220kV S.Barbara – Nuovo smistamento",2024,2026,2030]
["Nuovo intervento","DTCS, DTNE","356-N","Opera Principale","Central Link","Stazione di smistamento",2024,2026,2030]
["Nuovo intervento","DTCS, DTNE","356-N","Opera Principale","Central Link","Dispositivi di compensazione reattive e gestione dei flussi di potenza e ATR",2024,2026,2030]
["Nuovo intervento","DTCS, DTNO","732-N","Intervento","Dorsale Sarda: HVDC Fiumesanto – Montalto (SAPEI 2) e Sardinian Link","Dorsale Sarda: HVDC Fiumesanto – Montalto (SAPEI 2) e Sardinian Link",2024,2035,2040]
["Nuovo intervento","DTCS, DTNO","732-N","Opera Principale","Dorsale Sarda: HVDC Fiumesanto – Montalto (SAPEI 2) e Sardinian Link","Stazione di Conversione 2x500 MW ±500 kV Fiumesanto",2024,2035,2040]
["Nuovo intervento","DTCS, DTNO","732-N","Opera Principale","Dorsale Sarda: HVDC Fiumesanto – Montalto (SAPEI 2) e Sardinian Link","Adeguamento Stazione di Conversione Montalto di Castro",2024,2035,2040]
["Nuovo intervento","DTCS, DTNO","732-N","Opera Principale","Dorsale Sarda: HVDC Fiumesanto – Montalto (SAPEI 2) e Sardinian Link","Collegamento HVDC sottomarino di collegamento tra le stazioni di conversione di Fiumesanto e Montalto",2024,2035,2040]
["Nuovo intervento","DTCS, DTNO","732-N","Opera Principale","Dorsale Sarda: HVDC Fiumesanto – Montalto (SAPEI 2) e Sardinian Link","Ammodernamento dorsale a 220 kV tra i nodi di: Codrongianos, Oristano, Sulcis, Villasor, Selargius",2024,2035,2040]
["Nuovo intervento","DTCS","563/1-N","Intervento","Dorsale Ionica - Tirrenica: HVDC Rossano-Montecorvino-Latina","Dorsale Ionica - Tirrenica: HVDC Rossano-Montecorvino-Latina",2026,2031,2035]
["Nuovo intervento","DTCS","563/1-N","Opera Principale","Dorsale Ionica - Tirrenica: HVDC Rossano-Montecorvino-Latina","Stazione di Conversione 2x500 MVA ±500 kV Rossano",2026,2031,2035]
["Nuovo intervento","DTCS","563/1-N","Opera Principale","Dorsale Ionica - Tirrenica: HVDC Rossano-Montecorvino-Latina","Stazione di Conversione 2x 1000 MVA ±500 kV Latina",2026,2031,2035]
["Nuovo intervento","DTCS","563/1-N","Opera Principale","Dorsale Ionica - Tirrenica: HVDC Rossano-Montecorvino-Latina","Ammodernamento per esercizio in corrente continua el. 220 kV Laino -Tusciano",2026,2031,2035]
["Nuovo intervento","DTCS","563/1-N","Opera Principale","Dorsale Ionica - Tirrenica: HVDC Rossano-Montecorvino-Latina","Ammodernamento per esercizio in corrente continua el. 380 kV Laino -Rossano",2026,2031,2035]
["Nuovo intervento","DTCS","563/1-N","Opera Principale","Dorsale Ionica - Tirrenica: HVDC Rossano-Montecorvino-Latina","Raccordo in corrente continua el. Tusciano e Montecorvino",2026,2031,2035]
["Nuovo intervento","DTCS","563/1-N","Opera Principale","Dorsale Ionica - Tirrenica: HVDC Rossano-Montecorvino-Latina","Nuovo collegamento marino HVDC tra SdC Montecorvino e SdC Latina da 4x500 MW",2026,2031,2035]
["Nuovo intervento","DTCS","563/1-N","Opera Principale","Dorsale Ionica - Tirrenica: HVDC Rossano-Montecorvino-Latina","Sistemi di protezione SdC Rossano",2026,2031,2035]
["Nuovo intervento","DTCS","563/1-N","Opera Principale","Dorsale Ionica - Tirrenica: HVDC Rossano-Montecorvino-Latina","Sistemi di protezione SdC Montecorvino",2026,2031,2035]
["Nuovo intervento","DTCS","563/1-N","Opera Principale","Dorsale Ionica - Tirrenica: HVDC Rossano-Montecorvino-Latina","Sistemi di protezione SdC Latina",2026,2031,2035]
["Nuovo intervento","DTCS","563/2-N","Intervento","Dorsale Ionica - Tirrenica: HVDC Ionian","Dorsale Ionica - Tirrenica: HVDC Ionian",2026,2031,2035]
["Nuovo intervento","DTCS","563/2-N","Opera Principale","Dorsale Ionica - Tirrenica: HVDC Rossano-Montecorvino-Latina","Stazione di Conversione 2x500 MVA ±500 kV Priolo",2026,2031,2035]
["Nuovo intervento","DTCS","563/2-N","Opera Principale","Dorsale Ionica - Tirrenica: HVDC Rossano-Montecorvino-Latina","Nuovi cavi di collegamento marino 2x500 MW tra la SdC di Priolo e la SdC di Rossano",2026,2031,2035]
["Nuovo intervento","DTCS","563/2-N","Opera Principale","Dorsale Ionica - Tirrenica: HVDC Rossano-Montecorvino-Latina","Sistemi di protezione SdC Rossano",2026,2031,2035]
["Nuovo intervento","DTCS","563/2-N","Opera Principale","Dorsale Ionica - Tirrenica: HVDC Rossano-Montecorvino-Latina","Sistemi di protezione SdC Priolo",2026,2031,2035]
["Nuovo intervento","DTCS, DTNE","447-N","Intervento","Dorsale Adriatica: HVDC Foggia-Villanova-Fano-Forlì","Dorsale Adriatica: HVDC Foggia-Villanova-Fano-Forlì",2024,2028,"2032/2036"]
["Nuovo intervento","DTCS, DTNE","447-N","Opera Principale","Dorsale Adriatica: HVDC Foggia-Villanova-Fano-Forlì","Sbarra e interruttori DC presso SdC Fano, Villanova",2024,2028,2032]
["Nuovo intervento","DTCS, DTNE","447-N","Opera Principale","Dorsale Adriatica: HVDC Foggia-Villanova-Fano-Forlì","Stazione di Conversione 2x1000 MVA ± 500 Kv Foggia",2024,2028,2032]
["Nuovo intervento","DTCS, DTNE","447-N","Opera Principale","Dorsale Adriatica: HVDC Foggia-Villanova-Fano-Forlì","Riconversione in DC ± 500 kV Foggia-S.Severo, S.Severo-Rotello, Rotello-Larino, Larino- Gissi,Gissi-Villanova",2024,2028,2032]
["Nuovo intervento","DTCS, DTNE","447-N","Opera Principale","Dorsale Adriatica: HVDC Foggia-Villanova-Fano-Forlì","Raccordi di collegamento SE Torremaggiore, S.Severo, Rotello su futura DT 380 kV Foggia-Gissi",2024,2028,2032]
["Nuovo intervento","DTCS, DTNE","447-N","Opera Principale","Dorsale Adriatica: HVDC Foggia-Villanova-Fano-Forlì","Nuovi cavi marini HVDC tra SdC Villanova e SdC Fano per raddoppio AL",2024,2028,2032]
["Nuovo intervento","DTCS, DTNE","447-N","Opera Principale","Dorsale Adriatica: HVDC Foggia-Villanova-Fano-Forlì","Stazione di Conversione 2x1000 MVA ±500 kV Forlì",2024,2028,2036]
["Nuovo intervento","DTCS, DTNE","447-N","Opera Principale","Dorsale Adriatica: HVDC Foggia-Villanova-Fano-Forlì","Riconversione in c.c. ±500 kV Forlì-S. Martino in XX-Fano",2024,2028,2036]
["Nuovo intervento","DTCS, DTNE","447-N","Opera Principale","Dorsale Adriatica: HVDC Foggia-Villanova-Fano-Forlì","Collegamento SE S. Martino in XX su 380 kV Forlì-Fano",2024,2028,2036]
["Nuovo intervento","DTCS, DTNE","447-N","Opera Principale","Dorsale Adriatica: HVDC Foggia-Villanova-Fano-Forlì","Rimozione limitazioni su el. 380 kV S.Martino in XX-Fano",2024,2028,2036]
["Nuovo intervento","DTCS, DTNE","447-N","Opera Principale","Dorsale Adriatica: HVDC Foggia-Villanova-Fano-Forlì","Installazione conduttori termoresistenti su el. 380 kV Dugale-Ostiglia, Martignone-S.Damaso, Ferrara F-Ravenna C.",2024,2028,2036]
["Nuovo intervento","DTNO","172-N","Intervento","Nuovo elettrodotto 132 kV Cornegliano Laudense-Pieve Fissiraga","Nuovo elettrodotto 132 kV Cornegliano Laudense-Pieve Fissiraga",2025,2028,2030]
["Nuovo intervento","DTNO","172-N","Opera Principale","Nuovo elettrodotto 132 kV Cornegliano Laudense-Pieve Fissiraga","Nuovo stallo 132 kV nella S/E Cornegliano Laudense",2025,2028,2030]
["Nuovo intervento","DTNO","172-N","Opera Principale","Nuovo elettrodotto 132 kV Cornegliano Laudense-Pieve Fissiraga","Nuovo stallo 132 kV nella S/E Pieve Fissiraga",2025,2028,2030]
["Nuovo intervento","DTNO","172-N","Opera Principale","Nuovo elettrodotto 132 kV Cornegliano Laudense-Pieve Fissiraga","Nuovo collegamento 132 kV tra la S/E Pieve Fissiraga e la S/E Cornegliano Laudense",2025,2028,2030]
["Nuovo intervento","DTNE","263-N","Intervento","Incremento della trasformazione SE Villabona","Incremento della trasformazione SE Villabona",2023,2026,2028]
["Nuovo intervento","DTNE","263-N","Opera Principale","Incremento della trasformazione SE Villabona","Installazione ATR 220/132 kV da 250 MVA",2023,2026,2028]
["Nuovo intervento","DTNE","357-N","Intervento","Incremento magliatura area di Ravenna","Incremento magliatura area di Ravenna",2025,2028,2030]
["Nuovo intervento","DTNE","357-N","Opera Principale","Incremento magliatura area di Ravenna","Cavo 132 kV Ravenna RT-Ravenna Porto",2025,2028,2030]
["Nuovo intervento","DTNE","357-N","Opera Principale","Incremento magliatura area di Ravenna","Rimozione limitazioni Ravenna C. – Ravenna RT",2025,2028,2030]
["Nuovo intervento","DTNE","357-N","Opera Principale","Incremento magliatura area di Ravenna","Riassetto rete e demolizione tratti di linee nell’area di Ravenna Porto",2025,2028,2030]
["Nuovo intervento","DTNE","358-N","Intervento","Nuovo elettrodotto 132 kV “Rimini Condotti-Rimini Nord”","Nuovo elettrodotto 132 kV “Rimini Condotti-Rimini Nord”",2024,2028,2032]
["Nuovo intervento","DTNE","358-N","Opera Principale","Nuovo elettrodotto 132 kV “Rimini Condotti-Rimini Nord”","Nuovo raccordo della CP Rimini Condotti",2024,2028,2032]
["Nuovo intervento","DTNE","359-N","Intervento","Nuovo elettrodotto “Follonica-Follonica RT”","Nuovo elettrodotto “Follonica-Follonica RT”",2024,2028,2032]
["Nuovo intervento","DTNE","359-N","Opera Principale","Nuovo elettrodotto “Follonica-Follonica RT”","Nuovo collegamento dalla CP di Follonica alla SE di Follonica RT",2024,2028,2032]
["Nuovo intervento","DTCS","633-N","Intervento","Incremento magliatura 150 kV tra Enna e Catania","Incremento magliatura 150 kV tra Enna e Catania",2026,2029,2030]
["Nuovo intervento","DTCS","633-N","Opera Principale","Incremento magliatura 150 kV tra Enna e Catania","Nuovo collegamento 150 kV CP Adrano-SSE Contrasto",2026,2029,2030]
["Nuovo intervento","DTCS","633-N","Opera Principale","Incremento magliatura 150 kV tra Enna e Catania","Nuovi raccordi 150kV alla SSE Troina su direttrice 150 kV SSE Grottafumata - SE Regalbuto.",2026,2029,2030]
["Nuovo intervento","DTCS","633-N","Opera Principale","Incremento magliatura 150 kV tra Enna e Catania","Rimozione elementi limitanti elettrodotti 150 kV",2026,2029,2030]
["Nuovo intervento","DTCS","634-N","Intervento","Incremento magliatura CP Giardini","Incremento magliatura CP Giardini",2026,2030,2032]
["Nuovo intervento","DTCS","634-N","Opera Principale","Incremento magliatura CP Giardini","Nuovi raccordi 150 kV alla CP Giardini su direttrice 150 kV Letojanni-Giarre.",2026,2030,2032]
["Nuovo intervento","DTCS","634-N","Opera Principale","Incremento magliatura CP Giardini","Rimozione elementi limitanti elettrodotti 150 kV",2026,2030,2032]
["Intervento Piano precedente","DTNO","3-P","Intervento ","Nuovo incremento di capacità di interconnessione con la Francia ","Nuovo incremento di capacità di interconnessione con la Francia "," "," ",2023]
["Intervento Piano precedente","DTNO","3-P","Opera Principale","Nuovo incremento di capacità di interconnessione con la Francia ","Linea HVDC Grande’lle – Piossasco","19/10/2009 (EL-177)","2016/2017",2023]
["Intervento Piano precedente","DTNO","3-P","Opera Principale","Nuovo incremento di capacità di interconnessione con la Francia ","SE conversione Piossasco","19/10/2009 (EL-177)","2016/2017",2023]
["Intervento Piano precedente","DTNO","4-P","Intervento ","Elettrodotto 380 kV Trino-Lacchiarella e opere di razionalizzazione associate","Elettrodotto 380 kV Trino-Lacchiarella e opere di razionalizzazione associate"," "," ",2038]
["Intervento Piano precedente","DTNO","4-P","Opera Principale","Elettrodotto 380 kV Trino-Lacchiarella e opere di razionalizzazione associate","Elettrodotto 380 kV Trino -Lacchiarella","Feb-2009 (EL-147)",2010,2014]
["Intervento Piano precedente","DTNO","4-P","Altre opere","Elettrodotto 380 kV Trino-Lacchiarella e opere di razionalizzazione associate","Variante aerea dell'elettrodotto a 380 kV Baggio - Pieve Albignola nell'ambito del territorio del Comune di Gudo Visconti","Feb-2015\n(EL-345)",2018,2018]
["Intervento Piano precedente","DTNO","4-P","Altre opere","Elettrodotto 380 kV Trino-Lacchiarella e opere di razionalizzazione associate","Riassetto delle linee esistenti nella Val Formazza mediante variante aerea delle due linee a 220 kV Ponte V.F. - Verampio","Sett-2011\n(EL-275)",2026,2035]
["Intervento Piano precedente","DTNO","4-P","Altre opere","Elettrodotto 380 kV Trino-Lacchiarella e opere di razionalizzazione associate","Interramento della linea a 132 kV Ponte V.F. – Fondovalle","Sett-2011\n(EL-275)",2026,2035]
["Intervento Piano precedente","DTNO","4-P","Altre opere","Elettrodotto 380 kV Trino-Lacchiarella e opere di razionalizzazione associate","Variante aerea della linea 220 kV Rosone – Grugliasco","Sett-2011\n(EL-258)",2014,2015]
["Intervento Piano precedente","DTNO","4-P","Altre opere","Elettrodotto 380 kV Trino-Lacchiarella e opere di razionalizzazione associate","Demolizione  132 kV, \"Garlasco - Tavazzano Est All\"",2018,2024,2025]
["Intervento Piano precedente","DTNO","4-P","Altre opere","Elettrodotto 380 kV Trino-Lacchiarella e opere di razionalizzazione associate","Demolizione linea a 132 kV \"Mercallo - Somma Lombardo\"",2025,2027,2030]
["Intervento Piano precedente","DTNO","4-P","Altre opere","Elettrodotto 380 kV Trino-Lacchiarella e opere di razionalizzazione associate","Demolizione 132 kV \"Casorate S. - Mercallo\"",2025,2027,2030]
["Intervento Piano precedente","DTNO","4-P","Altre opere","Elettrodotto 380 kV Trino-Lacchiarella e opere di razionalizzazione associate","Ricostruzione doppia terna tratto linee a 132 kV \"Casorate S - Mercallo\" e \"Somma Lombardo - Mercallo\"",2022,2033,2034]
["Intervento Piano precedente","DTNO","4-P","Altre opere","Elettrodotto 380 kV Trino-Lacchiarella e opere di razionalizzazione associate","Ricostruzione doppia terna raccordi 132 kV CP di Somma Lombardo delle linee \"Mercallo - Somma Lombardo\" e \"Somma Lombardo - Vizzola Ticino\"",2022,2033,2034]
["Intervento Piano precedente","DTNO","4-P","Altre opere","Elettrodotto 380 kV Trino-Lacchiarella e opere di razionalizzazione associate","Demolizione linea 132 kV \"Somma Lombardo - Vizzola Ticino\" e variante aerea",2022,2033,2034]
["Intervento Piano precedente","DTNO","4-P","Altre opere","Elettrodotto 380 kV Trino-Lacchiarella e opere di razionalizzazione associate","Demolizione e ricostruzione in doppia terna tratto inea 132 kV \"Somma Lombardo - Vizzola Ticino\" e 132 kV \"Malpensa All. - Vizzola Ticino\"",2022,2033,2034]
["Intervento Piano precedente","DTNO","4-P","Altre opere","Elettrodotto 380 kV Trino-Lacchiarella e opere di razionalizzazione associate","Variante aerea 220 kV \"Trino - Vercelli\"",2019,2023,2025]
["Intervento Piano precedente","DTNO","4-P","Altre opere","Elettrodotto 380 kV Trino-Lacchiarella e opere di razionalizzazione associate","Demolizione e interramento parziale della linea a 132 kV dalla CP di Vercelli\nSUD alla centrale ATELdi proprietà ATENA",2027,2032,2035]
["Intervento Piano precedente","DTNO","4-P","Altre opere","Elettrodotto 380 kV Trino-Lacchiarella e opere di razionalizzazione associate","Variante aerea 132 kV \"Fontanetto All-Trino CP\"",2020,2033,2035]
["Intervento Piano precedente","DTNO","4-P","Altre opere","Elettrodotto 380 kV Trino-Lacchiarella e opere di razionalizzazione associate","Variante aerea 132 kV \"Sannazzaro - Groppello All\", \"Alagna - Groppello All\" e \"Alagna - Vigevano Est\"",2022,2035,2037]
["Intervento Piano precedente","DTNO","4-P","Altre opere","Elettrodotto 380 kV Trino-Lacchiarella e opere di razionalizzazione associate","Interramento 132 kV di \"CP Mortara - CP Robbio\" e \"CP Robbio - Vercelli\"",2022,2035,2037]
["Intervento Piano precedente","DTNO","4-P","Altre opere","Elettrodotto 380 kV Trino-Lacchiarella e opere di razionalizzazione associate","Variante aerea 132 kV \"CP Mede - SIT CS SIT (Mortara)\"",2023,2036,2038]
["Intervento Piano precedente","DTNO","4-P","Altre opere","Elettrodotto 380 kV Trino-Lacchiarella e opere di razionalizzazione associate","Interramento 132 kV \"CP Mortara - SIT CS Mortara\"",2023,2036,2038]
["Intervento Piano precedente","DTNO","4-P","Altre opere","Elettrodotto 380 kV Trino-Lacchiarella e opere di razionalizzazione associate","Variante in cavo 132 kV “Mercallo – Cameri” e demolizione 220 kV tra “Mercallo-Cameri” e “Magenta-Pallanzeno”",2020,2023,2025]
["Intervento Piano precedente","DTNO","4-P","Altre opere","Elettrodotto 380 kV Trino-Lacchiarella e opere di razionalizzazione associate","Interramento tratto 132 kV doppia terna \"Tornavento - dep. S.Antonino CS\" e \"Malpensa CP - Turbigo ST\"",2021,2024,2027]
["Intervento Piano precedente","DTNO","4-P","Altre opere","Elettrodotto 380 kV Trino-Lacchiarella e opere di razionalizzazione associate","Interramento tratto linea 132 kV in doppia terna \"Malpensa CP - Turbigo ST\" e \"Tornavento - Turbigo Sup All\"",2021,2024,2027]
["Intervento Piano precedente","DTNO","4-P","Altre opere","Elettrodotto 380 kV Trino-Lacchiarella e opere di razionalizzazione associate","Interramento linea 132 kV dalla CP di Vercelli SUD alla centrale ATEL",2025,2030,2035]
["Intervento Piano precedente","DTNO","4-P","Altre opere","Elettrodotto 380 kV Trino-Lacchiarella e opere di razionalizzazione associate","Demolizione parziale 132 kV Edison Novara - Nerviano previa realizzazione della ri-chiusura della CP Nerviano sulla rete AT della Regione Lombardia e ricollegamento dell'impianto di Edison Novara (Novel) su rete AT novarese",2025,2030,2035]
["Intervento Piano precedente","DTNO","4-P","Altre opere","Elettrodotto 380 kV Trino-Lacchiarella e opere di razionalizzazione associate","Variante in cavo per l'ingresso alla CP Tortona linea a 132 kV Tortona - San Bartolomeo",2025,2030,2035]
["Intervento Piano precedente","DTNO","4-P","Altre opere","Elettrodotto 380 kV Trino-Lacchiarella e opere di razionalizzazione associate","Interramento 132 kV \"Reno de Medici - SARPOM\"",2025,2030,2035]
["Intervento Piano precedente","DTNO","4-P","Altre opere","Elettrodotto 380 kV Trino-Lacchiarella e opere di razionalizzazione associate","Interramento dell'elettrodotto a 132 kV Borgomanero Nord - Borgomanero Est",2025,2027,2030]
["Intervento Piano precedente","DTNO","6-P","Intervento ","Razionalizzazione rete 220 e 132 kV Provincia di Torino","Razionalizzazione rete 220 e 132 kV Provincia di Torino"," "," ",2035]
["Intervento Piano precedente","DTNO","6-P","Opera Principale","Razionalizzazione rete 220 e 132 kV Provincia di Torino","Nuova stazione 220 kV Gerbido","Gen-2007 (EL-099/2007)",2009,2011]
["Intervento Piano precedente","DTNO","6-P","Opera Principale","Razionalizzazione rete 220 e 132 kV Provincia di Torino","Elettrodotto Gurgliasco - Gerbido e T.981 Gerbido – Salvemini”",null,2009,2011]
["Intervento Piano precedente","DTNO","6-P","Opera Principale","Razionalizzazione rete 220 e 132 kV Provincia di Torino","Elettrodotto 220 kVSalvemini - TO Ovest","Feb-2008 (EL-110/2008)",2010,"2011-03-01"]
["Intervento Piano precedente","DTNO","6-P","Opera Principale","Razionalizzazione rete 220 e 132 kV Provincia di Torino","Stazione 220 kV Salvemini ","Mag-2008 (EL-124/2008",2009,"2011-02-01"]
["Intervento Piano precedente","DTNO","6-P","Opera Principale","Razionalizzazione rete 220 e 132 kV Provincia di Torino","Elettrodotto 220 kVSangone-TO Sud","Feb-2008 (EL-111/2008)",2009,"2010-04-01"]
["Intervento Piano precedente","DTNO","6-P","Opera Principale","Razionalizzazione rete 220 e 132 kV Provincia di Torino","Elettrodotto 220 kVSangone - Salvemini","Feb-2008 (EL-109/2008)",2010,"2011-03-01"]
["Intervento Piano precedente","DTNO","6-P","Opera Principale","Razionalizzazione rete 220 e 132 kV Provincia di Torino","Stazione 220 kV Pellerina","Mag-2009 (EL-158 )",2010,"2012-11-01"]
["Intervento Piano precedente","DTNO","6-P","Opera Principale","Razionalizzazione rete 220 e 132 kV Provincia di Torino","Elettrodotto 220 kV in cavo Pellerina-Levanna","Mag-2009 (EL-159)",2011,"2012-11-01"]
["Intervento Piano precedente","DTNO","6-P","Opera Principale","Razionalizzazione rete 220 e 132 kV Provincia di Torino","Elettrodotto 220 kV TO Ovest – Pellerina","Mag-2009 (EL-161)",2011,"2012-11-01"]
["Intervento Piano precedente","DTNO","6-P","Opera Principale","Razionalizzazione rete 220 e 132 kV Provincia di Torino","Elettrodotto 220 kV Pianezza-Pellerina","Giu-2011 (EL-236)",2013,"2015-12-01"]
["Intervento Piano precedente","DTNO","6-P","Opera Principale","Razionalizzazione rete 220 e 132 kV Provincia di Torino","Elettrodotto 220 kV Pellerina – Martinetto ","Mag-2009 (EL-341)",2011,"2012-11-01"]
["Intervento Piano precedente","DTNO","6-P","Opera Principale","Razionalizzazione rete 220 e 132 kV Provincia di Torino","Elettrodotto 220 kV Pellerina-Politecnico","Mag-2009 (EL-160)",2012,"2014-05-01"]
["Intervento Piano precedente","DTNO","6-P","Opera Principale","Razionalizzazione rete 220 e 132 kV Provincia di Torino","Elettrodotto 220 kV Martinetto-Levanna","Mar-2011 (EL-234)",2013,"2014-12-01"]
["Intervento Piano precedente","DTNO","6-P","Opera Principale","Razionalizzazione rete 220 e 132 kV Provincia di Torino","Elettrodotto 220 kV Stura- TO Centro","22-Set-2009 (EL-171)",2012,"2013-10-01"]
["Intervento Piano precedente","DTNO","6-P","Opera Principale","Razionalizzazione rete 220 e 132 kV Provincia di Torino","Stazione 220 kV Politecnico","Mag-2010 (EL-207)",2012,"2014-05-01"]
["Intervento Piano precedente","DTNO","6-P","Opera Principale","Razionalizzazione rete 220 e 132 kV Provincia di Torino","Elettrodotto 220 kV TO Centro- Politecnico","Mag-2010 (EL-208)",2013,"2014-09-01"]
["Intervento Piano precedente","DTNO","6-P","Opera Principale","Razionalizzazione rete 220 e 132 kV Provincia di Torino","Elettrodotto 220 kV Politecnico-TO Sud","Mar-2011 (EL-237)",2013,"2014-09-01"]
["Intervento Piano precedente","DTNO","6-P","Opera Principale","Razionalizzazione rete 220 e 132 kV Provincia di Torino","Stazione 220 kV di Grugliasco",2010,2010,"2011-01-01"]
["Intervento Piano precedente","DTNO","6-P","Opera Principale","Razionalizzazione rete 220 e 132 kV Provincia di Torino","Raccordi 132 kV alla CP Lucento","Giu-2011 (EL-235)",2012,"2012-11-01"]
["Intervento Piano precedente","DTNO","6-P","Altre opere","Razionalizzazione rete 220 e 132 kV Provincia di Torino","Riassetto degli ingressi delle linee a 220 kV alla S.E. Pianezza T.217 “Pianezza – Moncalieri”, T.231 “Pianezza – Piossasco”, T.233 “Pianezza – Pellerina”, T.254 “Pianezza – Torino Nord”","Set-2014 (EL-341)",2018,2020]
["Intervento Piano precedente","DTNO","6-P","Altre opere","Razionalizzazione rete 220 e 132 kV Provincia di Torino","Razionalizzazione Rete Elettrica 220 kV della città di Torino - Realizzazione della tratta in cavo interrato a 220 kV del nuovo collegamento T.213 “Pianezza - Grugliasco” e dei nuovi tratti delle linee aeree a 220 kV in ingresso alla S.E. Pianezza T.216 “Rosone - Pianezza” e T.231 “Piossasco - Pianezza”","Dic-2015 (EL-353)",2020,2023]
["Intervento Piano precedente","DTNO","6-P","Altre opere","Razionalizzazione rete 220 e 132 kV Provincia di Torino","Elettr. 132 kV “Rivoli – Paracca”",2018,2021,2022]
["Intervento Piano precedente","DTNO","6-P","Altre opere","Razionalizzazione rete 220 e 132 kV Provincia di Torino","Elettr.132 kV “Paracca – der.Metro”",2018,2021,2022]
["Intervento Piano precedente","DTNO","6-P","Altre opere","Razionalizzazione rete 220 e 132 kV Provincia di Torino","Elettr.132 kV - Fucine - Crot",2023,2026,2028]
["Intervento Piano precedente","DTNO","6-P","Altre opere","Razionalizzazione rete 220 e 132 kV Provincia di Torino","Elettr.132 kV “Crot-Agip Robassomero – der Lemie”",2023,2026,2028]
["Intervento Piano precedente","DTNO","6-P","Altre opere","Razionalizzazione rete 220 e 132 kV Provincia di Torino","Elettr. 132 kV “Agip Robassomero – Leyni”",2022,2026,2027]
["Intervento Piano precedente","DTNO","6-P","Altre opere","Razionalizzazione rete 220 e 132 kV Provincia di Torino","Elettr. 132 kV “Ciriè – Leynì”",2024,2027,2035]
["Intervento Piano precedente","DTNO","6-P","Altre opere","Razionalizzazione rete 220 e 132 kV Provincia di Torino","Elettr. 132 kV “Rosone – Balangero”",2017,2032,2035]
["Intervento Piano precedente","DTNO","6-P","Altre opere","Razionalizzazione rete 220 e 132 kV Provincia di Torino","Elettr. 132 kV “Rosone – Bardonetto”",2019,2019,2019]
["Intervento Piano precedente","DTNO","6-P","Altre opere","Razionalizzazione rete 220 e 132 kV Provincia di Torino","Raccordo 220 kV “Moncalieri - Sangone” alla SE Sangone",2025,2027,2030]
["Intervento Piano precedente","DTNO","6-P","Altre opere","Razionalizzazione rete 220 e 132 kV Provincia di Torino","Ampliamento e adeguamento SE Rosone e interramento linee in ingresso alla SE",2021,2022,2035]
["Intervento Piano precedente","DTNO","6-P","Altre opere","Razionalizzazione rete 220 e 132 kV Provincia di Torino","Reattore 220 kV Pianezza",2020,2020,2021]
["Intervento Piano precedente","DTNO","6-P","Altre opere","Razionalizzazione rete 220 e 132 kV Provincia di Torino","Elettr. 220 kV Salvemini - Martinetto",2020,2025,2035]
["Intervento Piano precedente","DTNO","24-P","Intervento ","Stazione 220 kV Novara Sud","Stazione 220 kV Novara Sud"," "," ",2025]
["Intervento Piano precedente","DTNO","24-P","Opera Principale","Stazione 220 kV Novara Sud","Ampliamento e adeguamento SE 220 kV Novara Sud",2018,2018,2025]
["Intervento Piano precedente","DTNO","26-P","Intervento ","Stazione 220 kV San Colombano","Stazione 220 kV San Colombano"," "," ",2025]
["Intervento Piano precedente","DTNO","26-P","Opera Principale","Stazione 220 kV San Colombano","Ampliamento e adeguamento SE 220 kV di San colombano",2018,2021,2025]
["Intervento Piano precedente","DTNO","15-P","Intervento ","Elettrodotto 132 kV “Imperia – S. Remo”","Elettrodotto 132 kV “Imperia – S. Remo”",2025,2027,2030]
["Intervento Piano precedente","DTNO","15-P","Opera Principale","Elettrodotto 132 kV “Imperia – S. Remo”","Direttrice 132 kV “Imperia-Arma di Taggia-S.Remo”",2025,2027,2030]
["Intervento Piano precedente","DTNO","15-P","Opera Principale","Elettrodotto 132 kV “Imperia – S. Remo”","Sostituzione ATR stazione di Campochiesa",2025,2027,2030]
["Intervento Piano precedente","DTNO","14-P","Intervento ","Elettrodotto 132 kV Magliano Alpi – Fossano e scrocio di Murazzo","Elettrodotto 132 kV Magliano Alpi – Fossano e scrocio di Murazzo"," "," ",2027]
["Intervento Piano precedente","DTNO","14-P","Opera Principale","Elettrodotto 132 kV Magliano Alpi – Fossano e scrocio di Murazzo","Nuovo elettrodotto Magliano Alpi – Fossano","Dic-2013 (EL-322)",2024,2027]
["Intervento Piano precedente","DTNO","14-P","Opera Principale","Elettrodotto 132 kV Magliano Alpi – Fossano e scrocio di Murazzo","Scrocio loc. Murazzo","Ago-2005 (EL-025/2005)",2017,2017]
["Intervento Piano precedente","DTNO","10-P","Intervento ","Rinforzi 132 kV Area Metropolitana di Genova","Rinforzi 132 kV Area Metropolitana di Genova"," "," ",2030]
["Intervento Piano precedente","DTNO","10-P","Opera Principale","Rinforzi 132 kV Area Metropolitana di Genova","Elettrodotto 132 kV Genova T - Quadrivio","Ago-2006 (EL-066/2006)",2008,2010]
["Intervento Piano precedente","DTNO","10-P","Opera Principale","Rinforzi 132 kV Area Metropolitana di Genova","Elettrodotto 132 kV Genova T-Canevari","Ago-2006 (EL-066/2006)",2008,2011]
["Intervento Piano precedente","DTNO","10-P","Opera Principale","Rinforzi 132 kV Area Metropolitana di Genova","Elettrodotto 132 kV Genova T – Iren","3- Sett-2015 (EL 350)",2017,2018]
["Intervento Piano precedente","DTNO","10-P","Opera Principale","Rinforzi 132 kV Area Metropolitana di Genova","Nuovo collegamento in cavo 132 kV Genova T - Erzelli","3- Sett-2015 (EL 350)",2017,2020]
["Intervento Piano precedente","DTNO","10-P","Opera Principale","Rinforzi 132 kV Area Metropolitana di Genova","Elettrodotto 132 kV Molassana – Canevari",2017,2017,2019]
["Intervento Piano precedente","DTNO","10-P","Opera Principale","Rinforzi 132 kV Area Metropolitana di Genova","Elettrodotto 132 kV Molassana - Borgoratti","Lug 2017 (EL 380)",2020,2022]
["Intervento Piano precedente","DTNO","10-P","Opera Principale","Rinforzi 132 kV Area Metropolitana di Genova","SE Erzelli, ipotenziamento trasformazioni",2019,2019,2025]
["Intervento Piano precedente","DTNO","10-P","Opera Principale","Rinforzi 132 kV Area Metropolitana di Genova","Potenziamento ele. 132 kV Morigallo - Molassana",2022,2025,2030]
["Intervento Piano precedente","DTNO","10-P","Opera Principale","Rinforzi 132 kV Area Metropolitana di Genova","Eliminazione collegamento Dogali NK – Canevari e realizzazione nuovo collegamento in cavo Dogali-Canevari",2022,2025,2030]
["Intervento Piano precedente","DTNO","10-P","Opera Principale","Rinforzi 132 kV Area Metropolitana di Genova","Eliminazione T-rigido Quadrivio e realizzazione collegamento diretto Morigallo - Quadrivio",2022,2023,2030]
["Intervento Piano precedente","DTNO","10-P","Opera Principale","Rinforzi 132 kV Area Metropolitana di Genova","Realizzazione collegamento diretto Genova T. – Dogali",2022,2025,2030]
["Intervento Piano precedente","DTNO","10-P","Opera Principale","Rinforzi 132 kV Area Metropolitana di Genova","Interramento tratto di elettrodotto Genova T. - Dogali",2022,2025,2030]
["Intervento Piano precedente","DTNO","25-P","Intervento ","Rete 132 kV provincia di Aosta","Rete 132 kV provincia di Aosta"," "," ",2025]
["Intervento Piano precedente","DTNO","25-P","Opera Principale","Rete 132 kV provincia di Aosta","Interventi presso Signayes all.",2019,2019,2025]
["Intervento Piano precedente","DTNO","25-P","Opera Principale","Rete 132 kV provincia di Aosta","Interventi presso Nus",2020,2023,2025]
["Intervento Piano precedente","DTNO","155-P","Intervento ","Stazione 132 kV Novara Est","Stazione 132 kV Novara Est",2025,2025,2030]
["Intervento Piano precedente","DTNO","155-P","Opera Principale","Stazione 132 kV Novara Est","S/E 132 kV Novara Est e raccordi 132 kV",2025,2025,2030]
["Intervento Piano precedente","DTNO","159-P","Intervento ","Stazione 132 kV Villadossola","Stazione 220  kV Villadossola"," ",2024,2035]
["Intervento Piano precedente","DTNO","159-P","Opera Principale","Stazione 132 kV Villadossola","Adeguamento stazione 132 kV Villadossola",2020,2024,2035]
["Intervento Piano precedente","DTNO","158-P","Intervento ","Stazione 220 kV Villeneuve","Stazione 220  kV Villeneuve"," ",2024,2027]
["Intervento Piano precedente","DTNO","158-P","Opera Principale","Stazione 220 kV Villeneuve","Nuova trasformazione 220/132 kV Villeneuve",2020,2024,2027]
["Intervento Piano precedente","DTNO","104-P","Intervento ","Elettrodotto 380 kV tra Milano e Brescia","Elettrodotto 380 kV tra Milano e Brescia"," "," ",2025]
["Intervento Piano precedente","DTNO","104-P","Opera Principale","Elettrodotto 380 kV tra Milano e Brescia","Elettrodotto 380 kV Cassano-Chiari","Dic-2013 (EL-326)",2023,2025]
["Intervento Piano precedente","DTNO","104-P","Opera Principale","Elettrodotto 380 kV tra Milano e Brescia","Ampliamento SE Chiari","Lug-2013 (EL-311)","2014-03-01",2016]
["Intervento Piano precedente","DTNO","104-P","Opera Principale","Elettrodotto 380 kV tra Milano e Brescia","Raccordi 220kV alla S/E Cassano della Grosio/Premadio- Ric. Sud",2022,2023,2024]
["Intervento Piano precedente","DTNO","104-P","Opera Principale","Elettrodotto 380 kV tra Milano e Brescia","ATR 380/220 kV Cassano",2024,2025,2025]
["Intervento Piano precedente","DTNO","106-P","Intervento ","Elettrodotto 220 kV Glorenza – Tirano – der.Premadio","Elettrodotto 220 kV Glorenza – Tirano – der.Premadio"," "," ",2024]
["Intervento Piano precedente","DTNO","106-P","Opera Principale","Elettrodotto 220 kV Glorenza – Tirano – der.Premadio","Nuovo raccordo 220 kV in S/E Premadio","10-Ago-2015 (EL-349)",2018,2022]
["Intervento Piano precedente","DTNO","106-P","Opera Principale","Elettrodotto 220 kV Glorenza – Tirano – der.Premadio","Nuovo stallo 220 kV in S/E Premadio","10-Ago-2015 (EL-349)",2018,2022]
["Intervento Piano precedente","DTNO","106-P","Opera Principale","Elettrodotto 220 kV Glorenza – Tirano – der.Premadio","Ampliamento e adeguamento S/E 220 kV Premadio",2018,2022,2024]
["Intervento Piano precedente","DTNO","113-P","Intervento ","Razionalizzazione 220/132 kV in Provincia di Lodi","Razionalizzazione 220/132 kV in Provincia di Lodi"," "," ",2035]
["Intervento Piano precedente","DTNO","113-P","Opera Principale","Razionalizzazione 220/132 kV in Provincia di Lodi","Elettrodotto 380 kV Chigolo Po-Maleo","Feb-2008 (EL-108/2008)",2010,2011]
["Intervento Piano precedente","DTNO","113-P","Opera Principale","Razionalizzazione 220/132 kV in Provincia di Lodi","SE Chignolo Po","Feb-2008 (EL-108/2008)",2010,2011]
["Intervento Piano precedente","DTNO","113-P","Opera Principale","Razionalizzazione 220/132 kV in Provincia di Lodi","SE Maleo","Feb-2008 (EL-108/2008)",2010,2011]
["Intervento Piano precedente","DTNO","113-P","Altre Opere","Razionalizzazione 220/132 kV in Provincia di Lodi","S. Rocco – Miradolo","Feb-2012 (EL-282)",2022,2024]
["Intervento Piano precedente","DTNO","113-P","Altre Opere","Razionalizzazione 220/132 kV in Provincia di Lodi"," Casalpusterlengo – S.Rocco","Feb-2012 (EL-282)",2022,2024]
["Intervento Piano precedente","DTNO","113-P","Altre Opere","Razionalizzazione 220/132 kV in Provincia di Lodi","Casalpusterlengo-UT Lever",2025,2027,2030]
["Intervento Piano precedente","DTNO","113-P","Altre Opere","Razionalizzazione 220/132 kV in Provincia di Lodi","SE 220 Tavazzano","Lug-2010 (EL – 204)",2015,2022]
["Intervento Piano precedente","DTNO","113-P","Altre Opere","Razionalizzazione 220/132 kV in Provincia di Lodi","raccordi 220kV in cavo nel comune di Tavazzano con Villavesco","Lug-2010 (EL – 204)",2018,2021]
["Intervento Piano precedente","DTNO","113-P","Altre Opere","Razionalizzazione 220/132 kV in Provincia di Lodi","Tavazzano Est-Sarmato n.221","Lug-2010 (EL – 204)",2018,2022]
["Intervento Piano precedente","DTNO","113-P","Altre Opere","Razionalizzazione 220/132 kV in Provincia di Lodi","Tavazzano Est-Tavazzano n.222","Lug-2010 (EL – 204)",2018,2022]
["Intervento Piano precedente","DTNO","113-P","Altre Opere","Razionalizzazione 220/132 kV in Provincia di Lodi","Tavazzano Est-Cesano n.223","Lug-2010 (EL – 204)",2018,2022]
["Intervento Piano precedente","DTNO","113-P","Altre Opere","Razionalizzazione 220/132 kV in Provincia di Lodi","Tavazzano-Tavazzano Ovest-Cassano n.276","Lug-2010 (EL – 204)",2017,2018]
["Intervento Piano precedente","DTNO","113-P","Altre Opere","Razionalizzazione 220/132 kV in Provincia di Lodi","Tavazzano Est-Tavazzano n.586","Lug-2010 (EL – 204)",2018,2022]
["Intervento Piano precedente","DTNO","113-P","Altre Opere","Razionalizzazione 220/132 kV in Provincia di Lodi","Tavazzano Ovest-Rise Sesto n.922","Lug-2010 (EL – 204)",2015,2017]
["Intervento Piano precedente","DTNO","113-P","Altre Opere","Razionalizzazione 220/132 kV in Provincia di Lodi","Tavazzano Est-Colà","Lug-2010 (EL – 204)",2018,2022]
["Intervento Piano precedente","DTNO","113-P","Altre Opere","Razionalizzazione 220/132 kV in Provincia di Lodi","raccordo Tavazzano-Chiaravalle","Lug-2010 (EL – 204)",2018,2022]
["Intervento Piano precedente","DTNO","113-P","Altre Opere","Razionalizzazione 220/132 kV in Provincia di Lodi","Tavazzano Est-Garlasco n.035-3","Lug-2010 (EL – 204)",2018,2022]
["Intervento Piano precedente","DTNO","113-P","Altre Opere","Razionalizzazione 220/132 kV in Provincia di Lodi","Tavazzano Est-Chiaravalle n.031","Lug-2010 (EL – 204)",2018,2022]
["Intervento Piano precedente","DTNO","113-P","Altre Opere","Razionalizzazione 220/132 kV in Provincia di Lodi","Tavazzano Est-Garlasco der SESEC n.035-3","Lug-2010 (EL – 204)",2015,2017]
["Intervento Piano precedente","DTNO","113-P","Altre Opere","Razionalizzazione 220/132 kV in Provincia di Lodi","Lodi – Lodi FS n.576","Lug-2010 (EL – 204)",2020,2022]
["Intervento Piano precedente","DTNO","113-P","Altre Opere","Razionalizzazione 220/132 kV in Provincia di Lodi","Lodi – Brembio n.590","Lug-2010 (EL – 204)",2020,2022]
["Intervento Piano precedente","DTNO","113-P","Altre Opere","Razionalizzazione 220/132 kV in Provincia di Lodi","Lodi – Montanaso n.591","Lug-2010 (EL – 204)",2020,2022]
["Intervento Piano precedente","DTNO","113-P","Altre Opere","Razionalizzazione 220/132 kV in Provincia di Lodi","Casalpusterlengo – Brembio","Feb-2012 (EL-282)",2023,2035]
["Intervento Piano precedente","DTNO","113-P","Altre Opere","Razionalizzazione 220/132 kV in Provincia di Lodi","Casalpusterlengo – Pizzighettone","Feb-2012 (EL-282)",2023,2035]
["Intervento Piano precedente","DTNO","113-P","Altre Opere","Razionalizzazione 220/132 kV in Provincia di Lodi","Lodi FS-Casalpusterlengo FS n.0241°",2021,2023,2035]
["Intervento Piano precedente","DTNO","113-P","Altre Opere","Razionalizzazione 220/132 kV in Provincia di Lodi","Lodi FS-Melegnano FS n.023°",2021,2023,2035]
["Intervento Piano precedente","DTNO","113-P","Altre Opere","Razionalizzazione 220/132 kV in Provincia di Lodi","Maleo – Pizzighettone","Feb-2008 (EL-108/2008)",2010,2011]
["Intervento Piano precedente","DTNO","113-P","Altre Opere","Razionalizzazione 220/132 kV in Provincia di Lodi","S. Rocco-Maleo","Feb-2008 (EL-108/2008)",2010,2011]
["Intervento Piano precedente","DTNO","113-P","Altre Opere","Razionalizzazione 220/132 kV in Provincia di Lodi","S.Rocco-Pizzighettone","Feb-2008 (EL-108/2008)",2010,2011]
["Intervento Piano precedente","DTNO","116-P","Intervento ","Razionalizzazione 220/132 kV in Valle Sabbia","Razionalizzazione 220/132 kV in Valle Sabbia"," "," ",2025]
["Intervento Piano precedente","DTNO","116-P","Opera Principale","Razionalizzazione 220/132 kV in Valle Sabbia","SE 220 kV Agnosine e raccordi","Feb-2012 (EL-274)",2018,2025]
["Intervento Piano precedente","DTNO","116-P","Opera Principale","Razionalizzazione 220/132 kV in Valle Sabbia","SE 132 kV di Ponte Caffaro, collegamenti alla RTN e opere connesse.","Dic-2015 (EL-360)",2019,2024]
["Intervento Piano precedente","DTNO","116-P","Opera Principale","Razionalizzazione 220/132 kV in Valle Sabbia","Collegamento 132 kV Ferriera Valsabbia – Agnosine",2019,2022,2025]
["Intervento Piano precedente","DTNO","116-P","Opera Principale","Razionalizzazione 220/132 kV in Valle Sabbia","Nuovo raccordo in DT 132 kV ingresso CP Lumezzane",2018,2022,2023]
["Intervento Piano precedente","DTNO","116-P","Opera Principale","Razionalizzazione 220/132 kV in Valle Sabbia","Predisposizione dispositivi automatici presso gli impianti di IRO Odolo e Valsabbia.",2018,2022,2025]
["Intervento Piano precedente","DTNO","127-P","Intervento ","Stazione 380 kV Mese","Stazione 380 kV Mese"," ",2030,2035]
["Intervento Piano precedente","DTNO","127-P","Opera Principale","Stazione 380 kV Mese","SE 380 kV Mese e raccordi","Giu-2014 (EL-332)",2030,2035]
["Intervento Piano precedente","DTNO","126-P","Intervento ","Stazione 380 kV Magenta","Stazione 380 kV Magenta"," "," ",2023]
["Intervento Piano precedente","DTNO","126-P","Opera Principale","Stazione 380 kV Magenta","Nuova sezione 380 kV e ATR 380/220 kV presso la SE 220 kV Magenta","Gen – 2016 (EL-361)",2019,2023]
["Intervento Piano precedente","DTNO","126-P","Opera Principale","Stazione 380 kV Magenta","Raccordi 380 kV alla linea “Turbigo – Baggio”","Gen – 2016 (EL-361)",2019,2023]
["Intervento Piano precedente","DTNO","126-P","Altre Opere","Stazione 380 kV Magenta","Interramento 132 kV \"Magenta-Abbiategrasso T.040\" e \"Magenta -Vigevano est\"","Gen – 2016 (EL-361)",2019,2022]
["Intervento Piano precedente","DTNO","126-P","Altre Opere","Stazione 380 kV Magenta","Ripristino doppia terna 132 kV \"Magenta-Vittuone\" e \"Magenta-Gaggiano\" e demolizione, parziale132 kV \"Magenta-Gaggiano\"","Gen – 2016 (EL-361)",2019,2022]
["Intervento Piano precedente","DTNO","126-P","Altre Opere","Stazione 380 kV Magenta","Interramento 132 kV \"Magenta - Magenta CS T.480\"","Gen – 2016 (EL-361)",2019,2022]
["Intervento Piano precedente","DTNO","126-P","Altre Opere","Stazione 380 kV Magenta","Interramento 132 kV \"Magenta-Boffalora\"","Gen – 2016 (EL-361)",2019,2022]
["Intervento Piano precedente","DTNO","138-P","Intervento ","Stazione 380 kV Brugherio","Stazione 380 kV Brugherio"," "," ",2025]
["Intervento Piano precedente","DTNO","138-P","Opera Principale","Stazione 380 kV Brugherio","Adeguamento della SE Brugherio",2015,2015,2025]
["Intervento Piano precedente","DTNO","142-P","Intervento ","Stazione 380 kV Tavazzano","Stazione 380 kV Tavazzano"," "," ",2025]
["Intervento Piano precedente","DTNO","142-P","Opera Principale","Stazione 380 kV Tavazzano","Adeguamento SE Tavazzano",2015,2015,2025]
["Intervento Piano precedente","DTNO","142-P","Opera Principale","Stazione 380 kV Tavazzano","ATR 380/220 kV SE Tavazzano",2024,2025,2025]
["Intervento Piano precedente","DTNO","137-P","Intervento ","Stazione 380 kV Bovisio","Stazione 380 kV Bovisio"," "," ",2025]
["Intervento Piano precedente","DTNO","137-P","Opera Principale","Stazione 380 kV Bovisio","Adeguamento SE Bovisio",2013,2013,2025]
["Intervento Piano precedente","DTNO","137-P","Opera Principale","Stazione 380 kV Bovisio","Installazione di un banco di reattanze trasversali da 285 MVAr presso SE Bovisio",2013,2013,2015]
["Intervento Piano precedente","DTNO","143-P","Intervento ","Stazione 380 kV Turbigo","Stazione 380 kV Turbigo"," "," ",2035]
["Intervento Piano precedente","DTNO","143-P","Opera Principale","Stazione 380 kV Turbigo","Adeguamento della SE Turbigo",2025,2025,2035]
["Intervento Piano precedente","DTNO","143-P","Opera Principale","Stazione 380 kV Turbigo","Installazione di un banco di reattanze trasversali da 258 MVAr presso SE Turbigo",2015,2016,2017]
["Intervento Piano precedente","DTNO","144-P","Intervento ","Stazione 380 kV S.Rocco","Stazione 380 kV S.Rocco"," "," ",2023]
["Intervento Piano precedente","DTNO","144-P","Opera Principale","Stazione 380 kV S.Rocco","Adeguamento della SE 380 kV S. Rocco",2015,2015,2023]
["Intervento Piano precedente","DTNO","152-P","Intervento ","Stazione 220 kV Tirano","Stazione 220 kV Tirano"," ",2023,2024]
["Intervento Piano precedente","DTNO","152-P","Opera Principale","Stazione 220 kV Tirano","Installazione reattore presso SE 220 kV Tirano",2021,2023,2024]
["Intervento Piano precedente","DTNO","130-P","Intervento ","Stazione 220 kV Vaiano Valle","Stazione 220 kV Vaiano Valle",2025,2028,2030]
["Intervento Piano precedente","DTNO","130-P","Opera Principale","Stazione 220 kV Vaiano Valle","SE 220 kV Vaiano Valle e raccordi",2025,2028,2030]
["Intervento Piano precedente","DTNO","149-P","Intervento ","Elettrodotto 132 kV Cedrate - Casorate","Elettrodotto 132 kV Cedrate - Casorate",2025,2027,2035]
["Intervento Piano precedente","DTNO","149-P","Opera Principale","Elettrodotto 132 kV Cedrate - Casorate","Adeguamento portata elettrodotto 132 kV Cedrate – Casorate",2025,2027,2035]
["Intervento Piano precedente","DTNO","153-P","Intervento ","Riassetto rete 132 kV area Rho","Riassetto rete 132 kV area Rho",2025,2033,2035]
["Intervento Piano precedente","DTNO","153-P","Opera principale","Riassetto rete 132 kV area Rho","Nuova SE 132 kV presso la CP Rho",2025,2033,2035]
["Intervento Piano precedente","DTNO","153-P","Opera principale","Riassetto rete 132 kV area Rho","Elettrodotto 132 kV “Ospiate - Lainate”",2025,2033,2035]
["Intervento Piano precedente","DTNO","153-P","Opera principale","Riassetto rete 132 kV area Rho","Elettrodotto 132 kV “Lainate - Rho”",2025,2033,2035]
["Intervento Piano precedente","DTNO","153-P","Opera principale","Riassetto rete 132 kV area Rho","Elettrodotto 132 kV “Rho - Settimo”",2025,2033,2035]
["Intervento Piano precedente","DTNO","114-P","Intervento ","Riassetto rete 132 kV Brescia","Riassetto rete 132 kV Brescia"," ",2023,2027]
["Intervento Piano precedente","DTNO","114-P","Opera Principale","Riassetto rete 132 kV Brescia","Potenziamento elettrodotto in cavo “Ziziola – XXV Aprile”",2020,2023,2027]
["Intervento Piano precedente","DTNO","114-P","Opera Principale","Riassetto rete 132 kV Brescia","Potenziamento elettrodotto in cavo “XXV Aprile – Ric.Nord”",2020,2023,2027]
["Intervento Piano precedente","DTNO","108-P","Intervento ","Riassetto rete 132 kV tra La Casella e Castelnuovo","Riassetto rete 132 kV tra La Casella e Castelnuovo"," ",2023,2035]
["Intervento Piano precedente","DTNO","108-P","Opera Principale","Riassetto rete 132 kV tra La Casella e Castelnuovo","Nuovo elettrodotto 132 kV tra SE La Casella e Arena Po","Giu-2017 (EL-382)",2023,2025]
["Intervento Piano precedente","DTNO","108-P","Opera Principale","Riassetto rete 132 kV tra La Casella e Castelnuovo","Rimozione della derivazione rigida sull’elettrodotto “CP Arena Po - CP Copiano”","Giu-2017 (EL-382)",2023,2025]
["Intervento Piano precedente","DTNO","108-P","Opera Principale","Riassetto rete 132 kV tra La Casella e Castelnuovo","Rimozione limitazioni dell’elettrodotto 132 kV “La Casella – CP Broni”",2025,2030,2035]
["Intervento Piano precedente","DTNO","108-P","Opera Principale","Riassetto rete 132 kV tra La Casella e Castelnuovo","Rimozione limitazioni dell’elettrodotto 132 kV “CP Broni – CP Bressana”",2025,2030,2035]
["Intervento Piano precedente","DTNO","108-P","Opera Principale","Riassetto rete 132 kV tra La Casella e Castelnuovo","Rimozione limitazioni dell’elettrodotto 132 kV “CP Bressana – CP Voghera”",2025,2030,2035]
["Intervento Piano precedente","DTNO","108-P","Opera Principale","Riassetto rete 132 kV tra La Casella e Castelnuovo","Rimozione limitazioni dell’elettrodotto 132 kV “CP Voghera - Castelnuovo”",2025,2030,2035]
["Intervento Piano precedente","DTNO","119-P","Intervento ","Razionalizzazione 132 kV Cremona","Razionalizzazione 132 kV Cremona"," ",2024,2035]
["Intervento Piano precedente","DTNO","119-P","Opera Principale","Razionalizzazione 132 kV Cremona","Potenziamento el. 132 kV “Cremona – Cremona Est”",2019,2024,2035]
["Intervento Piano precedente","DTNO","119-P","Opera Principale","Razionalizzazione 132 kV Cremona","Potenziamento el. 132 kV “Cremona FS – Pessina”",2019,2024,2035]
["Intervento Piano precedente","DTNO","119-P","Opera Principale","Razionalizzazione 132 kV Cremona","Potenziamento el. 132 kV “Pessina – Asola”",2019,2024,2026]
["Intervento Piano precedente","DTNO","119-P","Opera Principale","Razionalizzazione 132 kV Cremona","Nuovo elettr. 132 kV “Piadena – Cella Dati”",2024,2029,2035]
["Intervento Piano precedente","DTNO","110-P","Intervento ","Riassetto rete AT tra Lodi e Piacenza","Riassetto rete AT tra Lodi e Piacenza"," ",2025,2026]
["Intervento Piano precedente","DTNO","110-P","Opera Principale","Riassetto rete AT tra Lodi e Piacenza","132 kV “San Rocco – Piacenza RFI all – Casalpusterlengo” e “San Rocco – Fiorenzuola RFI all – Fiorenzuola",2021,2025,2026]
["Intervento Piano precedente","DTNO","154-P","Intervento ","Riassetto lago di Como","Riassetto lago di Como",2027,2032,2035]
["Intervento Piano precedente","DTNO","154-P","Opera Principale","Riassetto lago di Como","Linea 132 kV Lecco-Bulciago",2027,2032,2035]
["Intervento Piano precedente","DTNO","154-P","Opera Principale","Riassetto lago di Como","Linea 132 kV Lecco CP – Lecco RFI",2027,2032,2035]
["Intervento Piano precedente","DTNO","154-P","Opera Principale","Riassetto lago di Como","Rete 66 kV Lecco-Delebbio",2027,2032,2035]
["Intervento Piano precedente","DTNO","156-P","Intervento ","Razionalizzazione rete 132 kV Cislago – Castellanza – Olgiate O.","Razionalizzazione rete 132 kV Cislago – Castellanza – Olgiate O.",2024,2028,2030]
["Intervento Piano precedente","DTNO","156-P","Opera Principale","Razionalizzazione rete 132 kV Cislago – Castellanza – Olgiate O.","Linea 132 kV Castellanza - Olgiate",2024,2028,2030]
["Intervento Piano precedente","DTNO","112-P","Intervento","Razionalizzazione 380 kV Media Valtellina (Fase B)","Razionalizzazione 380 kV Media Valtellina (Fase B)"," ",2033,2038]
["Intervento Piano precedente","DTNO","112-P","Opera Principale","Razionalizzazione 380 kV Media Valtellina (Fase B)","Nuove SE 380 kV di Grosina, Tovo, Poschiavino, Bessimo e Piateda",2019,2033,2038]
["Intervento Piano precedente","DTNO","112-P","Opera Principale","Razionalizzazione 380 kV Media Valtellina (Fase B)","Nuovi raccordi a 380 kV alla S/E Grosina, Tovo, Poschiavino, Piateda, Pian Camuno, Bessimo e Travagliato",2019,2033,2038]
["Intervento Piano precedente","DTNO","112-P","Opera Principale","Razionalizzazione 380 kV Media Valtellina (Fase B)","Nuova direttrice a 380 kV Grosina-Tovo, Poschiavino e Piateda",2022,2033,2038]
["Intervento Piano precedente","DTNO","112-P","Opera Principale","Razionalizzazione 380 kV Media Valtellina (Fase B)","Nuova direttrice a 380 kV Piateda, Bessimo, Pian Camuno e Travagliato",2022,2033,2038]
["Intervento Piano precedente","DTNO","112-P","Opera Principale","Razionalizzazione 380 kV Media Valtellina (Fase B)","Dismissione della linea 220kV Grosio - Verderio",2022,2033,2038]
["Intervento Piano precedente","DTNO","112-P","Opera Principale","Razionalizzazione 380 kV Media Valtellina (Fase B)","Collegamento alla nuova stazione di Grosina della linea a 220 kV Glorenza –Tirano",2019,2033,2038]
["Intervento Piano precedente","DTNO","112-P","Opera Principale","Razionalizzazione 380 kV Media Valtellina (Fase B)","Dismissione dalla RTN del tratto della linea 220kV Glorenza /Tirano - Cesano, compreso tra Grosio e Cesano",2022,2033,2038]
["Intervento Piano precedente","DTNO","112-P","Opera Principale","Razionalizzazione 380 kV Media Valtellina (Fase B)","Raccordi alla nuova S/E Grosina della linea 220 kV Premadio - Ric. Sud MI e Grosio –Ric. Sud MI",2019,2033,2038]
["Intervento Piano precedente","DTNO","112-P","Opera Principale","Razionalizzazione 380 kV Media Valtellina (Fase B)","Dismissione della linea 132 kV Cedegolo - Cividate - Gorlago nel tratto compreso tra Cedegolo e\nPian Camuno previo potenziamento delle linee a 132 kV tra Cedegolo e Pian Camuno",2022,2033,2038]
["Intervento Piano precedente","DTNO","112-P","Opera Principale","Razionalizzazione 380 kV Media Valtellina (Fase B)","Dismissione della linea 132 kV  Stazzona - Verderio nel tratto compreso tra Belviso e Piateda",2022,2033,2038]
["Intervento Piano precedente","DTNO","112-P","Opera Principale","Razionalizzazione 380 kV Media Valtellina (Fase B)","Dismissione della linea a 132 kV Fusine - Lenna",2022,2033,2038]
["Intervento Piano precedente","DTNO","112-P","Opera Principale","Razionalizzazione 380 kV Media Valtellina (Fase B)","Realizzazione in cavo interrato di un nuovo collegamento a 220 kV tra Sondrio e Piateda",2022,2033,2038]
["Intervento Piano precedente","DTNO","112-P","Opera Principale","Razionalizzazione 380 kV Media Valtellina (Fase B)","Trasformazione in cavo interrato di un tratto della linea a 132 kV Sondrio - Piateda",2022,2033,2038]
["Intervento Piano precedente","DTNO","112-P","Opera Principale","Razionalizzazione 380 kV Media Valtellina (Fase B)","Dismissione della linea 220 kV Venina - Cassano nel tratto compreso tra Venina e Dalmine",2022,2033,2038]
["Intervento Piano precedente","DTNO","117-P","Intervento","Razionalizzazione rete AT Val camonica/Val Seriana (BG)","Razionalizzazione rete AT Val camonica/Val Seriana (BG)",2024,2030,2033]
["Intervento Piano precedente","DTNO","117-P","Opera Principale","Razionalizzazione rete AT Val camonica/Val Seriana (BG)","Nuova linea 132 kV tra gli impianti di Dossi e Piancamuno",2024,2030,2033]
["Intervento Piano precedente","DTNO","301-P","Intervento ","Collegamento HVDC Sardegna – Corsica – Italia (SA.CO.I.3)","Interconnessione Sardegna – Corsica – Italia (Sa.Co.I.3)"," ",2023,2027]
["Intervento Piano precedente","DTNO","301-P","Opera principale","Collegamento HVDC Sardegna – Corsica – Italia (SA.CO.I.3)","Interconnessione HVDC Sardegna - Corsica - Italia ",2017,2023,2027]
["Intervento Piano precedente","DTNO","301-P","Opera principale","Collegamento HVDC Sardegna – Corsica – Italia (SA.CO.I.3)","SdC HVDC Sardegna",2017,2024,2027]
["Intervento Piano precedente","DTNO","301-P","Opera principale","Collegamento HVDC Sardegna – Corsica – Italia (SA.CO.I.3)","SdC HVDC Toscana",2017,2024,2027]
["Intervento Piano precedente","DTNO","707-P","Intervento ","Elettrodotto 150 kV SE S.Teresa – Buddusò","Elettrodotto 150 kV SE S.Teresa – Buddusò"," "," ",2028]
["Intervento Piano precedente","DTNO","707-P","Opera principale","Elettrodotto 150 kV SE S.Teresa – Buddusò","Nuova stazione RTN in adiacenza alla CP S.Teresa.","Sett-2012 (EL-297)",2017,2019]
["Intervento Piano precedente","DTNO","707-P","Opera principale","Elettrodotto 150 kV SE S.Teresa – Buddusò","Nuovo elettrodotto 150 kV S. Teresa – Tempio – Buddusò e le stazioni 150 kV di Tempio e di Buddusò con i relativi raccordi.","Ott-2014 (EL-327)",2024,2028]
["Intervento Piano precedente","DTNO","707-P","Opera principale","Elettrodotto 150 kV SE S.Teresa – Buddusò","Installazione batteria condensatori SE Tempio 2x27 MVAr",2023,2024,2026]
["Intervento Piano precedente","DTNO","707-P","Opera principale","Elettrodotto 150 kV SE S.Teresa – Buddusò","Installazione batteria condensatori SE S.Teresa 2x27 MVAr",2023,2024,2026]
["Intervento Piano precedente","DTNO","708-P","Intervento ","Elettrodotto 150 kV Selargius – Goni","Elettrodotto 150 kV Selargius – Goni"," ",2025,2030]
["Intervento Piano precedente","DTNO","708-P","Opera principale","Elettrodotto 150 kV Selargius – Goni","Elettrodotto 150 kV “Selargius-Goni”",2024,2025,2030]
["Intervento Piano precedente","DTNO","708-P","Opera principale","Elettrodotto 150 kV Selargius – Goni","Elettrodotti 150 kV “Santu Miali – Goni” e ”Santu Miali –Villasor”",2022,2022,2022]
["Intervento Piano precedente","DTNO","724-P","Intervento","Adeguamento SE Rumianca","Adeguamento SE Rumianca"," "," ",2026]
["Intervento Piano precedente","DTNO","724-P","Opera Principale","Adeguamento SE Rumianca","Adeguamento sezione 150 kV Rumianca",2020,2021,2022]
["Intervento Piano precedente","DTNO","724-P","Opera Principale","Adeguamento SE Rumianca","Installazione ATR 380/220 kV",2023,2024,2025]
["Intervento Piano precedente","DTNO","724-P","Opera Principale","Adeguamento SE Rumianca","Installazione ATR 220/150 kV",2023,2024,2026]
["Intervento Piano precedente","DTNO","724-P","Opera Principale","Adeguamento SE Rumianca","Adeguamento sezione 220 kV Rumianca",2023,2024,2026]
["Intervento Piano precedente","DTNO","723-P","Intervento","Collegamento HVDC Continente – Sicilia – Sardegna","Collegamento HVDC Continente – Sicilia – Sardegna"," "," "," "]
["Intervento Piano precedente","DTNO","723 / W-P","Intervento","Collegamento HVDC Continente – Sicilia – Sardegna","Collegamento HVDC Continente – Sicilia – Sardegna (West Link)"," ",2023,2027]
["Intervento Piano precedente","DTNO","723 / W-P","Opera Principale","Collegamento HVDC Continente – Sicilia – Sardegna","SdC HVDC Sicilia","2022 (EL-526)",2023,2027]
["Intervento Piano precedente","DTNO","723 / W-P","Opera Principale","Collegamento HVDC Continente – Sicilia – Sardegna","SdC HVDC Sardegna","2022 (EL-526)",2023,2027]
["Intervento Piano precedente","DTNO","723 / W-P","Opera Principale","Collegamento HVDC Continente – Sicilia – Sardegna","Collegamento HVDC Sicilia-Sardegna","2022 (EL-526)",2023,2027]
["Intervento Piano precedente","DTNO","723 / W-P","Opera Principale","Collegamento HVDC Continente – Sicilia – Sardegna","Nuova SE 380 kV Selargius","2022 (EL-526)",2023,2027]
["Intervento Piano precedente","DTNO","723 / W-P","Opera Principale","Collegamento HVDC Continente – Sicilia – Sardegna","Riclassamento a 380 kV SE Caracoli","2022 (EL-526)",2023,2026]
["Intervento Piano precedente","DTNO","723 / E-P","Intervento","Collegamento HVDC Continente – Sicilia – Sardegna","Collegamento HVDC Continente – Sicilia – Sardegna (East Link)"," ",null,2028]
["Intervento Piano precedente","DTNO","723 / E-P","Opera Principale","Collegamento HVDC Continente – Sicilia – Sardegna","SdC HVDC Continente","2021 (EL-486)",2022,2028]
["Intervento Piano precedente","DTNO","723 / E-P","Opera Principale","Collegamento HVDC Continente – Sicilia – Sardegna","SdC HVDC Sicilia","2021 (EL-486)",2022,2028]
["Intervento Piano precedente","DTNO","723 / E-P","Opera Principale","Collegamento HVDC Continente – Sicilia – Sardegna","Collegamento HVDC Continente-Sicilia","2021 (EL-486)",2022,2028]
["Intervento Piano precedente","DTNO","723 / E-P","Opera Principale","Collegamento HVDC Continente – Sicilia – Sardegna","Riclassamento a 380 kV SE Caracoli","2021 (EL-486)",2022,2026]
["Intervento Piano precedente","DTNO","723 / E-P","Opera Principale","Collegamento HVDC Continente – Sicilia – Sardegna","SE 380 kV a sud di Montecorvino e raccordi 380 kV","2021 (EL-486)",2022,2026]
["Intervento Piano precedente","DTNO","723 / E-P","Opera Principale","Collegamento HVDC Continente – Sicilia – Sardegna","Rimozione elementi limitanti el. 380 kV Laino - Montecorvino","2021 (EL-486)",2022,2026]
["Intervento Piano precedente","DTNO","28-P","Intervento","Riassetto Sud Ovest di Alessandria","Riassetto Sud Ovest di Alessandria",2023,2027,2030]
["Intervento Piano precedente","DTNO","28-P","Opera Principale","Riassetto Sud Ovest di Alessandria","Realizzazione nuova SE 132 kV",2023,2027,2030]
["Intervento Piano precedente","DTNO","28-P","Opera Principale","Riassetto Sud Ovest di Alessandria","Raccordi 132 kV alla C.le di Spigno, alla CP Spigno e alla CP Sassello",2023,2027,2030]
["Intervento Piano precedente","DTNO","29-P","Intervento","Riassetto rete 220 kV area Sud Ovest di Torino","Riassetto rete 220 kV area Sud Ovest di Torino",2024,2026,2035]
["Intervento Piano precedente","DTNO","29-P","Opera Principale","Riassetto rete 220 kV area Sud Ovest di Torino","Nuova SE 220 kV di smistamento e raccordi",2024,2026,2035]
["Intervento Piano precedente","DTNO","161-P","Intervento","Riassetto rete 220 kV a Nord di Milano","Riassetto rete 220 kV a Nord di Milano",2023,2026,2028]
["Intervento Piano precedente","DTNO","161-P","Opera Principale","Riassetto rete 220 kV a Nord di Milano","Realizzazione collegamento diretto linea 220 kV R. Nord - Rise Sesto",2023,2026,2028]
["Intervento Piano precedente","DTNO","161-P","Opera Principale","Riassetto rete 220 kV a Nord di Milano","Realizzazione collegamento diretto linea 220 kV Cassano - Rise Sesto",2023,2026,2028]
["Intervento Piano precedente","DTNO","162-P","Intervento","Riassetto rete AT area Bordogna","Riassetto rete AT area Bordogna",2024,2027,2035]
["Intervento Piano precedente","DTNO","162-P","Opera Principale","Riassetto rete AT area Bordogna","Ammodernamento impianto Bordogna con aggiunta di nuovi stalli",2024,2027,2035]
["Intervento Piano precedente","DTNO","162-P","Opera Principale","Riassetto rete AT area Bordogna","Collegamento diretto Ardenno - Bordogna",2024,2027,2035]
["Intervento Piano precedente","DTNO","162-P","Opera Principale","Riassetto rete AT area Bordogna","Collegamento diretto Morbegno - Brugherio",2024,2027,2035]
["Intervento Piano precedente","DTNO","162-P","Opera Principale","Riassetto rete AT area Bordogna","Potenziamento Moio de Calvi - S.P. Orzio",2024,2027,2035]
["Intervento Piano precedente","DTNO","162-P","Opera Principale","Riassetto rete AT area Bordogna","Collegamento diretto Fusine Sez - Bordogna",2024,2027,2035]
["Intervento Piano precedente","DTNO","163-P","Intervento","Riassetto Nord di Brescia","Riassetto Nord di Brescia",2025,2028,2030]
["Intervento Piano precedente","DTNO","163-P","Opera Principale","Riassetto Nord di Brescia","Nuova S/E 132 kV di smistamento e raccordi alle direttrici Nave e Travagliato",2025,2028,2030]
["Intervento Piano precedente","DTNO","163-P","Opera Principale","Riassetto Nord di Brescia","Interramento DT 132 kV Nave - Ori Martin - S. Bartolomeo",2025,2028,2030]
["Intervento Piano precedente","DTNO","164-P","Intervento","Risoluzione derivazione rigida CP Gravedona","Risoluzione derivazione rigida CP Gravedona",2024,2027,2029]
["Intervento Piano precedente","DTNO","164-P","Opera Principale","Risoluzione derivazione rigida CP Gravedona","Nuova S/E 132 kV di smistamento Dongo",2024,2027,2029]
["Intervento Piano precedente","DTNO","164-P","Opera Principale","Risoluzione derivazione rigida CP Gravedona","Raccordi 132 kV alla linea Campo - Albano MI",2024,2027,2029]
["Intervento Piano precedente","DTNO","32-P","Intervento","Rimozione Antenna CP Cappellazzo","Rimozione Antenna CP Cappellazzo",2024,2027,2030]
["Intervento Piano precedente","DTNO","32-P","Opera Principale","Rimozione Antenna CP Cappellazzo","Nuovo El.132 kV dalla CP Cappellazzo all’impianto di Isorella",2024,2027,2030]
["Intervento Piano precedente","DTNO","167-P","Intervento","Razionalizzazione Valchiavenna e Interconnessione Svizzera","Razionalizzazione Valchiavenna e Interconnessione Svizzera",2023,2033,2038]
["Intervento Piano precedente","DTNO","167-P","Opera Principale","Razionalizzazione Valchiavenna e Interconnessione Svizzera","Nuove SE 380 kV di Regoledo, Paladina e Levate",2023,2033,2038]
["Intervento Piano precedente","DTNO","167-P","Opera Principale","Razionalizzazione Valchiavenna e Interconnessione Svizzera","Nuovi raccordi 380 kV della SE di Regoledo alla Soazza-Bulciago",2023,2033,2038]
["Intervento Piano precedente","DTNO","167-P","Opera Principale","Razionalizzazione Valchiavenna e Interconnessione Svizzera","Nuova linea a 380 kV Regoledo - Piateda",2023,2033,2038]
["Intervento Piano precedente","DTNO","167-P","Opera Principale","Razionalizzazione Valchiavenna e Interconnessione Svizzera","Nuova linea a 380 kV Regoledo - Paladina",2023,2033,2038]
["Intervento Piano precedente","DTNO","167-P","Opera Principale","Razionalizzazione Valchiavenna e Interconnessione Svizzera","Nuova linea in cavo a 380 kV Paladina - Levate",2023,2033,2038]
["Intervento Piano precedente","DTNO","167-P","Opera Principale","Razionalizzazione Valchiavenna e Interconnessione Svizzera","Dismissione delle linee 220 kV tra Cislago - Sondrio",2023,2033,2038]
["Intervento Piano precedente","DTNO","167-P","Opera Principale","Razionalizzazione Valchiavenna e Interconnessione Svizzera","Razionalizzazione della rete 132 kV interessata dal progetto",2023,2033,2038]
[null,"DTNO","167-P","Opera Principale","Razionalizzazione Valchiavenna e Interconnessione Svizzera","Nuova interconnessione 380 kV con la Svizzera",2023,2033,2038]
["Intervento Piano precedente","DTNO","168-P","Intervento","Riassetto rete 132 kV tra Mantova e Ostiglia","Riassetto rete 132 kV tra Mantova e Ostiglia",2023,2026,2028]
["Intervento Piano precedente","DTNO","168-P","Opera Principale","Riassetto rete 132 kV tra Mantova e Ostiglia","Raccordi 132 kV CP San Benedetto Pò",2023,2026,2028]
["Intervento Piano precedente","DTNO","168-P","Opera Principale","Riassetto rete 132 kV tra Mantova e Ostiglia","Raccordi 132 kV Ostiglia centrale",2023,2026,2028]
["Intervento Piano precedente","DTNO","168-P","Opera Principale","Riassetto rete 132 kV tra Mantova e Ostiglia","Risoluzione t-rigido San Vito e raccordi 132 kV della CP Mantova alla futura direttrice Mozzecane- Ostiglia",2023,2026,2028]
["Intervento Piano precedente","DTNO","169-P","Intervento","Riassetto rete tra Tavazzano e Colà","Riassetto rete tra Tavazzano e Colà",2023,2028,2030]
["Intervento Piano precedente","DTNO","169-P","Opera Principale","Riassetto rete tra Tavazzano e Colà","Rimozioni limitazioni 220 kV Tavazzano - Colà",2023,2028,2030]
["Intervento Piano precedente","DTNO","169-P","Opera Principale","Riassetto rete tra Tavazzano e Colà","Nuova S/E 220/132 kV",2023,2028,2030]
["Intervento Piano precedente","DTNO","170-P","Intervento","Riassetto rete tra Cislago e Dalmine","Riassetto rete tra Cislago e Dalmine",2025,2028,2030]
["Intervento Piano precedente","DTNO","170-P","Opera Principale","Riassetto rete tra Cislago e Dalmine","Demolizione di alcune tratte del 220 kV Cislago - Dalmine",2025,2028,2030]
["Intervento Piano precedente","DTNO","170-P","Opera Principale","Riassetto rete tra Cislago e Dalmine","Raccordi a 220 kV S/E Verderio",2025,2028,2030]
["Intervento Piano precedente","DTNO","170-P","Opera Principale","Riassetto rete tra Cislago e Dalmine","Raccordi a 132 kV S/E Verderio",2025,2028,2030]
["Intervento Piano precedente","DTNO","170-P","Opera Principale","Riassetto rete tra Cislago e Dalmine","Raccordi 220 kV S/E Cesano M.",2025,2028,2030]
["Intervento Piano precedente","DTNO","170-P","Opera Principale","Riassetto rete tra Cislago e Dalmine","Riassetto rete 132 kV Nord Brianza",2025,2028,2030]
["Intervento Piano precedente","DTNO","171-P","Intervento","Nuova stazione 380 kV Greggio","Nuova stazione 380 kV Greggio",2026,2032,2035]
["Intervento Piano precedente","DTNO","171-P","Opera Principale","Nuova stazione 380 kV Greggio","Nuova stazione 380 kV e raccordi",2026,2032,2035]
["Intervento Piano precedente","DTNO","171-P","Opera Principale","Nuova stazione 380 kV Greggio","Adeguamento SE 132 kV e raccordi",2026,2032,2035]
["Intervento Piano precedente","DTNO","731-P","Intervento","Riassetto rete area Rumianca/S.Gilla","Riassetto rete area Rumianca/S.Gilla",2023,2025,2027]
["Intervento Piano precedente","DTNO","731-P","Opera Principale","Riassetto rete area Rumianca/S.Gilla","Potenziamento collegamento 150 kV Rumianca-S.Gilla",2023,2025,2027]
["Intervento Piano precedente","DTNO","731-P","Opera Principale","Riassetto rete area Rumianca/S.Gilla","Potenziamento collegamento 150 kV Caglari 4-S.Gilla",2023,2025,2027]
["Intervento Piano precedente","DTNO","731-P","Opera Principale","Riassetto rete area Rumianca/S.Gilla","Raccordo 150 kV fra CP Assemini e CP Sestu",2023,2025,2027]
["Intervento Piano precedente","DTNO","30-P","Intervento","Elettrodotto 220 kV Erzelli - Bistagno","Elettrodotto 220 kV Erzelli - Bistagno",2023,2027,2030]
["Intervento Piano precedente","DTNO","30-P","Opera Principale","Elettrodotto 220 kV Erzelli - Bistagno","Rimozioni limitazioni 220 kV Erzelli-Bistagno",2023,2027,2030]
["Intervento Piano precedente","DTNO","31-P","Intervento","Adeguamento SE Chatillon","Adeguamento SE Chatillon",2023,2027,2030]
["Intervento Piano precedente","DTNO","31-P","Opera Principale","Adeguamento SE Chatillon","Nuovi ATR 220/132 kVChatillon",2023,2027,2030]
["Intervento Piano precedente","DTNO","165-P","Intervento","Razionalizzazione rete 380 kV Brianza","Razionalizzazione rete 380 kV Brianza"," ",2027,2030]
["Intervento Piano precedente","DTNO","165-P","Opera Principale","Razionalizzazione rete 380 kV Brianza","Nuovo elettrodotto 380 kV Bulciago – nuova S/E 380 kV Brianza Est",2024,2027,2030]
["Intervento Piano precedente","DTNO","165-P","Opera Principale","Razionalizzazione rete 380 kV Brianza","Nuova S/E 380 kV nell’area di Cesano Maderno",2022,2027,2030]
["Intervento Piano precedente","DTNO","165-P","Opera Principale","Razionalizzazione rete 380 kV Brianza","Raccordi 380 kV della linea Cislago - Bovisio alla Nuova S/E 380 kV",2022,2027,2030]
["Intervento Piano precedente","DTNO","166-P","Intervento","Risoluzione antenna CP Liscate","Risoluzione antenna CP Liscate",2025,2028,2030]
["Intervento Piano precedente","DTNO","166-P","Opera Principale","Risoluzione antenna CP Liscate","Nuovo stallo CP Liscate",2025,2028,2030]
["Intervento Piano precedente","DTNO","166-P","Opera Principale","Risoluzione antenna CP Liscate","Nuovo elettrodotto dt 132 kV",2025,2028,2030]
["Intervento Piano precedente","DTNO","725-P","Intervento","Adeguamento SE Florinas","Adeguamento SE Florinas",2026,2028,2032]
["Intervento Piano precedente","DTNO","725-P","Opera Principale","Adeguamento SE Florinas","Adeguamento sistema sbarre S/E Florinas",2026,2028,2032]
["Intervento Piano precedente","DTNO","726-P","Intervento","Adeguamento SE Ploaghe","Adeguamento SE Ploaghe",2026,2028,2032]
["Intervento Piano precedente","DTNO","726-P","Opera Principale","Adeguamento SE Ploaghe","Adeguamento sistema sbarre S/E Ploaghe",2026,2028,2032]
["Intervento Piano precedente","DTNO","727-P","Intervento","Adeguamento SE Tula","Adeguamento SE Tula",2026,2028,2032]
["Intervento Piano precedente","DTNO","727-P","Opera Principale","Adeguamento SE Tula","Adeguamento sistema sbarre S/E Tula",2026,2028,2032]
["Intervento Piano precedente","DTNO","728-P","Intervento","Adeguamento SE Busachi","Adeguamento SE Busachi",2026,2028,2032]
["Intervento Piano precedente","DTNO","728-P","Opera Principale","Adeguamento SE Busachi","Adeguamento sistema sbarre S/E Busachi",2026,2028,2032]
["Intervento Piano precedente","DTNO","729-P","Intervento","Adeguamento SE Nurri","Adeguamento SE Nurri",2026,2028,2032]
["Intervento Piano precedente","DTNO","729-P","Opera Principale","Adeguamento SE Nurri","Adeguamento sistema sbarre S/E Nurri",2026,2028,2032]
["Intervento Piano precedente","DTNO","730-P","Intervento","Adeguamento SE Ulassai","Adeguamento SE Ulassai",2026,2028,2032]
["Intervento Piano precedente","DTNO","730-P","Opera Principale","Adeguamento SE Ulassai","Adeguamento sistema sbarre S/E Ulassai",2026,2028,2032]
["Intervento Piano precedente","DTNE","260-N","Intervento","Razionalizzazione rete at in provincia di Venezia","Razionalizzazione rete at in provincia di Venezia",2028,2032,2035]
["Intervento Piano precedente","DTNE","260-N","Opera Principale","Razionalizzazione rete at in provincia di Venezia","Raccordi in CP Quarto d’Altino",2028,2032,2035]
["Intervento Piano precedente","DTNE","260-N","Opera Principale","Razionalizzazione rete at in provincia di Venezia","Raccordi in SE Fossalta",2028,2032,2035]
["Intervento Piano precedente","DTNE","260-N","Opera Principale","Razionalizzazione rete at in provincia di Venezia","Raccordi in CP Cessalto",2028,2032,2035]
["Intervento Piano precedente","DTNE","260-N","Opera Principale","Razionalizzazione rete at in provincia di Venezia","Raccordi in CP Levada",2028,2032,2035]
["Intervento Piano precedente","DTNE","260-N","Opera Principale","Razionalizzazione rete at in provincia di Venezia","Raccordo in CP Sesto Reghena",2028,2032,2035]
["Intervento Piano precedente","DTNE","261-N","Intervento","Riassetto rete nell’area della stazione Cavilla","Riassetto rete nell’area della stazione Cavilla",2028,2032,2035]
["Intervento Piano precedente","DTNE","261-N","Opera Principale","Riassetto rete nell’area della stazione Cavilla","Raccordo 220 kV in SE Cavilla",2028,2032,2035]
["Intervento Piano precedente","DTNE","261-N","Opera Principale","Riassetto rete nell’area della stazione Cavilla","Raccordi 132 kV",2028,2032,2035]
["Intervento Piano precedente","DTNE","262-N","Intervento","Incremento magliatura se 220 kV Conegliano","Incremento magliatura se 220 kV Conegliano",2028,2032,2035]
["Intervento Piano precedente","DTNE","262-N","Opera Principale","Incremento magliatura se 220 kV Conegliano","Adeguamento SE Conegliano",2028,2032,2035]
["Intervento Piano precedente","DTNE","262-N","Opera Principale","Incremento magliatura se 220 kV Conegliano","Raccordi 132 kV",2028,2032,2035]
["Intervento Piano precedente","DTNE","350-N","Intervento","Elettrodotto 220 kV Colunga-Bussolengo","Elettrodotto 220 kV Colunga-Bussolengo",2023,2026,2028]
["Intervento Piano precedente","DTNE","350-N","Opera Principale","Elettrodotto 220 kV Colunga-Bussolengo","Incremento magliatura direttrice Castelmaggiore-Bentivoglio- S.Pietro in Casale -Cento-Crevalcore CP",2023,2026,2028]
["Intervento Piano precedente","DTNE","350-N","Opera Principale","Elettrodotto 220 kV Colunga-Bussolengo","Razionalizzazione are Crevalcore",2023,2026,2028]
["Intervento Piano precedente","DTNE","350-N","Opera Principale","Elettrodotto 220 kV Colunga-Bussolengo","Riassetto rete 132 kV",2023,2026,2028]
["Intervento Piano precedente","DTNE","351-N","Intervento","Rimozione limitazioni elettrodotto 380 kV Calenzano-Suvereto","Rimozione limitazioni elettrodotto 380 kV Calenzano-Suvereto",2025,2028,2030]
["Intervento Piano precedente","DTNE","351-N","Opera Principale","Rimozione limitazioni elettrodotto 380 kV Calenzano-Suvereto","Riassetto elettrodotti Marginone-Calenzano e Calenzano-Suvereto",2025,2028,2030]
["Intervento Piano precedente","DTNE","351-N","Opera Principale","Rimozione limitazioni elettrodotto 380 kV Calenzano-Suvereto","Rimozione limitazioni rete 380 kV tra i nodi di Marginone, Calenzano e Poggio a Caiano",2025,2028,2030]
["Intervento Piano precedente","DTNE","352-N","Intervento","Incremento magliatura rete 132 kV area Amiata","Incremento magliatura rete 132 kV area Amiata",2023,2026,2030]
["Intervento Piano precedente","DTNE","352-N","Opera Principale","Incremento magliatura rete 132 kV area Amiata","Elettrodotto Bagnore-Paganico",2024,2026,2028]
["Intervento Piano precedente","DTNE","352-N","Opera Principale","Incremento magliatura rete 132 kV area Amiata","Elettrodotto Chianciano-Montallese",2025,2028,2030]
["Intervento Piano precedente","DTNE","352-N","Opera Principale","Incremento magliatura rete 132 kV area Amiata","Incremento magliatura nodo di Acquapendente",2025,2028,2030]
["Intervento Piano precedente","DTNE","352-N","Opera Principale","Incremento magliatura rete 132 kV area Amiata","Riassetto rete AT",2023,2026,2028]
["Intervento Piano precedente","DTNE","353-N","Intervento","Riassetto rete per alimentazione av 132 kV in Toscana","Riassetto rete per alimentazione av 132 kV in Toscana",2024,2028,2031]
["Intervento Piano precedente","DTNE","353-N","Opera Principale","Riassetto rete per alimentazione av 132 kV in Toscana","SSE Montallese e riassetto rete 132 kV",2024,2028,2031]
["Intervento Piano precedente","DTNE","353-N","Opera Principale","Riassetto rete per alimentazione av 132 kV in Toscana","SSE Rigutino e riassetto rete 132 kV",2024,2028,2031]
["Intervento Piano precedente","DTNE","353-N","Opera Principale","Riassetto rete per alimentazione av 132 kV in Toscana","SSE Compiobbi e riassetto rete 132 kV",2024,2028,2031]
["Intervento Piano precedente","DTNE","354-N","Intervento","Interconnessione isola del Giglio","Interconnessione isola del Giglio",2025,2033,2035]
["Intervento Piano precedente","DTNE","354-N","Opera Principale","Interconnessione isola del Giglio","Nuovi collegamenti AT con isola del Giglio",2025,2033,2035]
["Intervento Piano precedente","DTNE","354-N","Opera Principale","Interconnessione isola del Giglio","Nuova SE isola Giglio",2025,2033,2035]
["Intervento Piano precedente","DTNE","354-N","Opera Principale","Interconnessione isola del Giglio","SE Toscana",2025,2033,2035]
["Intervento Piano precedente","DTNE","204-P","Intervento","Elettrodotto 220 kV Interconnessione Italia - Austria","Elettrodotto 220 kV Interconnessione Italia - Austria",2023,2032,2035]
["Intervento Piano precedente","DTNE","204-P","Opera Principale","Elettrodotto 220 kV Interconnessione Italia - Austria","Elettrodotto 220 kV Lienz (AT) – Nuova SE (IT)",2023,2032,2035]
["Intervento Piano precedente","DTNE","204-P","Opera Principale","Elettrodotto 220 kV Interconnessione Italia - Austria","Nuova SE (IT)",2023,2032,2035]
["Intervento Piano precedente","DTNE","204-P","Altre Opere","Elettrodotto 220 kV Interconnessione Italia - Austria","Razionalizzazione rete AT",2029,2032,2035]
["Intervento Piano precedente","DTNE","208-P","Intervento","Elettrodotto 132/110 kV Prati di Vizze (IT) – Steinach (AT)","Elettrodotto 132/110 kV Prati di Vizze (IT) – Steinach (AT)"," "," ",2023]
["Intervento Piano precedente","DTNE","208-P","Opera Principale","Elettrodotto 132/110 kV Prati di Vizze (IT) – Steinach (AT)","Elettrodotto 132 kV Prati di Vizze - Steinach","10.11.2003",2013,2014]
["Intervento Piano precedente","DTNE","208-P","Opera Principale","Elettrodotto 132/110 kV Prati di Vizze (IT) – Steinach (AT)","Stazione 132/110 kV Brennero (incluso trasformatore/PST)","22.12.2014",2016,2022]
["Intervento Piano precedente","DTNE","208-P","Opera Principale","Elettrodotto 132/110 kV Prati di Vizze (IT) – Steinach (AT)","Raccordi 132 kV SE Marlengo","01.12.2018",2020,2023]
["Intervento Piano precedente","DTNE","208-P","Opera Principale","Elettrodotto 132/110 kV Prati di Vizze (IT) – Steinach (AT)","Rimozione limitazioni rete 132 kV",2019,2021,2023]
["Intervento Piano precedente","DTNE","252-P","Intervento","Interconnessione AT Dobbiaco - Austria","Interconnessione AT Dobbiaco - Austria",2032,2035,2038]
["Intervento Piano precedente","DTNE","252-P","Opera Principale","Interconnessione AT Dobbiaco - Austria","Nuovo elettrodotto AT Dobbiaco – Sillian/Lienz",2032,2035,2038]
["Intervento Piano precedente","DTNE","207-P","Intervento","Elettrodotto 380 kV Udine Ovest - Redipuglia","Elettrodotto 380 kV Udine Ovest - Redipuglia"," "," ",2028]
["Intervento Piano precedente","DTNE","207-P","Opera Principale","Elettrodotto 380 kV Udine Ovest - Redipuglia","Nuovo elettrodotto 380 kV Udine O. – Udine S. – Redipuglia ed opere connesse","13.11.2008 (EL-146)/\n06.11.2015 (EL-146bis)","2013/2017",2017]
["Intervento Piano precedente","DTNE","207-P","Opera Principale","Elettrodotto 380 kV Udine Ovest - Redipuglia","Stazione 380/220 kV Udine Sud","13.11.2008 (EL-146)/\n06.11.2015 (EL-146bis)","2013/2017",2017]
["Intervento Piano precedente","DTNE","207-P","Opera Principale","Elettrodotto 380 kV Udine Ovest - Redipuglia","Stazione 380 kV Redipuglia",2008,2013,2015]
["Intervento Piano precedente","DTNE","207-P","Opera Principale","Elettrodotto 380 kV Udine Ovest - Redipuglia","Stazione 380 kV Udine Ovest",2008,2013,2015]
["Intervento Piano precedente","DTNE","207-P","Opera Principale","Elettrodotto 380 kV Udine Ovest - Redipuglia","Elettrodotto 220 kV Udine Sud –Safau","16.06.2015 (EL-368)",2019,2020]
["Intervento Piano precedente","DTNE","207-P","Opera Principale","Elettrodotto 380 kV Udine Ovest - Redipuglia","Rimozione limitazioni rete 380 e 220 kV interconnessa alla Slovenia",2023,2026,2028]
["Intervento Piano precedente","DTNE","207-P","Altre Opere","Elettrodotto 380 kV Udine Ovest - Redipuglia","380 kV Monfalcone - Redipuglia","01.12.2022",2023,2024]
["Intervento Piano precedente","DTNE","207-P","Altre Opere","Elettrodotto 380 kV Udine Ovest - Redipuglia","132 kV Udine FS – Udine Sud","12.10.2017 \n(EN-ELR-1719.1)",2020,2023]
["Intervento Piano precedente","DTNE","207-P","Altre Opere","Elettrodotto 380 kV Udine Ovest - Redipuglia","132 kV Redipuglia FS – Strassoldo FS","13.12.2017",2021,2022]
["Intervento Piano precedente","DTNE","207-P","Altre Opere","Elettrodotto 380 kV Udine Ovest - Redipuglia","132 kV Redipuglia - Ca' Poia","10.08.2017 \n(EN-ELR-1715.1)",2024,2025]
["Intervento Piano precedente","DTNE","207-P","Altre Opere","Elettrodotto 380 kV Udine Ovest - Redipuglia","132 kV Redipuglia – Schiavetti","13.11.2008 (EL-146)/\n06.11.2015 (EL-146bis)","2013/2017",2018]
["Intervento Piano precedente","DTNE","207-P","Altre Opere","Elettrodotto 380 kV Udine Ovest - Redipuglia","132 kV Redipuglia - Manzano","11.05.2017 (3509/AMB)",2018,2018]
["Intervento Piano precedente","DTNE","207-P","Altre Opere","Elettrodotto 380 kV Udine Ovest - Redipuglia","132 kV Udine Sud - Cartiere Romanello","12.07.2017 \n(EN-ELR-1714.1)",2022,2023]
["Intervento Piano precedente","DTNE","203-P","Intervento","Razionalizzazione 380 kV fra Venezia e Padova","Razionalizzazione 380 kV fra Venezia e Padova"," "," ",2028]
["Intervento Piano precedente","DTNE","203-P","Opera Principale","Razionalizzazione 380 kV fra Venezia e Padova","Elettrodotto 220 kV Stazione IV – Malcontenta – der. Stazione V","16.03.2009 (EL-283)",2014,2015]
["Intervento Piano precedente","DTNE","203-P","Opera Principale","Razionalizzazione 380 kV fra Venezia e Padova","Elettrodotto 220 kV Stazione IV – Stazione V","23.05.2017 (EL-372)",2019,2021]
["Intervento Piano precedente","DTNE","203-P","Opera Principale","Razionalizzazione 380 kV fra Venezia e Padova","Elettrodotto 380 kV Dolo - Camin","22.10.2020 (EL-457)",2024,2028]
["Intervento Piano precedente","DTNE","203-P","Opera Principale","Razionalizzazione 380 kV fra Venezia e Padova","Elettrodotto 220 kV Fusina – Stazione IV","09.03.2020 (EL-446)",2024,2028]
["Intervento Piano precedente","DTNE","203-P","Opera Principale","Razionalizzazione 380 kV fra Venezia e Padova","Elettrodotto 220 kV Fusina – Stazione V","09.03.2020 (EL-446)",2024,2028]
["Intervento Piano precedente","DTNE","203-P","Opera Principale","Razionalizzazione 380 kV fra Venezia e Padova","Elettrodotto 220 kV Fusina – Malcontenta","09.03.2020 (EL-446)",2024,2028]
["Intervento Piano precedente","DTNE","203-P","Opera Principale","Razionalizzazione 380 kV fra Venezia e Padova","Stazione 380/220/132kV Fusina","09.03.2020 (EL-446)",2024,2028]
["Intervento Piano precedente","DTNE","203-P","Opera Principale","Razionalizzazione 380 kV fra Venezia e Padova","Stazione 220 kV Malcontenta","09.03.2020 (EL-446)",2024,2028]
["Intervento Piano precedente","DTNE","203-P","Opera Principale","Razionalizzazione 380 kV fra Venezia e Padova","Adeguamenti stazioni 220 kV esistenti","09.03.2020 (EL-446)",2024,2028]
["Intervento Piano precedente","DTNE","203-P","Opera Principale","Razionalizzazione 380 kV fra Venezia e Padova","Rimozione limitazioni Cabine Primarie"]
["Intervento Piano precedente","DTNE","203-P","Opera Principale","Razionalizzazione 380 kV fra Venezia e Padova","Elettrodotto 132 kV Fusina - Sacca Fisola","6.08.2009 (EL-106)",2013,2018]
["Intervento Piano precedente","DTNE","203-P","Opera Principale","Razionalizzazione 380 kV fra Venezia e Padova","Elettrodotto 132 kV Cavallino - Sacca Serenella","6.08.2009 (EL-106)",2013,2018]
["Intervento Piano precedente","DTNE","203-P","Opera Principale","Razionalizzazione 380 kV fra Venezia e Padova","Raccordi CP Padova Nord Est in e-e all’ elettrodotto Camposampiero – SE Scorzè.",2023,2025,2027]
["Intervento Piano precedente","DTNE","203-P","Altre Opere","Razionalizzazione 380 kV fra Venezia e Padova","Razionalizzazione rete AT",2024,2032,2036]
["Intervento Piano precedente","DTNE","222-P","Intervento","Riassetto rete 220 kV Trentino Alto Adige","Riassetto rete 220 kV Trentino Alto Adige"," "," ",2034]
["Intervento Piano precedente","DTNE","222-P","Opera Principale","Riassetto rete 220 kV Trentino Alto Adige","Raccordi 220 kV S/E Naturno","14.04.2021 (EL-472)",2022,2024]
["Intervento Piano precedente","DTNE","222-P","Opera Principale","Riassetto rete 220 kV Trentino Alto Adige","Riassetto rete tra Maso Pill e Bolzano",2030,2032,2034]
["Intervento Piano precedente","DTNE","222-P","Opera Principale","Riassetto rete 220 kV Trentino Alto Adige","Rimozione limitazione direttrice Glorenza-Maso Pill",2022,2022,2023]
["Intervento Piano precedente","DTNE","222-P","Opera Principale","Riassetto rete 220 kV Trentino Alto Adige","Adeguamento impianto 220 kV Maso Pill","2022 (EL-523)",2032,2034]
["Intervento Piano precedente","DTNE","222-P","Opera Principale","Riassetto rete 220 kV Trentino Alto Adige","Adeguamento impianto Bolzano e rete afferente",2023,2032,2034]
["Intervento Piano precedente","DTNE","222-P","Altre Opere","Riassetto rete 220 kV Trentino Alto Adige","Razionalizzazione rete AT",2030,2032,2035]
["Intervento Piano precedente","DTNE","216-P","Intervento","Razionalizzazione rete Media Valle del Piave","Razionalizzazione rete Media Valle del Piave",null,2024,2038]
["Intervento Piano precedente","DTNE","216-P","Opera Principale","Razionalizzazione rete Media Valle del Piave","Nuova stazione 220/132 kV Polpet","26.08.2011 (EL-251)",2024,2028]
["Intervento Piano precedente","DTNE","216-P","Opera Principale","Razionalizzazione rete Media Valle del Piave","Elettrodotto 132 kV Desedan - Polpet","26.08.2011 (EL-251)",2024,2028]
["Intervento Piano precedente","DTNE","216-P","Opera Principale","Razionalizzazione rete Media Valle del Piave","Elettrodotto 132 kV Forno di Zoldo - Polpet - der. Desedan","26.08.2011 (EL-251)",2024,2028]
["Intervento Piano precedente","DTNE","216-P","Opera Principale","Razionalizzazione rete Media Valle del Piave","Stazione 132 kV Gardona","26.08.2011 (EL-251)",2024,2028]
["Intervento Piano precedente","DTNE","216-P","Opera Principale","Razionalizzazione rete Media Valle del Piave","Elettrodotto 132 kV Pelos – Gardona – Desedan - Polpet","26.08.2011 (EL-251)",2024,2028]
["Intervento Piano precedente","DTNE","216-P","Opera Principale","Razionalizzazione rete Media Valle del Piave","Raccordi 132 kV alla stazione di Polpet degli elettrodotti 132 kV Polpet – Nove, Polpet – La Secca e Polpet - Belluno","26.08.2011 (EL-251)",2024,2028]
["Intervento Piano precedente","DTNE","216-P","Opera Principale","Razionalizzazione rete Media Valle del Piave","Raccordi 132 kV alla CP Belluno","26.08.2011 (EL-251)",2024,2028]
["Intervento Piano precedente","DTNE","216-P","Opera Principale","Razionalizzazione rete Media Valle del Piave","Rimozione limitazioni rete 132 kV",2021,2034,2038]
["Intervento Piano precedente","DTNE","216-P","Opera Principale","Razionalizzazione rete Media Valle del Piave","Rimozione limitazioni rete 220 kV",2030,2034,2038]
["Intervento Piano precedente","DTNE","216-P","Altre Opere","Razionalizzazione rete Media Valle del Piave","Razionalizzazione rete AT",2024,2027,2030]
["Intervento Piano precedente","DTNE","215-P","Intervento","Riassetto rete alto Bellunese","Riassetto rete alto Bellunese"," "," ",2023]
["Intervento Piano precedente","DTNE","215-P","Opera Principale","Riassetto rete alto Bellunese","Nuova stazione 220/132 kV","16.06.2018 (EL-397)",2020,2023]
["Intervento Piano precedente","DTNE","215-P","Opera Principale","Riassetto rete alto Bellunese","Elettrodotto 132 kV Somprade - Zuel","16.06.2018 (EL-397)",2019,2020]
["Intervento Piano precedente","DTNE","215-P","Opera Principale","Riassetto rete alto Bellunese","Rimozione limitazioni 132 kV Brunico - Dobbiaco",2016,2016,2016]
["Intervento Piano precedente","DTNE","206-P","Intervento","Stazione 380 kV Volpago","Stazione 380 kV Volpago"," "," ",2040]
["Intervento Piano precedente","DTNE","206-P","Opera Principale","Stazione 380 kV Volpago","Nuova stazione 380/220/132 kV Volpago e riassetto rete",2023,2032,2035]
["Intervento Piano precedente","DTNE","206-P","Opera Principale","Stazione 380 kV Volpago","Rimozione limitazioni 220 kV Soverzene - Scorzè",2023,2032,2035]
["Intervento Piano precedente","DTNE","206-P","Opera Principale","Stazione 380 kV Volpago","Rimozione limitazioni rete 132 kV tra Polpet e Volpago",2030,2035,2040]
["Intervento Piano precedente","DTNE","206-P","Opera Principale","Stazione 380 kV Volpago","Rimozione limitazioni Cabine Primarie"]
["Intervento Piano precedente","DTNE","206-P","Opera Principale","Stazione 380 kV Volpago","Sezionamento automatizzato S.Benedetto ","03.03.2021",2021,2021]
["Intervento Piano precedente","DTNE","206-P","Altre Opere","Stazione 380 kV Volpago","Razionalizzazione rete AT",2030,2035,2040]
["Intervento Piano precedente","DTNE","229-P","Intervento","Stazione 380 kV Sandrigo","Stazione 380 kV Sandrigo"," "," ",2023]
["Intervento Piano precedente","DTNE","229-P","Opera Principale","Stazione 380 kV Sandrigo","Stazione 380 kV Sandrigo (ATR 380/132 kV)",2021,2022,2023]
["Intervento Piano precedente","DTNE","239-P","Intervento","Stazione 380 kV Dugale","Stazione 380 kV Dugale"," "," ",2024]
["Intervento Piano precedente","DTNE","239-P","Opera Principale","Stazione 380 kV Dugale","Stazione 380 kV Dugale",2021,2022,2024]
["Intervento Piano precedente","DTNE","249-P","Intervento","Stazione 220/132 kV S.Floriano","Stazione 220/132 kV S.Floriano",2026,2032,2035]
["Intervento Piano precedente","DTNE","249-P","Opera Principale","Stazione 220/132 kV S.Floriano","Stazione 220/132 kV S.Floriano",2026,2032,2035]
["Intervento Piano precedente","DTNE","249-P","Opera Principale","Stazione 220/132 kV S.Floriano","Riassetto rete AT",2026,2032,2035]
["Intervento Piano precedente","DTNE","253-P","Intervento","Stazione 220/132 kV Padriciano","Stazione 220/132 kV Padriciano",null,2026,2029]
["Intervento Piano precedente","DTNE","253-P","Opera Principale","Stazione 220/132 kV Padriciano","Riassetto rete AT",2021,2026,2029]
["Intervento Piano precedente","DTNE","253-P","Opera Principale","Stazione 220/132 kV Padriciano","Stazione 220/132 kV Padriciano",2021,2026,2029]
["Intervento Piano precedente","DTNE","235-P","Intervento","Stazione 220 kV Ala","Stazione 220 kV Ala",2028,2032,2035]
["Intervento Piano precedente","DTNE","235-P","Opera Principale","Stazione 220 kV Ala","Stazione 220 kV Ala, raccordi 132 kV",2028,2032,2035]
["Intervento Piano precedente","DTNE","235-P","Opera Principale","Stazione 220 kV Ala","Riassetto rete 132 kV",2028,2032,2035]
["Intervento Piano precedente","DTNE","235-P","Opera Principale","Stazione 220 kV Ala","Elettrodotto 220 kV d.t. Colà - Sandrà",2028,2032,2035]
["Intervento Piano precedente","DTNE","235-P","Altre Opere","Stazione 220 kV Ala","Razionalizzazione rete AT",2028,2032,2035]
["Intervento Piano precedente","DTNE","238-P","Intervento","Stazione 220 kV Glorenza","Stazione 220 kV Glorenza"," "," ",2024]
["Intervento Piano precedente","DTNE","238-P","Opera Principale","Stazione 220 kV Glorenza","Stazione 220 kV Glorenza",2013,2013,2015]
["Intervento Piano precedente","DTNE","238-P","Opera Principale","Stazione 220 kV Glorenza","Rimozione limitazioni 220 kV",2021,2022,2024]
["Intervento Piano precedente","DTNE","238-P","Opera Principale","Stazione 220 kV Glorenza","Rimozione limitazioni 132 kV",2021,2022,2024]
["Intervento Piano precedente","DTNE","237-P ","Intervento","Stazione 220 kV Schio e potenziamento rete","Stazione 220 kV Schio e potenziamento rete"," "," ",2030]
["Intervento Piano precedente","DTNE","237-P ","Opera Principale","Stazione 220 kV Schio e potenziamento rete","Stazione 220/132 kV","23.12.2013 (EL-325)",2021,2023]
["Intervento Piano precedente","DTNE","237-P ","Opera Principale","Stazione 220 kV Schio e potenziamento rete","Elettrodotto 132 kV Villaverla – Schio ZI e riassetto rete associato",2023,2026,2030]
["Intervento Piano precedente","DTNE","237-P ","Opera Principale","Stazione 220 kV Schio e potenziamento rete","Elettrodotto 132 kV Schio - Arsiero","12.11.2013 (EL-317)",2016,2019]
["Intervento Piano precedente","DTNE","237-P ","Opera Principale","Stazione 220 kV Schio e potenziamento rete","Elettrodotto 132 kV Arsiero - Caldonazzo",2024,2026,2028]
["Intervento Piano precedente","DTNE","237-P ","Opera Principale","Stazione 220 kV Schio e potenziamento rete","Rimozione limitazioni 132 kV Schio – Carpané - Arsié",2016,2016,2016]
["Intervento Piano precedente","DTNE","237-P ","Opera Principale","Stazione 220 kV Schio e potenziamento rete","Installazione nuovo ATR 220/130 kV in SE Vicenza Monteviale",2024,2026,2028]
["Intervento Piano precedente","DTNE","210-P","Intervento","Elettrodotto 132 kV Redipuglia – Duino","Elettrodotto 132 kV Redipuglia – Duino"," "," ",2026]
["Intervento Piano precedente","DTNE","210-P","Opera Principale","Elettrodotto 132 kV Redipuglia – Duino","Elettrodotto 132 kV Redipuglia - Duino (fase 1)",2016,2016,2018]
["Intervento Piano precedente","DTNE","210-P","Opera Principale","Elettrodotto 132 kV Redipuglia – Duino","Elettrodotto 132 kV Redipuglia – Duino (fase 2)",2021,2022,2026]
["Intervento Piano precedente","DTNE","220-P","Intervento","Razionalizzazione rete AT nell’area di S.Massenza","Razionalizzazione rete AT nell’area di S.Massenza"," "," ",2027]
["Intervento Piano precedente","DTNE","220-P","Opera Principale","Razionalizzazione rete AT nell’area di S.Massenza","Elettrodotto 132 kV Nave - Storo - La Rocca - S.Massenza - Drò – Arco (fase 1)",2012,2013,2014]
["Intervento Piano precedente","DTNE","220-P","Opera Principale","Razionalizzazione rete AT nell’area di S.Massenza","Elettrodotto 132 kV Nave - Storo - La Rocca - S.Massenza - Drò – Arco (fase 2)",2023,2025,2027]
["Intervento Piano precedente","DTNE","220-P","Opera Principale","Razionalizzazione rete AT nell’area di S.Massenza","Stazione 220 kV Taio",2015,2015,2016]
["Intervento Piano precedente","DTNE","220-P","Opera Principale","Razionalizzazione rete AT nell’area di S.Massenza","Rimozione limitazioni rete 132 kV",2018,2022,2025]
["Intervento Piano precedente","DTNE","220-P","Opera Principale","Razionalizzazione rete AT nell’area di S.Massenza","Stazione 220 kV S.Massenza",2021,2023,2026]
["Intervento Piano precedente","DTNE","221-P","Intervento","Razionalizzazione 132 kV Trento Sud","Razionalizzazione 132 kV Trento Sud"," ",2023,2030]
["Intervento Piano precedente","DTNE","221-P","Opera Principale","Razionalizzazione 132 kV Trento Sud","Nuova stazione 132 kV Cirè","31.01.2014",2023,2024]
["Intervento Piano precedente","DTNE","221-P","Opera Principale","Razionalizzazione 132 kV Trento Sud","Riassetto rete 220 e 132 kV","31.01.2014",2021,2023]
["Intervento Piano precedente","DTNE","221-P","Opera Principale","Razionalizzazione 132 kV Trento Sud","Elettrodotti Cirè – Caldonazzo – B.Valsugana",2024,2027,2030]
["Intervento Piano precedente","DTNE","221-P","Opera Principale","Razionalizzazione 132 kV Trento Sud","Ulteriori interventi per la resilienza",2021,2025,2030]
["Intervento Piano precedente","DTNE","221-P","Opera Principale","Razionalizzazione 132 kV Trento Sud","Soluzione antenna AT Acciaierie Venete",2022,2027,2030]
["Intervento Piano precedente","DTNE","221-P","Altre Opere","Razionalizzazione 132 kV Trento Sud","Razionalizzazione rete AT",2027,2029,2032]
["Intervento Piano precedente","DTNE","225-P","Intervento","Potenziamento rete AT area Rovigo","Potenziamento rete AT area Rovigo"," "," ",2031]
["Intervento Piano precedente","DTNE","225-P","Opera Principale","Potenziamento rete AT area Rovigo","Raccordi 132 kV all’elettrodotto 132 kV Lendinara – Rovigo ZI",2024,2027,2031]
["Intervento Piano precedente","DTNE","225-P","Opera Principale","Potenziamento rete AT area Rovigo","Raccordi 132 kV della stazione 132 kV Canaro","20.11.2018",2022,2023]
["Intervento Piano precedente","DTNE","225-P","Opera Principale","Potenziamento rete AT area Rovigo","Stazione 132 kV Este",2017,2018,2018]
["Intervento Piano precedente","DTNE","245-P ","Intervento","Stazione Bressanone e direttrice 132 kV Terme di Brennero – Bolzano FS – Mori","Stazione Bressanone e direttrice 132 kV Terme di Brennero – Bolzano FS -– Mori"," "," ",2035]
["Intervento Piano precedente","DTNE","245-P ","Opera Principale","Stazione Bressanone e direttrice 132 kV Terme di Brennero – Bolzano FS – Mori","Direttrice 132 kV Terme di Brennero – Bolzano FS",2020,2021,2023]
["Intervento Piano precedente","DTNE","245-P ","Opera Principale","Stazione Bressanone e direttrice 132 kV Terme di Brennero – Bolzano FS – Mori","Riassetto rete 132 kV Bolzano FS - Mori",2021,2024,2035]
["Intervento Piano precedente","DTNE","245-P ","Opera Principale","Stazione Bressanone e direttrice 132 kV Terme di Brennero – Bolzano FS – Mori","Stazione 132 kV Bressanone (fase 1)",2013,2013,2016]
["Intervento Piano precedente","DTNE","245-P ","Opera Principale","Stazione Bressanone e direttrice 132 kV Terme di Brennero – Bolzano FS – Mori","Stazione 132 kV Bressanone (fase 2)",2021,2024,2035]
["Intervento Piano precedente","DTNE","245-P ","Opera Principale","Stazione Bressanone e direttrice 132 kV Terme di Brennero – Bolzano FS – Mori","Adeguamenti impianti 132 kV",2021,2024,2035]
["Intervento Piano precedente","DTNE","245-P ","Opera Principale","Stazione Bressanone e direttrice 132 kV Terme di Brennero – Bolzano FS – Mori","Interventi rimozione limitazioni al nodo di Bressanone","20.01.2021",2022,2032]
["Intervento Piano precedente","DTNE","246-P","Intervento","Direttrice 132 kV Opicina FS – Redipuglia","Direttrice 132 kV Opicina FS – Redipuglia"," "," ",2025]
["Intervento Piano precedente","DTNE","246-P","Opera Principale","Direttrice 132 kV Opicina FS – Redipuglia","Direttrice 132 kV Opicina FS – Redipuglia",2021,2022,2025]
["Interconnector","DTNE","100-I","Intervento","Incremento della capacità di interconnessione con l’Austria ai sensi della legge 99/2009 e s.m.i.","Incremento della capacità di interconnessione con l’Austria ai sensi della legge 99/2009 e s.m.i."," "," ",2023]
["Interconnector","DTNE","100-I","Opera Principale","Incremento della capacità di interconnessione con l’Austria ai sensi della legge 99/2009 e s.m.i.","Elettrodotto 220 kV Nauders - Glorenza","02.02.2015 (EL.354)",2019,2023]
["Interconnector","DTNE","100-I","Opera Principale","Incremento della capacità di interconnessione con l’Austria ai sensi della legge 99/2009 e s.m.i.","Rimozione limitazioni rete esistente","28.05.2018 (EL.396)",2019,2022]
["Interconnector","DTNE","200-I","Intervento","Incremento della capacità di interconnessione con la Slovenia ai sensi della legge 99/2009 e s.m.i.","Incremento della capacità di interconnessione con la Slovenia ai sensi della legge 99/2009 e s.m.i."," ",2026,2042]
["Interconnector","DTNE","200-I","Opera Principale","Incremento della capacità di interconnessione con la Slovenia ai sensi della legge 99/2009 e s.m.i.","HVDC Divaca - Salgareda","13.09.2012 (EL-308)",2040,2042]
["Interconnector","DTNE","200-I","Opera Principale","Incremento della capacità di interconnessione con la Slovenia ai sensi della legge 99/2009 e s.m.i.","Rimozione limitazioni rete 380 kV e 220 kV interconnessa alla Slovenia",2023,2026,2028]
["Intervento Piano precedente","DTNE","302-P","Intervento","Elettrodotto 380 kV Colunga – Calenzano","Elettrodotto 380 kV Colunga – Calenzano"," "," ",2025]
["Intervento Piano precedente","DTNE","302-P","Opera Principale","Elettrodotto 380 kV Colunga – Calenzano","Elettrodotto 380 kV Calenzano - S.B.Querceto - Colunga","29.10.2009 (EL-173)",2023,2025]
["Intervento Piano precedente","DTNE","302-P","Opera Principale","Elettrodotto 380 kV Colunga – Calenzano","Stazione 380 kV S.B.Querceto","29.10.2009 (EL-173)",2023,2025]
["Intervento Piano precedente","DTNE","302-P","Opera Principale","Elettrodotto 380 kV Colunga – Calenzano","Stazione 380 kV Calenzano",2009,2023,2025]
["Intervento Piano precedente","DTNE","302-P","Opera Principale","Elettrodotto 380 kV Colunga – Calenzano","Stazione 380 kV Colunga",2009,2023,2025]
["Intervento Piano precedente","DTNE","302-P","Opera Principale","Elettrodotto 380 kV Colunga – Calenzano","Nuova stazione 132 kV (Futa)","29.10.2009 (EL-173)",2023,2025]
["Intervento Piano precedente","DTNE","302-P","Opera Principale","Elettrodotto 380 kV Colunga – Calenzano","Sezionamento automatizzato Vaiano (1 )",2018,2021,2023]
["Intervento Piano precedente","DTNE","302-P","Opera Principale","Elettrodotto 380 kV Colunga – Calenzano","Sezionamento automatizzato Vaiano (2)",2019,2021,2023]
["Intervento Piano precedente","DTNE","302-P","Opera Principale","Elettrodotto 380 kV Colunga – Calenzano","Sezionamento automatizzato Firenzuola",2018,2021,2023]
["Intervento Piano precedente","DTNE","302-P","Opera Principale","Elettrodotto 380 kV Colunga – Calenzano","Sezionamento automatizzato Roncobilaccio",2018,2020,2021]
["Intervento Piano precedente","DTNE","302-P","Altre Opere","Elettrodotto 380 kV Colunga – Calenzano","Stazione 380/132 kV Bargi",2025,2028,2030]
["Intervento Piano precedente","DTNE","302-P","Altre Opere","Elettrodotto 380 kV Colunga – Calenzano","Elettrodotto 132 kV S.Ca' Landino - Roncobilaccio",2025,2030,2035]
["Intervento Piano precedente","DTNE","302-P","Altre Opere","Elettrodotto 380 kV Colunga – Calenzano","Elettrodotto 380 kV Bargi - Calenzano","15.05.2018 (EL-395)",2020,2024]
["Intervento Piano precedente","DTNE","302-P","Altre Opere","Elettrodotto 380 kV Colunga – Calenzano","Riassetto rete AT",2025,2030,2035]
["Intervento Piano precedente","DTNE","309-P","Intervento","Elettrodotto 132 kV Elba – Continente","Elettrodotto 132 kV Elba – Continente"," "," ",2023]
["Intervento Piano precedente","DTNE","309-P","Opera Principale","Elettrodotto 132 kV Elba – Continente","Elettrodotto 132 kV Colmata -Portoferraio","29.09.2010 (EL-219)",2023,2023]
["Intervento Piano precedente","DTNE","309-P","Opera Principale","Elettrodotto 132 kV Elba – Continente","Elettrodotto 132 kV Portoferraio – S.Giuseppe ","2.12.2008 (EL-409 ex EL-75)",2020,2023]
["Intervento Piano precedente","DTNE","306-P","Intervento","Riassetto rete 380 e 132 kV area di Lucca","Riassetto rete 380 e 132 kV area di Lucca"," ",2026,2034]
["Intervento Piano precedente","DTNE","306-P","Opera Principale","Riassetto rete 380 e 132 kV area di Lucca","Stazione 380/132 kV area di Lucca","23.01.2014 (EL-324)",2028,2033]
["Intervento Piano precedente","DTNE","306-P","Opera Principale","Riassetto rete 380 e 132 kV area di Lucca","Rimozione limitazioni rete 132 kV",2019,2026,2028]
["Intervento Piano precedente","DTNE","306-P","Opera Principale","Riassetto rete 380 e 132 kV area di Lucca","Nuovo collegamento CP Viareggio - SE Viareggio RT",2028,2030,2034]
["Intervento Piano precedente","DTNE","317-P","Intervento","Rete metropolitana di Firenze","Rete metropolitana di Firenze"," "," ",2024]
["Intervento Piano precedente","DTNE","317-P","Opera Principale","Rete metropolitana di Firenze","Elettrodotto 132 kV Faentina – Pontassieve – der. Varlungo","08.10.2010 (EL-220)",2012,2014]
["Intervento Piano precedente","DTNE","317-P","Opera Principale","Rete metropolitana di Firenze","Elettrodotto 132 kV Calenzano – Sesto F. - Faentina","22.06.2015 (EL-347)",2018,2020]
["Intervento Piano precedente","DTNE","317-P","Opera Principale","Rete metropolitana di Firenze","Elettrodotto 132 kV Tavarnuzze – M. Croci",2014,2014,2014]
["Intervento Piano precedente","DTNE","317-P","Opera Principale","Rete metropolitana di Firenze","Elettrodotto 132 kV Tavarnuzze P. Ema",2014,2014,2014]
["Intervento Piano precedente","DTNE","317-P","Opera Principale","Rete metropolitana di Firenze","Elettrodotto 132 kV Peretola - Sodo",2015,2015,2015]
["Intervento Piano precedente","DTNE","317-P","Opera Principale","Rete metropolitana di Firenze","Elettrodotto 132 kV Rifredi - Cascine","10.07.2017 (EL-385)",2021,2024]
["Intervento Piano precedente","DTNE","317-P","Opera Principale","Rete metropolitana di Firenze","Elettrodotto 132 kV Casellina - Cascine","10.07.2017 (EL-385)",2021,2024]
["Intervento Piano precedente","DTNE","317-P","Opera Principale","Rete metropolitana di Firenze","Elettrodotto 132 kV Casellina - SLGreve","10.07.2017 (EL-385)",2021,2024]
["Intervento Piano precedente","DTNE","317-P","Opera Principale","Rete metropolitana di Firenze","Elettrodotto 132 kV Tavarnuzze - SLGreve","10.07.2017 (EL-385)",2021,2024]
["Intervento Piano precedente","DTNE","317-P","Opera Principale","Rete metropolitana di Firenze","Elettrodotto 132 kV SLGreve - Peretola","10.07.2017 (EL-385)",2021,2024]
["Intervento Piano precedente","DTNE","317-P","Opera Principale","Rete metropolitana di Firenze","Rimozione limitazioni rete 132 kV",2017,2021,2024]
["Intervento Piano precedente","DTNE","317-P","Opera Principale","Rete metropolitana di Firenze","Sezionamenti automatizzati",2022,2022,2024]
["Intervento Piano precedente","DTNE","319-P","Intervento","Anello 132 kV Riccione - Rimini","Anello 132 kV Riccione - Rimini"," ",2024,2028]
["Intervento Piano precedente","DTNE","319-P","Opera Principale","Anello 132 kV Riccione - Rimini","Elettrodotto 132 kV S.Martino in XX – Riccione","2019 (EL-433)",2024,2028]
["Intervento Piano precedente","DTNE","319-P","Opera Principale","Anello 132 kV Riccione - Rimini","Elettrodotto 132 kV S.Martino in XX – Rimini Condotti","2019 (EL-433)",2024,2028]
["Intervento Piano precedente","DTNE","319-P","Opera Principale","Anello 132 kV Riccione - Rimini","Nuovo smistamento 132 kV","2019 (EL-433)",2024,2028]
["Intervento Piano precedente","DTNE","319-P","Opera Principale","Anello 132 kV Riccione - Rimini","Riassetto rete 132 kV","2019 (EL-433)",2024,2028]
["Intervento Piano precedente","DTNE","319-P","Opera Principale","Anello 132 kV Riccione - Rimini","Elettrodotto 132 kV Rimini Condotti - Rimini Sud","2020 (EL-433)",2024,2028]
["Intervento Piano precedente","DTNE","319-P","Opera Principale","Anello 132 kV Riccione - Rimini","Elettrodotto 132 kV Rimini Sud - Riccione",2024,2025,2028]
["Intervento Piano precedente","DTNE","305-P","Intervento"," Rete AT di Arezzo"," Rete AT di Arezzo"," "," ",2034]
["Intervento Piano precedente","DTNE","305-P","Opera Principale"," Rete AT di Arezzo","Stazione 220 kV Arezzo C (batteria condensatori)",2015,2015,2015]
["Intervento Piano precedente","DTNE","305-P","Opera Principale"," Rete AT di Arezzo","Stazione 220 kV Arezzo C (ricostruzione doppia sbarra)",2019,2022,2025]
["Intervento Piano precedente","DTNE","305-P","Opera Principale"," Rete AT di Arezzo","Elettrodotto 132 kV S.Barbara – Montevarchi – Levane – La Penna – Arezzo C",2028,2030,2034]
["Intervento Piano precedente","DTNE","305-P","Opera Principale"," Rete AT di Arezzo","Elettrodotto 132 kV Arezzo C – Arezzo A",2028,2030,2034]
["Intervento Piano precedente","DTNE","305-P","Opera Principale"," Rete AT di Arezzo","Elettrodotto 132 kV Arezzo C – Arezzo B",2028,2030,2034]
["Intervento Piano precedente","DTNE","305-P","Opera Principale"," Rete AT di Arezzo","Elettrodotto 132 kV Arezzo A – Arezzo B",2028,2030,2034]
["Intervento Piano precedente","DTNE","307-P","Intervento","Elettrodotto 220 kV Colunga - Este","Elettrodotto 220 kV Colunga - Este"," "," ",2024]
["Intervento Piano precedente","DTNE","307-P","Opera Principale","Elettrodotto 220 kV Colunga - Este","Elettrodotto 132 kV Ferrara Sud – Centro Energia","10.06.2011 (EL-240)",2022,2024]
["Intervento Piano precedente","DTNE","307-P","Opera Principale","Elettrodotto 220 kV Colunga - Este","Elettrodotto 132 kV Ferrara Sud – Altedo","10.06.2011 (EL-240)",2021,2024]
["Intervento Piano precedente","DTNE","307-P","Opera Principale","Elettrodotto 220 kV Colunga - Este","Elettrodotto 132 kV Colunga – Altedo","10.06.2011 (EL-240)",2021,2024]
["Intervento Piano precedente","DTNE","307-P","Altre Opere","Elettrodotto 220 kV Colunga - Este","Razionalizzazione rete AT",2023,2025,2028]
["Intervento Piano precedente","DTNE","308-P","Intervento","Riassetto rete area Livorno","Riassetto rete area Livorno"," "," ",2030]
["Intervento Piano precedente","DTNE","308-P","Opera Principale","Riassetto rete area Livorno","Stazione 380 kV Marginone",2014,2014,2017]
["Intervento Piano precedente","DTNE","308-P","Opera Principale","Riassetto rete area Livorno","Nuova stazione 132 kV Collesalvetti","02.02.2015 (EL 343)",2019,2024]
["Intervento Piano precedente","DTNE","308-P","Opera Principale","Riassetto rete area Livorno","Stazione 380 kV Acciaiolo",2018,2021,2023]
["Intervento Piano precedente","DTNE","308-P","Opera Principale","Riassetto rete area Livorno","Elettrodotto 132 kV Guasticce - Cascina",2014,2014,2019]
["Intervento Piano precedente","DTNE","308-P","Opera Principale","Riassetto rete area Livorno","Elettrodotto 132 kV Larderello - Saline",2024,2027,2030]
["Intervento Piano precedente","DTNE","308-P","Altre Opere","Riassetto rete area Livorno","Riassetto Livorno Est","16.05.2017 (EL-376)",2018,2020]
["Intervento Piano precedente","DTNE","308-P","Altre Opere","Riassetto rete area Livorno","Raccordo Livorno RFI","2019 (EL-420)",2022,2022]
["Intervento Piano precedente","DTNE","308-P","Altre Opere","Riassetto rete area Livorno","Riassetto rete AT",2023,2025,2028]
["Intervento Piano precedente","DTNE","310-P","Intervento","Rete 132 kV tra Borgonovo, Salsominore e Borgotaro","Rete 132 kV tra Borgonovo, Salsominore e Borgotaro"," "," ",2030]
["Intervento Piano precedente","DTNE","310-P","Opera Principale","Rete 132 kV tra Borgonovo, Salsominore e Borgotaro","Elettrodotto 132 kV Bedonia – La Spezia (fase 1)",2019,2019,2019]
["Intervento Piano precedente","DTNE","310-P","Opera Principale","Rete 132 kV tra Borgonovo, Salsominore e Borgotaro","Direttrice 132 kV Salsominore – nuova SE – Borgonovo (fase 2)",2024,2026,2030]
["Intervento Piano precedente","DTNE","310-P","Opera Principale","Rete 132 kV tra Borgonovo, Salsominore e Borgotaro","Nuova stazione 132 kV",2024,2026,2030]
["Intervento Piano precedente","DTNE","311-P","Intervento","Elettrodotto 132 kV Grosseto FS – Orbetello FS","Elettrodotto 132 kV Grosseto FS – Orbetello FS"," "," ",2030]
["Intervento Piano precedente","DTNE","311-P","Opera Principale","Elettrodotto 132 kV Grosseto FS – Orbetello FS","Elettrodotto 132 kV Grosseto FS-Grosseto Sud, Grosseto Sud-Montiano e Orbetello FS-Montiano",2022,2025,2028]
["Intervento Piano precedente","DTNE","311-P","Opera Principale","Elettrodotto 132 kV Grosseto FS – Orbetello FS","Nuovo elettrodotto 132 kV Orbetello CP Montiano",2025,2028,2030]
["Intervento Piano precedente","DTNE","311-P","Opera Principale","Elettrodotto 132 kV Grosseto FS – Orbetello FS","Raccordo 132 kV all’elettrodotto “Piancastagnaio 2 – Acquapendente – Piancastagnaio 3","12.12.2013 (EL 320)",2018,2019]
["Intervento Piano precedente","DTNE","314-P","Intervento","Rete Avenza/Lucca e raccordi 132 kV di Strettoia","Rete Avenza/Lucca e raccordi 132 kV di Strettoia"," "," ",2025]
["Intervento Piano precedente","DTNE","314-P","Opera Principale","Rete Avenza/Lucca e raccordi 132 kV di Strettoia","Raccordi 132 kV CP Strettoia","16.2.2016 (EL-366)",2019,2019]
["Intervento Piano precedente","DTNE","314-P","Opera Principale","Rete Avenza/Lucca e raccordi 132 kV di Strettoia","Elettrodotto 132 kV Avenza – Massa ZI","26.06.2011 (EL-253)",2014,2016]
["Intervento Piano precedente","DTNE","314-P","Opera Principale","Rete Avenza/Lucca e raccordi 132 kV di Strettoia","Elettrodotto 132 kV Vinchiana – P.Rocca",2019,2021,2023]
["Intervento Piano precedente","DTNE","314-P","Opera Principale","Rete Avenza/Lucca e raccordi 132 kV di Strettoia","Elettrodotto 132 kV Avenza – Massa ZI - Strettoia",2022,2023,2025]
["Intervento Piano precedente","DTNE","318-P","Intervento","Riassetto di Ferrara","Riassetto di Ferrara",2024,2028,2030]
["Intervento Piano precedente","DTNE","318-P","Opera Principale","Riassetto di Ferrara","Stazione 380 kV Ferrara Nord",2024,2028,2030]
["Intervento Piano precedente","DTNE","318-P","Opera Principale","Riassetto di Ferrara","Nuovo elettrodotto 132 kV Ferrara Nord - Bussolengo",2024,2028,2030]
["Intervento Piano precedente","DTNE","318-P","Opera Principale","Riassetto di Ferrara","Nuovo elettrodotto 132 kV Ferrara Nord – Ferrara Sud – der. Aranova",2024,2028,2030]
["Intervento Piano precedente","DTNE","318-P","Opera Principale","Riassetto di Ferrara","Elettrodotto 132 kV Ferrara Cassana – Ferrara Nord",2024,2028,2030]
["Intervento Piano precedente","DTNE","318-P","Opera Principale","Riassetto di Ferrara","Elettrodotto 132 kV Ferrara Nord – Ferrara ZI",2024,2028,2030]
["Intervento Piano precedente","DTNE","318-P","Opera Principale","Riassetto di Ferrara","Elettrodotto 132 kV Centro Energia – Ferrara ZI",2024,2028,2030]
["Intervento Piano precedente","DTNE","318-P","Opera Principale","Riassetto di Ferrara","Elettrodotti 132 kV Ferrara F. – Ferrara ZI e Ferrara F. Portomaggiore",2024,2028,2030]
["Intervento Piano precedente","DTNE","318-P","Opera Principale","Riassetto di Ferrara","Raccordo elettrodotto 132 kV Ferrara RT – Rovigo a Ferrara Nord",2024,2028,2030]
["Intervento Piano precedente","DTNE","318-P","Opera Principale","Riassetto di Ferrara","Riassetto nei pressi di Ferrara RT",2024,2028,2030]
["Intervento Piano precedente","DTNE","320-P","Intervento","Razionalizzazione 132 kV area di Reggio Emilia","Razionalizzazione 132 kV area di Reggio Emilia"," ",2027,2030]
["Intervento Piano precedente","DTNE","320-P","Opera Principale","Razionalizzazione 132 kV area di Reggio Emilia","Razionalizzazione 132 kV Reggio Emilia","2021 (EL-278)",2027,2030]
["Intervento Piano precedente","DTNE","320-P","Opera Principale","Razionalizzazione 132 kV area di Reggio Emilia","Elettrodotto 132 kV Castelnovo di Sotto-Mancasale","2022 (EL-278)",2027,2030]
["Intervento Piano precedente","DTNE","320-P","Opera Principale","Razionalizzazione 132 kV area di Reggio Emilia","Elettrodotto 132 kV Mancasale-Reggio Nord”","2023 (EL-278)",2027,2030]
["Intervento Piano precedente","DTNE","323-P","Intervento","Rete AT area di Modena","Rete AT area di Modena"," "," ",2027]
["Intervento Piano precedente","DTNE","323-P","Opera Principale","Rete AT area di Modena","Nuovo elettrodotto 132 kV Modena Nord – Modena Est - Modena Crocetta","19.10.2017 (EL-250) ",2019,2021]
["Intervento Piano precedente","DTNE","323-P","Opera Principale","Rete AT area di Modena","Elettrodotto 132 kV S. Damaso – Modena Crocetta","19.10.2017 (EL-250) ",2020,2021]
["Intervento Piano precedente","DTNE","323-P","Opera Principale","Rete AT area di Modena","Elettrodotto 132 kV Rubiera - Sassuolo",2020,2023,2024]
["Intervento Piano precedente","DTNE","323-P","Opera Principale","Rete AT area di Modena","Elettrodotto 132 kV Sassuolo - Pavullo",2020,2023,2027]
["Intervento Piano precedente","DTNE","327-P","Intervento","Elettrodotto 132 kV Laguna - Faenza","Elettrodotto 132 kV Laguna - Faenza",2024,2026,2030]
["Intervento Piano precedente","DTNE","327-P","Opera Principale","Elettrodotto 132 kV Laguna - Faenza","Elettrodotto 132 kV Laguna - Faenza",2024,2026,2030]
["Intervento Piano precedente","DTNE","345-P","Intervento","Stazione 380/132 kV Larderello","Stazione 380/132 kV Larderello",2024,2028,2030]
["Intervento Piano precedente","DTNE","345-P","Opera Principale","Stazione 380/132 kV Larderello","Stazione 380/132 kV Larderello e raccordi",2024,2028,2030]
["Intervento Piano precedente","DTNE","346-P","Intervento","Stazione 220 kV Colorno","Stazione 220/132 kV Colorno",2026,2028,2030]
["Intervento Piano precedente","DTNE","346-P","Opera Principale","Stazione 220 kV Colorno","Stazione 220/132 kV Colorno",2026,2028,2030]
["Intervento Piano precedente","DTNE","346-P","Opera Principale","Stazione 220 kV Colorno","Riassetto rete AT",2026,2028,2030]
["Intervento Piano precedente","DTNE","335-P","Intervento","Stazione 220 kV Avenza","Stazione 220 kV Avenza",2023,2025,2026]
["Intervento Piano precedente","DTNE","335-P","Opera Principale","Stazione 220 kV Avenza","Stazione 220 kV Avenza ",2023,2025,2026]
["Intervento Piano precedente","DTNE","326-P","Intervento","Riassetto rete AT area di Bologna","Riassetto rete AT area di Bologna"," "," ","2028/2031"]
["Intervento Piano precedente","DTNE","326-P","Opera Principale","Riassetto rete AT area di Bologna","Elettrodotto 132 kV Giardini M. – S. Donato","2020 (EL-443)",2025,2028]
["Intervento Piano precedente","DTNE","326-P","Opera Principale","Riassetto rete AT area di Bologna","Raccordo 132 kV der. S. Viola","2020 (EL-443)",2026,2028]
["Intervento Piano precedente","DTNE","326-P","Opera Principale","Riassetto rete AT area di Bologna","Stazione 380 kV Martignone","2020 (EL-443)",2023,2025]
["Intervento Piano precedente","DTNE","326-P","Opera Principale","Riassetto rete AT area di Bologna","Stazione 380 kV Colunga","2020 (EL-443)",2023,2025]
["Intervento Piano precedente","DTNE","326-P","Opera Principale","Riassetto rete AT area di Bologna","Riassetto rete AT","2020 (EL-443)",2023,2031]
["Intervento Piano precedente","DTNE","326-P","Opera Principale","Riassetto rete AT area di Bologna","Riassetto rete 132 kV Martignone - Castelmaggiore","2020 (EL-443)",2023,2028]
["Intervento Piano precedente","DTNE","326-P","Opera Principale","Riassetto rete AT area di Bologna","Riassetto rete 132 kV Martignone – Beverara RFI – Bologna N","2020 (EL-443)",2025,2028]
["Intervento Piano precedente","DTNE","326-P","Opera Principale","Riassetto rete AT area di Bologna","Riassetto rete 132 kV Colunga – Grizzana RT","2020 (EL-443)",2024,2025]
["Intervento Piano precedente","DTNE","326-P","Opera Principale","Riassetto rete AT area di Bologna","Sezionamento automatizzato Grizzana",2018,2022,2023]
["Intervento Piano precedente","DTNE","326-P","Opera Principale","Riassetto rete AT area di Bologna","Interventi rimozione limitazioni",2020,2024,2031]
["Intervento Piano precedente","DTNE","337-P","Intervento","Rete 132 kV tra Romagna e Toscana","Rete 132 kV tra Romagna e Toscana"," ",2025,2035]
["Intervento Piano precedente","DTNE","337-P","Opera Principale","Rete 132 kV tra Romagna e Toscana","Elettrodotti 132 kV Faenza – Modigliana – Predappio – I.Ridracoli – Quarto - Talamello",2023,2025,2028]
["Intervento Piano precedente","DTNE","337-P","Opera Principale","Rete 132 kV tra Romagna e Toscana","Forlì Est-Predappio",2025,2028,2030]
["Intervento Piano precedente","DTNE","337-P","Opera Principale","Rete 132 kV tra Romagna e Toscana","Stazione 380 kV S.Martino XX",2021,2025,2028]
["Intervento Piano precedente","DTNE","337-P","Opera Principale","Rete 132 kV tra Romagna e Toscana","Riassetto rete 132 kV S.Martino XX - Talamello",2024,2029,2035]
["Intervento Piano precedente","DTNE","321-P","Intervento","Rete area Forlì/Cesena","Rete area Forlì/Cesena"," ",2025,2028]
["Intervento Piano precedente","DTNE","321-P","Opera Principale","Rete area Forlì/Cesena","Elettrodotti 132 kV– fra gli impianti di Forlì VO e Cesena Nord",2023,2025,2028]
["Intervento Piano precedente","DTNE","321-P","Opera Principale","Rete area Forlì/Cesena","Realizzazione entra-esci alla CP Cesena Ovest della linea Forlì RT – Cesena RT",2023,2025,2028]
["Intervento Piano precedente","DTNE","321-P","Opera Principale","Rete area Forlì/Cesena","Raccordo alla CP Gambettola","2019 (EL-433)",2025,2028]
["Intervento Piano precedente","DTNE","321-P","Opera Principale","Rete area Forlì/Cesena","Realizzazione entra-esci alla CP Forlì EST della linea Forlì RT – Cesena RT",2023,2025,2028]
["Intervento Piano precedente","DTNE","322-P","Intervento","Rete Nord – Ovest Emilia","Rete Nord Ovest Emilia"," ",2030,2034]
["Intervento Piano precedente","DTNE","322-P","Opera Principale","Rete Nord – Ovest Emilia","Elettrodotto 132 kV Martignone – Riale",2021,2030,2034]
["Intervento Piano precedente","DTNE","322-P","Opera Principale","Rete Nord – Ovest Emilia","Elettrodotto 132 kV Riale – Morazzo",2021,2030,2034]
["Intervento Piano precedente","DTNE","322-P","Opera Principale","Rete Nord – Ovest Emilia","Elettrodotto 132 kV Spilimberto – Solignano",2024,2030,2034]
["Intervento Piano precedente","DTNE","322-P","Opera Principale","Rete Nord – Ovest Emilia","Elettrodotto 132 kV Solignano – S. Damaso",2024,2030,2034]
["Intervento Piano precedente","DTNE","338-P","Intervento","Stazione 380 kV a nord di Grosseto","Stazione 380 kV a nord di Grosseto",2024,2028,2030]
["Intervento Piano precedente","DTNE","338-P","Opera Principale","Stazione 380 kV a nord di Grosseto","Nuova stazione 380 kV/132 kV e raccordi",2024,2028,2030]
["Intervento Piano precedente","DTNE","338-P","Opera Principale","Stazione 380 kV a nord di Grosseto","Interventi rimozione limitazioni",2024,2028,2030]
["Intervento Piano precedente","DTNE","338-P","Opera Principale","Stazione 380 kV a nord di Grosseto","Apparati di compensazione e/o regolazione dei flussi di potenza",2024,2028,2030]
["Intervento Piano precedente","DTNE","339-P","Intervento","Direttrice 132 kV Talamello – Subbiano all.","Direttrice 132 kV Talamello – Subbiano all.",2023,2025,2028]
["Intervento Piano precedente","DTNE","339-P","Opera Principale","Direttrice 132 kV Talamello – Subbiano all.","Direttrice 132 kV Talamello – Subbiano all.",2023,2025,2028]
["Intervento Piano precedente","DTNE","341-P","Intervento","Direttrice 132 kV Pontremoli FS – Borgotaro FS – Berceto FS","Direttrice 132 kV Pontremoli FS – Borgotaro FS – Berceto FS"," ",2025,2028]
["Intervento Piano precedente","DTNE","341-P","Opera Principale","Direttrice 132 kV Pontremoli FS – Borgotaro FS – Berceto FS","Direttrice 132 kV Pontremoli FS – Borgotaro FS – Berceto FS",2021,2025,2028]
["Intervento Piano precedente","DTNE","254-P","Intervento","Elettrodotto 380 kV Venezia Nord - Salgareda","Elettrodotto 380 kV Venezia Nord - Salgareda",2023,2023,2024]
["Intervento Piano precedente","DTNE","254-P","Opera Principale","Elettrodotto 380 kV Venezia Nord - Salgareda","Elettrodotto 380 kV Venezia Nord - Salgareda",2023,2023,2024]
["Intervento Piano precedente","DTNE","255-P","Intervento","Elettrodotto 132 kV Predazzo - Moena","Elettrodotto 132 kV Predazzo - Moena",2023,2025,2028]
["Intervento Piano precedente","DTNE","255-P","Opera Principale","Elettrodotto 132 kV Predazzo - Moena","Nuovo elettrodotto 132 kV Predazzo - Moena",2023,2025,2028]
["Intervento Piano precedente","DTNE","256-P","Intervento","Risoluzione antenna utente Ferriere Nord","Risoluzione antenna utente Ferriere Nord",2030,2032,2035]
["Intervento Piano precedente","DTNE","256-P","Opera Principale","Risoluzione antenna utente Ferriere Nord","Risoluzione antenna",2030,2032,2035]
["Intervento Piano precedente","DTNE","259-P","Intervento","Razionalizzazione rete AT Verona","Razionalizzazione rete AT Verona",2024,2034,2038]
["Intervento Piano precedente","DTNE","259-P","Opera Principale","Razionalizzazione rete AT Verona","Riassetto tra le linee Peschiera RT – Verona RT / Bussolengo SS – Peschiera CP e riassetto tra le linee Peschiera CP – Povegliano / Mincio – Ricevitrice Sud",2032,2034,2038]
["Intervento Piano precedente","DTNE","259-P","Opera Principale","Razionalizzazione rete AT Verona","Riassetto rete 132 kV per realizzare la direttrice Pedemonte – Grezzana – Lugo CP – Masocorona",2032,2034,2038]
["Intervento Piano precedente","DTNE","259-P","Opera Principale","Razionalizzazione rete AT Verona","Richiusura antenne strutturali 220 kV",2032,2034,2038]
["Intervento Piano precedente","DTNE","259-P","Opera Principale","Razionalizzazione rete AT Verona","Direttrice in cavo 132 kV Campo Marzo – Ricevitrice Nord – Verona Est",2032,2034,2038]
["Intervento Piano precedente","DTNE","259-P","Opera Principale","Razionalizzazione rete AT Verona","Nuova sezione 220 kV presso la SE di Ricevitrice Sud e relativi raccordi 220 kV e 132 kV",2032,2034,2038]
["Intervento Piano precedente","DTNE","259-P","Opera Principale","Razionalizzazione rete AT Verona","Riassetto rete AT per realizzare la direttrice 132 kV Domegliara RT – Bussolengo MA – Bussolengo SS e demolizioni associate",2032,2034,2038]
["Intervento Piano precedente","DTNE","259-P","Opera Principale","Razionalizzazione rete AT Verona","Riassetto rete AT per realizzare la direttrice 132 kV Ricevitrice Sud – Buttapietra",2032,2034,2038]
["Intervento Piano precedente","DTNE","259-P","Opera Principale","Razionalizzazione rete AT Verona","Entra-esce di Ricevitrice Ovest sulla linea 132 kV Bussolengo SS – Chievo CP e di Verona RT sulla linea 132 kV Chievo CE – Ricevitrice Sud",2032,2034,2038]
["Intervento Piano precedente","DTNE","259-P","Opera Principale","Razionalizzazione rete AT Verona","Demolizione direttrice 132 kV Garda NK – Castelnuovo NK",2032,2034,2038]
["Intervento Piano precedente","DTNE","259-P","Opera Principale","Razionalizzazione rete AT Verona","Realizzazione di uno stallo parallelo e risoluzione derivazione rigida Bussolengo SS-Sega-Bussolengo MA",2024,2034,2038]
["Intervento Piano precedente","DTNE","259-P","Altre Opere","Razionalizzazione rete AT Verona","SE di smistamento di Colà",2032,2034,2038]
["Intervento Piano precedente","DTNE","257-P","Intervento","Riassetto rete ad ovest di Padova","Riassetto rete ad ovest di Padova",2028,2032,2035]
["Intervento Piano precedente","DTNE","257-P","Opera Principale","Riassetto rete ad ovest di Padova","Raccordi di Castegnero",2028,2032,2035]
["Intervento Piano precedente","DTNE","257-P","Opera Principale","Riassetto rete ad ovest di Padova","Collegamento in cavo Castegnero - Montegalda",2028,2032,2035]
["Intervento Piano precedente","DTNE","258-P","Intervento","Riassetto rete area di Abano","Riassetto rete area di Abano",2023,2025,2030]
["Intervento Piano precedente","DTNE","258-P","Opera Principale","Riassetto rete area di Abano","Raccordo in cavo Padova RT-CP Abano",2023,2025,2030]
["Intervento Piano precedente","DTNE","258-P","Opera Principale","Riassetto rete area di Abano","Collegamento in cavo Monselice - Monselice CP",2023,2025,2030]
["Intervento Piano precedente","DTNE","258-P","Opera Principale","Riassetto rete area di Abano","Dismissioni rete AT",2023,2025,2030]
["Intervento Piano precedente","DTNE","348-P","Intervento","Razionalizzazione rete tra Parma e Piacenza","Razionalizzazione rete tra Parma e Piacenza",2028,2030,2034]
["Intervento Piano precedente","DTNE","348-P","Opera Principale","Razionalizzazione rete tra Parma e Piacenza","Rimozione limitazioni direttrice 132 kV S. Rocco Po – Piacenza Est",2028,2030,2034]
["Intervento Piano precedente","DTNE","348-P","Opera Principale","Razionalizzazione rete tra Parma e Piacenza","Rimozione limitazioni elettrodotto 132 kV Piacenza Est – Piacenza RT",2028,2030,2034]
["Intervento Piano precedente","DTNE","348-P","Opera Principale","Razionalizzazione rete tra Parma e Piacenza","Raccordo CP Montale su elettrodotto 132 kV Cadeo – Piacenza RT",2028,2030,2034]
["Intervento Piano precedente","DTNE","348-P","Opera Principale","Razionalizzazione rete tra Parma e Piacenza","Nuovo elettrodotto 132 kV Grazzano – Lugagnano",2028,2030,2034]
["Intervento Piano precedente","DTNE","348-P","Opera Principale","Razionalizzazione rete tra Parma e Piacenza","Demolizione elettrodotto 132 kV Fiorenzuola CP – Montale",2028,2030,2034]
["Intervento Piano precedente","DTNE","348-P","Opera Principale","Razionalizzazione rete tra Parma e Piacenza","Nuovo elettrodotto in cavo 132 kV Fidenza CP – Fidenza RT",2028,2030,2034]
["Intervento Piano precedente","DTNE","348-P","Opera Principale","Razionalizzazione rete tra Parma e Piacenza","Raccordo CP Fontevivo su elettrodotto 132 kV Fidenza RT – Parma RT",2028,2030,2034]
["Intervento Piano precedente","DTNE","349-P","Intervento","Stazione 380 kV Piombino","Stazione 380 kV Piombino",2030,2033,2036]
["Intervento Piano precedente","DTNE","349-P","Opera Principale","Stazione 380 kV Piombino","Nuova stazione 380/132 kV Piombino",2030,2033,2036]
["Intervento Piano precedente","DTNE","349-P","Opera Principale","Stazione 380 kV Piombino","Raccordi 380 kV",2030,2033,2036]
["Intervento Piano precedente","DTNE","349-P","Opera Principale","Stazione 380 kV Piombino","Raccordi 132 kV",2030,2033,2036]
["Intervento Piano precedente","DTNE","349-P","Altre Opere","Stazione 380 kV Piombino","Razionalizzazione rete AT",2030,2033,2036]

{"sheet":"Altri interventi","index":6,"n_rows":43,"n_cols":6,"rows_kept":43,"cut":false,"hidden":false,"merged":[]}
[]
["Codice","Intervento","Motivazione","Data effettiva/prevista di completamento","Anno Inserimento Piano Sicurezza","Note"]
["PS","Collegamento 400 kV SE Brindisi C.le Enipower e SE Brindisi Pignicelle","Rimuovere i vincoli di rete e garantire la sicurezza del sistema dell'area di riferimento",2027,2017,"Collegamento in assetto provvisorio in esercizio a dicembre 2020."]
["PS","Compensatori sincroni presso la stazione di Selargius","Installazione di 2 macchine compensatrici da 250 MVAr al fine di incrementare la sicurezza e la qualità del servizio della zona interessata, contribuendo anche all’inerzia del sistema in particolari condizioni di esercizio, all’aumento dell’efficacia dei sistemi di difesa e della gestione delle direttrici di riaccensione .",2020,2017]
["PS","Compensatori sincroni presso la stazione di Maida","Installazione di 2 macchine compensatrici da 250 MVAr al fine di incrementare la sicurezza e la qualità del servizio della zona interessata, contribuendo anche all’inerzia del sistema in particolari condizioni di esercizio, all’aumento dell’efficacia dei sistemi di difesa e della gestione delle direttrici di riaccensione .",2022,2017]
["PS","Compensatori sincroni presso la stazione di Matera","Installazione di 2 macchine compensatrici da 250 MVAr al fine di incrementare la sicurezza e la qualità del servizio della zona interessata, contribuendo anche all’inerzia del sistema in particolari condizioni di esercizio, all’aumento dell’efficacia dei sistemi di difesa e della gestione delle direttrici di riaccensione .",2020,2017]
["PS","Compensatore sincrono presso la stazione di Foggia","Installazione di una macchina compensatrice da 250 MVAr al fine di incrementare la sicurezza e la qualità del servizio nell'area del foggiano-brindisino, contribuendo anche all’inerzia del sistema in particolari condizioni di esercizio, all’aumento dell’efficacia dei sistemi di difesa e della gestione delle direttrici di riaccensione .",2021,2017]
["PS","Compensatore sincrono presso la stazione di Garigliano","Installazione di una macchina compensatrice da 250 MVAr al fine di incrementare la sicurezza e la qualità del servizio nell'area del foggiano-brindisino, contribuendo anche all’inerzia del sistema in particolari condizioni di esercizio, all’aumento dell’efficacia dei sistemi di difesa e della gestione delle direttrici di riaccensione .",2021,2017]
["PS","Compensatori sincroni presso la stazione di Brindisi Pignicelle","Installazione di 2 macchine compensatrici da 250 MVAr al fine di incrementare la sicurezza e la qualità del servizio della zona interessata, contribuendo anche all’inerzia del sistema in particolari condizioni di esercizio, all’aumento dell’efficacia dei sistemi di difesa e della gestione delle direttrici di riaccensione .",2021,2019]
["PS","Compensatore sincrono presso la stazione di Villanova","Installazione di una macchina compensatrice da 250 MVAr  al fine di incrementare la sicurezza e la qualità del servizio della zona interessata, contribuendo anche all’inerzia del sistema in particolari condizioni di esercizio, all’aumento dell’efficacia dei sistemi di difesa e della gestione delle direttrici di riaccensione .",2022,2019]
["PS","Compensatore sincrono presso la stazione di Rosara","Installazione di 1 macchina compensatrice da 250 MVAr per ciascun sito al fine di incrementare la sicurezza e la qualità del servizio della zona interessata, contribuendo anche all’inerzia del sistema in particolari condizioni di esercizio, all’aumento dell’efficacia dei sistemi di difesa e della gestione delle direttrici di riaccensione .",2023,"2019/2021"]
["PS","Compensatore sincrono presso la stazione di Candia","Installazione di una macchina compensatrice da 250 MVAr al fine di incrementare la sicurezza e la qualità del servizio nell'area del foggiano-brindisino, contribuendo anche all’inerzia del sistema in particolari condizioni di esercizio, all’aumento dell’efficacia dei sistemi di difesa e della gestione delle direttrici di riaccensione .",2021,2019]
["PS","Compensatore sincrono presso la stazione di Fano","Installazione di una macchina compensatrice da 250 MVAr al fine di incrementare la sicurezza e la qualità del servizio nell'area del foggiano-brindisino, contribuendo anche all’inerzia del sistema in particolari condizioni di esercizio, all’aumento dell’efficacia dei sistemi di difesa e della gestione delle direttrici di riaccensione .",2021,2019]
["PS","Compensatore sincrono presso la stazione di Suvereto","Installazione di una macchina compensatrice da 250 MVAr al fine di incrementare la sicurezza e la qualità del servizio nell'area del foggiano-brindisino, contribuendo anche all’inerzia del sistema in particolari condizioni di esercizio, all’aumento dell’efficacia dei sistemi di difesa e della gestione delle direttrici di riaccensione .",2023,2019]
["PS","Compensatore sincrono presso la stazione di Codrongianos","Installazione di una macchina compensatrice da 250 MVAr al fine di incrementare la sicurezza e la qualità del servizio nell'area del foggiano-brindisino, contribuendo anche all’inerzia del sistema in particolari condizioni di esercizio, all’aumento dell’efficacia dei sistemi di difesa e della gestione delle direttrici di riaccensione .",2023,2019]
["PS","Compensatori sincroni presso la stazione di Caracoli","Installazione di 2 macchine compensatrici da 250 MVAr al fine di incrementare la sicurezza e la qualità del servizio della zona interessata, contribuendo anche all’inerzia del sistema in particolari condizioni di esercizio, all’aumento dell’efficacia dei sistemi di difesa e della gestione delle direttrici di riaccensione .",2026,2021]
["PS","Compensatori sincroni presso la stazione di Ittiri","Installazione di 2 macchine compensatrici da 250 MVAr al fine di incrementare la sicurezza e la qualità del servizio della zona interessata, contribuendo anche all’inerzia del sistema in particolari condizioni di esercizio, all’aumento dell’efficacia dei sistemi di difesa e della gestione delle direttrici di riaccensione .",2026,2021]
["PS","Compensatore sincrono presso la stazione di Forlì","Installazione di una macchina compensatrice da 250 MVAr al fine di incrementare la sicurezza e la qualità del servizio nell'area del foggiano-brindisino, contribuendo anche all’inerzia del sistema in particolari condizioni di esercizio, all’aumento dell’efficacia dei sistemi di difesa e della gestione delle direttrici di riaccensione .",2025,2021]
["PS","Compensatore sincrono presso la stazione di Ravenna","Installazione di una macchina compensatrice da 250 MVAr al fine di incrementare la sicurezza e la qualità del servizio nell'area del foggiano-brindisino, contribuendo anche all’inerzia del sistema in particolari condizioni di esercizio, all’aumento dell’efficacia dei sistemi di difesa e della gestione delle direttrici di riaccensione .",2025,2021]
["PS","Compensatore sincrono presso la stazione di Aurelia","Installazione di una macchina compensatrice da 250 MVAr al fine di incrementare la sicurezza e la qualità del servizio nell'area del foggiano-brindisino, contribuendo anche all’inerzia del sistema in particolari condizioni di esercizio, all’aumento dell’efficacia dei sistemi di difesa e della gestione delle direttrici di riaccensione .",2025,"2021-2022"]
["PS","Compensatore sincrono presso la stazione di Rotello","Installazione di una macchina compensatrice da 250 MVAr al fine di incrementare la sicurezza e la qualità del servizio nell'area del foggiano-brindisino, contribuendo anche all’inerzia del sistema in particolari condizioni di esercizio, all’aumento dell’efficacia dei sistemi di difesa e della gestione delle direttrici di riaccensione .",2027,2021]
["PS","Compensatore sincrono presso la stazione di Troia","Installazione di una macchina compensatrice da 250 MVAr al fine di incrementare la sicurezza e la qualità del servizio nell'area del foggiano-brindisino, contribuendo anche all’inerzia del sistema in particolari condizioni di esercizio, all’aumento dell’efficacia dei sistemi di difesa e della gestione delle direttrici di riaccensione .",2025,2021]
["PS","STATCOM presso la stazione di Latina","Installazione di dispositivi elettronici di potenza (STATCOM) sulla RTN al fine di controllare la stabilità di sistema in presenza di forte penetrazione di generazione tipo inverter-based (fonti rinnovabili e HVDC), migliorare la sicurezza di esercizio della rete, incrementare la qualità del servizio ed ottimizzare il controllo coordinato con la regolazione dei compensatori sincroni.",2022,2019]
["PS","STATCOM presso la stazione di Villanova","Installazione di dispositivi elettronici di potenza (STATCOM) sulla RTN al fine di controllare la stabilità di sistema in presenza di forte penetrazione di generazione tipo inverter-based (fonti rinnovabili e HVDC), migliorare la sicurezza di esercizio della rete, incrementare la qualità del servizio ed ottimizzare il controllo coordinato con la regolazione dei compensatori sincroni.",2022,2019]
["PS","STATCOM presso la stazione di Galatina","Installazione di dispositivi elettronici di potenza (STATCOM) sulla RTN al fine di controllare la stabilità di sistema in presenza di forte penetrazione di generazione tipo inverter-based (fonti rinnovabili e HVDC), migliorare la sicurezza di esercizio della rete, incrementare la qualità del servizio ed ottimizzare il controllo coordinato con la regolazione dei compensatori sincroni.",2022,2019]
["PS","STATCOM presso la stazione di Aurelia","Installazione di dispositivi elettronici di potenza (STATCOM) sulla RTN al fine di controllare la stabilità di sistema in presenza di forte penetrazione di generazione tipo inverter-based (fonti rinnovabili e HVDC), migliorare la sicurezza di esercizio della rete, incrementare la qualità del servizio ed ottimizzare il controllo coordinato con la regolazione dei compensatori sincroni.",2023,"2021-2022"]
["PS","STATCOM presso la stazione di Montalto","Installazione di dispositivi elettronici di potenza (STATCOM) sulla RTN al fine di controllare la stabilità di sistema in presenza di forte penetrazione di generazione tipo inverter-based (fonti rinnovabili e HVDC), migliorare la sicurezza di esercizio della rete, incrementare la qualità del servizio ed ottimizzare il controllo coordinato con la regolazione dei compensatori sincroni.",2023,"2021-2022"]
["PS","Reattore presso la stazione Rotello","Installazione di un reattore da 258 MvAr per la gestione in sicurezza della rete in condizioni di basso carico ed elevate tensioni.",2022,2021]
["PS","Reattore presso la stazione Casuzze","Installazione di un reattore da 80 MvAr per la gestione in sicurezza della rete in condizioni di basso carico ed elevate tensioni.",2023,2021]
["PS","Reattore presso la stazione Bari Ovest","Installazione di un reattore da 80 MvAr per la gestione in sicurezza della rete in condizioni di basso carico ed elevate tensioni.",2023,2021]
["PS","Reattore presso la stazione Bellolampo","Installazione di un reattore da 80 MvAr per la gestione in sicurezza della rete in condizioni di basso carico ed elevate tensioni.",2022,2021]
["PS","Reattore presso la stazione S. M. Capua Vetere","Installazione di un reattore da 258 MvAr per la gestione in sicurezza della rete in condizioni di basso carico ed elevate tensioni.",2022,2021]
["PS","Reattore presso la stazione Roma Est","Installazione di un reattore da 258 MvAr per la gestione in sicurezza della rete in condizioni di basso carico ed elevate tensioni.",2023,2021]
["PS","Reattore presso la stazione Deliceto","Installazione di un reattore da 258 MvAr per la gestione in sicurezza della rete in condizioni di basso carico ed elevate tensioni.",2022,2021]
["PS","Reattore presso la stazione Montecorvino","Installazione di un reattore da 258 MvAr per la gestione in sicurezza della rete in condizioni di basso carico ed elevate tensioni.",2023,2021]
["PS","Reattore presso la CP Secondigliano","Installazione di un reattore da 180 MvAr per la gestione in sicurezza della rete in condizioni di basso carico ed elevate tensioni.",2023,2021,"In corso di valutazione siti alternativi"]
["PS","Reattore presso la CP Casoria","Installazione di un reattore da 180 MvAr per la gestione in sicurezza della rete in condizioni di basso carico ed elevate tensioni.",2023,2021,"In corso di valutazione siti alternativi"]
["PS","Reattore presso la CP Tiburtina","Installazione di un reattore da 80 MvAr per la gestione in sicurezza della rete in condizioni di basso carico ed elevate tensioni.",2024,2022,"Realizzazione in capo al distributore"]
["PS","Reattore presso la stazione Cerignola","Installazione di un reattore da 258 MvAr per la gestione in sicurezza della rete in condizioni di basso carico ed elevate tensioni.",2024,2021]
["PS","Reattore presso la stazione Torremaggiore","Installazione di un reattore da 258 MvAr per la gestione in sicurezza della rete in condizioni di basso carico ed elevate tensioni.",2024,2021]
["PS","Reattore presso la stazione Fulgatore","Installazione di un reattore da 180 MvAr per la gestione in sicurezza della rete in condizioni di basso carico ed elevate tensioni.",2023,2021]
["PS","Reattore presso la stazione Partinico","Installazione di un reattore da 180 MvAr per la gestione in sicurezza della rete in condizioni di basso carico ed elevate tensioni.",2023,2021]
["PS","Reattore presso la stazione Patria","Installazione di un reattore da 258 MvAr per la gestione in sicurezza della rete in condizioni di basso carico ed elevate tensioni.",2023,2021,"In corso di valutazione siti alternativi"]

{"sheet":"L-Legenda","index":7,"n_rows":41,"n_cols":2,"rows_kept":41,"cut":false,"hidden":false,"merged":[]}
["OBIETTIVI INTERVENTO","DESCRIZIONE"]
["Interconnessioni","Incremento capacità interconnessione "]
["Congestioni INTER / INTRA","Riduzione congestioni tra zone di mercato (congestioni interzonali) e congestioni intrazonali e vincoli alla produzione efficiente (congestioni intrazonali)"]
["Integrazione FER","Riduzione delle limitazioni alla produzione della capacità rinnovabile "]
["Qualità del servizio"," Qualità, continuità e sicurezza del servizio elettrico"]
["Resilienza 2.0","Resilienza del servizio elettrico"]
["Integrazione RFI","Attività di integrazione in Terna degli impianti/linee della Rete Ferroviaria Italiana"]
["Connessione RTN","Attività per la connessione alla Rete "]
["Transizione ecologica","Intervento finalizzato al raggiungimento degli obiettivi delinati nell'ambito della Transizione Ecologica"]
[]
["AVANZAMENTO ","DESCRIZIONE"]
["Fase 1","Fase di Pianificazione"]
["Fase 2","Fase di Concertazione e/o progettazione"]
["Fase 3","Fase di Autorizzazione (i.e., completamento iter autorizzativo)"]
["Fase 4","Fase di Progettazione esecutiva"]
["Fase 5","Fase di Realizzazione dell'opera"]
["Compl.","Opera completata"]
[]
[]
["INDICATORI Analisi Costi Benefici 2.0","DESCRIZIONE"]
["B1","Variazione (incremento) del socio-economic welfare (SEW) correlato al funzionamento del mercato dell'energia e all'incremento di limiti di transito tra zone della rete rilevante o ai confini"]
["B2a/B2b","Variazione (riduzione) delle perdite di rete calcolata mediante utilizzo di simulazioni di tipo probabilistico (B2a) o mediante utilizzo di calcoli di load flow (B2b)"]
["B3a/B3b","Variazione (riduzione) del rischio di energia non fornita mediante utilizzo di simulazioni di tipo probabilistico B3a o mediante utilizzo di simulazioni statistiche di load flow (B3b)"]
["B4","Costi evitati o differiti relativi a capacità di generazione soggetta a regimi di remunerazione che integrano o sostituiscono i proventi dei mercati dell’energia e del mercato  per il servizio di dispacciamento"]
["B5","Maggiore integrazione di produzione da fonti di energia rinnovabili (FER) calcolata mediante simulazioni di rete (congestioni a livello locale)"]
["B5a/B5b","Maggiore integrazione di produzione da fonti di energia rinnovabili (FER) calcolata mediante simulazioni di rete di tipo probabilistico (B5a) o mediante utilizzo di simulazioni statistiche di load flow (B5b)"]
["B6","Investimenti evitati in infrastrutture di trasmissione dell’energia elettrica che\nsarebbero state altrimenti necessarie in risposta a esigenze inderogabili (es. rispetto di vincoli di legge)"]
["B7","Variazione (riduzione) dei costi per servizi di rete e per approvvigionamento di risorse sul mercato per il servizio di dispacciamento calcolata tramite simulazioni di rete probabilistiche"]
["B7n","Variazione (riduzione o incremento) dei costi per servizi di rete e per approvvigionamento di risorse sul mercato per il servizio di dispacciamento calcolato tramite strumento di simulazione di rete"]
["B7z","Variazione (riduzione o incremento) dei costi per servizi di rete e per approvvigionamento di risorse sul mercato per il servizio di dispacciamento calcolato tramite tool di simulazione di mercato"]
["B8","Variazione (riduzione) dei costi per servizi di rete e per approvvigionamento di risorse sul mercato per il servizio di dispacciamento calcolata tramite simulazioni di mercato dei servizi"]
["B13","Riduzione dell'energia non fornita legata ad accadimento di eventi estremi"]
["B16","Costi operativi evitati in infrastrutture di trasmissione dell’energia elettrica che sarebbero state altrimenti necessarie in risposta a esigenze inderogabili "]
["B18","Variazione (riduzione) delle esternalità negative associate all'aumento delle emissioni di CO2, ulteriori rispetto agli impatti già monetizzati nel benificio B1 mediante il prezzo della CO2"]
["B19","Variazione (riduzione) degli impatti negativi associati all'aumento di altre emissioni non CO2 né gas effetto serra"]
["B20","Anticipo Fruizione Benefici per il riscorso a soluzioni migliorative in grado di ridurre le tempistiche di completamento"]
["B21","Visual Amenity preservata/restituita o VAPR derivante dall’adozione di soluzioni a maggior sostenibilità ambientale"]
["I21","TTC/Zone di mercato [MW]"]
["I5","Overgeneration [MWh]"]
["I8","Variazione di emissioni di CO2 [kton]"]
["I13","Variazione resilienza [valore assoluto]"]